Workbook

Sheet 01.BALANCE ENERGIA Feb-19 Def
B1: Mes | C1: 2019-02-01
B3: Total | C3: =+SUM(C9:C437) -> 0.9999887645 | D3: =+SUM(D9:D437) -> 0.9999887645
B4: Positivo | C4: =+SUMIF(C$9:C$437,">0") -> 6.300118459e+10 | D4: =+SUMIF(D$9:D$437,">0") -> 6.300118459e+10
B5: Negativo | C5: =+SUMIF(C$9:C$437,"<0") -> -6.300118459e+10 | D5: =+SUMIF(D$9:D$437,"<0") -> -6.300118459e+10 | J5: CUADRO DE PAGOS 01.BALANCE ENERGIA Feb-19 Def (Valores en $)
F6: ="Balance Energía "& TEXT(C1,"mmm-yy") -> Balance Energía feb-yy
C7: Datos | K7: Reciben
B8: Empresa | C8: Energía SEN | D8: TOTAL | F8: Empresa | G8: Paga | H8: Recibe | J8: Pagan | K8: GASATACAMA | L8: GMETROPOLITANA | M8: IMELSA_ENERGIA | N8: COLBUN | O8: ARAUCO BIO | P8: SGA | Q8: ELEKTRAGEN | R8: GESAN | S8: PUNTILLA | T8: EL MANZANO | U8: ESPINOS | V8: ENLASA | W8: PARQUE_EOLICO_LEBU | X8: ORAFTI | Y8: ALTO_MANGA_ENERGY | Z8: GENPAC | AA8: PANGUIPULLI | AB8: HIDROPALOMA | AC8: EMELDA | AD8: SWO | AE8: NUEVA DEGAN | AF8: BARRICK | AG8: CARRAN | AH8: DONGO | AI8: INACAL | AJ8: HIDROLIRCAY | AK8: LOS MORROS | AL8: DIUTO | AM8: LICAN | AN8: ENERGIA PACIFICO | AO8: DONGUIL | AP8: PEHUI | AQ8: COMASA | AR8: CHACAYES | AS8: ENERBOSCH | AT8: HIDROMUCHI | AU8: BE FORESTALES | AV8: ALLIPEN | AW8: EL CANELO | AX8: CARBOMET | AY8: HIDRONALCAS | AZ8: HIDROCALLAO | BA8: KALTEMP | BB8: ESTANCILLA SPA | BC8: MAPOCHO TREBAL | BD8: UCUQUER | BE8: TAMM | BF8: ROBLERIA | BG8: GENERHOM | BH8: HIDROBONITO | BI8: SUBSOLE | BJ8: SOLAIREDIRECT | BK8: SANTAMARTA | BL8: RIO HUASCO | BM8: SANTA IRENE | BN8: CONTRA | BO8: COLMITO | BP8: COMMONPLACE | BQ8: AELA_GENERACION | BR8: AMANECER SOLAR | BS8: SAN_ANDRES_SPA | BT8: ENERGIA_LEON | BU8: ENERGIAS_DEL_FUTURO | BV8: BIOCRUZ | BW8: HBS | BX8: ALBA | BY8: LOS_PADRES | BZ8: LOS_CURUROS | CA8: LOMAS_COLORADAS | CB8: PAMA | CC8: RIO_PUMA | CD8: CCAMPESINO | CE8: PH_PUNTA_SIERRA | CF8: UCUQUER_DOS | CG8: EBCO_ATACAMA | CH8: PV_SALVADOR | CI8: COLLIL | CJ8: MARIA_ELENA | CK8: LAS_FLORES | CL8: CURILEUFU | CM8: BIOBIO_NEGRETE | CN8: LUZ_DEL_NORTE | CO8: RAKI | CP8: TRAILELFU | CQ8: GR_PAN_DE_AZUCAR | CR8: PUCLARO | CS8: HUAJACHE | CT8: EL_MIRADOR | CU8: RIO_MULCHEN | CV8: EGP_SUR | CW8: ANDES_GENERACION | CX8: EL_MORADO | CY8: CAREN | CZ8: CHUNGUNGO | DA8: SPVP4 | DB8: RENOVALIA_6 | DC8: RENOVALIA_7 | DD8: TILTIL_SOLAR | DE8: BELLAVISTA | DF8: MALLARAUCO | DG8: M_VILLARRICA | DH8: EOLICA_ESPERANZA | DI8: CHANLEUFU | DJ8: RASO_POWER | DK8: LOS_LOROS | DL8: ALTOS_DEL_PAICO | DM8: EL_AGRIO | DN8: DIVISADERO | DO8: CUMPEO | DP8: TEATINOS | DQ8: GR_HUINGAN | DR8: GR_COIGUE | DS8: HORMIGA_SOLAR | DT8: RAGSA | DU8: GESTEL | DV8: CUZCUZ | DW8: GR_ARAUCARIA | DX8: MAINCO | DY8: EL_ARROYO | DZ8: LOS_PINOS_BIO | EA8: EL_BOCO | EB8: SANTIAGO_SOLAR | EC8: GENERADORA_PIUTEL | ED8: HIDRORIÑINAHUE | EE8: GR_CANELO | EF8: LA_LEONERA | EG8: CABO_LEONES | EH8: RIO_COLORADO | EI8: LAS_TURCAS | EJ8: GR_GUAYACAN | EK8: DOS_VALLES | EL8: SOCER | EM8: COYANCO | EN8: GR_ESPINO | EO8: HIDROMUNILQUE | EP8: SAN_FRANCISCO | EQ8: QUINTA_SOLAR | ER8: VALLE_DE_LA_LUNA_II | ES8: GR_LINGUE | ET8: QUELTEHUE | EU8: CHESTER_SOLAR_IV | EV8: CHESTER_SOLAR_V | EW8: PV_CHANCON | EX8: PITIO | EY8: CH _SANTA_ELENA | EZ8: QUEMCHI | FA8: AMPARO | FB8: PARRONAL | FC8: GR_TIACA | FD8: EMBALSE_ANCOA | FE8: GR_BOLDO | FF8: PV_PORTEZUELO | FG8: LA_CALERA | FH8: PLANETA_INVESTMENT | FI8: SOLAR_E | FJ8: GORRIONES | FK8: PV_EL_PICURIO | FL8: CHINCOL | FM8: VILLA_PRAT_ENERGY | FN8: PS_SANTALAURA | FO8: GR_ARRAYAN | FP8: PFV_OCOA | FQ8: PV_LAS_PALOMAS | FR8: PALACIOS | FS8: ENERGIA_SIETE | FT8: MINICENTRALES_ARAUCANIA | FU8: LA_ACACIA | FV8: GR_LITRE | FW8: GR_LAUREL | FX8: PATOS | FY8: TACORA_ENERGY | FZ8: CH_CONVENTO_VIEJO | GA8: CH_EL_MANZANO | GB8: MINICENTRAL_ARRAYAN | GC8: GR_TINEO | GD8: GR_QUILLAY | GE8: LIPIGAS | GF8: PV_LA_FRONTERA | GG8: EL_CERNICALO | GH8: FOTOVOLT_SOLAR_I | GI8: ABASTIBLE | GJ8: SINERGIA_SOLAR_SPA | GK8: VALLE_SOLAR_OESTE_2 | GL8: PILPEN | GM8: HIDROELECTRICA SAN ANDRES | GN8: AASA_ENERGIA | GO8: LA_MANGA_ENERGY | GP8: EL_QUEULE | GQ8: LOA_SOLAR | GR8: PIQUERO | GS8: PARQUE_SOLAR | GT8: DIEGO_DE_ALMAGRO_SOLAR | GU8: PFALICAHUE_SOLAR | GV8: LUNA_ENERGY | GW8: CALLE_LARGA_SPA | GX8: MAUCO_SPA | GY8: NUOVOSOL_SPA | GZ8: APOLO_DEL_NORTE_SPA | HA8: SOLAR_UNO | HB8: COCHRANE | HC8: GENERACION_SOLAR_SPA | HD8: NORACID | HE8: ANGAMOS | HF8: HELIO_ATACAMA_TRES | HG8: PLANTA_SOLAR_SPIII | HH8: CALAMA_SOLAR_1 | HI8: PUERTO_SECO | HJ8: ENERNUEVAS | HK8: CAVANCHA | HL8: SPS_LA_HUAYCA | HM8: LOS_PUQUIOS | HN8: PMGD_PICA_PILOT | HO8: FV_NORTE_GRANDE_5 | HP8: POZO_ALMONTE_SOLAR_1 | HQ8: POZO_ALMONTE_SOLAR_3 | HR8: SOLAR_TI_CUATRO | HS8: VITUCO | HT8: POBLACION_SOLAR | HU8: REDEN_CABILDO_SOLAR | HV8: REDEN_TALHUEN_SOLAR | HW8: LA HIGUERA | HX8: LA CONFLUENCIA | HY8: ORAZUL_DUQUECO | HZ8: REDENOR2 | IA8: ZALDIVAR_TRANSMISION | IB8: Total
A9: =+MATCH(B9,RUT[EMPRESA],0) -> 108 | B9: ENEL_GENERACION | C9: -2.939787619e+10 | D9: =+C9 -> -2.939787619e+10 | F9: =IFERROR(INDEX($B$9:$B$511,MATCH(0,INDEX(COUNTIF($F$8:F8,$B$9:$B$511),0,0),0)),"") -> ENEL_GENERACION | G9: =IF(SUMIF($B$9:$B$400,F9,$D$9:$D$400)<-0.00001,SUMIF($B$9:$B$400,F9,$D$9:$D$400),"") -> -2.939787619e+10 | H9: =IF(SUMIF($B$9:$B$400,F9,$D$9:$D$400)>0.00001,SUMIF($B$9:$B$400,F9,$D$9:$D$400),"") ->  | J9: ENEL_GENERACION | K9: =$IB9*K$64/$IB$64 -> 7327789728 | L9: 116949701 | M9: 129343647.3 | N9: 3821588863 | O9: 744841802.8 | P9: 318137382.8 | Q9: 25479609.1 | R9: 9044051.075 | S9: 174256393.3 | T9: 56211845.02 | U9: =$IB9*U$64/$IB$64 -> 7401266.583 | V9: 1324128374 | W9: 23595014.5 | X9: 9288888.782 | Y9: 9381976.273 | Z9: 41246772.16 | AA9: 466140378.2 | AB9: 33591237.3 | AC9: 19800902.95 | AD9: 7269466.843 | AE9: =$IB9*AE$64/$IB$64 -> 158201891.8 | AF9: 697281.1794 | AG9: 8302377.604 | AH9: 13251640.51 | AI9: 3565203.131 | AJ9: 73378381.92 | AK9: 22694092.04 | AL9: 49617251.76 | AM9: 92572291.23 | AN9: 96060259.32 | AO9: =$IB9*AO$64/$IB$64 -> 1125431.263 | AP9: 8593160.262 | AQ9: 430621900.9 | AR9: 478239849.5 | AS9: 16263068.85 | AT9: 5.132865987 | AU9: 363309910.9 | AV9: 16126595.04 | AW9: 37459067.52 | AX9: 42601243.33 | AY9: =$IB9*AY$64/$IB$64 -> 27096804.08 | AZ9: 1690183.354 | BA9: 1328279.899 | BB9: 23167.89057 | BC9: 4307613.593 | BD9: 22204629.19 | BE9: 177758.1485 | BF9: 29764873.92 | BG9: 3072100.741 | BH9: 23459679.92 | BI9: =$IB9*BI$64/$IB$64 -> 440789.0663 | BJ9: 548187.7543 | BK9: 91412061.02 | BL9: 38521174.04 | BM9: 3343649.862 | BN9: 9716.048689 | BO9: 19969055.21 | BP9: 8632673.064 | BQ9: 154126595 | BR9: 289096307.5 | BS9: =$IB9*BS$64/$IB$64 -> 131953856.5 | BT9: 36772780.85 | BU9: 320652.938 | BV9: 14472379.76 | BW9: 3819956.794 | BX9: 243505534.3 | BY9: 126637.1364 | BZ9: 138833758.4 | CA9: 7284844.606 | CB9: 7420727.429 | CC9: =$IB9*CC$64/$IB$64 -> 2481568.054 | CD9: 3019246028 | CE9: 169840150.7 | CF9: 12676071.69 | CG9: 825958.9654 | CH9: 97781516.37 | CI9: 5518991.112 | CJ9: 23007.2078 | CK9: 9929292.674 | CL9: 531098.1103 | CM9: =$IB9*CM$64/$IB$64 -> 9649214.108 | CN9: 236108004.7 | CO9: 3037973.362 | CP9: 5090413.452 | CQ9: 14497144.22 | CR9: 18940996.71 | CS9: 2387362.503 | CT9: 2819650.805 | CU9: 1877544.517 | CV9: 103285040 | CW9: =$IB9*CW$64/$IB$64 -> 13107521.52 | CX9: 66755873.26 | CY9: 251457913.8 | CZ9: 139147917.2 | DA9: 17415953.62 | DB9: 8317106.13 | DC9: 9456000.433 | DD9: 10304526.64 | DE9: 4493001.98 | DF9: 18974180.61 | DG9: =$IB9*DG$64/$IB$64 -> 1092066.701 | DH9: 3436741.521 | DI9: 31085489.41 | DJ9: 552000.5405 | DK9: 90428473.24 | DL9: 596599.0798 | DM9: 3918832.657 | DN9: 15580692.45 | DO9: 28279713.87 | DP9: 6185739.99 | DQ9: =$IB9*DQ$64/$IB$64 -> 17883623.5 | DR9: 10302997.03 | DS9: 8755369.699 | DT9: 226898596.1 | DU9: 3368539.311 | DV9: 10378750.33 | DW9: 43738497.78 | DX9: 57881837.01 | DY9: 1474118.005 | DZ9: 12535899.36 | EA9: =$IB9*EA$64/$IB$64 -> 12414299.28 | EB9: 240853242.7 | EC9: 69962.36328 | ED9: 7510238.763 | EE9: 45143869.71 | EF9: 17726827.58 | EG9: 37105246.99 | EH9: 25374480.27 | EI9: 14116700.96 | EJ9: 9383751.708 | EK9: =$IB9*EK$64/$IB$64 -> 28643225.11 | EL9: 46781118.78 | EM9: 14621493.07 | EN9: 13622034.75 | EO9: 9661666.391 | EP9: 14874699.24 | EQ9: 16274200.07 | ER9: 13281068.38 | ES9: 22916293.34 | ET9: 14344007.65 | EU9: =$IB9*EU$64/$IB$64 -> 36935353.76 | EV9: 12341256.09 | EW9: 11994295.16 | EX9: 12692096.33 | EY9: 6719420.398 | EZ9: 261048.6982 | FA9: 12578625.76 | FB9: 12178928.76 | FC9: 13681828.77 | FD9: 208409830 | FE9: =$IB9*FE$64/$IB$64 -> 14143097.78 | FF9: 12624425.2 | FG9: 268477.8218 | FH9: 14346756.93 | FI9: 70217541.79 | FJ9: 12518765.37 | FK9: 11798040.38 | FL9: 13381740.55 | FM9: 12283984.67 | FN9: 10124392.45 | FO9: =$IB9*FO$64/$IB$64 -> 28624345.66 | FP9: 7562087.974 | FQ9: 13279595.76 | FR9: 17824947.58 | FS9: 7656131.111 | FT9: 3820408.953 | FU9: 28757986.61 | FV9: 42276004.2 | FW9: 15126557.74 | FX9: 14907653.42 | FY9: =$IB9*FY$64/$IB$64 -> 14886347.76 | FZ9: 1.761561816 | GA9: 125848.0749 | GB9: 11722965.31 | GC9: 10089512.12 | GD9: 14436044.67 | GE9: 1042427.157 | GF9: 17368556.37 | GG9: 13310446.54 | GH9: 1947409.822 | GI9: =$IB9*GI$64/$IB$64 -> 2829877.34 | GJ9: 34025854.68 | GK9: 33415806.15 | GL9: 14460207.93 | GM9: 504857644.6 | GN9: 305314.3259 | GO9: 8601097.339 | GP9: 9618427.567 | GQ9: 34895303.66 | GR9: 13591587.12 | GS9: =$IB9*GS$64/$IB$64 -> 7611524.462 | GT9: 54494590.39 | GU9: 11082706.04 | GV9: 12500337.78 | GW9: 15847729.83 | GX9: 15376452.59 | GY9: 11930812.58 | GZ9: 9679624.324 | HA9: 11489026.96 | HB9: 1260094696 | HC9: =$IB9*HC$64/$IB$64 -> 185597102 | HD9: 119199530.1 | HE9: 657020876 | HF9: 347837799.8 | HG9: 83166774.29 | HH9: 44338108.47 | HI9: 47049749.27 | HJ9: 26265207.96 | HK9: 22348382.32 | HL9: 53644471.35 | HM9: =$IB9*HM$64/$IB$64 -> 3279517.334 | HN9: 909272.2776 | HO9: 164592005.7 | HP9: 46541602.36 | HQ9: 3384332.828 | HR9: 504900.8956 | HS9: 11015685.22 | HT9: 8081012.026 | HU9: 17689632.63 | HV9: 15632920.82 | HW9: 773888712.8 | HX9: 548506028.8 | HY9: 7480535.975 | HZ9: 10832727.04 | IA9: 51120839.55 | IB9: 2.939787619e+10
A10: =+MATCH(B10,RUT[EMPRESA],0) -> 331 | B10: GASATACAMA | C10: 1.570383623e+10 | D10: =+C10 -> 1.570383623e+10 | F10: =IFERROR(INDEX($B$9:$B$511,MATCH(0,INDEX(COUNTIF($F$8:F9,$B$9:$B$511),0,0),0)),"") -> GASATACAMA | G10: =IF(SUMIF($B$9:$B$400,F10,$D$9:$D$400)<-0.00001,SUMIF($B$9:$B$400,F10,$D$9:$D$400),"") ->  | H10: =IF(SUMIF($B$9:$B$400,F10,$D$9:$D$400)>0.00001,SUMIF($B$9:$B$400,F10,$D$9:$D$400),"") -> 1.570383623e+10 | J10: AES_GENER | K10: 624985416.3 | L10: 9974611.755 | M10: 11031688.44 | N10: 325942391.3 | O10: 63527377.49 | P10: 27133860.55 | Q10: 2173149.707 | R10: 771364.9321 | S10: 14862285.7 | T10: 4794294.687 | U10: 631252.2395 | V10: 112934589.3 | W10: 2012413.089 | X10: 792247.081 | Y10: 800186.4906 | Z10: 3517927.236 | AA10: 39757000.29 | AB10: 2864988.517 | AC10: 1688814.231 | AD10: 620011.0715 | AE10: 13493001.14 | AF10: 59470.9434 | AG10: 708107.7809 | AH10: 1130229.219 | AI10: 304075.3141 | AJ10: 6258424.474 | AK10: 1935573.63 | AL10: 4231843.42 | AM10: 7895468.363 | AN10: 8192956.32 | AO10: 95987.76064 | AP10: 732908.5635 | AQ10: 36727637.94 | AR10: 40788961.27 | AS10: 1387073.214 | AT10: 0.4377809005 | AU10: 30986614.56 | AV10: 1375433.397 | AW10: 3194874.823 | AX10: 3633449.756 | AY10: 2311079.876 | AZ10: 144155.3301 | BA10: 113288.6718 | BB10: 1975.983792 | BC10: 367395.3231 | BD10: 1893827.461 | BE10: 15160.94956 | BF10: 2538638.908 | BG10: 262018.7303 | BH10: 2000870.435 | BI10: 37594.79301 | BJ10: 46754.80118 | BK10: 7796512.609 | BL10: 3285461.631 | BM10: 285179.0893 | BN10: 828.6794464 | BO10: 1703155.897 | BP10: 736278.6009 | BQ10: 13145420.07 | BR10: 24656954.25 | BS10: 11254312.55 | BT10: 3136341.599 | BU10: 27348.41164 | BV10: 1234345.775 | BW10: 325803.1925 | BX10: 20768528.21 | BY10: 10800.85078 | BZ10: 11841097.72 | CA10: 621322.6372 | CB10: 632912.0503 | CC10: 211652.34 | CD10: 257510764.6 | CE10: 14485625.44 | CF10: 1081139.093 | CG10: 70445.8407 | CH10: 8339761.917 | CI10: 470713.4191 | CJ10: 1962.279197 | CK10: 846866.9743 | CL10: 45297.22957 | CM10: 822979.1411 | CN10: 20137594.7 | CO10: 259108.0144 | CP10: 434160.1341 | CQ10: 1236457.93 | CR10: 1615473.036 | CS10: 203617.5713 | CT10: 240487.3362 | CU10: 160135.3184 | CV10: 8809156.118 | CW10: 1117937.345 | CX10: 5693592.309 | CY10: 21446784.74 | CZ10: 11867892.26 | DA10: 1485402.478 | DB10: 709363.9733 | DC10: 806499.9934 | DD10: 878870.5888 | DE10: 383207.0538 | DF10: 1618303.282 | DG10: 93142.1052 | DH10: 293118.8544 | DI10: 2651273.885 | DJ10: 47079.99279 | DK10: 7712622.645 | DL10: 50883.79144 | DM10: 334236.2909 | DN10: 1328873.496 | DO10: 2411969.966 | DP10: 527580.2699 | DQ10: 1525289.93 | DR10: 878740.1286 | DS10: 746743.3673 | DT10: 19352126.47 | DU10: 287301.9043 | DV10: 885201.1096 | DW10: 3730445.913 | DX10: 4936727.9 | DY10: 125727.1686 | DZ10: 1069183.829 | EA10: 1058812.588 | EB10: 20542314.9 | EC10: 5967.073068 | ED10: 640546.4504 | EE10: 3850309.746 | EF10: 1511916.843 | EG10: 3164697.555 | EH10: 2164183.294 | EI10: 1204010.016 | EJ10: 800337.9171 | EK10: 2442973.752 | EL10: 3989950.324 | EM10: 1247063.613 | EN10: 1161820.054 | EO10: 824041.1933 | EP10: 1268659.506 | EQ10: 1388022.593 | ER10: 1132739.115 | ES10: 1954525.125 | ET10: 1223396.948 | EU10: 3150207.402 | EV10: 1052582.751 | EW10: 1022990.538 | EX10: 1082505.831 | EY10: 573097.7431 | EZ10: 22264.78043 | FA10: 1072827.953 | FB10: 1038737.893 | FC10: 1166919.872 | FD10: 17775224.07 | FE10: 1206261.394 | FF10: 1076734.176 | FG10: 22898.40859 | FH10: 1223631.434 | FI10: 5988837.182 | FJ10: 1067722.475 | FK10: 1006252.015 | FL10: 1141325.42 | FM10: 1047698.086 | FN10: 863506.9873 | FO10: 2441363.529 | FP10: 644968.6571 | FQ10: 1132613.516 | FR10: 1520285.474 | FS10: 652989.5736 | FT10: 325841.757 | FU10: 2452761.733 | FV10: 3605710.189 | FW10: 1290140.457 | FX10: 1271470.16 | FY10: 1269653.006 | FZ10: 0.1502431819 | GA10: 10733.55192 | GB10: 999848.8802 | GC10: 860532.0522 | GD10: 1231246.764 | GE10: 88908.36047 | GF10: 1481359.978 | GG10: 1135244.771 | GH10: 166094.1134 | GI10: 241359.555 | GJ10: 2902056.928 | GK10: 2850026.037 | GL10: 1233307.642 | GM10: 43059186.59 | GN10: 26040.18512 | GO10: 733585.5149 | GP10: 820353.3644 | GQ10: 2976212.022 | GR10: 1159223.183 | GS10: 649185.0833 | GT10: 4647830.454 | GU10: 945241.3215 | GV10: 1066150.791 | GW10: 1351649.05 | GX10: 1311453.928 | GY10: 1017576.124 | GZ10: 825572.821 | HA10: 979896.3349 | HB10: 107473172.3 | HC10: 15829532.01 | HD10: 10166499.14 | HE10: 56037151.85 | HF10: 29667001.95 | HG10: 7093274.095 | HH10: 3781586.564 | HI10: 4012861.753 | HJ10: 2240153.244 | HK10: 1906088.131 | HL10: 4575324.007 | HM10: 279709.2414 | HN10: 77551.61298 | HO10: 14038012.42 | HP10: 3969522.025 | HQ10: 288648.9296 | HR10: 43062.87545 | HS10: 939525.1326 | HT10: 689227.5642 | HU10: 1508744.495 | HV10: 1333328.042 | HW10: 66004781.43 | HX10: 46781946.74 | HY10: 638013.1068 | HZ10: 923920.6728 | IA10: 4360084.06 | IB10: 2507337761
A11: =+MATCH(B11,RUT[EMPRESA],0) -> 4 | B11: AES_GENER | C11: -2507337761 | D11: -2507337761 | F11: =IFERROR(INDEX($B$9:$B$511,MATCH(0,INDEX(COUNTIF($F$8:F10,$B$9:$B$511),0,0),0)),"") -> AES_GENER | G11: -2507337761 | J11: PEHUENCHE | K11: 280358564.3 | L11: 4474452.936 | M11: 4948640.805 | N11: 146212597.1 | O11: 28497375.91 | P11: 12171820.32 | Q11: 974840.5577 | R11: 346022.0979 | S11: 6666986.096 | T11: 2150644.703 | U11: 283169.762 | V11: 50660669.01 | W11: 902736.6552 | X11: 355389.4993 | Y11: 358950.9928 | Z11: 1578086.47 | AA11: 17834360.98 | AB11: 1285188.496 | AC11: 757575.3302 | AD11: 278127.1519 | AE11: 6052746.72 | AF11: 26677.72379 | AG11: 317645.9412 | AH11: 507002.9361 | AI11: 136403.3724 | AJ11: 2807430.149 | AK11: 868267.6903 | AL11: 1898337.969 | AM11: 3541782.123 | AN11: 3675230.511 | AO11: 43058.58995 | AP11: 328771.1797 | AQ11: 16475436.98 | AR11: 18297282.34 | AS11: 622219.0867 | AT11: 0.1963815819 | AU11: 13900104.78 | AV11: 616997.6487 | AW11: 1433170.271 | AX11: 1629908.043 | AY11: 1036713.848 | AZ11: 64665.79913 | BA11: 50819.50483 | BB11: 886.3950493 | BC11: 164807.7261 | BD11: 849541.0201 | BE11: 6800.961975 | BF11: 1138793.228 | BG11: 117537.4547 | BH11: 897558.8035 | BI11: 16864.42902 | BJ11: 20973.46369 | BK11: 3497392.138 | BL11: 1473806.079 | BM11: 127926.8251 | BN11: 371.7324817 | BO11: 764008.7745 | BP11: 330282.9251 | BQ11: 5896827.351 | BR11: 11060719.36 | BS11: 5048506.457 | BT11: 1406913.193 | BU11: 12268.06454 | BV11: 553707.975 | BW11: 146150.1547 | BX11: 9316432.993 | BY11: 4845.090683 | BZ11: 5311728.996 | CA11: 278715.4996 | CB11: 283914.3268 | CC11: 94943.8893 | CD11: 115515252.6 | CE11: 6498022.265 | CF11: 484981.8829 | CG11: 31600.88898 | CH11: 3741085.178 | CI11: 211154.5885 | CJ11: 880.247385 | CK11: 379891.1188 | CL11: 20319.62013 | CM11: 369175.415 | CN11: 9033406.206 | CO11: 116231.7536 | CP11: 194757.3634 | CQ11: 554655.4542 | CR11: 724675.631 | CS11: 91339.61925 | CT11: 107878.8121 | CU11: 71834.16891 | CV11: 3951647.986 | CW11: 501488.9961 | CX11: 2554055.381 | CY11: 9620688.135 | CZ11: 5323748.598 | DA11: 666328.038 | DB11: 318209.4492 | DC11: 361783.1302 | DD11: 394247.4337 | DE11: 171900.6182 | DF11: 725945.2349 | DG11: 41782.07396 | DH11: 131488.478 | DI11: 1189319.495 | DJ11: 21119.33949 | DK11: 3459760.428 | DL11: 22825.66335 | DM11: 149933.1092 | DN11: 596111.6145 | DO11: 1081971.546 | DP11: 236664.1575 | DQ11: 684220.9173 | DR11: 394188.9113 | DS11: 334977.2537 | DT11: 8681057.59 | DU11: 128879.0863 | DV11: 397087.2051 | DW11: 1673418.984 | DX11: 2214537.988 | DY11: 56399.2176 | DZ11: 479618.9408 | EA11: 474966.5659 | EB11: 9214957.282 | EC11: 2676.73452 | ED11: 287338.9979 | EE11: 1727188.002 | EF11: 678221.9624 | EG11: 1419633.226 | EH11: 970818.367 | EI11: 540099.8338 | EJ11: 359018.9203 | EK11: 1095879.353 | EL11: 1789828.555 | EM11: 559412.9959 | EN11: 521174.0848 | EO11: 369651.8348 | EP11: 569100.5717 | EQ11: 622644.9632 | ER11: 508128.8357 | ES11: 876769.031 | ET11: 548796.5047 | EU11: 1413133.173 | EV11: 472171.9599 | EW11: 458897.3614 | EX11: 485594.9797 | EY11: 257082.5755 | EZ11: 9987.628052 | FA11: 481253.6371 | FB11: 465961.3757 | FC11: 523461.7823 | FD11: 7973684.138 | FE11: 541109.7665 | FF11: 483005.9069 | FG11: 10271.86361 | FH11: 548901.6913 | FI11: 2686497.557 | FJ11: 478963.4005 | FK11: 451388.725 | FL11: 511980.5161 | FM11: 469980.7765 | FN11: 387355.5653 | FO11: 1095157.033 | FP11: 289322.7298 | FQ11: 508072.4939 | FR11: 681975.9977 | FS11: 292920.7859 | FT11: 146167.4541 | FU11: 1100270.087 | FV11: 1617464.513 | FW11: 578736.586 | FX11: 570361.3866 | FY11: 569546.2398 | FZ11: 0.06739671307 | GA11: 4814.901478 | GB11: 448516.3801 | GC11: 386021.0564 | GD11: 552317.8076 | GE11: 39882.88309 | GF11: 664514.6364 | GG11: 509252.8336 | GH11: 74507.19003 | GI11: 108270.0757 | GJ11: 1301816.799 | GK11: 1278476.564 | GL11: 553242.285 | GM11: 19315669.48 | GN11: 11681.21483 | GO11: 329074.8494 | GP11: 367997.5331 | GQ11: 1335081.6 | GR11: 520009.1695 | GS11: 291214.1518 | GT11: 2084943.167 | GU11: 424020.2937 | GV11: 478258.3676 | GW11: 606328.3673 | GX11: 588297.472 | GY11: 456468.5412 | GZ11: 370338.8988 | HA11: 439565.9841 | HB11: 48210763.79 | HC11: 7100877.479 | HD11: 4560530.578 | HE11: 25137379.25 | HF11: 13308147.45 | HG11: 3181930.473 | HH11: 1696359.871 | HI11: 1800106.259 | HJ11: 1004897.284 | HK11: 855040.9623 | HL11: 2052417.922 | HM11: 125473.1379 | HN11: 34788.42595 | HO11: 6297230.149 | HP11: 1780664.743 | HQ11: 129483.3405 | HR11: 19317.32425 | HS11: 421456.1019 | HT11: 309176.5749 | HU11: 676798.8972 | HV11: 598109.8531 | HW11: 29608700.1 | HX11: 20985640.75 | HY11: 286202.58 | HZ11: 414456.1882 | IA11: 1955864.69 | IB11: 1124752029
A12: =+MATCH(B12,RUT[EMPRESA],0) -> 338 | B12: GMETROPOLITANA | C12: 250629319.3 | D12: 250629319.3 | F12: =IFERROR(INDEX($B$9:$B$511,MATCH(0,INDEX(COUNTIF($F$8:F11,$B$9:$B$511),0,0),0)),"") -> GMETROPOLITANA | H12: 250629319.3 | J12: GUACOLDA | K12: 400096965 | L12: 6385448.023 | M12: 7062156.892 | N12: 208658567.3 | O12: 40668326.44 | P12: 17370285.73 | Q12: 1391185.426 | R12: 493804.7516 | S12: 9514390.651 | T12: 3069164.022 | U12: 404108.7978 | V12: 72297345.26 | W12: 1288286.651 | X12: 507172.8786 | Y12: 512255.4511 | Z12: 2252071.766 | AA12: 25451242.12 | AB12: 1834079.933 | AC12: 1081128.344 | AD12: 396912.5383 | AE12: 8637815.645 | AF12: 38071.5187 | AG12: 453309.416 | AH12: 723538.9314 | AI12: 194659.9187 | AJ12: 4006456.107 | AK12: 1239096.329 | AL12: 2709099.548 | AM12: 5054442.627 | AN12: 5244885.517 | AO12: 61448.49258 | AP12: 469186.135 | AQ12: 23511934.98 | AR12: 26111872.67 | AS12: 887962.7731 | AT12: 0.2802542349 | AU12: 19836703.58 | AV12: 880511.3099 | AW12: 2045263.277 | AX12: 2326025.827 | AY12: 1479484.193 | AZ12: 92283.92947 | BA12: 72524.0183 | BB12: 1264.965706 | BC12: 235195.494 | BD12: 1212371.681 | BE12: 9705.586318 | BF12: 1625160.677 | BG12: 167736.552 | BH12: 1280897.39 | BI12: 24067.06172 | BJ12: 29931.02489 | BK12: 4991094.114 | BL12: 2103254.241 | BM12: 182563.1209 | BN12: 530.4957889 | BO12: 1090309.45 | BP12: 471343.5321 | BQ12: 8415304.639 | BR12: 15784644.42 | BS12: 7204674.188 | BT12: 2007792.058 | BU12: 17507.63492 | BV12: 790191.2355 | BW12: 208569.4563 | BX12: 13295390.41 | BY12: 6914.381527 | BZ12: 7580316.498 | CA12: 397752.1635 | CB12: 405171.359 | CC12: 135493.4958 | CD12: 164850687.2 | CE12: 9273264.021 | CF12: 692112.9017 | CG12: 45097.3196 | CH12: 5338866.068 | CI12: 301336.648 | CJ12: 1256.192434 | CK12: 542138.9002 | CL12: 28997.93116 | CM12: 526846.624 | CN12: 12891485.64 | CO12: 165873.1988 | CP12: 277936.3285 | CQ12: 791543.3739 | CR12: 1034177.505 | CS12: 130349.8773 | CT12: 153952.7977 | CU12: 102513.8399 | CV12: 5639358.192 | CW12: 715670.0415 | CX12: 3644867.454 | CY12: 13729589.94 | CZ12: 7597469.555 | DA12: 950910.226 | DB12: 454113.5928 | DC12: 516297.1667 | DD12: 562626.6567 | DE12: 245317.691 | DF12: 1035989.345 | DG12: 59626.7891 | DH12: 187645.921 | DI12: 1697266.219 | DJ12: 30139.20284 | DK12: 4937390.269 | DL12: 32574.28093 | DM12: 213968.0737 | DN12: 850705.0548 | DO12: 1544071.011 | DP12: 337741.1045 | DQ12: 976444.979 | DR12: 562543.14 | DS12: 478042.7625 | DT12: 12388652.38 | DU12: 183922.0836 | DV12: 566679.2667 | DW12: 2388119.865 | DX12: 3160345.503 | DY12: 80486.77182 | DZ12: 684459.4995 | EA12: 677820.1408 | EB12: 13150575.41 | EC12: 3819.941654 | ED12: 410058.6735 | EE12: 2464853.105 | EF12: 967883.9292 | EG12: 2025944.692 | EH12: 1385445.396 | EI12: 770771.1903 | EJ12: 512352.3898 | EK12: 1563918.707 | EL12: 2554246.825 | EM12: 798332.8151 | EN12: 743762.4391 | EO12: 527526.5181 | EP12: 812157.8597 | EQ12: 888570.5371 | ER12: 725145.6917 | ES12: 1251228.509 | ET12: 783182.1243 | EU12: 2016668.53 | EV12: 673831.9859 | EW12: 654887.9363 | EX12: 692987.8462 | EY12: 366880.029 | EZ12: 14253.24631 | FA12: 686792.3586 | FB12: 664968.922 | FC12: 747027.1898 | FD12: 11379166.65 | FE12: 772212.4555 | FF12: 689293.0057 | FG12: 14658.8761 | FH12: 783332.2351 | FI12: 3833874.388 | FJ12: 683523.9843 | FK12: 644172.4346 | FL12: 730642.3872 | FM12: 670704.9695 | FN12: 552791.3387 | FO12: 1562887.89 | FP12: 412889.638 | FQ12: 725065.2869 | FR12: 973241.2763 | FS12: 418024.3887 | FT12: 208594.1442 | FU12: 1570184.679 | FV12: 2308267.786 | FW12: 825909.3215 | FX12: 813957.1564 | FY12: 812793.8684 | FZ12: 0.09618119005 | GA12: 6871.298808 | GB12: 640073.3394 | GC12: 550886.8742 | GD12: 788207.3413 | GE12: 56916.47239 | GF12: 948322.3383 | GG12: 726749.7381 | GH12: 106328.4822 | GI12: 154511.166 | GJ12: 1857810.021 | GK12: 1824501.401 | GL12: 789526.654 | GM12: 27565203 | GN12: 16670.14744 | GO12: 469619.4991 | GP12: 525165.6803 | GQ12: 1905281.893 | GR12: 742099.9999 | GS12: 415588.8678 | GT12: 2975402.002 | GU12: 605115.2141 | GV12: 682517.8388 | GW12: 865285.2828 | GX12: 839553.5684 | GY12: 651421.7906 | GZ12: 528507.0203 | HA12: 627300.3168 | HB12: 68801109.49 | HC12: 10133592.8 | HD12: 6508288.584 | HE12: 35873308.08 | HF12: 18991927.06 | HG12: 4540901.857 | HH12: 2420858.58 | HI12: 2568914.036 | HJ12: 1434079.085 | HK12: 1220220.595 | HL12: 2928985.543 | HM12: 179061.488 | HN12: 49646.22242 | HO12: 8986715.556 | HP12: 2541169.24 | HQ12: 184784.4089 | HR12: 27567.5645 | HS12: 601455.8809 | HT12: 441222.8661 | HU12: 965853.0868 | HV12: 853556.7215 | HW12: 42254286.32 | HX12: 29948402.67 | HY12: 408436.9028 | HZ12: 591466.3727 | IA12: 2791195.369 | IB12: 1605122620
A13: =+MATCH(B13,RUT[EMPRESA],0) -> 177 | B13: IMELSA_ENERGIA | C13: 277190193.8 | D13: 277190193.8 | F13: =IFERROR(INDEX($B$9:$B$511,MATCH(0,INDEX(COUNTIF($F$8:F12,$B$9:$B$511),0,0),0)),"") -> IMELSA_ENERGIA | H13: 277190193.8 | J13: TECNORED | K13: 68460801.82 | L13: 1092617.365 | M13: 1208409.375 | N13: 35703677.03 | O13: 6958778.696 | P13: 2972238.714 | Q13: 238046.4688 | R13: 84495.1904 | S13: 1628012.381 | T13: 525166.2677 | U13: 69147.26863 | V13: 12370836.72 | W13: 220439.4056 | X13: 86782.61764 | Y13: 87652.29928 | Z13: 385353.1828 | AA13: 4354975.407 | AB13: 313830.3807 | AC13: 184992.4388 | AD13: 67915.91289 | AE13: 1478021.172 | AF13: 6514.43756 | AG13: 77566.01225 | AH13: 123805.1266 | AI13: 33308.36092 | AJ13: 685546.8087 | AK13: 212022.4236 | AL13: 463555.4466 | AM13: 864868.3326 | AN13: 897455.1155 | AO13: 10514.48384 | AP13: 80282.68599 | AQ13: 4023139.543 | AR13: 4468016.247 | AS13: 151939.7765 | AT13: 0.04795444932 | AU13: 3394268.767 | AV13: 150664.7527 | AW13: 349966.0735 | AX13: 398007.5009 | AY13: 253155.3173 | AZ13: 15790.75164 | BA13: 12409.62286 | BB13: 216.4489462 | BC13: 40244.42451 | BD13: 207449.5551 | BE13: 1660.727972 | BF13: 278082.0971 | BG13: 28701.48951 | BH13: 219175.0251 | BI13: 4118.127571 | BJ13: 5121.51339 | BK13: 854028.7353 | BL13: 359888.9379 | BM13: 31238.4715 | BN13: 90.77341307 | BO13: 186563.4226 | BP13: 80651.83934 | BQ13: 1439947.197 | BR13: 2700918.797 | BS13: 1232795.584 | BT13: 343554.3535 | BU13: 2995.740606 | BV13: 135210.0373 | BW13: 35688.42922 | BX13: 2274981.235 | BY13: 1183.123455 | BZ13: 1297071.937 | CA13: 68059.58159 | CB13: 69329.08404 | CC13: 23184.36323 | CD13: 28207687.67 | CE13: 1586753.077 | CF13: 118427.8021 | CG13: 7716.626042 | CH13: 913536.177 | CI13: 51561.87211 | CJ13: 214.9477471 | CK13: 92765.67194 | CL13: 4961.851231 | CM13: 90149.00254 | CN13: 2205868.879 | CO13: 28382.65016 | CP13: 47557.83115 | CQ13: 135441.4024 | CR13: 176958.6561 | CS13: 22304.23596 | CT13: 26342.94407 | CU13: 17541.19698 | CV13: 964953.5421 | CW13: 122458.6767 | CX13: 623675.1844 | CY13: 2349277.346 | CZ13: 1300007.006 | DA13: 162710.7482 | DB13: 77703.61536 | DC13: 88343.87936 | DD13: 96271.34273 | DE13: 41976.43895 | DF13: 177268.6809 | DG13: 10202.7712 | DH13: 32108.19209 | DI13: 290420.1142 | DJ13: 5157.134827 | DK13: 844839.4421 | DL13: 5573.802318 | DM13: 36612.18947 | DN13: 145564.5887 | DO13: 264206.8016 | DP13: 57791.05778 | DQ13: 167080.0132 | DR13: 96257.05213 | DS13: 81798.14816 | DT13: 2119828.816 | DU13: 31471.00432 | DV13: 96964.78695 | DW13: 408632.4444 | DX13: 540768.3789 | DY13: 13772.1338 | DZ13: 117118.2245 | EA13: 115982.1603 | EB13: 2250201.865 | EC13: 653.6322227 | ED13: 70165.35499 | EE13: 421762.3093 | EF13: 165615.1275 | EG13: 346660.4604 | EH13: 237064.2894 | EI13: 131887.0632 | EJ13: 87668.88651 | EK13: 267602.9513 | EL13: 437058.5157 | EM13: 136603.1473 | EN13: 127265.5816 | EO13: 90265.33957 | EP13: 138968.7579 | EQ13: 152043.7713 | ER13: 124080.0602 | ES13: 214098.3673 | ET13: 134010.7046 | EU13: 345073.2114 | EV13: 115299.745 | EW13: 112058.2187 | EX13: 118577.5143 | EY13: 62777.03446 | EZ13: 2438.880462 | FA13: 117517.4012 | FB13: 113783.1815 | FC13: 127824.2148 | FD13: 1947095.181 | FE13: 132133.6788 | FF13: 117945.2882 | FG13: 2508.287988 | FH13: 134036.3902 | FI13: 656016.2602 | FJ13: 116958.1479 | FK13: 110224.6836 | FL13: 125020.6026 | FM13: 114764.6796 | FN13: 94588.41629 | FO13: 267426.5677 | FP13: 70649.76281 | FQ13: 124066.3021 | FR13: 166531.8259 | FS13: 71528.3727 | FT13: 35692.65357 | FU13: 268675.1252 | FV13: 394968.9132 | FW13: 141321.7778 | FX13: 139276.6365 | FY13: 139077.5857 | FZ13: 0.01645761395 | GA13: 1175.751548 | GB13: 109523.2853 | GC13: 94262.54237 | GD13: 134870.5721 | GE13: 9739.007484 | GF13: 162267.9334 | GG13: 124354.5294 | GH13: 18193.92243 | GI13: 26438.48677 | GJ13: 317890.8484 | GK13: 312191.393 | GL13: 135096.3204 | GM13: 4716696.363 | GN13: 2852.437683 | GO13: 80356.83913 | GP13: 89861.37539 | GQ13: 326013.7855 | GR13: 126981.1207 | GS13: 71111.62945 | GT13: 509122.5993 | GU13: 103541.5821 | GV13: 116785.9859 | GW13: 148059.4192 | GX13: 143656.452 | GY13: 111465.1247 | GZ13: 90433.11383 | HA13: 107337.6867 | HB13: 11772593.98 | HC13: 1733964.386 | HD13: 1113636.678 | HE13: 6138300.586 | HF13: 3249718.614 | HG13: 776996.1018 | HH13: 414234.3831 | HI13: 439568.23 | HJ13: 245386.0255 | HK13: 208792.5868 | HL13: 501180.2547 | HM13: 30639.30525 | HN13: 8494.991193 | HO13: 1537721.619 | HP13: 434820.8032 | HQ13: 31618.55725 | HR13: 4717.10044 | HS13: 102915.4317 | HT13: 75497.87635 | HU13: 165267.629 | HV13: 146052.5389 | HW13: 7230153.125 | HX13: 5124486.91 | HY13: 69887.85295 | HZ13: 101206.1217 | IA13: 477602.9056 | IB13: 274653374.5
A14: =+MATCH(B14,RUT[EMPRESA],0) -> 56 | B14: COLBUN | C14: 8189864596 | D14: 8189864596 | F14: =IFERROR(INDEX($B$9:$B$511,MATCH(0,INDEX(COUNTIF($F$8:F13,$B$9:$B$511),0,0),0)),"") -> COLBUN | H14: 8189864596 | J14: NUEVA ENERGIA | K14: 9100220.877 | L14: 145237.2612 | M14: 160629.0305 | N14: 4745947.148 | O14: 925002.651 | P14: 395087.8178 | Q14: 31642.56608 | R14: 11231.60809 | S14: 216405.1818 | T14: 69808.25387 | U14: 9191.470168 | V14: 1644405.902 | W14: 29302.1295 | X14: 11535.66666 | Y14: 11651.26996 | Z14: 51223.45906 | AA14: 578889.4822 | AB14: 41716.21872 | AC14: 24590.30583 | AD14: 9027.790969 | AE14: 196467.4495 | AF14: 865.938159 | AG14: 10310.54012 | AH14: 16456.92086 | AI14: 4427.547347 | AJ14: 91126.99844 | AK14: 28183.29372 | AL14: 61618.57356 | AM14: 114963.4922 | AN14: 119295.1231 | AO14: 1397.64833 | AP14: 10671.65671 | AQ14: 534779.8666 | AR14: 593915.5495 | AS14: 20196.74747 | AT14: 0.006374393364 | AU14: 451186.5867 | AV14: 20027.26365 | AW14: 46519.59199 | AX14: 52905.54702 | AY14: 33650.92495 | AZ14: 2099.00153 | BA14: 1649.561589 | BB14: 28.77169369 | BC14: 5349.530569 | BD14: 27575.44057 | BE14: 220.7539346 | BF14: 36964.34219 | BG14: 3815.174335 | BH14: 29134.06046 | BI14: 547.4062456 | BJ14: 680.7823139 | BK14: 113522.6278 | BL14: 47838.59871 | BM14: 4152.405216 | BN14: 12.06614715 | BO14: 24799.13042 | BP14: 10720.72679 | BQ14: 191406.4281 | BR14: 359022.3452 | BS14: 163870.5919 | BT14: 45667.30767 | BU14: 398.2118304 | BV14: 17972.93008 | BW14: 4743.920317 | BX14: 302404.1668 | BY14: 157.2678741 | BZ14: 172414.5907 | CA14: 9046.888275 | CB14: 9215.638164 | CC14: 3081.80478 | CD14: 3749535.229 | CE14: 210920.7473 | CF14: 15742.1346 | CG14: 1025.740271 | CH14: 121432.7143 | CI14: 6853.913664 | CJ14: 28.57214528 | CK14: 12330.97016 | CL14: 659.5590609 | CM14: 11983.14675 | CN14: 293217.3374 | CO14: 3772.792294 | CP14: 6321.672495 | CQ14: 18003.68452 | CR14: 23522.40718 | CS14: 2964.812979 | CT14: 3501.662312 | CU14: 2331.681236 | CV14: 128267.4193 | CW14: 16277.94265 | CX14: 82902.6506 | CY14: 312280.052 | CZ14: 172804.7376 | DA14: 21628.48971 | DB14: 10328.83116 | DC14: 11743.19894 | DD14: 12796.96497 | DE14: 5579.760329 | DF14: 23563.61754 | DG14: 1356.213614 | DH14: 4268.013699 | DI14: 38604.38552 | DJ14: 685.5173292 | DK14: 112301.1318 | DL14: 740.9032741 | DM14: 4866.712076 | DN14: 19349.31923 | DO14: 35119.9546 | DP14: 7681.934429 | DQ14: 22209.27865 | DR14: 12795.06538 | DS14: 10873.10104 | DT14: 281780.3755 | DU14: 4183.314874 | DV14: 12889.14174 | DW14: 54317.8783 | DX14: 71882.18018 | DY14: 1830.674725 | DZ14: 15568.05768 | EA14: 15417.04521 | EB14: 299110.3441 | EC14: 86.88472003 | ED14: 9326.800321 | EE14: 56063.17879 | EF14: 22014.55724 | EG14: 46080.19005 | EH14: 31512.0089 | EI14: 17531.22041 | EJ14: 11653.47484 | EK14: 35571.39121 | EL14: 58096.44239 | EM14: 18158.11062 | EN14: 16916.90532 | EO14: 11998.61097 | EP14: 18472.5618 | EQ14: 20210.57109 | ER14: 16493.46668 | ES14: 28459.24062 | ET14: 17813.50758 | EU14: 45869.20338 | EV14: 15326.33447 | EW14: 14895.45133 | EX14: 15762.03525 | EY14: 8344.700389 | EZ14: 324.1906362 | FA14: 15621.11864 | FB14: 15124.74374 | FC14: 16991.1622 | FD14: 258819.5836 | FE14: 17564.00204 | FF14: 15677.99596 | FG14: 333.4167014 | FH14: 17816.92185 | FI14: 87201.62061 | FJ14: 15546.77935 | FK14: 14651.72683 | FL14: 16618.48923 | FM14: 15255.21036 | FN14: 12573.26029 | FO14: 35547.94525 | FP14: 9391.190716 | FQ14: 16491.63787 | FR14: 22136.41031 | FS14: 9507.980819 | FT14: 4744.481843 | FU14: 35713.911 | FV14: 52501.63969 | FW14: 18785.33932 | FX14: 18513.48687 | FY14: 18487.02784 | FZ14: 0.002187644872 | GA14: 156.287956 | GB14: 14558.49275 | GC14: 12529.94317 | GD14: 17927.80633 | GE14: 1294.567356 | GF14: 21569.6281 | GG14: 16529.95078 | GH14: 2418.445422 | GI14: 3514.362422 | GJ14: 42255.96047 | GK14: 41498.35463 | GL14: 17957.81415 | GM14: 626971.6038 | GN14: 379.1631454 | GO14: 10681.51359 | GP14: 11944.91362 | GQ14: 43335.71004 | GR14: 16879.09308 | GS14: 9452.584803 | GT14: 67675.63312 | GU14: 13763.36885 | GV14: 15523.89453 | GW14: 19680.94708 | GX14: 19095.67825 | GY14: 14816.61371 | GZ14: 12020.91253 | HA14: 14267.96986 | HB14: 1564883.885 | HC14: 230488.9585 | HD14: 148031.2745 | HE14: 815939.7737 | HF14: 431972.1124 | HG14: 103282.9876 | HH14: 55062.52163 | HI14: 58430.04868 | HJ14: 32618.18402 | HK14: 27753.96442 | HL14: 66619.88898 | HM14: 4072.760439 | HN14: 1129.205241 | HO14: 204403.1914 | HP14: 57798.99221 | HQ14: 4202.928495 | HR14: 627.0253162 | HS14: 13680.13717 | HT14: 10035.63108 | HU14: 21968.36565 | HV14: 19414.1805 | HW14: 961075.3696 | HX14: 681177.572 | HY14: 9289.913082 | HZ14: 13452.92542 | IA14: 63485.84616 | IB14: 36508575.79
A15: =+MATCH(B15,RUT[EMPRESA],0) -> 244 | B15: PEHUENCHE | C15: -1124752029 | D15: -1124752029 | F15: =IFERROR(INDEX($B$9:$B$511,MATCH(0,INDEX(COUNTIF($F$8:F14,$B$9:$B$511),0,0),0)),"") -> PEHUENCHE | G15: -1124752029 | J15: PACIFIC HYDRO | K15: 5486320.633 | L15: 87560.31238 | M15: 96839.66753 | N15: 2861225.91 | O15: 557663.5115 | P15: 238189.6523 | Q15: 19076.59885 | R15: 6771.286549 | S15: 130465.8678 | T15: 42085.84261 | U15: 5541.332799 | V15: 991375.7206 | W15: 17665.60173 | X15: 6954.59669 | Y15: 7024.291351 | Z15: 30881.48344 | AA15: 348999.5851 | AB15: 25149.77983 | AC15: 14824.9481 | AD15: 5442.654253 | AE15: 118445.8527 | AF15: 522.0548438 | AG15: 6215.99517 | AH15: 9921.511321 | AI15: 2669.269756 | AJ15: 54938.43924 | AK15: 16991.08054 | AL15: 37148.46662 | AM15: 69308.93083 | AN15: 71920.37467 | AO15: 842.6110723 | AP15: 6433.704323 | AQ15: 322406.8795 | AR15: 358058.4666 | AS15: 12176.16955 | AT15: 0.003842979891 | AU15: 272010.3516 | AV15: 12073.99153 | AW15: 28045.62667 | AX15: 31895.57683 | AY15: 20287.39372 | AZ15: 1265.441307 | BA15: 994.4839696 | BB15: 17.34581378 | BC15: 3225.112921 | BD15: 16624.6194 | BE15: 133.0876341 | BF15: 22284.97923 | BG15: 2300.083697 | BH15: 17564.27665 | BI15: 330.0190424 | BJ15: 410.4285056 | BK15: 68440.26577 | BL15: 28840.82647 | BM15: 2503.392689 | BN15: 7.274411573 | BO15: 14950.8438 | BP15: 6463.287582 | BQ15: 115394.6756 | BR15: 216446.5815 | BS15: 98793.93274 | BT15: 27531.80343 | BU15: 240.07305 | BV15: 10835.47954 | BW15: 2860.003979 | BX15: 182312.7419 | BY15: 94.81330116 | BZ15: 103944.9195 | CA15: 5454.167594 | CB15: 5555.903146 | CC15: 1857.951514 | CD15: 2260511.34 | CE15: 127159.4243 | CF15: 9490.582597 | CG15: 618.3959806 | CH15: 73209.08087 | CI15: 4132.072008 | CJ15: 17.22551049 | CK15: 7434.067473 | CL15: 397.6334787 | CM15: 7224.372481 | CN15: 176774.2069 | CO15: 2274.532507 | CP15: 3811.195653 | CQ15: 10854.02071 | CR15: 14181.13578 | CS15: 1787.41976 | CT15: 2111.074275 | CU15: 1405.718723 | CV15: 77329.57236 | CW15: 9813.609346 | CX15: 49980.16297 | CY15: 188266.6932 | CZ15: 104180.1304 | DA15: 13039.33508 | DB15: 6227.022426 | DC15: 7079.713285 | DD15: 7715.005374 | DE15: 3363.913319 | DF15: 14205.98058 | DG15: 817.6310042 | DH15: 2573.09047 | DI15: 23273.72486 | DJ15: 413.2831409 | DK15: 67703.853 | DL15: 446.6740945 | DM15: 2934.032397 | DN15: 11665.27393 | DO15: 21173.039 | DP15: 4631.267299 | DQ15: 13389.47981 | DR15: 7713.860153 | DS15: 6555.150627 | DT15: 169879.1171 | DU15: 2522.027434 | DV15: 7770.576698 | DW15: 32747.03993 | DX15: 43336.16663 | DY15: 1103.673048 | DZ15: 9385.635491 | EA15: 9294.593434 | EB15: 180326.9695 | EC15: 52.380864 | ED15: 5622.920337 | EE15: 33799.24275 | EF15: 13272.08661 | EG15: 27780.72102 | EH15: 18997.88883 | EI15: 10569.18261 | EJ15: 7025.62062 | EK15: 21445.20009 | EL15: 35025.05213 | EM15: 10947.12077 | EN15: 10198.82572 | EO15: 7233.695513 | EP15: 11136.69638 | EQ15: 12184.5035 | ER15: 9943.543987 | ES15: 17157.44278 | ET15: 10739.36726 | EU15: 27653.52186 | EV15: 9239.905949 | EW15: 8980.136095 | EX15: 9502.580253 | EY15: 5030.834146 | EZ15: 195.4473194 | FA15: 9417.624768 | FB15: 9118.371385 | FC15: 10243.59354 | FD15: 156036.5667 | FE15: 10588.94593 | FF15: 9451.914836 | FG15: 201.0095088 | FH15: 10741.42565 | FI15: 52571.91631 | FJ15: 9372.807259 | FK15: 8833.20002 | FL15: 10018.9173 | FM15: 9197.026807 | FN15: 7580.138797 | FO15: 21431.06504 | FP15: 5661.739873 | FQ15: 9942.441437 | FR15: 13345.54911 | FS15: 5732.150027 | FT15: 2860.34251 | FU15: 21531.1221 | FV15: 31652.0701 | FW15: 11325.26299 | FX15: 11161.3692 | FY15: 11145.41764 | FZ15: 0.001318882405 | GA15: 94.22253034 | GB15: 8776.991268 | GC15: 7554.02387 | GD15: 10808.27544 | GE15: 780.4658474 | GF15: 13003.84873 | GG15: 9965.539436 | GH15: 1458.02692 | GI15: 2118.730889 | GJ15: 25475.17812 | GK15: 25018.43442 | GL15: 10826.36648 | GM15: 377987.2261 | GN15: 228.5890218 | GO15: 6439.646817 | GP15: 7201.322579 | GQ15: 26126.13511 | GR15: 10176.02956 | GS15: 5698.753002 | GT15: 40800.13302 | GU15: 8297.628761 | GV15: 9359.010511 | GW15: 11865.20498 | GX15: 11512.35942 | GY15: 8932.60665 | GZ15: 7247.140628 | HA15: 8601.841484 | HB15: 943433.6662 | HC15: 138956.6633 | HD15: 89244.76081 | HE15: 491911.9301 | HF15: 260426.3726 | HG15: 62267.01458 | HH15: 33195.96882 | HI15: 35226.17594 | HJ15: 19664.7772 | HK15: 16732.24746 | HL15: 40163.64838 | HM15: 2455.376626 | HN15: 680.7727082 | HO15: 123230.1349 | HP15: 34845.72604 | HQ15: 2533.85205 | HR15: 378.0196081 | HS15: 8247.450238 | HT15: 6050.258626 | HU15: 13244.23873 | HV15: 11704.37734 | HW15: 579410.9507 | HX15: 410666.7979 | HY15: 5600.681842 | HZ15: 8110.46933 | IA15: 38274.20371 | IB15: 22010207.81
A16: =+MATCH(B16,RUT[EMPRESA],0) -> 156 | B16: GUACOLDA | C16: -1605122620 | D16: -1605122620 | F16: =IFERROR(INDEX($B$9:$B$511,MATCH(0,INDEX(COUNTIF($F$8:F15,$B$9:$B$511),0,0),0)),"") -> GUACOLDA | G16: -1605122620 | J16: ELECTRICA CENIZAS | K16: 60949557.95 | L16: 972739.7814 | M16: 1075827.558 | N16: 31786413.17 | O16: 6195289.481 | P16: 2646136.635 | Q16: 211928.9675 | R16: 75224.7179 | S16: 1449393.41 | T16: 467547.1367 | U16: 61560.70838 | V16: 11013558.26 | W16: 196253.6804 | X16: 77261.17781 | Y16: 78035.44149 | Z16: 343073.7812 | AA16: 3877165.018 | AB16: 279398.1733 | AC16: 164695.8123 | AD16: 60464.45204 | AE16: 1315858.632 | AF16: 5799.699668 | AG16: 69055.7813 | AH16: 110221.7259 | AI16: 29653.9015 | AJ16: 610331.3697 | AK16: 188760.1759 | AL16: 412696.0071 | AM16: 769978.4571 | AN16: 798989.9492 | AO16: 9360.876954 | AP16: 71474.39252 | AQ16: 3581736.851 | AR16: 3977803.472 | AS16: 135269.5552 | AT16: 0.04269307998 | AU16: 3021863.248 | AV16: 134134.4219 | AW16: 311569.2032 | AX16: 354339.7185 | AY16: 225380.1339 | AZ16: 14058.25387 | BA16: 11048.08894 | BB16: 192.7010383 | BC16: 35828.96809 | BD16: 184689.0241 | BE16: 1478.519578 | BF16: 247572.0476 | BG16: 25552.4775 | BH16: 195128.0228 | BI16: 3666.303174 | BJ16: 4559.601536 | BK16: 760328.1368 | BL16: 320403.3708 | BM16: 27811.11203 | BN16: 80.81411921 | BO16: 166094.4341 | BP16: 71803.04385 | BQ16: 1281961.981 | BR16: 2404584.848 | BS16: 1097538.21 | BT16: 305860.9514 | BU16: 2667.059994 | BV16: 120375.3358 | BW16: 31772.83828 | BX16: 2025379.442 | BY16: 1053.315907 | BZ16: 1154762.42 | CA16: 60592.35799 | CB16: 61722.57573 | CC16: 20640.66813 | CD16: 25112853.61 | CE16: 1412660.91 | CF16: 105434.3799 | CG16: 6869.988864 | CH16: 813306.6613 | CI16: 45904.71085 | CJ16: 191.3645447 | CK16: 82587.79546 | CL16: 4417.456867 | CM16: 80258.2165 | CN16: 1963849.817 | CO16: 25268.61992 | CP16: 42339.97716 | CQ16: 120581.3164 | CR16: 157543.464 | CS16: 19857.10489 | CT16: 23452.70218 | CU16: 15616.64739 | CV16: 859082.7199 | CW16: 109023.0031 | CX16: 555248.0511 | CY16: 2091524.083 | CZ16: 1157375.465 | DA16: 144858.7792 | DB16: 69178.28716 | DC16: 78651.14418 | DD16: 85708.83814 | DE16: 37370.95287 | DF16: 157819.4741 | DG16: 9083.364172 | DH16: 28585.41037 | DI16: 258556.3872 | DJ16: 4591.314732 | DK16: 752147.0559 | DL16: 4962.267142 | DM16: 32595.24727 | DN16: 129593.8274 | DO16: 235219.0938 | DP16: 51450.45532 | DQ16: 148748.666 | DR16: 85696.11546 | DS16: 72823.58428 | DT16: 1887249.723 | DU16: 28018.13228 | DV16: 86326.20045 | DW16: 363798.9358 | DX16: 481437.447 | DY16: 12261.11066 | DZ16: 104268.4838 | EA16: 103257.0641 | EB16: 2003318.765 | EC16: 581.9183237 | ED16: 62467.0944 | EE16: 375488.2448 | EF16: 147444.5017 | EG16: 308626.2687 | EH16: 211054.5489 | EI16: 117416.945 | EJ16: 78050.20883 | EK16: 238242.6316 | EL16: 389106.2129 | EM16: 121615.5993 | EN16: 113302.5138 | EO16: 80361.7895 | EP16: 123721.6647 | EQ16: 135362.1401 | ER16: 110466.4949 | ES16: 190608.3554 | ET16: 119307.589 | EU16: 307213.1663 | EV16: 102649.5206 | EW16: 99763.64159 | EX16: 105567.6663 | EY16: 55889.39069 | EZ16: 2171.296305 | FA16: 104623.8645 | FB16: 101299.3484 | FC16: 113799.856 | FD16: 1733467.728 | FE16: 117636.5029 | FF16: 105004.8055 | FG16: 2233.088717 | FH16: 119330.4564 | FI16: 584040.7942 | FJ16: 104125.9703 | FK16: 98131.27458 | FL16: 111303.8448 | FM16: 102173.1605 | FN16: 84210.55563 | FO16: 238085.6001 | FP16: 62898.35494 | FQ16: 110454.2463 | FR16: 148260.6237 | FS16: 63680.56729 | FT16: 31776.59915 | FU16: 239197.1709 | FV16: 351634.5124 | FW16: 125816.5206 | FX16: 123995.7641 | FY16: 123818.5523 | FZ16: 0.01465195072 | GA16: 1046.752816 | GB16: 97506.83084 | GC16: 83920.43529 | GD16: 120073.1153 | GE16: 8670.482747 | GF16: 144464.5483 | GG16: 110710.8505 | GH16: 16197.75843 | GI16: 23537.76232 | GJ16: 283013.1429 | GK16: 277939.0088 | GL16: 120274.0954 | GM16: 4199199.405 | GN16: 2539.479691 | GO16: 71540.40989 | GP16: 80002.14664 | GQ16: 290244.8639 | GR16: 113049.2628 | GS16: 63309.54743 | GT16: 453263.715 | GU16: 92181.41608 | GV16: 103972.6971 | GW16: 131814.9351 | GX16: 127895.0438 | GY16: 99235.61948 | GZ16: 80511.15624 | HA16: 95561.02733 | HB16: 10480952.31 | HC16: 1543720.787 | HD16: 991452.9399 | HE16: 5464830.93 | HF16: 2893172.556 | HG16: 691747.214 | HH16: 368786.2524 | HI16: 391340.5714 | HJ16: 218463.2575 | HK16: 185884.7038 | HL16: 446192.7725 | HM16: 27277.68389 | HN16: 7562.954921 | HO16: 1369008.986 | HP16: 387114.0133 | HQ16: 28149.4963 | HR16: 4199.559149 | HS16: 91623.96437 | HT16: 67214.55296 | HU16: 147135.1293 | HV16: 130028.2417 | HW16: 6436889.799 | HX16: 4562248.813 | HY16: 62220.03876 | HZ16: 90102.19298 | IA16: 425202.2354 | IB16: 244519510.7
A17: =+MATCH(B17,RUT[EMPRESA],0) -> 19 | B17: ARAUCO BIO | C17: 1596234898 | D17: 1596234898 | F17: =IFERROR(INDEX($B$9:$B$511,MATCH(0,INDEX(COUNTIF($F$8:F16,$B$9:$B$511),0,0),0)),"") -> ARAUCO BIO | H17: 1596234898 | J17: GAS SUR | K17: 750745.9648 | L17: 11981.71882 | M17: 13251.50214 | N17: 391529.0319 | O17: 76310.45631 | P17: 32593.77865 | Q17: 2610.434309 | R17: 926.580197 | S17: 17852.8982 | T17: 5759.010205 | U17: 758.273808 | V17: 135659.465 | W17: 2417.354016 | X17: 951.6642848 | Y17: 961.2012749 | Z17: 4225.810088 | AA17: 47756.96642 | AB17: 3441.486013 | AC17: 2028.640087 | AD17: 744.7706745 | AE17: 16208.08406 | AF17: 71.43778017 | AG17: 850.5943423 | AH17: 1357.65572 | AI17: 365.261827 | AJ17: 7517.75449 | AK17: 2325.0528 | AL17: 5083.38161 | AM17: 9484.206926 | AN17: 9841.555877 | AO17: 115.3025688 | AP17: 880.3855774 | AQ17: 44118.03101 | AR17: 48996.58021 | AS17: 1666.182268 | AT17: 0.0005258718619 | AU17: 37221.78988 | AV17: 1652.200268 | AW17: 3837.75256 | AX17: 4364.578231 | AY17: 2776.119004 | AZ17: 173.1624924 | BA17: 136.0847966 | BB17: 2.373594358 | BC17: 441.3231878 | BD17: 2274.906402 | BE17: 18.21165967 | BF17: 3049.467822 | BG17: 314.7425514 | BH17: 2403.488731 | BI17: 45.1596764 | BJ17: 56.16287581 | BK17: 9365.339139 | BL17: 3946.567389 | BM17: 342.5632742 | BN17: 0.995427628 | BO17: 2045.867605 | BP17: 884.4337391 | BQ17: 15790.56217 | BR17: 29618.46537 | BS17: 13518.92303 | BT17: 3767.441188 | BU17: 32.85150205 | BV17: 1482.722773 | BW17: 391.3618233 | BX17: 24947.60413 | BY17: 12.97421496 | BZ17: 14223.78203 | CA17: 746.3461555 | CB17: 760.2676086 | CC17: 254.2413568 | CD17: 309327.4857 | CE17: 17400.44577 | CF17: 1298.687602 | CG17: 84.62106356 | CH17: 10017.90193 | CI17: 565.4311137 | CJ17: 2.357132103 | CK17: 1017.274879 | CL17: 54.41200935 | CM17: 988.5802983 | CN17: 24189.71318 | CO17: 311.2461366 | CP17: 521.5225191 | CQ17: 1485.259939 | CR17: 1940.541061 | CS17: 244.5898193 | CT17: 288.8785763 | CU17: 192.3579991 | CV17: 10581.74837 | CW17: 1342.890456 | CX17: 6839.265909 | CY17: 25762.3405 | CZ17: 14255.9682 | DA17: 1784.297501 | DB17: 852.1033077 | DC17: 968.7851906 | DD17: 1055.718311 | DE17: 460.3165799 | DF17: 1943.940814 | DG17: 111.8843061 | DH17: 352.1006913 | DI17: 3184.767386 | DJ17: 56.55350299 | DK17: 9264.568705 | DL17: 61.12270799 | DM17: 401.4918431 | DN17: 1596.271511 | DO17: 2897.310357 | DP17: 633.7408017 | DQ17: 1832.211169 | DR17: 1055.561599 | DS17: 897.0042422 | DT17: 23246.19179 | DU17: 345.1132454 | DV17: 1063.322669 | DW17: 4481.092107 | DX17: 5930.104053 | DY17: 151.0261873 | DZ17: 1284.326681 | EA17: 1271.868522 | EB17: 24675.87182 | EC17: 7.167776897 | ED17: 769.4382146 | EE17: 4625.075129 | EF17: 1816.147129 | EG17: 3801.502975 | EH17: 2599.663661 | EI17: 1446.282805 | EJ17: 961.3831716 | EK17: 2934.552773 | EL17: 4792.814403 | EM17: 1497.999715 | EN17: 1395.603313 | EO17: 989.8560583 | EP17: 1523.941167 | EQ17: 1667.322683 | ER17: 1360.670661 | ES17: 2347.817745 | ET17: 1469.570806 | EU17: 3784.097091 | EV17: 1264.385108 | EW17: 1228.838303 | EX17: 1300.329357 | EY17: 688.4173724 | EZ17: 26.74493457 | FA17: 1288.704082 | FB17: 1247.754366 | FC17: 1401.729324 | FD17: 21351.98262 | FE17: 1448.987209 | FF17: 1293.396321 | FG17: 27.50606238 | FH17: 1469.852476 | FI17: 7193.920419 | FJ17: 1282.571271 | FK17: 1208.731628 | FL17: 1370.984716 | FM17: 1258.517543 | FN17: 1037.263222 | FO17: 2932.618538 | FP17: 774.7502648 | FQ17: 1360.519789 | FR17: 1826.199708 | FS17: 784.3851626 | FT17: 391.4081478 | FU17: 2946.310307 | FV17: 4331.256864 | FW17: 1549.744548 | FX17: 1527.317386 | FY17: 1525.13458 | FZ17: 0.0001804753513 | GA17: 12.89337412 | GB17: 1201.040045 | GC17: 1033.689665 | GD17: 1479.000174 | GE17: 106.7986406 | GF17: 1779.441563 | GG17: 1363.68051 | GH17: 199.5158322 | GI17: 289.9263042 | GJ17: 3486.013388 | GK17: 3423.512759 | GL17: 1481.475746 | GM17: 51723.62384 | GN17: 31.28003213 | GO17: 881.1987461 | GP17: 985.4261587 | GQ17: 3575.090086 | GR17: 1392.483895 | GS17: 779.8151268 | GT17: 5583.074209 | GU17: 1135.444267 | GV17: 1280.68333 | GW17: 1623.629998 | GX17: 1575.34675 | GY17: 1222.334392 | GZ17: 991.6958826 | HA17: 1177.072617 | HB17: 129099.0931 | HC17: 19014.77534 | HD17: 12212.21808 | HE17: 67313.03568 | HF17: 35636.64274 | HG17: 8520.593866 | HH17: 4542.523361 | HI17: 4820.336106 | HJ17: 2690.920403 | HK17: 2289.634183 | HL17: 5495.9779 | HM17: 335.992775 | HN17: 93.15667052 | HO17: 16862.76335 | HP17: 4768.275491 | HQ17: 346.7313212 | HR17: 51.72805498 | HS17: 1128.577858 | HT17: 827.9150187 | HU17: 1812.336435 | HV17: 1601.622407 | HW17: 79286.36736 | HX17: 56195.48364 | HY17: 766.3951077 | HZ17: 1109.833444 | IA17: 5237.427032 | IB17: 3011868.209
A18: =+MATCH(B18,RUT[EMPRESA],0) -> 289 | B18: SGA | C18: 681785032.7 | D18: 681785032.7 | F18: =IFERROR(INDEX($B$9:$B$511,MATCH(0,INDEX(COUNTIF($F$8:F17,$B$9:$B$511),0,0),0)),"") -> SGA | H18: 681785032.7 | J18: NORVIND | K18: 6906191.515 | L18: 110221.0984 | M18: 121901.9694 | N18: 3601716.965 | O18: 701987.9567 | P18: 299833.6163 | Q18: 24013.66124 | R18: 8523.70921 | S18: 164230.6984 | T18: 52977.74384 | U18: 6975.440941 | V18: 1247945.763 | W18: 22237.4952 | X18: 8754.460386 | Y18: 8842.192166 | Z18: 38873.67384 | AA18: 439321.3839 | AB18: 31658.59374 | AC18: 18661.67467 | AD18: 6851.224188 | AE18: 149099.8791 | AF18: 657.1636937 | AG18: 7824.707298 | AH18: 12489.21853 | AI18: 3360.08217 | AJ18: 69156.61849 | AK18: 21388.40656 | AL18: 46762.56495 | AM18: 87246.22238 | AN18: 90533.51317 | AO18: 1060.680523 | AP18: 8098.76002 | AQ18: 405846.4324 | AR18: 450724.7223 | AS18: 15327.38687 | AT18: 0.004837550864 | AU18: 342407.181 | AV18: 15198.76497 | AW18: 35303.89161 | AX18: 40150.21666 | AY18: 25537.81226 | AZ18: 1592.940078 | BA18: 1251.858433 | BB18: 21.83494549 | BC18: 4059.778671 | BD18: 20927.10454 | BE18: 167.5309831 | BF18: 28052.37695 | BG18: 2895.350011 | BH18: 22109.94698 | BI18: 415.4286384 | BJ18: 516.6482333 | BK18: 86152.74504 | BL18: 36304.89072 | BM18: 3151.275782 | BN18: 9.157044007 | BO18: 18820.15243 | BP18: 8135.999487 | BQ18: 145259.0511 | BR18: 272463.3948 | BS18: 124362.0024 | BT18: 34657.08986 | BU18: 302.2044411 | BV18: 13639.72357 | BW18: 3600.178795 | BX18: 229495.6484 | BY18: 119.3511754 | BZ18: 130846.075 | CA18: 6865.717204 | CB18: 6993.782123 | CC18: 2338.793125 | CD18: 2845536.249 | CE18: 160068.5406 | CF18: 11946.76458 | CG18: 778.4381117 | CH18: 92155.73914 | CI18: 5201.460604 | CJ18: 21.68350746 | CK18: 9358.019178 | CL18: 500.5418276 | CM18: 9094.054697 | CN18: 222523.7294 | CO18: 2863.186122 | CP18: 4797.5408 | CQ18: 13663.06323 | CR18: 17851.24241 | CS18: 2250.007611 | CT18: 2657.424569 | CU18: 1769.521574 | CV18: 97342.62216 | CW18: 12353.3913 | CX18: 62915.13029 | CY18: 236990.4944 | CZ18: 131142.1589 | DA18: 16413.94139 | DB18: 7838.58843 | DC18: 8911.957409 | DD18: 9711.664376 | DE18: 4234.500893 | DF18: 17882.51711 | DG18: 1029.235563 | DH18: 3239.011491 | DI18: 29297.01194 | DJ18: 520.2416541 | DK18: 85225.74716 | DL18: 562.274254 | DM18: 3693.365919 | DN18: 14684.27042 | DO18: 26652.66434 | DP18: 5829.848647 | DQ18: 16854.70428 | DR18: 9710.222769 | DS18: 8251.636874 | DT18: 213844.1764 | DU18: 3174.733237 | DV18: 9781.617671 | DW18: 41222.04013 | DX18: 54551.65424 | DY18: 1389.305866 | DZ18: 11814.65695 | EA18: 11700.05302 | EB18: 226995.9541 | EC18: 65.9371376 | ED18: 7078.143498 | EE18: 42546.55517 | EF18: 16706.92948 | EG18: 34970.42784 | EH18: 23914.58091 | EI18: 13304.50846 | EJ18: 8843.865453 | EK18: 26995.26126 | EL18: 44089.60649 | EM18: 13780.25778 | EN18: 12838.30245 | EO18: 9105.790549 | EP18: 14018.89594 | EQ18: 15337.87766 | ER18: 12516.95329 | ES18: 21597.82369 | ET18: 13518.73724 | EU18: 34810.30927 | EV18: 11631.21231 | EW18: 11304.21349 | EX18: 11961.86725 | EY18: 6332.824202 | EZ18: 246.0294812 | FA18: 11854.92512 | FB18: 11478.22435 | FC18: 12894.65627 | FD18: 196419.1459 | FE18: 13329.38656 | FF18: 11898.08952 | FG18: 253.0311764 | FH18: 13521.32835 | FI18: 66177.63463 | FJ18: 11798.50874 | FK18: 11119.25006 | FL18: 12611.83337 | FM18: 11577.23595 | FN18: 9541.894056 | FO18: 26977.46803 | FP18: 7127.009609 | FQ18: 12515.5654 | FR18: 16799.40422 | FS18: 7215.642053 | FT18: 3600.60494 | FU18: 27103.42006 | FV18: 39843.68989 | FW18: 14256.26397 | FX18: 14049.95413 | FY18: 14029.87427 | FZ18: 0.00166021184 | GA18: 118.6075119 | GB18: 11048.49437 | GC18: 9509.020534 | GD18: 13605.47899 | GE18: 982.4519879 | GF18: 16369.2711 | GG18: 12544.64121 | GH18: 1835.367237 | GI18: 2667.06273 | GJ18: 32068.20577 | GK18: 31493.25587 | GL18: 13628.25204 | GM18: 475811.0851 | GN18: 287.7483231 | GO18: 8106.240444 | GP18: 9065.039434 | GQ18: 32887.63174 | GR18: 12809.6066 | GS18: 7173.60181 | GT18: 51359.29001 | GU18: 10445.07187 | GV18: 11781.14137 | GW18: 14935.94403 | GX18: 14491.78134 | GY18: 11244.38333 | GZ18: 9122.715287 | HA18: 10828.01547 | HB18: 1187596.208 | HC18: 174918.929 | HD18: 112341.4855 | HE18: 619219.733 | HF18: 327825.2448 | HG18: 78381.84395 | HH18: 41787.15273 | HI18: 44342.78155 | HJ18: 24754.06133 | HK18: 21062.58696 | HL18: 50558.08185 | HM18: 3090.833065 | HN18: 856.9580626 | HO18: 155122.3432 | HP18: 43863.87044 | HQ18: 3189.618088 | HR18: 475.8518476 | HS18: 10381.90705 | HT18: 7616.077802 | HU18: 16671.87451 | HV18: 14733.49388 | HW18: 729363.6772 | HX18: 516948.1962 | HY18: 7050.149635 | HZ18: 10209.4752 | IA18: 48179.64508 | IB18: 27706494.13
A19: =+MATCH(B19,RUT[EMPRESA],0) -> 306 | B19: TECNORED | C19: -274653374.5 | D19: -274653374.5 | F19: =IFERROR(INDEX($B$9:$B$511,MATCH(0,INDEX(COUNTIF($F$8:F18,$B$9:$B$511),0,0),0)),"") -> TECNORED | G19: -274653374.5 | J19: MONTE REDONDO | K19: =$IB19*K$64/$IB$64 -> 140150047 | L19: 2236759.883 | M19: 2473804.37 | N19: 73091051.84 | O19: 14245716.32 | P19: 6084640.91 | Q19: 487318.6248 | R19: 172974.9666 | S19: 3332797.831 | T19: 1075098.088 | U19: =$IB19*U$64/$IB$64 -> 141555.3527 | V19: 25325051.73 | W19: 451274.1924 | X19: 177657.6905 | Y19: 179438.0659 | Z19: 788878.6758 | AA19: 8915320.765 | AB19: 642460.2318 | AC19: 378708.667 | AD19: 139034.5735 | AE19: =$IB19*AE$64/$IB$64 -> 3025742.194 | AF19: 13336.08001 | AG19: 158789.8472 | AH19: 253448.599 | AI19: 68187.46239 | AJ19: 1403422.322 | AK19: 434043.3043 | AL19: 948971.0302 | AM19: 1770521.733 | AN19: 1837232.011 | AO19: =$IB19*AO$64/$IB$64 -> 21524.80493 | AP19: 164351.3064 | AQ19: 8236000.473 | AR19: 9146733.173 | AS19: 311044.6598 | AT19: 0.09817031276 | AU19: 6948602.918 | AV19: 308434.4853 | AW19: 716435.6879 | AX19: 814784.0587 | AY19: =$IB19*AY$64/$IB$64 -> 518248.818 | AZ19: 32326.15637 | BA19: 25404.45308 | BB19: 443.1050935 | BC19: 82386.67729 | BD19: 424681.9219 | BE19: 3399.7718 | BF19: 569277.8633 | BG19: 58756.47082 | BH19: 448685.8065 | BI19: =$IB19*BI$64/$IB$64 -> 8430.45593 | BJ19: 10484.54478 | BK19: 1748331.369 | BL19: 736749.3547 | BM19: 63950.07265 | BN19: 185.8274775 | BO19: 381924.7182 | BP19: 165107.0215 | BQ19: 2947798.769 | BR19: 5529206.295 | BS19: =$IB19*BS$64/$IB$64 -> 2523726.782 | BT19: 703309.887 | BU19: 6132.752986 | BV19: 276796.2481 | BW19: 73059.83716 | BX19: 4657245.001 | BY19: 2422.040107 | BZ19: 2655310.603 | CA19: 139328.686 | CB19: 141927.5575 | CC19: =$IB19*CC$64/$IB$64 -> 47462.04413 | CD19: 57745580.66 | CE19: 3248333.534 | CF19: 242440.3687 | CG19: 15797.14923 | CH19: 1870152.478 | CI19: 105555.2755 | CJ19: 440.0319024 | CK19: 189905.9453 | CL19: 10157.69119 | CM19: =$IB19*CM$64/$IB$64 -> 184549.2108 | CN19: 4515761.121 | CO19: 58103.75644 | CP19: 97358.37288 | CQ19: 277269.889 | CR19: 362262.2481 | CS19: 45660.28495 | CT19: 53928.15672 | CU19: 35909.59376 | CV19: 1975411.925 | CW19: =$IB19*CW$64/$IB$64 -> 250692.204 | CX19: 1276761.36 | CY19: 4809340.845 | CZ19: 2661319.151 | DA19: 333094.5359 | DB19: 159071.5425 | DC19: 180853.8392 | DD19: 197082.6057 | DE19: 85932.38372 | DF19: 362896.9176 | DG19: =$IB19*DG$64/$IB$64 -> 20886.68004 | DH19: 65730.52771 | DI19: 594535.7282 | DJ19: 10557.46747 | DK19: 1729519.439 | DL19: 11410.45147 | DM19: 74950.91992 | DN19: 297993.6461 | DO19: 540872.9474 | DP19: 118307.4 | DQ19: =$IB19*DQ$64/$IB$64 -> 342039.1097 | DR19: 197053.3506 | DS19: 167453.6962 | DT19: 4339623.555 | DU19: 64426.10396 | DV19: 198502.1952 | DW19: 836534.9918 | DX19: 1107038.067 | DY19: 28193.72762 | DZ19: 239759.4569 | EA19: =$IB19*EA$64/$IB$64 -> 237433.7546 | EB19: 4606517.727 | EC19: 1338.088137 | ED19: 143639.5359 | EE19: 863413.8939 | EF19: 339040.2578 | EG19: 709668.5772 | EH19: 485307.9489 | EI19: 269993.5966 | EJ19: 179472.0225 | EK19: =$IB19*EK$64/$IB$64 -> 547825.4009 | EL19: 894727.6382 | EM19: 279648.1637 | EN19: 260532.6956 | EO19: 184787.371 | EP19: 284490.9414 | EQ19: 311257.5537 | ER19: 254011.4314 | ES19: 438293.0881 | ET19: 274341.0252 | EU19: =$IB19*EU$64/$IB$64 -> 706419.2284 | EV19: 236036.743 | EW19: 229400.828 | EX19: 242746.8532 | EY19: 128514.4798 | EZ19: 4992.77254 | FA19: 240576.6346 | FB19: 232932.0985 | FC19: 261676.3058 | FD19: 3986010.592 | FE19: =$IB19*FE$64/$IB$64 -> 270498.4576 | FF19: 241452.5868 | FG19: 5134.860681 | FH19: 274393.6075 | FI19: 1342968.637 | FJ19: 239431.7551 | FK19: 225647.2928 | FL19: 255936.87 | FM19: 234941.3798 | FN19: 193637.3901 | FO19: =$IB19*FO$64/$IB$64 -> 547464.3159 | FP19: 144631.195 | FQ19: 253983.2664 | FR19: 340916.884 | FS19: 146429.8479 | FT19: 73068.48507 | FU19: 550020.3098 | FV19: 808563.591 | FW19: 289307.9437 | FX19: 285121.2174 | FY19: =$IB19*FY$64/$IB$64 -> 284713.729 | FZ19: 0.03369132857 | GA19: 2406.948653 | GB19: 224211.4199 | GC19: 192970.2749 | GD19: 276101.3094 | GE19: 19937.28266 | GF19: 332188.0242 | GG19: 254573.3131 | GH19: 37245.82559 | GI19: =$IB19*GI$64/$IB$64 -> 54123.74768 | GJ19: 650772.649 | GK19: 639104.9657 | GL19: 276563.4517 | GM19: 9655820.549 | GN19: 5839.389327 | GO19: 164503.1096 | GP19: 183960.3927 | GQ19: 667401.5808 | GR19: 259950.3595 | GS19: =$IB19*GS$64/$IB$64 -> 145576.7088 | GT19: 1042254.171 | GU19: 211965.931 | GV19: 239079.3121 | GW19: 303100.9572 | GX19: 294087.3897 | GY19: 228186.6711 | GZ19: 185130.8313 | HA19: 219737.1552 | HB19: 24100354.59 | HC19: =$IB19*HC$64/$IB$64 -> 3549698.277 | HD19: 2279789.728 | HE19: 12566068.36 | HF19: 6652685.982 | HG19: 1590633.433 | HH19: 848003.043 | HI19: 899865.4187 | HJ19: 502343.8536 | HK19: 427431.3195 | HL19: 1025994.94 | HM19: =$IB19*HM$64/$IB$64 -> 62723.48493 | HN19: 17390.58532 | HO19: 3147958.415 | HP19: 890146.6883 | HQ19: 64728.16805 | HR19: 9656.647759 | HS19: 210684.1025 | HT19: 154556.0472 | HU19: 338328.8736 | HV19: 298992.5571 | HW19: 14801262.52 | HX19: 10490632.04 | HY19: 143071.4455 | HZ19: 207184.8756 | IA19: 977728.3919 | IB19: 562258727.9
A20: =+MATCH(B20,RUT[EMPRESA],0) -> 231 | B20: NUEVA ENERGIA | C20: -36508575.79 | D20: -36508575.79 | F20: =IFERROR(INDEX($B$9:$B$511,MATCH(0,INDEX(COUNTIF($F$8:F19,$B$9:$B$511),0,0),0)),"") -> NUEVA ENERGIA | G20: -36508575.79 | J20: LA ARENA SPA | K20: 48354628.04 | L20: 771727.8334 | M20: 853513.0218 | N20: 25217905.38 | O20: 4915063.021 | P20: 2099325.36 | Q20: 168134.8764 | R20: 59679.89556 | S20: 1149883.306 | T20: 370930.7934 | U20: 48839.4872 | V20: 8737659.976 | W20: 155698.8112 | X20: 61295.53093 | Y20: 61909.79678 | Z20: 272179.2518 | AA20: 3075967.712 | AB20: 221661.8988 | AC20: 130662.2232 | AD20: 47969.76691 | AE20: 1043942.841 | AF20: 4601.21992 | AG20: 54785.73973 | AH20: 87444.94199 | AI20: 23526.06689 | AJ20: 484209.3585 | AK20: 149753.803 | AL20: 327414.3831 | AM20: 610866.1513 | AN20: 633882.5596 | AO20: 7426.497229 | AP20: 56704.5567 | AQ20: 2841588.339 | AR20: 3155809.718 | AS20: 107316.7591 | AT20: 0.03387076251 | AU20: 2397409.895 | AV20: 106416.1956 | AW20: 247184.9417 | AX20: 281117.1379 | AY20: 178806.4247 | AZ20: 11153.18404 | BA20: 8765.055062 | BB20: 152.8803053 | BC20: 28425.08597 | BD20: 146523.9349 | BE20: 1172.990693 | BF20: 196412.4873 | BG20: 20272.18222 | BH20: 154805.7652 | BI20: 2908.679443 | BJ20: 3617.38204 | BK20: 603210.0228 | BL20: 254193.5715 | BM20: 22064.0809 | BN20: 64.11427426 | BO20: 131771.8266 | BP20: 56965.29383 | BQ20: 1017050.768 | BR20: 1907689.076 | BS20: 870737.2736 | BT20: 242656.2724 | BU20: 2115.925009 | BV20: 95500.35769 | BW20: 25207.13568 | BX20: 1606844.625 | BY20: 835.6532942 | BZ20: 916136.3787 | CA20: 48071.24171 | CB20: 48967.90545 | CC20: 16375.37438 | CD20: 19923404.47 | CE20: 1120741.399 | CF20: 83646.87775 | CG20: 5450.339056 | CH20: 645240.7927 | CI20: 36418.72546 | CJ20: 151.8199916 | CK20: 65521.42893 | CL20: 3504.610876 | CM20: 63673.24614 | CN20: 1558029.797 | CO20: 20046.98243 | CP20: 33590.62667 | CQ20: 95663.77345 | CR20: 124987.8728 | CS20: 15753.73067 | CT20: 18606.31526 | CU20: 12389.54311 | CV20: 681557.4513 | CW20: 86493.92942 | CX20: 440508.7401 | CY20: 1659320.797 | CZ20: 918209.4504 | DA20: 114924.4166 | DB20: 54882.93035 | DC20: 62398.26751 | DD20: 67997.52331 | DE20: 29648.42709 | DF20: 125206.8468 | DG20: 7206.331114 | DH20: 22678.37425 | DI20: 205126.9664 | DJ20: 3642.541858 | DK20: 596719.5225 | DL20: 3936.838755 | DM20: 25859.59785 | DN20: 102813.8928 | DO20: 186612.2113 | DP20: 40818.46879 | DQ20: 118010.4772 | DR20: 67987.42971 | DS20: 57774.94454 | DT20: 1497258.74 | DU20: 22228.32142 | DV20: 68487.31071 | DW20: 288621.6539 | DX20: 381950.7385 | DY20: 9727.411737 | DZ20: 82721.90843 | EA20: 81919.49365 | EB20: 1589342.679 | EC20: 461.6677304 | ED20: 49558.57296 | EE20: 297895.424 | EF20: 116975.812 | EG20: 244850.1503 | EH20: 167441.1522 | EI20: 93153.30399 | EJ20: 61921.51253 | EK20: 189010.9497 | EL20: 308699.3052 | EM20: 96484.32679 | EN20: 89889.09998 | EO20: 63755.41629 | EP20: 98155.18398 | EQ20: 107390.2118 | ER20: 87639.13066 | ES20: 151220.0652 | ET20: 94653.25563 | EU20: 243729.0586 | EV20: 81437.49611 | EW20: 79147.96995 | EX20: 83752.62115 | EY20: 44340.11974 | EZ20: 1722.608477 | FA20: 83003.85142 | FB20: 80366.33038 | FC20: 90283.66885 | FD20: 1375255.047 | FE20: 93327.49137 | FF20: 83306.07281 | FG20: 1771.631787 | FH20: 94671.3976 | FI20: 463351.6027 | FJ20: 82608.84461 | FK20: 77852.92364 | FL20: 88303.44628 | FM20: 81059.57344 | FN20: 66808.8536 | FO20: 188886.368 | FP20: 49900.7156 | FQ20: 87629.41315 | FR20: 117623.2864 | FS20: 50521.28757 | FT20: 25210.11938 | FU20: 189768.2381 | FV20: 278970.9495 | FW20: 99817.14816 | FX20: 98372.64207 | FY20: 98232.05026 | FZ20: 0.01162419632 | GA20: 830.4464343 | GB20: 77357.51817 | GC20: 66578.68522 | GD20: 95260.58964 | GE20: 6878.769629 | GF20: 114611.6515 | GG20: 87832.99133 | GH20: 12850.57037 | GI20: 18673.79814 | GJ20: 224529.8525 | GK20: 220504.2635 | GL20: 95420.03818 | GM20: 3331455.258 | GN20: 2014.708556 | GO20: 56756.93189 | GP20: 63470.09188 | GQ20: 230267.1735 | GR20: 89688.18211 | GS20: 50226.93716 | GT20: 359598.9713 | GU20: 73132.57448 | GV20: 82487.24461 | GW20: 104576.0194 | GX20: 101466.1546 | GY20: 78729.06103 | GZ20: 63873.91711 | HA20: 75813.80549 | HB20: 8315114.456 | HC20: 1224718.389 | HD20: 786574.0087 | HE20: 4335550.18 | HF20: 2295312.509 | HG20: 548801.0144 | HH20: 292578.3657 | HI20: 310471.9444 | HJ20: 173318.8872 | HK20: 147472.5332 | HL20: 353989.2048 | HM20: 21640.88309 | HN20: 6000.107045 | HO20: 1086109.933 | HP20: 307118.7839 | HQ20: 22332.5397 | HR20: 3331.740662 | HS20: 72690.31746 | HT20: 53324.99228 | HU20: 116730.37 | HV20: 103158.5375 | HW20: 5106737.808 | HX20: 3619482.27 | HY20: 49362.57017 | HZ20: 71483.01273 | IA20: 337336.2601 | IB20: 193990742.3
A21: =+MATCH(B21,RUT[EMPRESA],0) -> 102 | B21: ELEKTRAGEN | C21: 54604133.5 | D21: 54604133.5 | F21: =IFERROR(INDEX($B$9:$B$511,MATCH(0,INDEX(COUNTIF($F$8:F20,$B$9:$B$511),0,0),0)),"") -> ELEKTRAGEN | H21: 54604133.5 | J21: CARDONES SA | K21: 339133.9204 | L21: 5412.492997 | M21: 5986.091279 | N21: 176865.1205 | O21: 34471.66609 | P21: 14723.56357 | Q21: 1179.209563 | R21: 418.5633883 | S21: 8064.676525 | T21: 2601.513428 | U21: 342.5344675 | V21: 61281.34995 | W21: 1091.989545 | X21: 429.8946047 | Y21: 434.2027422 | Z21: 1908.922071 | AA21: 21573.21918 | AB21: 1554.619936 | AC21: 916.3960887 | AD21: 336.4347069 | AE21: 7321.665844 | AF21: 32.27053569 | AG21: 384.2383542 | AH21: 613.292816 | AI21: 164.9994555 | AJ21: 3395.989685 | AK21: 1050.294385 | AL21: 2296.312221 | AM21: 4284.293792 | AN21: 4445.71877 | AO21: 52.08554428 | AP21: 397.6959269 | AQ21: 19929.40558 | AR21: 22133.189 | AS21: 752.6632859 | AT21: 0.0002375517079 | AU21: 16814.17166 | AV21: 746.3472072 | AW21: 1733.62513 | AX21: 1971.607702 | AY21: 1254.054188 | AZ21: 78.22256484 | BA21: 61.47348467 | BB21: 1.072222027 | BC21: 199.3585978 | BD21: 1027.641789 | BE21: 8.226739579 | BF21: 1377.533848 | BG21: 142.1784204 | BH21: 1085.72619 | BI21: 20.39994728 | BJ21: 25.37041443 | BK21: 4230.597735 | BL21: 1782.779973 | BM21: 154.7458549 | BN21: 0.4496637874 | BO21: 924.1782628 | BP21: 399.5246 | BQ21: 7133.05899 | BR21: 13379.52749 | BS21: 6106.893119 | BT21: 1701.863426 | BU21: 14.83998477 | BV21: 669.7892635 | BW21: 176.7895875 | BX21: 11269.56279 | BY21: 5.860832546 | BZ21: 6425.298556 | CA21: 337.1463978 | CB21: 343.4351255 | CC21: 114.8482604 | CD21: 139732.2767 | CE21: 7860.290522 | CF21: 586.6551917 | CG21: 38.22581057 | CH21: 4525.379442 | CI21: 255.4217795 | CJ21: 1.064785545 | CK21: 459.53283 | CL21: 24.57949681 | CM21: 446.5706483 | CN21: 10927.20127 | CO21: 140.5989875 | CP21: 235.5869825 | CQ21: 670.9353757 | CR21: 876.5991807 | CS21: 110.4883785 | CT21: 130.494906 | CU21: 86.89373689 | CV21: 4780.085377 | CW21: 606.6229142 | CX21: 3089.496539 | CY21: 11637.60305 | CZ21: 6439.83799 | DA21: 806.0193929 | DB21: 384.9199981 | DC21: 437.6286189 | DD21: 476.8988532 | DE21: 207.9384688 | DF21: 878.1349488 | DG21: 50.54141499 | DH21: 159.0541853 | DI21: 1438.65262 | DJ21: 25.54687215 | DK21: 4185.076781 | DL21: 27.61091575 | DM21: 181.3656139 | DN21: 721.0825513 | DO21: 1308.799868 | DP21: 286.2792644 | DQ21: 827.6633984 | DR21: 476.828062 | DS21: 405.203064 | DT21: 10500.98506 | DU21: 155.8977515 | DV21: 480.3339643 | DW21: 2024.240429 | DX21: 2678.801526 | DY21: 68.22294807 | DZ21: 580.1679435 | EA21: 574.5402284 | EB21: 11146.81336 | EC21: 3.237894566 | ED21: 347.5777566 | EE21: 2089.281773 | EF21: 820.4068015 | EG21: 1717.250132 | EH21: 1174.344146 | EI21: 653.3282637 | EJ21: 434.2849103 | EK21: 1325.623358 | EL21: 2165.054512 | EM21: 676.6903051 | EN21: 630.4348542 | EO21: 447.1469464 | EP21: 688.4088184 | EQ21: 753.1784445 | ER21: 614.6547532 | ES21: 1060.577976 | ET21: 663.8481353 | EU21: 1709.387385 | EV21: 571.1597513 | EW21: 555.1022193 | EX21: 587.3968202 | EY21: 310.9782713 | EZ21: 12.08146955 | FA21: 582.1453433 | FB21: 563.6471584 | FC21: 633.2021526 | FD21: 9645.315343 | FE21: 654.5499223 | FF21: 584.2649651 | FG21: 12.42529325 | FH21: 663.9753736 | FI21: 3249.70436 | FJ21: 579.3749734 | FK21: 546.0194459 | FL21: 619.3139134 | FM21: 568.5092005 | FN21: 468.5621492 | FO21: 1324.749607 | FP21: 349.9773651 | FQ21: 614.5865997 | FR21: 824.947846 | FS21: 354.3297304 | FT21: 176.8105136 | FU21: 1330.93458 | FV21: 1956.555465 | FW21: 700.0649607 | FX21: 689.933955 | FY21: 688.947918 | FZ21: 8.15259972e-05 | GA21: 5.82431437 | GB21: 542.5449326 | GC21: 466.9478693 | GD21: 668.1076566 | GE21: 48.24407107 | GF21: 803.8258234 | GG21: 616.0143899 | GH21: 90.12713957 | GI21: 130.9681954 | GJ21: 1574.734254 | GK21: 1546.500891 | GL21: 669.2259447 | GM21: 23365.07441 | GN21: 14.13010582 | GO21: 398.063259 | GP21: 445.1458311 | GQ21: 1614.972805 | GR21: 629.0257219 | GS21: 352.2653115 | GT21: 2522.03799 | GU21: 512.9134004 | GV21: 578.5221349 | GW21: 733.4411802 | GX21: 711.6302244 | GY21: 552.1642126 | GZ21: 447.9780489 | HA21: 531.7181441 | HB21: 58317.83799 | HC21: 8589.530425 | HD21: 5516.616259 | HE21: 30407.26791 | HF21: 16098.11431 | HG21: 3849.001576 | HH21: 2051.990724 | HI21: 2177.48687 | HJ21: 1215.567487 | HK21: 1034.294759 | HL21: 2482.694039 | HM21: 151.7777682 | HN21: 42.08159399 | HO21: 7617.40364 | HP21: 2153.969567 | HQ21: 156.6286837 | HR21: 23.36707609 | HS21: 509.8116423 | HT21: 373.9934401 | HU21: 818.6853999 | HV21: 723.4997076 | HW21: 35815.97219 | HX21: 25385.14434 | HY21: 346.2030962 | HZ21: 501.3442422 | IA21: 2365.899046 | IB21: 1360549.002
A22: =+MATCH(B22,RUT[EMPRESA],0) -> 138 | B22: GESAN | C22: 19381873.97 | D22: 19381873.97 | F22: =IFERROR(INDEX($B$9:$B$511,MATCH(0,INDEX(COUNTIF($F$8:F21,$B$9:$B$511),0,0),0)),"") -> GESAN | H22: 19381873.97 | J22: CAPULLO | K22: 3768466.172 | L22: 60143.78256 | M22: 66517.62366 | N22: 1965330.46 | O22: 383050.1749 | P22: 163608.6746 | Q22: 13103.41161 | R22: 4651.088773 | S22: 89614.9245 | T22: 28908.09429 | U22: 3806.253152 | V22: 680960.1765 | W22: 12134.22018 | X22: 4777.001586 | Y22: 4824.873737 | Z22: 21211.99862 | AA22: 239722.2507 | AB22: 17274.98279 | AC22: 10183.02049 | AD22: 3738.472432 | AE22: 81358.5678 | AF22: 358.5911488 | AG22: 4269.667977 | AH22: 6814.927943 | AI22: 1833.478838 | AJ22: 37736.33801 | AK22: 11670.90232 | AL22: 25516.68944 | AM22: 47607.19956 | AN22: 49400.9587 | AO22: 578.7761114 | AP22: 4419.208923 | AQ22: 221456.1453 | AR22: 245944.652 | AS22: 8363.616734 | AT22: 0.002639681617 | AU22: 186839.5737 | AV22: 8293.432281 | AW22: 19264.09382 | AX22: 21908.5632 | AY22: 13935.08729 | AZ22: 869.2114583 | BA22: 683.0951832 | BB22: 11.91456293 | BC22: 2215.278646 | BD22: 11419.18601 | BE22: 91.41577396 | BF22: 15307.19693 | BG22: 1579.89082 | BH22: 12064.62159 | BI22: 226.6848186 | BJ22: 281.9167968 | BK22: 47010.52738 | BL22: 19810.30388 | BM22: 1719.540525 | BN22: 4.99667733 | BO22: 10269.49624 | BP22: 4439.529193 | BQ22: 79262.76285 | BR22: 148673.706 | BS22: 67859.97728 | BT22: 18911.15682 | BU22: 164.9023504 | BV22: 7442.718142 | BW22: 1964.491134 | BX22: 125227.7157 | BY22: 65.12574491 | BZ22: 71398.10794 | CA22: 3746.380762 | CB22: 3816.261291 | CC22: 1276.197272 | CD22: 1552709.199 | CE22: 87343.78118 | CF22: 6518.929873 | CG22: 424.7663397 | CH22: 50286.15044 | CI22: 2838.254382 | CJ22: 11.83192852 | CK22: 5106.342423 | CL22: 273.1280969 | CM22: 4962.306275 | CN22: 121423.3843 | CO22: 1562.340115 | CP22: 2617.84953 | CQ22: 7455.453774 | CR22: 9740.796069 | CS22: 1227.750136 | CT22: 1450.063262 | CU22: 965.565779 | CV22: 53116.45035 | CW22: 6740.811797 | CX22: 34330.57709 | CY22: 129317.39 | CZ22: 71559.67056 | DA22: 8956.511377 | DB22: 4277.242424 | DC22: 4862.94218 | DD22: 5299.314187 | DE22: 2310.618427 | DF22: 9757.861571 | DG22: 561.6177009 | DH22: 1767.41482 | DI22: 15986.35054 | DJ22: 283.8776003 | DK22: 46504.69719 | DL22: 306.813314 | DM22: 2015.340075 | DN22: 8012.690676 | DO22: 14543.42292 | DP22: 3181.143669 | DQ22: 9197.020207 | DR22: 5298.527553 | DS22: 4502.628454 | DT22: 116687.2571 | DU22: 1732.340434 | DV22: 5337.485243 | DW22: 22493.41963 | DX22: 29766.92193 | DY22: 758.0954204 | DZ22: 6446.843379 | EA22: 6384.308042 | EB22: 123863.7203 | EC22: 35.97958035 | ED22: 3862.29433 | EE22: 23216.16097 | EF22: 9116.384687 | EG22: 19082.13435 | EH22: 13049.34695 | EI22: 7259.803025 | EJ22: 4825.786791 | EK22: 14730.36603 | EL22: 24058.14989 | EM22: 7519.402721 | EN22: 7005.41078 | EO22: 4968.710117 | EP22: 7649.619187 | EQ22: 8369.341193 | ER22: 6830.06183 | ES22: 11785.1739 | ET22: 7376.70015 | EU22: 18994.76327 | EV22: 6346.74408 | EW22: 6168.312309 | EX22: 6527.170871 | EY22: 3455.599766 | EZ22: 134.2496476 | FA22: 6468.816304 | FB22: 6263.263925 | FC22: 7036.161082 | FD22: 107179.0299 | FE22: 7273.378131 | FF22: 6492.369604 | FG22: 138.0702268 | FH22: 7378.114025 | FI22: 36110.81113 | FJ22: 6438.031871 | FK22: 6067.384262 | FL22: 6881.834556 | FM22: 6317.291081 | FN22: 5206.676486 | FO22: 14720.65689 | FP22: 3888.958851 | FQ22: 6829.304506 | FR22: 9166.844908 | FS22: 3937.322463 | FT22: 1964.723666 | FU22: 14789.38449 | FV22: 21741.30231 | FW22: 7779.142586 | FX22: 7666.566551 | FY22: 7655.609678 | FZ22: 0.0009059192965 | GA22: 64.71995385 | GB22: 6028.775366 | GC22: 5188.738559 | GD22: 7424.032076 | GE22: 536.0895472 | GF22: 8932.136367 | GG22: 6845.170153 | GH22: 1001.495445 | GI22: 1455.322467 | GJ22: 17498.49369 | GK22: 17184.76372 | GL22: 7436.458527 | GM22: 259633.3992 | GN22: 157.0141545 | GO22: 4423.290728 | GP22: 4946.473665 | GQ22: 17945.62566 | GR22: 6989.75246 | GS22: 3914.382579 | GT22: 28024.96088 | GU22: 5699.508903 | GV22: 6428.555105 | GW22: 8150.020126 | GX22: 7907.65614 | GY22: 6135.665091 | GZ22: 4977.945353 | HA22: 5908.467772 | HB22: 648029.5437 | HC22: 95447.11659 | HD22: 61300.80333 | HE22: 337886.462 | HF22: 178882.7233 | HG22: 42770.21956 | HH22: 22801.78173 | HI22: 24196.29862 | HJ22: 13507.42193 | HK22: 11493.11401 | HL22: 27587.76972 | HM22: 1686.559057 | HN22: 467.6119194 | HO22: 84644.81495 | HP22: 23934.97365 | HQ22: 1740.462575 | HR22: 259.6556418 | HS22: 5665.042075 | HT22: 4155.826188 | HU22: 9097.256422 | HV22: 8039.550189 | HW22: 397988.1442 | HX22: 282080.476 | HY22: 3847.019063 | HZ22: 5570.952074 | IA22: 26289.94031 | IB22: 15118460.83
A23: =+MATCH(B23,RUT[EMPRESA],0) -> 237 | B23: PACIFIC HYDRO | C23: -22010207.81 | D23: -22010207.81 | F23: =IFERROR(INDEX($B$9:$B$511,MATCH(0,INDEX(COUNTIF($F$8:F22,$B$9:$B$511),0,0),0)),"") -> PACIFIC HYDRO | G23: -22010207.81 | J23: ORAZUL_CHILE | K23: 1849498.249 | L23: 29517.53192 | M23: 32645.70329 | N23: 964550.3178 | O23: 187994.4241 | P23: 80296.31776 | Q23: 6430.928583 | R23: 2282.67421 | S23: 43981.46046 | T23: 14187.59446 | U23: 1868.043447 | V23: 334203.5185 | W23: 5955.266134 | X23: 2344.470048 | Y23: 2367.964875 | Z23: 10410.48334 | AA23: 117651.5491 | AB23: 8478.263826 | AC23: 4997.650956 | AD23: 1834.777838 | AE23: 39929.38289 | AF23: 175.9903556 | AG23: 2095.479457 | AH23: 3344.649181 | AI23: 899.8398143 | AJ23: 18520.34432 | AK23: 5727.877716 | AL23: 12523.15141 | AM23: 23364.79305 | AN23: 24245.13912 | AO23: 284.0533405 | AP23: 2168.871576 | AQ23: 108686.8594 | AR23: 120705.3964 | AS23: 4104.718949 | AT23: 0.001295510244 | AU23: 91697.64266 | AV23: 4070.273629 | AW23: 9454.485236 | AX23: 10752.34523 | AY23: 6839.100677 | AZ23: 426.5940032 | BA23: 335.251343 | BB23: 5.847462145 | BC23: 1087.22058 | BD23: 5604.339689 | BE23: 44.86528634 | BF23: 7512.508441 | BG23: 775.3831855 | BH23: 5921.108348 | BI23: 111.2530021 | BJ23: 138.3599051 | BK23: 23071.95663 | BL23: 9722.555721 | BM23: 843.9208541 | BN23: 2.452283117 | BO23: 5040.091763 | BP23: 2178.844414 | BQ23: 38900.79794 | BR23: 72966.49254 | BS23: 33304.50731 | BT23: 9281.26984 | BU23: 80.93123156 | BV23: 3652.757792 | BW23: 964.1383915 | BX23: 61459.6046 | BY23: 31.96259318 | BZ23: 35040.96086 | CA23: 1838.65911 | CB23: 1872.95527 | CC23: 626.3356265 | CD23: 762042.9146 | CE23: 42866.82246 | CF23: 3199.37843 | CG23: 208.4679988 | CH23: 24679.57597 | CI23: 1392.966335 | CJ23: 5.8069066 | CK23: 2506.104855 | CL23: 134.0465627 | CM23: 2435.414396 | CN23: 59592.50434 | CO23: 766.7696021 | CP23: 1284.795432 | CQ23: 3659.00822 | CR23: 4780.614832 | CS23: 602.5586067 | CT23: 711.6660575 | CU23: 473.8830432 | CV23: 26068.63839 | CW23: 3308.274254 | CX23: 16848.85556 | CY23: 63466.74626 | CZ23: 35120.25301 | DA23: 4395.701421 | DB23: 2099.196865 | DC23: 2386.648211 | DD23: 2600.812071 | DE23: 1134.011701 | DF23: 4788.990286 | DG23: 275.6322883 | DH23: 867.4167329 | DI23: 7845.825325 | DJ23: 139.3222337 | DK23: 22823.70389 | DL23: 150.5786867 | DM23: 989.0941752 | DN23: 3932.490488 | DO23: 7137.661317 | DP23: 1561.250487 | DQ23: 4513.73901 | DR23: 2600.426005 | DS23: 2209.812444 | DT23: 57268.09471 | DU23: 850.202829 | DV23: 2619.545768 | DW23: 11039.38269 | DX23: 14609.09226 | DY23: 372.0601668 | DZ23: 3163.999621 | EA23: 3133.308356 | EB23: 60790.17918 | EC23: 17.65815794 | ED23: 1895.547492 | EE23: 11394.09168 | EF23: 4474.164487 | EG23: 9365.182665 | EH23: 6404.394581 | EI23: 3562.986204 | EJ23: 2368.412986 | EK23: 7229.409774 | EL23: 11807.32533 | EM23: 3690.393261 | EN23: 3438.134875 | EO23: 2438.557292 | EP23: 3754.301259 | EQ23: 4107.528415 | ER23: 3352.076632 | ES23: 5783.960236 | ET23: 3620.357299 | EU23: 9322.302445 | EV23: 3114.872611 | EW23: 3027.301373 | EX23: 3203.42297 | EY23: 1695.948809 | EZ23: 65.88741329 | FA23: 3174.783554 | FB23: 3073.901989 | FC23: 3453.226593 | FD23: 52601.62067 | FE23: 3569.648633 | FF23: 3186.343108 | FG23: 67.76248771 | FH23: 3621.051205 | FI23: 17722.56375 | FJ23: 3159.675085 | FK23: 2977.767626 | FL23: 3377.485794 | FM23: 3100.417586 | FN23: 2555.347084 | FO23: 7224.644695 | FP23: 1908.633979 | FQ23: 3351.704951 | FR23: 4498.929494 | FS23: 1932.370006 | FT23: 964.2525142 | FU23: 7258.375016 | FV23: 10670.25647 | FW23: 3817.869111 | FX23: 3762.618733 | FY23: 3757.241288 | FZ23: 0.0004446095775 | GA23: 31.76343793 | GB23: 2958.819046 | GC23: 2546.543459 | GD23: 3643.586992 | GE23: 263.1035105 | GF23: 4383.738587 | GG23: 3359.491537 | GH23: 491.5167042 | GI23: 714.247185 | GJ23: 8587.959123 | GK23: 8433.985861 | GL23: 3649.68568 | GM23: 127423.5976 | GN23: 77.05984097 | GO23: 2170.874856 | GP23: 2427.644024 | GQ23: 8807.403789 | GR23: 3430.450042 | GS23: 1921.111507 | GT23: 13754.1678 | GU23: 2797.220741 | GV23: 3155.024052 | GW23: 3999.889415 | GX23: 3880.941348 | GY23: 3011.278681 | GZ23: 2443.089786 | HA23: 2899.774152 | HB23: 318041.7315 | HC23: 46843.79982 | HD23: 30085.37778 | HE23: 165828.8522 | HF23: 87792.55759 | HG23: 20990.88663 | HH23: 11190.72149 | HI23: 11875.12635 | HJ23: 6629.209889 | HK23: 5640.622275 | HL23: 13539.60191 | HM23: 827.7341179 | HN23: 229.4958709 | HO23: 41542.21636 | HP23: 11746.87256 | HQ23: 854.1890353 | HR23: 127.4345139 | HS23: 2780.305016 | HT23: 2039.607869 | HU23: 4464.776664 | HV23: 3945.672674 | HW23: 195325.722 | HX23: 138440.2361 | HY23: 1888.050654 | HZ23: 2734.127265 | IA23: 12902.6496 | IB23: 7419880.013
A24: =+MATCH(B24,RUT[EMPRESA],0) -> 100 | B24: ELECTRICA CENIZAS | C24: -244519510.7 | D24: -244519510.7 | F24: =IFERROR(INDEX($B$9:$B$511,MATCH(0,INDEX(COUNTIF($F$8:F23,$B$9:$B$511),0,0),0)),"") -> ELECTRICA CENIZAS | G24: -244519510.7 | J24: RUCATAYO | K24: 42108889.52 | L24: 672047.4005 | M24: 743268.7831 | N24: 21960627.86 | O24: 4280207.586 | P24: 1828165.436 | Q24: 146417.69 | R24: 51971.32582 | S24: 1001358.32 | T24: 323019.4178 | U24: 42531.12172 | V24: 7609057.778 | W24: 135587.9325 | X24: 53378.27721 | Y24: 53913.20125 | Z24: 237023.1456 | AA24: 2678659.516 | AB24: 193030.8801 | AC24: 113785.202 | AD24: 41773.73908 | AE24: 909101.6839 | AF24: 4006.902113 | AG24: 47709.32494 | AH24: 76150.09256 | AI24: 20487.31614 | AJ24: 421666.3267 | AK24: 130410.8128 | AL24: 285123.8163 | AM24: 531963.4608 | AN24: 552006.9485 | AO24: 6467.251719 | AP24: 49380.2974 | AQ24: 2474553.818 | AR24: 2748188.708 | AS24: 93455.16106 | AT24: 0.02949583637 | AU24: 2087747.802 | AV24: 92670.91907 | AW24: 215257.2323 | AX24: 244806.5672 | AY24: 155710.8448 | AZ24: 9712.580025 | BA24: 7632.914371 | BB24: 133.1334796 | BC24: 24753.55211 | BD24: 127598.1315 | BE24: 1021.481035 | BF24: 171042.8156 | BG24: 17653.72036 | BH24: 134810.237 | BI24: 2532.979081 | BJ24: 3150.141917 | BK24: 525296.2382 | BL24: 221360.5906 | BM24: 19214.16796 | BN24: 55.83293681 | BO24: 114751.4832 | BP24: 49607.35635 | BQ24: 885683.1325 | BR24: 1661281.904 | BS24: 758268.2597 | BT24: 211313.5098 | BU24: 1842.620987 | BV24: 83165.02834 | BW24: 21951.24923 | BX24: 1399296.107 | BY24: 727.715912 | BZ24: 797803.3773 | CA24: 41862.10686 | CB24: 42642.95279 | CC24: 14260.24475 | CD24: 17349992.58 | CE24: 975980.5353 | CF24: 72842.60632 | CG24: 4746.344547 | CH24: 561898.0924 | CI24: 31714.69101 | CJ24: 132.2101216 | CK24: 57058.33597 | CL24: 3051.936871 | CM24: 55448.8742 | CN24: 1356786.46 | CO24: 17457.60856 | CP24: 29251.88435 | CQ24: 83307.33645 | CR24: 108843.7807 | CS24: 13718.89582 | CT24: 16203.02555 | CU24: 10789.24445 | CV24: 593523.9 | CW24: 75321.91779 | CX24: 383610.3103 | CY24: 1444994.18 | CZ24: 799608.6801 | DA24: 100080.1734 | DB24: 47793.96191 | DC24: 54338.57852 | DD24: 59214.60495 | DE24: 25818.88004 | DF24: 109034.4708 | DG24: 6275.52342 | DH24: 19749.11595 | DI24: 178631.6867 | DJ24: 3172.051961 | DK24: 519644.0851 | DL24: 3428.33592 | DM24: 22519.43594 | DN24: 89533.90876 | DO24: 162508.3949 | DP24: 35546.14031 | DQ24: 102767.6222 | DR24: 59205.81509 | DS24: 50312.42831 | DT24: 1303864.913 | DU24: 19357.19432 | DV24: 59641.12882 | DW24: 251341.7605 | DX24: 332615.9688 | DY24: 8470.967987 | DZ24: 72037.11091 | EA24: 71338.34025 | EB24: 1384054.805 | EC24: 402.036294 | ED24: 43157.32657 | EE24: 259417.6816 | EF24: 101866.5999 | EG24: 213224.0149 | EH24: 145813.5708 | EI24: 81121.13246 | EJ24: 53923.40373 | EK24: 164597.2996 | EL24: 268826.0765 | EM24: 84021.9028 | EN24: 78278.55024 | EO24: 55520.43082 | EP24: 85476.94328 | EQ24: 93519.12623 | ER24: 76319.19881 | ES24: 131687.6849 | ET24: 82427.34244 | EU24: 212247.7293 | EV24: 70918.60005 | EW24: 68924.80115 | EX24: 72934.69134 | EY24: 38612.91627 | EZ24: 1500.10729 | FA24: 72282.63665 | FB24: 69985.79173 | FC24: 78622.15451 | FD24: 1197619.86 | FE24: 81272.82087 | FF24: 72545.82154 | FG24: 1542.798491 | FH24: 82443.1411 | FI24: 403502.6685 | FJ24: 71938.65101 | FK24: 67797.02985 | FL24: 76897.70792 | FM24: 70589.49186 | FN24: 58179.47008 | FO24: 164488.8096 | FP24: 43455.27626 | FQ24: 76310.73646 | FR24: 102430.443 | FS24: 43995.69189 | FT24: 21953.84754 | FU24: 165256.7726 | FV24: 242937.5918 | FW24: 86924.2394 | FX24: 85666.31334 | FY24: 85543.8811 | FZ24: 0.01012275388 | GA24: 723.1815975 | GB24: 67365.61355 | GC24: 57979.03146 | GD24: 82956.22999 | GE24: 5990.271502 | GF24: 99807.80675 | GG24: 76488.01941 | GH24: 11190.723 | GI24: 16261.79199 | GJ24: 195528.3938 | GK24: 192022.7711 | GL24: 83095.08332 | GM24: 2901146.945 | GN24: 1754.478184 | GO24: 49425.90754 | GP24: 55271.96041 | GQ24: 200524.6522 | GR24: 78103.58397 | GS24: 43739.36133 | GT24: 313151.2736 | GU24: 63686.38585 | GV24: 71832.7575 | GW24: 91068.4298 | GX24: 88360.2515 | GY24: 68560.00072 | GZ24: 55623.62545 | HA24: 66021.29494 | HB24: 7241090.464 | HC24: 1066527.309 | HD24: 684975.9655 | HE24: 3775547.676 | HF24: 1998837.852 | HG24: 477914.984 | HH24: 254787.4025 | HI24: 270369.7523 | HJ24: 150932.1066 | HK24: 128424.2039 | HL24: 308266.094 | HM24: 18845.63261 | HN24: 5225.101607 | HO24: 945822.2519 | HP24: 267449.7037 | HQ24: 19447.95121 | HR24: 2901.395485 | HS24: 63301.25308 | HT24: 46437.25533 | HU24: 101652.8604 | HV24: 89834.0373 | HW24: 4447124.647 | HX24: 3151970.871 | HY24: 42986.64053 | HZ24: 62249.89019 | IA24: 293764.1314 | IB24: 168933875.9
A25: =+MATCH(B25,RUT[EMPRESA],0) -> 261 | B25: PUNTILLA | C25: 373440554.9 | D25: 373440554.9 | F25: =IFERROR(INDEX($B$9:$B$511,MATCH(0,INDEX(COUNTIF($F$8:F24,$B$9:$B$511),0,0),0)),"") -> PUNTILLA | H25: 373440554.9 | J25: TALINAY | K25: 20224092.3 | L25: 322771.4816 | M25: 356977.7462 | N25: 10547268.52 | O25: 2055701.641 | P25: 878032.8085 | Q25: 70321.60929 | R25: 24960.83137 | S25: 480933.2025 | T25: 155140.0333 | U25: 20426.88233 | V25: 3654484.566 | W25: 65120.2844 | X25: 25636.56315 | Y25: 25893.47691 | Z25: 113837.6725 | AA25: 1286508.809 | AB25: 92709.03082 | AC25: 54648.85099 | AD25: 20063.12597 | AE25: 436624.109 | AF25: 1924.438263 | AG25: 22913.87406 | AH25: 36573.42947 | AI25: 9839.665148 | AJ25: 202518.2523 | AK25: 62633.81309 | AL25: 136939.5024 | AM25: 255491.8511 | AN25: 265118.354 | AO25: 3106.097007 | AP25: 23716.4101 | AQ25: 1188480.755 | AR25: 1319902.347 | AS25: 44884.72209 | AT25: 0.0141662847 | AU25: 1002705.242 | AV25: 44508.0657 | AW25: 103383.9217 | AX25: 117575.9007 | AY25: 74784.93339 | AZ25: 4664.765971 | BA25: 3665.94243 | BB25: 63.94145775 | BC25: 11888.65649 | BD25: 61282.93619 | BE25: 490.5977568 | BF25: 82148.58501 | BG25: 8478.743422 | BH25: 64746.77218 | BI25: 1216.541289 | BJ25: 1512.952767 | BK25: 252289.7119 | BL25: 106315.2476 | BM25: 9228.19649 | BN25: 26.81548909 | BO25: 55112.9373 | BP25: 23825.46216 | BQ25: 425376.6278 | BR25: 797881.8477 | BS25: 364181.7072 | BT25: 101489.8273 | BU25: 884.9755322 | BV25: 39942.56863 | BW25: 10542.76414 | BX25: 672055.0922 | BY25: 349.5080004 | BZ25: 383169.6662 | CA25: 20105.56732 | CB25: 20480.59265 | CC25: 6848.922149 | CD25: 8332868.793 | CE25: 468744.7391 | CF25: 34984.90724 | CG25: 2279.578287 | CH25: 269868.8808 | CI25: 15231.95804 | CJ25: 63.49798662 | CK25: 27404.02481 | CL25: 1465.786766 | CM25: 26631.03118 | CN25: 651638.5236 | CO25: 8384.554685 | CP25: 14049.11922 | CQ25: 40010.91649 | CR25: 52275.58105 | CS25: 6588.922637 | CT25: 7782.002521 | CU25: 5181.86725 | CV25: 285058.1498 | CW25: 36175.673 | CX25: 184240.6773 | CY25: 694003.0006 | CZ25: 384036.7185 | DA25: 48066.58851 | DB25: 22954.52357 | DC25: 26097.77746 | DD25: 28439.63946 | DE25: 12400.31307 | DF25: 52367.16586 | DG25: 3014.013581 | DH25: 9485.121751 | DI25: 85793.37431 | DJ25: 1523.47574 | DK25: 249575.0912 | DL25: 1646.564012 | DM25: 10815.65333 | DN25: 43001.41979 | DO25: 78049.66638 | DP25: 17072.12968 | DQ25: 49357.31862 | DR25: 28435.41786 | DS25: 24164.0947 | DT25: 626221.3192 | DU25: 9296.889304 | DV25: 28644.4907 | DW25: 120714.6287 | DX25: 159749.0727 | DY25: 4068.443514 | DZ25: 34598.04324 | EA25: 34262.43708 | EB25: 664734.9872 | EC25: 193.090324 | ED25: 20727.63652 | EE25: 124593.3388 | EF25: 48924.57487 | EG25: 102407.4063 | EH25: 70031.46243 | EI25: 38960.92462 | EJ25: 25898.37696 | EK25: 79052.92727 | EL25: 129112.0105 | EM25: 40354.109 | EN25: 37595.68688 | EO25: 26665.39845 | EP25: 41052.93705 | EQ25: 44915.44333 | ER25: 36654.64796 | ES25: 63247.07025 | ET25: 39588.27223 | EU25: 101938.5151 | EV25: 34060.84392 | EW25: 33103.26053 | EX25: 35029.13391 | EY25: 18545.04338 | EZ25: 720.4727707 | FA25: 34715.96454 | FB25: 33612.83397 | FC25: 37760.71343 | FD25: 575193.8572 | FE25: 39033.77766 | FF25: 34842.3672 | FG25: 740.9765361 | FH25: 39595.86003 | FI25: 193794.5955 | FJ25: 34550.75483 | FK25: 32561.6136 | FL25: 36932.49479 | FM25: 33902.77956 | FN25: 27942.48403 | FO25: 79000.82157 | FP25: 20870.73604 | FQ25: 36650.58365 | FR25: 49195.37793 | FS25: 21130.28731 | FT25: 10544.01206 | FU25: 79369.65951 | FV25: 116678.2676 | FW25: 41748.04563 | FX25: 41143.88786 | FY25: 41085.086 | FZ25: 0.00486176461 | GA25: 347.3302561 | GB25: 32354.41262 | GC25: 27846.2172 | GD25: 39842.28679 | GE25: 2877.012554 | GF25: 47935.77602 | GG25: 36735.72926 | GH25: 5374.689702 | GI25: 7810.226911 | GJ25: 93908.53875 | GK25: 92224.85538 | GL25: 39908.97537 | GM25: 1393365.255 | GN25: 842.6422341 | GO25: 23738.31577 | GP25: 26546.06288 | GQ25: 96308.14588 | GR25: 37511.65394 | GS25: 21007.17665 | GT25: 150400.5528 | GU25: 30587.3501 | GV25: 34499.89621 | GW25: 43738.42082 | GX25: 42437.73471 | GY25: 32928.05388 | GZ25: 26714.96086 | HA25: 31708.76217 | HB25: 3477756.92 | HC25: 512232.6187 | HD25: 328980.8235 | HE25: 1813323.162 | HF25: 960003.4978 | HG25: 229533.404 | HH25: 122369.5045 | HI25: 129853.4084 | HJ25: 72489.79703 | HK25: 61679.6829 | HL25: 148054.2947 | HM25: 9051.196027 | HN25: 2509.516123 | HO25: 454260.2938 | HP25: 128450.965 | HQ25: 9340.478102 | HR25: 1393.484624 | HS25: 30402.37821 | HT25: 22302.92341 | HU25: 48821.91989 | HV25: 43145.56577 | HW25: 2135868.705 | HX25: 1513831.178 | HY25: 20645.65928 | HZ25: 29897.42877 | IA25: 141089.2801 | IB25: 81135701.72
A26: =+MATCH(B26,RUT[EMPRESA],0) -> 91 | B26: EL MANZANO | C26: 120464920.7 | D26: 120464920.7 | F26: =IFERROR(INDEX($B$9:$B$511,MATCH(0,INDEX(COUNTIF($F$8:F25,$B$9:$B$511),0,0),0)),"") -> EL MANZANO | H26: 120464920.7 | J26: WENKE | K26: 104535.7304 | L26: 1668.364251 | M26: 1845.17203 | N26: 54517.47364 | O26: 10625.65723 | P26: 4538.438592 | Q26: 363.4833487 | R26: 129.0193251 | S26: 2485.881832 | T26: 801.8988668 | U26: 105.583926 | V26: 18889.56042 | W26: 336.5983697 | X26: 132.5120957 | Y26: 133.8400499 | Z26: 588.4122793 | AA26: 6649.798471 | AB26: 479.2010495 | AC26: 282.472878 | AD26: 103.7037162 | AE26: 2256.85383 | AF26: 9.947173721 | AG26: 118.4388662 | AH26: 189.0433503 | AI26: 50.85996287 | AJ26: 1046.790784 | AK26: 323.7461194 | AL26: 707.8226653 | AM26: 1320.604499 | AN26: 1370.362653 | AO26: 16.0550157 | AP26: 122.5870717 | AQ26: 6143.104078 | AR26: 6822.405371 | AS26: 232.0033522 | AT26: 7.322370253e-05 | AU26: 5182.854356 | AV26: 230.0564638 | AW26: 534.3781865 | AX26: 607.7346997 | AY26: 386.5536966 | AZ26: 24.11157499 | BA26: 18.94878465 | BB26: 0.3305051664 | BC26: 61.45093543 | BD26: 316.7636106 | BE26: 2.535836669 | BF26: 424.6154642 | BG26: 43.82553361 | BH26: 334.667733 | BI26: 6.288145365 | BJ26: 7.820258147 | BK26: 1304.053054 | BL26: 549.5298331 | BM26: 47.69936007 | BN26: 0.1386058122 | BO26: 284.8716804 | BP26: 123.1507478 | BQ26: 2198.717047 | BR26: 4124.14859 | BS26: 1882.408378 | BT26: 524.5878566 | BU26: 4.574324638 | BV26: 206.457997 | BW26: 54.49419109 | BX26: 3473.766284 | BY26: 1.806561876 | BZ26: 1980.554694 | CA26: 103.9230901 | CB26: 105.8615478 | CC26: 35.4011972 | CD26: 43071.52643 | CE26: 2422.881233 | CF26: 180.8324833 | CG26: 11.7828468 | CH26: 1394.917515 | CI26: 78.73203089 | CJ26: 0.3282129212 | CK26: 141.6478776 | CL26: 7.576463158 | CM26: 137.652373 | CN26: 3368.235668 | CO26: 43.33868415 | CP26: 72.61808926 | CQ26: 206.8112783 | CR26: 270.2057511 | CS26: 34.05729317 | CT26: 40.22416956 | CU26: 26.78440496 | CV26: 1473.428892 | CW26: 186.9873983 | CX26: 952.3163508 | CY26: 3587.212198 | CZ26: 1985.036376 | DA26: 248.4500103 | DB26: 118.6489783 | DC26: 134.8960531 | DD26: 147.0008365 | DE26: 64.09562246 | DF26: 270.6791412 | DG26: 15.57904832 | DH26: 49.02737368 | DI26: 443.454911 | DJ26: 7.874650045 | DK26: 1290.021528 | DL26: 8.510877483 | DM26: 55.90472018 | DN26: 222.268805 | DO26: 403.4286812 | DP26: 88.24364129 | DQ26: 255.1216281 | DR26: 146.9790156 | DS26: 124.9010958 | DT26: 3236.85741 | DU26: 48.05442439 | DV26: 148.0596862 | DW26: 623.9583809 | DX26: 825.7223987 | DY26: 21.02926095 | DZ26: 178.832833 | EA26: 177.098128 | EB26: 3435.929603 | EC26: 0.9980590356 | ED26: 107.1384857 | EE26: 644.006934 | EF26: 252.8848314 | EG26: 529.3307043 | EH26: 361.9836169 | EI26: 201.3840055 | EJ26: 133.8653776 | EK26: 408.6144077 | EL26: 667.3633667 | EM26: 208.5851962 | EN26: 194.3272673 | EO26: 137.830013 | EP26: 212.1973485 | EQ26: 232.1621464 | ER26: 189.4631582 | ES26: 326.9159668 | ET26: 204.6266845 | EU26: 526.9070658 | EV26: 176.0561189 | EW26: 171.1064936 | EX26: 181.0610852 | EY26: 95.85694263 | EZ26: 3.724031034 | FA26: 179.4423531 | FB26: 173.7404131 | FC26: 195.1802682 | FD26: 2973.103026 | FE26: 201.7605734 | FF26: 180.0957121 | FG26: 3.830012358 | FH26: 204.6659049 | FI26: 1001.699325 | FJ26: 178.5884054 | FK26: 168.3067903 | FL26: 190.8993127 | FM26: 175.2391046 | FN26: 144.431104 | FO26: 408.34508 | FP26: 107.8781487 | FQ26: 189.4421503 | FR26: 254.2845775 | FS26: 109.2197358 | FT26: 54.50064144 | FU26: 410.2515559 | FV26: 603.09495 | FW26: 215.7902753 | FX26: 212.6674615 | FY26: 212.3635223 | FZ26: 2.512983561e-05 | GA26: 1.795305395 | GB26: 167.2357951 | GC26: 143.9335132 | GD26: 205.9396531 | GE26: 14.87090764 | GF26: 247.7738573 | GG26: 189.882257 | GH26: 27.7810794 | GI26: 40.3700578 | GJ26: 485.4011516 | GK26: 476.6984089 | GL26: 206.2843578 | GM26: 7202.125691 | GN26: 4.355509268 | GO26: 122.7002993 | GP26: 137.2131828 | GQ26: 497.8044121 | GR26: 193.8929118 | GS26: 108.5833927 | GT26: 777.4011023 | GU26: 158.1020763 | GV26: 178.3255237 | GW26: 226.0782685 | GX26: 219.3551894 | GY26: 170.2008729 | GZ26: 138.0861947 | HA26: 163.898511 | HB26: 17976.07796 | HC26: 2647.664487 | HD26: 1700.45954 | HE26: 9372.834066 | HF26: 4962.134536 | HG26: 1186.428626 | HH26: 632.512221 | HI26: 671.1955569 | HJ26: 374.6904321 | HK26: 318.8143433 | HL26: 765.2735962 | HM26: 46.78446745 | HN26: 12.97136589 | HO26: 2348.013 | HP26: 663.9465076 | HQ26: 48.27972927 | HR26: 7.202742694 | HS26: 157.1459805 | HT26: 115.2809409 | HU26: 252.354221 | HV26: 223.013877 | HW26: 11040.03047 | HX26: 7824.798542 | HY26: 106.7147559 | HZ26: 154.5359618 | IA26: 729.2723321 | IB26: 419380.0007
A27: =+MATCH(B27,RUT[EMPRESA],0) -> 125 | B27: ESPINOS | C27: 15861300.97 | D27: 15861300.97 | F27: =IFERROR(INDEX($B$9:$B$511,MATCH(0,INDEX(COUNTIF($F$8:F26,$B$9:$B$511),0,0),0)),"") -> ESPINOS | H27: 15861300.97 | J27: ARRAYAN | K27: 15370.77547 | L27: 245.3137525 | M27: 271.3113006 | N27: 8016.16675 | O27: 1562.380546 | P27: 667.3251366 | Q27: 53.44604105 | R27: 18.97080615 | S27: 365.5202994 | T27: 117.9099948 | U27: 15.52490056 | V27: 2777.492354 | W27: 49.49291446 | X27: 19.48437785 | Y27: 19.67963822 | Z27: 86.51925033 | AA27: 977.7762952 | AB27: 70.46099651 | AC27: 41.53438414 | AD27: 15.24843736 | AE27: 331.8443689 | AF27: 1.462617358 | AG27: 17.4150715 | AH27: 27.79664789 | AI27: 7.478371908 | AJ27: 153.9185314 | AK27: 47.60313905 | AL27: 104.0771726 | AM27: 194.1796853 | AN27: 201.496049 | AO27: 2.360705192 | AP27: 18.02501735 | AQ27: 903.2727192 | AR27: 1003.156152 | AS27: 34.11342151 | AT27: 1.076670231e-05 | AU27: 762.0790545 | AV27: 33.82715399 | AW27: 78.57415916 | AX27: 89.36038976 | AY27: 56.83827006 | AZ27: 3.545329467 | BA27: 2.786200594 | BB27: 0.04859697908 | BC27: 9.035652471 | BD27: 46.57644153 | BE27: 0.372865583 | BF27: 62.43481472 | BG27: 6.444040083 | BH27: 49.20903657 | BI27: 0.9245993704 | BJ27: 1.149878913 | BK27: 191.7459859 | BL27: 80.80203433 | BM27: 7.013641658 | BN27: 0.02038038869 | BO27: 41.88710041 | BP27: 18.10789943 | BQ27: 323.2960243 | BR27: 606.4085622 | BS27: 276.7864768 | BT27: 77.13460389 | BU27: 0.6726017663 | BV27: 30.35727117 | BW27: 8.012743321 | BX27: 510.777333 | BY27: 0.2656341219 | BZ27: 291.2177624 | CA27: 15.28069376 | CB27: 15.56572164 | CC27: 5.205338416 | CD27: 6333.172009 | CE27: 356.2567868 | CF27: 26.58933445 | CG27: 1.732531947 | CH27: 205.1065586 | CI27: 11.57663857 | CJ27: 0.04825993082 | CK27: 20.82768938 | CL27: 1.114031667 | CM27: 20.24019644 | CN27: 495.2602711 | CO27: 6.372454476 | CP27: 10.67765386 | CQ27: 30.40921712 | CR27: 39.73064438 | CS27: 5.007732805 | CT27: 5.914500968 | CU27: 3.938338337 | CV27: 216.6507526 | CW27: 27.49434383 | CX27: 140.0271538 | CY27: 527.4582484 | CZ27: 291.8767422 | DA27: 36.5317132 | DB27: 17.44596606 | DC27: 19.83491134 | DD27: 21.61478034 | DE27: 9.424523247 | DF27: 39.80025094 | DG27: 2.290719669 | DH27: 7.208910768 | DI27: 65.20493845 | DJ27: 1.157876615 | DK27: 189.6828116 | DL27: 1.251426534 | DM27: 8.220145381 | DN27: 32.68206843 | DO27: 59.31954225 | DP27: 12.97521136 | DQ27: 37.51269779 | DR27: 21.61157183 | DS27: 18.36526795 | DT27: 475.942611 | DU27: 7.065849778 | DV27: 21.770472 | DW27: 91.74589526 | DX27: 121.4129709 | DY27: 3.092110679 | DZ27: 26.29530891 | EA27: 26.04024051 | EB27: 505.2138848 | EC27: 0.1467530889 | ED27: 15.75348066 | EE27: 94.69380415 | EF27: 37.18380258 | EG27: 77.83198502 | EH27: 53.22552276 | EI27: 29.61119914 | EJ27: 19.68336237 | EK27: 60.08204361 | EL27: 98.12809864 | EM27: 30.67005133 | EN27: 28.57358705 | EO27: 20.26631635 | EP27: 31.20117672 | EQ27: 34.13677036 | ER27: 27.85837581 | ES27: 48.06922861 | ET27: 30.08799776 | EU27: 77.47561689 | EV27: 25.88702506 | EW27: 25.15923966 | EX27: 26.62294774 | EY27: 14.09465966 | EZ27: 0.5475758827 | FA27: 26.38493181 | FB27: 25.54652719 | FC27: 28.69901102 | FD27: 437.1605658 | FE27: 29.66656913 | FF27: 26.48100074 | FG27: 0.5631592161 | FH27: 30.09376466 | FI27: 147.2883515 | FJ27: 26.25936863 | FK27: 24.74757552 | FL27: 28.0695458 | FM27: 25.76689252 | FN27: 21.23693078 | FO27: 60.04244208 | FP27: 15.86223959 | FQ27: 27.85528685 | FR27: 37.38961913 | FS27: 16.05950453 | FT27: 8.013691769 | FU27: 60.3227674 | FV27: 88.67816799 | FW27: 31.72947523 | FX27: 31.27030143 | FY27: 31.22561066 | FZ27: 3.695052965e-06 | GA27: 0.2639789861 | GB27: 24.59009802 | GC27: 21.16376577 | GD27: 30.28105467 | GE27: 2.186595736 | GF27: 36.4322927 | GG27: 27.91999947 | GH27: 4.084887837 | GI27: 5.935952154 | GJ27: 71.37265014 | GK27: 70.09301204 | GL27: 30.33173953 | GM27: 1058.989653 | GN27: 0.6404274858 | GO27: 18.04166617 | GP27: 20.17561857 | GQ27: 73.19640677 | GR27: 28.50972008 | GS27: 15.9659376 | GT27: 114.3078806 | GU27: 23.24708984 | GV27: 26.22071491 | GW27: 33.24220618 | GX27: 32.2536548 | GY27: 25.02607857 | GZ27: 20.30398492 | HA27: 24.09938882 | HB27: 2643.175277 | HC27: 389.3085759 | HD27: 250.0329952 | HE27: 1378.167325 | HF27: 729.6247465 | HG27: 174.4506682 | HH27: 93.00363897 | HI27: 98.69157808 | HJ27: 55.09391362 | HK27: 46.87797816 | HL27: 112.5246705 | HM27: 6.879117234 | HN27: 1.907289994 | HO27: 345.2482751 | HP27: 97.62568886 | HQ27: 7.098978267 | HR27: 1.059080376 | HS27: 23.10650695 | HT27: 16.95073495 | HU27: 37.10578243 | HV27: 32.7916227 | HW27: 1623.309359 | HX27: 1150.546526 | HY27: 15.69117608 | HZ27: 22.72273376 | IA27: 107.2310991 | IB27: 61665.00011
A28: =+MATCH(B28,RUT[EMPRESA],0) -> 119 | B28: ENLASA | C28: 2837676286 | D28: 2837676286 | F28: =IFERROR(INDEX($B$9:$B$511,MATCH(0,INDEX(COUNTIF($F$8:F27,$B$9:$B$511),0,0),0)),"") -> ENLASA | H28: 2837676286 | J28: AGUAS DEL MELADO | K28: 11975541.48 | L28: 191126.6626 | M28: 211381.6404 | N28: 6245484.334 | O28: 1217267.994 | P28: 519920.4079 | Q28: 41640.40276 | R28: 14780.36527 | S28: 284780.9153 | T28: 91864.9834 | U28: 12095.62204 | V28: 2163975.068 | W28: 38560.47803 | X28: 15180.49467 | Y28: 15332.62419 | Z28: 67408.10656 | AA28: 761796.3454 | AB28: 54896.94309 | AC28: 32359.89888 | AD28: 11880.2265 | AE28: 258543.6246 | AF28: 1139.541389 | AG28: 13568.27516 | AH28: 21656.67636 | AI28: 5826.482413 | AJ28: 119919.6332 | AK28: 37088.13308 | AL28: 81087.67836 | AM28: 151287.5443 | AN28: 156987.8043 | AO28: 1839.251572 | AP28: 14043.49073 | AQ28: 703749.7838 | AR28: 781570.0733 | AS28: 26578.14468 | AT28: 0.008388457068 | AU28: 593744.2351 | AV28: 26355.11048 | AW28: 61217.998 | AX28: 69621.66977 | AY28: 44283.32597 | AZ28: 2762.20547 | BA28: 2170.759754 | BB28: 37.86244486 | BC28: 7039.776955 | BD28: 36288.22166 | BE28: 290.5037071 | BF28: 48643.65592 | BG28: 5020.623029 | BH28: 38339.30563 | BI28: 720.365614 | BJ28: 895.8834019 | BK28: 149391.4221 | BL28: 62953.76023 | BM28: 5464.405927 | BN28: 15.87858664 | BO28: 32634.70404 | BP28: 14108.06508 | BQ28: 251883.5147 | BR28: 472459.6298 | BS28: 215647.4108 | BT28: 60096.42454 | BU28: 524.0314886 | BV28: 23651.68633 | BW28: 6242.817102 | BX28: 397952.2796 | BY28: 206.9584876 | BZ28: 226890.9854 | CA28: 11905.35782 | CB28: 12127.4262 | CC28: 4055.536835 | CD28: 4934244.484 | CE28: 277563.6099 | CF28: 20716.04508 | CG28: 1349.834837 | CH28: 159800.7924 | CI28: 9019.487381 | CJ28: 37.59984682 | CK28: 16227.08357 | CL28: 867.9544154 | CM28: 15769.36131 | CN28: 385862.7647 | CO28: 4964.849889 | CP28: 8319.078428 | CQ28: 23692.15799 | CR28: 30954.58525 | CS28: 3901.580114 | CT28: 4608.053236 | CU28: 3068.403035 | CV28: 168795.0018 | CW28: 21421.14791 | CX28: 109096.707 | CY28: 410948.5655 | CZ28: 227404.4038 | DA28: 28462.26253 | DB28: 13592.34546 | DC28: 15453.59919 | DD28: 16840.31486 | DE28: 7342.750485 | DF28: 31008.81649 | DG28: 1784.725075 | DH28: 5616.542254 | DI28: 50801.89001 | DJ28: 902.1145004 | DK28: 147783.9802 | DL28: 975.0002787 | DM28: 6404.406346 | DN28: 25462.96163 | DO28: 46216.51262 | DP28: 10109.13094 | DQ28: 29226.55849 | DR28: 16837.81507 | DS28: 14308.58375 | DT28: 370812.1617 | DU28: 5505.081851 | DV28: 16961.61595 | DW28: 71480.24354 | DX28: 94594.19084 | DY28: 2409.097691 | DZ28: 20486.96652 | EA28: 20288.23991 | EB28: 393617.7354 | EC28: 114.3369576 | ED28: 12273.71133 | EE28: 73776.99202 | EF28: 28970.31258 | EG28: 60639.76191 | EH28: 41468.59452 | EI28: 23070.41334 | EJ28: 15335.52572 | EK28: 46810.58588 | EL28: 76452.6889 | EM28: 23895.37681 | EN28: 22261.99826 | EO28: 15789.71162 | EP28: 24309.18249 | EQ28: 26596.33603 | ER28: 21704.76927 | ES28: 37451.26861 | ET28: 23441.89243 | EU28: 60362.11155 | EV28: 20168.86805 | EW28: 19601.84238 | EX28: 20742.23356 | EY28: 10981.30551 | EZ28: 426.6224373 | FA28: 20556.79272 | FB28: 19903.58239 | FC28: 22359.71747 | FD28: 340596.6405 | FE28: 23113.55271 | FF28: 20631.64108 | FG28: 438.7635851 | FH28: 23446.38548 | FI28: 114753.9866 | FJ28: 20458.96505 | FK28: 19281.11029 | FL28: 21869.29414 | FM28: 20075.27146 | FN28: 16545.92807 | FO28: 46779.73189 | FP28: 12358.44662 | FQ28: 21702.36262 | FR28: 29130.66654 | FS28: 12512.13792 | FT28: 6243.556049 | FU28: 46998.13646 | FV28: 69090.14323 | FW28: 24720.78572 | FX28: 24363.03832 | FY28: 24328.21925 | FZ28: 0.002878856706 | GA28: 205.668953 | GB28: 19158.41782 | GC28: 16488.92441 | GD28: 23592.3052 | GE28: 1703.600966 | GF28: 28384.80291 | GG28: 21752.78094 | GH28: 3182.581374 | GI28: 4624.766093 | GJ28: 55607.22253 | GK28: 54610.24231 | GL28: 23631.79434 | GM28: 825070.5723 | GN28: 498.9641501 | GO28: 14056.46201 | GP28: 15719.04798 | GQ28: 57028.13152 | GR28: 22212.2388 | GS28: 12439.23888 | GT28: 89058.53632 | GU28: 18112.06527 | GV28: 20428.84951 | GW28: 25899.37116 | GX28: 25129.17983 | GY28: 19498.0951 | GZ28: 15819.05962 | HA28: 18776.10085 | HB28: 2059327.144 | HC28: 303314.625 | HD28: 194803.4769 | HE28: 1073745.433 | HF28: 568458.7242 | HG28: 135916.4485 | HH28: 72460.1656 | HI28: 76891.70198 | HJ28: 42924.27854 | HK28: 36523.15219 | HL28: 87669.21755 | HM28: 5359.596457 | HN28: 1485.990767 | HO28: 268986.7565 | HP28: 76061.25588 | HQ28: 5530.892624 | HR28: 825.1412557 | HS28: 18002.53558 | HT28: 13206.50541 | HU28: 28909.52623 | HV28: 25548.31657 | HW28: 1264738.308 | HX28: 896403.5465 | HY28: 12225.16914 | HZ28: 17703.53364 | IA28: 83544.93746 | IB28: 48043884.83
A29: =+MATCH(B29,RUT[EMPRESA],0) -> 241 | B29: PARQUE_EOLICO_LEBU | C29: 50565348.81 | D29: 50565348.81 | F29: =IFERROR(INDEX($B$9:$B$511,MATCH(0,INDEX(COUNTIF($F$8:F28,$B$9:$B$511),0,0),0)),"") -> PARQUE_EOLICO_LEBU | H29: 50565348.81 | J29: ENORCHILE | K29: =$IB29*K$64/$IB$64 -> 206215480.4 | L29: 3291147.764 | M29: 3639932.826 | N29: 107545496.4 | O29: 20961014.98 | P29: 8952884.25 | Q29: 717036.1087 | R29: 254513.7629 | S29: 4903847.844 | T29: 1581889.363 | U29: =$IB29*U$64/$IB$64 -> 208283.2342 | V29: 37263046.44 | W29: 664000.6648 | X29: 261403.8795 | Y29: 264023.5073 | Z29: 1160748.773 | AA29: 13117920.36 | AB29: 945310.0316 | AC29: 557228.4232 | AD29: 204574.1831 | AE29: =$IB29*AE$64/$IB$64 -> 4452049.025 | AF29: 19622.58454 | AG29: 233641.9098 | AH29: 372921.9199 | AI29: 100330.4003 | AJ29: 2064982.6 | AK29: 638647.2958 | AL29: 1396307.18 | AM29: 2605129.271 | AN29: 2703286.156 | AO29: =$IB29*AO$64/$IB$64 -> 31671.3985 | AP29: 241824.9892 | AQ29: 12118374.77 | AR29: 13458418.43 | AS29: 457668.2301 | AT29: 0.1444468885 | AU29: 10224109.94 | AV29: 453827.6435 | AW29: 1054156.832 | AX29: 1198865.714 | AY29: =$IB29*AY$64/$IB$64 -> 762546.5084 | AZ29: 47564.40692 | BA29: 37379.87684 | BB29: 651.9807284 | BC29: 121222.9935 | BD29: 624873.0445 | BE29: 5002.392721 | BF29: 837630.1726 | BG29: 86453.72669 | BH29: 660192.1378 | BI29: =$IB29*BI$64/$IB$64 -> 12404.49473 | BJ29: 15426.86203 | BK29: 2572478.576 | BL29: 1084046.173 | BM29: 94095.54428 | BN29: 273.4248283 | BO29: 561960.4912 | BP29: 242936.9414 | BQ29: 4337363.791 | BR29: 8135622.904 | BS29: =$IB29*BS$64/$IB$64 -> 3713388.201 | BT29: 1034843.65 | BU29: 9023.675912 | BV29: 407275.4345 | BW29: 107499.5674 | BX29: 6852627.137 | BY29: 3563.767369 | BZ29: 3906999.416 | CA29: 205006.9374 | CB29: 208830.8929 | CC29: =$IB29*CC$64/$IB$64 -> 69835.21191 | CD29: 84966312.26 | CE29: 4779567.861 | CF29: 356724.5119 | CG29: 23243.77898 | CH29: 2751725.026 | CI29: 155313.0543 | CJ29: 647.4588635 | CK29: 279425.8481 | CL29: 14945.93268 | CM29: =$IB29*CM$64/$IB$64 -> 271543.9985 | CN29: 6644449.067 | CO29: 85493.32879 | CP29: 143252.2077 | CQ29: 407972.3452 | CR29: 533029.3148 | CS29: 67184.12015 | CT29: 79349.39006 | CU29: 52837.04349 | CV29: 2906602.8 | CW29: =$IB29*CW$64/$IB$64 -> 368866.1858 | CX29: 1878614.833 | CY29: 7076419.553 | CZ29: 3915840.337 | DA29: 490112.2134 | DB29: 234056.3936 | DC29: 266106.6631 | DD29: 289985.5197 | DE29: 126440.1131 | DF29: 533963.1617 | DG29: =$IB29*DG$64/$IB$64 -> 30732.46747 | DH29: 96715.28936 | DI29: 874794.3611 | DJ29: 15534.15981 | DK29: 2544798.875 | DL29: 16789.23256 | DM29: 110282.089 | DN29: 438465.0895 | DO29: 795835.4427 | DP29: 174076.412 | DQ29: =$IB29*DQ$64/$IB$64 -> 503273.1765 | DR29: 289942.474 | DS29: 246389.8169 | DT29: 6385281.885 | DU29: 94795.97234 | DV29: 292074.2906 | DW29: 1230869.835 | DX29: 1628885.554 | DY29: 41483.98956 | DZ29: 352779.8431 | EA29: =$IB29*EA$64/$IB$64 -> 349357.8263 | EB29: 6777987.496 | EC29: 1968.850485 | ED29: 211349.8821 | EE29: 1270419.202 | EF29: 498860.6936 | EG29: 1044199.768 | EH29: 714077.6187 | EI29: 397266.076 | EJ29: 264073.4708 | EK29: =$IB29*EK$64/$IB$64 -> 806065.2184 | EL29: 1316493.956 | EM29: 411471.7166 | EN29: 383345.3941 | EO29: 271894.4253 | EP29: 418597.3348 | EQ29: 457981.4801 | ER29: 373750.0663 | ES29: 644900.3883 | ET29: 403662.8422 | EU29: =$IB29*EU$64/$IB$64 -> 1039418.706 | EV29: 347302.2763 | EW29: 337538.2525 | EX29: 357175.4703 | EY29: 189095.0146 | EZ29: 7346.319249 | FA29: 353982.2307 | FB29: 342734.1312 | FC29: 385028.0915 | FD29: 5864979.048 | FE29: =$IB29*FE$64/$IB$64 -> 398008.9239 | FF29: 355271.0987 | FG29: 7555.386422 | FH29: 403740.2113 | FI29: 1976031.607 | FJ29: 352297.6657 | FK29: 332015.3356 | FL29: 376583.1388 | FM29: 345690.569 | FN29: 284916.2614 | FO29: =$IB29*FO$64/$IB$64 -> 805533.9212 | FP29: 212809.0001 | FQ29: 373708.6245 | FR29: 501621.944 | FS29: 215455.5212 | FT29: 107512.2918 | FU29: 809294.7869 | FV29: 1189712.975 | FW29: 425685.0275 | FX29: 419524.7171 | FY29: =$IB29*FY$64/$IB$64 -> 418925.1425 | FZ29: 0.04957310865 | GA29: 3541.561943 | GB29: 329902.6055 | GC29: 283934.6742 | GD29: 406252.9081 | GE29: 29335.53295 | GF29: 488778.3805 | GG29: 374576.8139 | GH29: 54803.16262 | GI29: =$IB29*GI$64/$IB$64 -> 79637.18079 | GJ29: 957540.8452 | GK29: 940373.1241 | GL29: 406932.9 | GM29: 14207484.88 | GN29: 8592.023343 | GO29: 242048.351 | GP29: 270677.6171 | GQ29: 982008.5014 | GR29: 382488.55 | GS29: =$IB29*GS$64/$IB$64 -> 214200.2203 | GT29: 1533563.128 | GU29: 311884.7067 | GV29: 351779.0844 | GW29: 445979.9396 | GX29: 432717.46 | GY29: 335751.7533 | GZ29: 272399.7896 | HA29: 323319.2139 | HB29: 35461038.42 | HC29: =$IB29*HC$64/$IB$64 -> 5222993.151 | HD29: 3354461.479 | HE29: 18489596.54 | HF29: 9788700.505 | HG29: 2340443.293 | HH29: 1247743.819 | HI29: 1324053.638 | HJ29: 739144.0911 | HK29: 628918.4827 | HL29: 1509639.447 | HM29: =$IB29*HM$64/$IB$64 -> 92290.75448 | HN29: 25588.34608 | HO29: 4631876.84 | HP29: 1309753.588 | HQ29: 95240.42665 | HR29: 14208.70203 | HS29: 309998.6361 | HT29: 227412.3357 | HU29: 497813.9694 | HV29: 439934.8778 | HW29: 21778440.52 | HX29: 15435818.78 | HY29: 210513.9991 | HZ29: 304849.9061 | IA29: 1438620.495 | IB29: 827302281.9
A30: =+MATCH(B30,RUT[EMPRESA],0) -> 234 | B30: ORAFTI | C30: 19906573.96 | D30: 19906573.96 | F30: =IFERROR(INDEX($B$9:$B$511,MATCH(0,INDEX(COUNTIF($F$8:F29,$B$9:$B$511),0,0),0)),"") -> ORAFTI | H30: 19906573.96 | J30: ARRAYAN_EOLICO | K30: 142917071.5 | L30: 2280920.905 | M30: 2522645.432 | N30: 74534110.42 | O30: 14526973.77 | P30: 6204771.803 | Q30: 496939.9028 | R30: 176390.0633 | S30: 3398598.259 | T30: 1096324.072 | U30: 144350.1226 | V30: 25825051.83 | W30: 460183.8343 | X30: 181165.2396 | Y30: 182980.7655 | Z30: 804453.7444 | AA30: 9091338.62 | AB30: 655144.5171 | AC30: 386185.6259 | AD30: 141779.5749 | AE30: 3085480.331 | AF30: 13599.37824 | AG30: 161924.8829 | AH30: 258452.5108 | AI30: 69533.70793 | AJ30: 1431130.51 | AK30: 442612.7516 | AL30: 967706.8502 | AM30: 1805477.675 | AN30: 1873505.035 | AO30: 21949.77561 | AP30: 167596.1436 | AQ30: 8398606.303 | AR30: 9327319.873 | AS30: 317185.708 | AT30: 0.1001085187 | AU30: 7085791.272 | AV30: 314524 | AW30: 730580.4929 | AX30: 830870.585 | AY30: 528480.7601 | AZ30: 32964.38138 | BA30: 25906.02082 | BB30: 451.8534504 | BC30: 84013.2622 | BD30: 433066.5446 | BE30: 3466.894515 | BF30: 580517.2871 | BG30: 59916.51747 | BH30: 457544.3451 | BI30: 8596.900952 | BJ30: 10691.5443 | BK30: 1782849.201 | BL30: 751295.2184 | BM30: 65212.65813 | BN30: 189.4963252 | BO30: 389465.1726 | BP30: 168366.779 | BQ30: 3005998.045 | BR30: 5638371.075 | BS30: 2573553.478 | BT30: 717195.5453 | BU30: 6253.833769 | BV30: 282261.1196 | BW30: 74502.27946 | BX30: 4749194.388 | BY30: 2469.859172 | BZ30: 2707735.198 | CA30: 142079.4941 | CB30: 144729.6759 | CC30: 48399.10152 | CD30: 58885668.99 | CE30: 3312466.359 | CF30: 247226.9417 | CG30: 16109.03709 | CH30: 1907075.46 | CI30: 107639.285 | CJ30: 448.7195844 | CK30: 193655.3154 | CL30: 10358.23753 | CM30: 188192.8212 | CN30: 4604917.149 | CO30: 59250.91635 | CP30: 99280.54847 | CQ30: 282744.1116 | CR30: 369414.5004 | CS30: 46561.76967 | CT30: 54992.87651 | CU30: 36618.56765 | CV30: 2014413.076 | CW30: 255641.6954 | CX30: 1301968.842 | CY30: 4904293.106 | CZ30: 2713862.374 | DA30: 339670.9213 | DB30: 162212.1397 | DC30: 184424.4909 | DD30: 200973.6667 | DE30: 87628.97258 | DF30: 370061.7004 | DG30: 21299.05204 | DH30: 67028.26525 | DI30: 606273.8256 | DJ30: 10765.90672 | DK30: 1763665.86 | DL30: 11635.73144 | DM30: 76430.69844 | DN30: 303877.0242 | DO30: 551551.5644 | DP30: 120643.1785 | DQ30: 348792.0906 | DR30: 200943.834 | DS30: 170759.7848 | DT30: 4425302.046 | DU30: 65698.08787 | DV30: 202421.2837 | DW30: 853050.9533 | DX30: 1128894.652 | DY30: 28750.36485 | DZ30: 244493.0998 | EA30: 242121.4805 | EB30: 4697465.59 | EC30: 1364.506413 | ED30: 146475.4544 | EE30: 880460.5337 | EF30: 345734.0314 | EG30: 723679.777 | EH30: 494889.5294 | EI30: 275324.1612 | EJ30: 183015.3926 | EK30: 558641.2823 | EL30: 912392.5147 | EM30: 285169.3414 | EN30: 265676.4709 | EO30: 188435.6835 | EP30: 290107.7315 | EQ30: 317402.805 | ER30: 259026.4554 | ES30: 446946.4402 | ET30: 279757.4224 | EU30: 720366.2754 | EV30: 240696.8873 | EW30: 233929.9574 | EX30: 247539.4772 | EY30: 131051.7797 | EZ30: 5091.346348 | FA30: 245326.4113 | FB30: 237530.9469 | FC30: 266842.6597 | FD30: 4064707.596 | FE30: 275838.9899 | FF30: 246219.6577 | FG30: 5236.239777 | FH30: 279811.0429 | FI30: 1369483.27 | FJ30: 244158.9281 | FK30: 230102.315 | FL30: 260989.9084 | FM30: 239579.898 | FN30: 197460.4313 | FO30: 558273.0683 | FP30: 147486.6921 | FQ30: 258997.7343 | FR30: 347647.7084 | FS30: 149320.8563 | FT30: 74511.09811 | FU30: 560879.5259 | FV30: 824527.3047 | FW30: 295019.8373 | FX30: 290750.4512 | FY30: 290334.9176 | FZ30: 0.03435650658 | GA30: 2454.469763 | GB30: 228638.0932 | GC30: 196780.145 | GD30: 281552.4605 | GE30: 20330.91041 | GF30: 338746.5121 | GG30: 259599.4305 | GH30: 37981.1811 | GI30: 55192.32909 | GJ30: 663621.0488 | GK30: 651723.007 | GL30: 282023.727 | GM30: 9846458.313 | GN30: 5954.678143 | GO30: 167750.9438 | GP30: 187592.3779 | GQ30: 680578.2906 | GR30: 265082.6375 | GS30: 148450.8735 | GT30: 1062831.708 | GU30: 216150.8381 | GV30: 243799.5268 | GW30: 309085.1704 | GX30: 299893.6454 | GY30: 232691.8291 | GZ30: 188785.9249 | HA30: 224075.4918 | HB30: 24576175.13 | HC30: 3619781.036 | HD30: 2324800.301 | HE30: 12814164.02 | HF30: 6784031.959 | HG30: 1622037.786 | HH30: 864745.4217 | HI30: 917631.7319 | HJ30: 512261.7792 | HK30: 435870.2244 | HL30: 1046251.466 | HM30: 63961.85353 | HN30: 17733.93287 | HO30: 3210109.503 | HP30: 907721.1216 | HQ30: 66006.11571 | HR30: 9847.301855 | HS30: 214843.702 | HT30: 157607.4937 | HU30: 345008.6022 | HV30: 304895.6569 | HW30: 15093488.29 | HX30: 10697751.74 | HY30: 145896.148 | HZ30: 211275.3888 | IA30: 997031.9771 | IB30: 573359570.8
A31: =+MATCH(B31,RUT[EMPRESA],0) -> 130 | B31: GAS SUR | C31: -3011868.209 | D31: -3011868.209 | F31: =IFERROR(INDEX($B$9:$B$511,MATCH(0,INDEX(COUNTIF($F$8:F30,$B$9:$B$511),0,0),0)),"") -> GAS SUR | G31: -3011868.209 | J31: ALMEYDA | K31: 51562518.98 | L31: 822924.9749 | M31: 910135.8687 | N31: 26890884.65 | O31: 5241132.869 | P31: 2238596.555 | Q31: 179289.1004 | R31: 63639.11528 | S31: 1226167.633 | T31: 395538.6868 | U31: 52079.54416 | V31: 9317324.457 | W31: 166028.015 | X31: 65361.9334 | Y31: 66016.95022 | Z31: 290235.8762 | AA31: 3280030.267 | AB31: 236367.1551 | AC31: 139330.4765 | AD31: 51152.12581 | AE31: 1113198.979 | AF31: 4906.469124 | AG31: 58420.27661 | AH31: 93246.12068 | AI31: 25086.80802 | AJ31: 516332.2573 | AK31: 159688.6094 | AL31: 349135.3574 | AM31: 651391.5793 | AN31: 675934.9175 | AO31: 7919.177955 | AP31: 60466.38967 | AQ31: 3030101.95 | AR31: 3365169.067 | AS31: 114436.2526 | AT31: 0.03611778036 | AU31: 2556456.295 | AV31: 113475.9448 | AW31: 263583.4204 | AX31: 299766.71 | AY31: 190668.609 | AZ31: 11893.09663 | BA31: 9346.536958 | BB31: 163.0225268 | BC31: 30310.83259 | BD31: 156244.4689 | BE31: 1250.807985 | BF31: 209442.6742 | BG31: 21617.05762 | BH31: 165075.7235 | BI31: 3101.643939 | BJ31: 3857.362525 | BK31: 643227.5361 | BL31: 271057.0092 | BM31: 23527.83253 | BN31: 68.36767479 | BO31: 140513.692 | BP31: 60744.42435 | BQ31: 1084522.861 | BR31: 2034246.942 | BS31: 928502.7933 | BT31: 258754.3149 | BU31: 2256.29744 | BV31: 101835.9401 | BW31: 26879.40048 | BX31: 1713444.19 | BY31: 891.0913102 | BZ31: 976913.7172 | CA31: 51260.33255 | CB31: 52216.4818 | CC31: 17461.73193 | CD31: 21245141.63 | CE31: 1195092.425 | CF31: 89196.08934 | CG31: 5811.919612 | CH31: 688046.6664 | CI31: 38834.77755 | CJ31: 161.8918709 | CK31: 69868.1814 | CL31: 3737.110017 | CM31: 67897.38845 | CN31: 1661390.941 | CO31: 21376.91787 | CP31: 35819.06005 | CQ31: 102010.1971 | CR31: 133279.6845 | CS31: 16798.8478 | CT31: 19840.6755 | CU31: 13211.47691 | CV31: 726772.6058 | CW31: 92232.01706 | CX31: 469732.4992 | CY31: 1769401.68 | CZ31: 979124.3184 | DA31: 122548.6091 | DB31: 58523.91494 | DC31: 66537.82655 | DD31: 72508.54219 | DE31: 31615.33129 | DF31: 133513.1854 | DG31: 7684.405815 | DH31: 24182.87867 | DI31: 218735.28 | DJ31: 3884.191469 | DK31: 636306.45 | DL31: 4198.012296 | DM31: 27575.14759 | DN31: 109634.662 | DO31: 198992.2388 | DP31: 43526.40394 | DQ31: 125839.4019 | DR31: 72497.77896 | DS31: 61607.78804 | DT31: 1596588.276 | DU31: 23702.96892 | DV31: 73030.82253 | DW31: 307769.0826 | DX31: 407289.7054 | DY31: 10372.73727 | DZ31: 88209.75669 | EA31: 87354.10897 | EB31: 1694781.149 | EC31: 492.2951966 | ED31: 52846.33473 | EE31: 317658.0832 | EF31: 124736.0961 | EG31: 261093.7368 | EH31: 178549.3538 | EI31: 99333.18072 | EJ31: 66029.4432 | EK31: 201550.1117 | EL31: 329178.7039 | EM31: 102885.1867 | EN31: 95852.42639 | EO31: 67985.00984 | EP31: 104666.8901 | EQ31: 114514.5782 | ER31: 93453.19201 | ES31: 161252.1448 | ET31: 100932.6405 | EU31: 259898.2708 | EV31: 86840.13527 | EW31: 84398.71981 | EX31: 89308.84785 | EY31: 47281.68448 | EZ31: 1836.887924 | FA31: 88510.40404 | FB31: 85697.90741 | FC31: 96273.17132 | FD31: 1466490.745 | FE31: 99518.92385 | FF31: 88832.67508 | FG31: 1889.163486 | FH31: 100951.9861 | FI31: 494090.7785 | FJ31: 88089.19211 | FK31: 83017.75893 | FL31: 94161.57895 | FM31: 86437.14085 | FN31: 71241.01502 | FO31: 201417.2652 | FP31: 53211.17543 | FQ31: 93442.82983 | FR31: 125426.5245 | FS31: 53872.91672 | FT31: 26882.58212 | FU31: 202357.6393 | FV31: 297478.1414 | FW31: 106439.1105 | FX31: 104898.7745 | FY31: 104748.8557 | FZ31: 0.0123953563 | GA31: 885.5390223 | GB31: 82489.48779 | GC31: 70995.57705 | GD31: 101580.2657 | GE31: 7335.113597 | GF31: 122215.095 | GG31: 93659.91358 | GH31: 13703.08915 | GI31: 19912.63526 | GJ31: 239425.3715 | GK31: 235132.7212 | GL31: 101750.2922 | GM31: 3552467.095 | GN31: 2148.366193 | GO31: 60522.23949 | GP31: 67680.75674 | GQ31: 245543.3117 | GR31: 95638.17944 | GS31: 53559.03883 | GT31: 383455.1012 | GU31: 77984.25742 | GV31: 87959.52505 | GW31: 111513.6897 | GX31: 108197.5136 | GY31: 83952.02009 | GZ31: 68111.37212 | HA31: 80843.36379 | HB31: 8866746.874 | HC31: 1305967.345 | HD31: 838756.0592 | HE31: 4623174.606 | HF31: 2447585.674 | HG31: 585208.9836 | HH31: 311988.2864 | HI31: 331068.9416 | HJ31: 184817.0232 | HK31: 157255.9981 | HL31: 377473.1775 | HM31: 23076.55938 | HN31: 6398.159721 | HO31: 1158163.475 | HP31: 327493.3294 | HQ31: 23814.10114 | HR31: 3552.771433 | HS31: 77512.66065 | HT31: 56862.62181 | HU31: 124474.3712 | HV31: 110002.1707 | HW31: 5445523.538 | HX31: 3859602.087 | HY31: 52637.32893 | HZ31: 76225.26221 | IA31: 359715.461 | IB31: 206860268.3
A32: =+MATCH(B32,RUT[EMPRESA],0) -> 246 | B32: PETROPOWER | C32: 0 | D32: 0 | F32: =IFERROR(INDEX($B$9:$B$511,MATCH(0,INDEX(COUNTIF($F$8:F31,$B$9:$B$511),0,0),0)),"") -> PETROPOWER | J32: PUNTA_PALMERAS | K32: 1000305.402 | L32: 15964.62535 | M32: 17656.50406 | N32: 521679.2683 | O32: 101677.2187 | P32: 43428.449 | Q32: 3478.182585 | R32: 1234.589621 | S32: 23787.47452 | T32: 7673.393247 | U32: 1010.335615 | V32: 180754.7453 | W32: 3220.91945 | X32: 1268.012043 | Y32: 1280.719275 | Z32: 5630.53397 | AA32: 63632.11222 | AB32: 4585.488581 | AC32: 2702.991068 | AD32: 992.3438336 | AE32: 21595.899 | AF32: 95.18479052 | AG32: 1133.344907 | AH32: 1808.961239 | AI32: 486.6804429 | AJ32: 10016.77102 | AK32: 3097.935899 | AL32: 6773.175377 | AM32: 12636.90231 | AN32: 13113.03952 | AO32: 153.6309056 | AP32: 1173.039204 | AQ32: 58783.53905 | AR32: 65283.79259 | AS32: 2220.046729 | AT32: 0.0007006797089 | AU32: 49594.88192 | AV32: 2201.416898 | AW32: 5113.480187 | AX32: 5815.430765 | AY32: 3698.943405 | AZ32: 230.7243524 | BA32: 181.3214636 | BB32: 3.162613413 | BC32: 588.0257629 | BD32: 3031.120071 | BE32: 24.26549379 | BF32: 4063.15755 | BG32: 419.3677876 | BH32: 3202.445133 | BI32: 60.17144328 | BJ32: 74.83227442 | BK32: 12478.52106 | BL32: 5258.466728 | BM32: 456.436544 | BN32: 1.326322991 | BO32: 2725.945277 | BP32: 1178.433036 | BQ32: 21039.58646 | BR32: 39464.0961 | BS32: 18012.81974 | BT32: 5019.79624 | BU32: 43.7718436 | BV32: 1975.602492 | BW32: 521.4564769 | BX32: 33240.56917 | BY32: 17.28704238 | BZ32: 18951.98465 | CA32: 994.4430286 | CB32: 1012.992186 | CC32: 338.7550709 | CD32: 412152.6713 | CE32: 23184.61998 | CF32: 1730.391217 | CG32: 112.7503989 | CH32: 13348.00569 | CI32: 753.3890609 | CJ32: 3.140678853 | CK32: 1355.432602 | CL32: 72.49939318 | CM32: 1317.199504 | CN32: 32230.74368 | CO32: 414.7091111 | CP32: 694.8845781 | CQ32: 1978.983051 | CR32: 2585.606579 | CS32: 325.8952148 | CT32: 384.9062317 | CU32: 256.3007389 | CV32: 14099.28331 | CW32: 1789.287775 | CX32: 9112.742463 | CY32: 34326.13637 | CZ32: 18994.86999 | DA32: 2377.425271 | DB32: 1135.355475 | DC32: 1290.8242 | DD32: 1406.655219 | DE32: 613.332849 | DF32: 2590.136462 | DG32: 149.0763601 | DH32: 469.1443444 | DI32: 4243.432757 | DJ32: 75.35275204 | DK32: 12344.25299 | DL32: 81.44083064 | DM32: 534.9538702 | DN32: 2126.896567 | DO32: 3860.420617 | DP32: 844.4059335 | DQ32: 2441.266174 | DR32: 1406.446414 | DS32: 1195.182167 | DT32: 30973.58136 | DU32: 459.8341647 | DV32: 1416.787382 | DW32: 5970.675635 | DX32: 7901.361307 | DY32: 201.229601 | DZ32: 1711.256506 | EA32: 1694.657064 | EB32: 32878.50888 | EC32: 9.550455526 | ED32: 1025.211241 | EE32: 6162.520815 | EF32: 2419.862201 | EG32: 5065.180685 | EH32: 3463.831608 | EI32: 1927.049322 | EJ32: 1280.961637 | EK32: 3910.042982 | EL32: 6386.019189 | EM32: 1995.957723 | EN32: 1859.523192 | EO32: 1318.899346 | EP32: 2030.522511 | EQ32: 2221.566235 | ER32: 1812.978392 | ES32: 3128.268259 | ET32: 1958.078611 | EU32: 5041.988819 | EV32: 1684.686049 | EW32: 1637.322943 | EX32: 1732.578716 | EY32: 917.2578322 | EZ32: 35.63535973 | FA32: 1717.089021 | FB32: 1662.526994 | FC32: 1867.685583 | FD32: 28449.70809 | FE32: 1930.652712 | FF32: 1723.341033 | FG32: 36.64949806 | FH32: 1958.453911 | FI32: 9585.289556 | FJ32: 1708.917571 | FK32: 1610.532502 | FL32: 1826.720996 | FM32: 1676.868016 | FN32: 1382.065375 | FO32: 3907.465778 | FP32: 1032.289098 | FQ32: 1812.777368 | FR32: 2433.256413 | FS32: 1045.126783 | FT32: 521.5182005 | FU32: 3925.7089 | FV32: 5771.032867 | FW32: 2064.903331 | FX32: 2035.021036 | FY32: 2032.112633 | FZ32: 0.0002404681174 | GA32: 17.1793288 | GB32: 1600.284118 | GC32: 1377.303914 | GD32: 1970.642444 | GE32: 142.3001416 | GF32: 2370.955145 | GG32: 1816.988761 | GH32: 265.8379452 | GI32: 386.3022405 | GJ32: 4644.817536 | GK32: 4561.540742 | GL32: 1973.940934 | GM32: 68917.34722 | GN32: 41.67799305 | GO32: 1174.122682 | GP32: 1312.99688 | GQ32: 4763.504691 | GR32: 1855.366832 | GS32: 1039.037598 | GT32: 7438.973436 | GU32: 1512.883301 | GV32: 1706.402049 | GW32: 2163.349433 | GX32: 2099.016096 | GY32: 1628.657033 | GZ32: 1321.350756 | HA32: 1568.349551 | HB32: 172013.6054 | HC32: 25335.57738 | HD32: 16271.74609 | HE32: 89688.9179 | HF32: 47482.80764 | HG32: 11352.96954 | HH32: 6052.527577 | HI32: 6422.689527 | HJ32: 3585.423487 | HK32: 3050.743592 | HL32: 7322.924982 | HM32: 447.6819104 | HN32: 124.1233721 | HO32: 22468.20371 | HP32: 6353.323167 | HQ32: 461.9901136 | HR32: 68.92325134 | HS32: 1503.734392 | HT32: 1103.126629 | HU32: 2414.784776 | HV32: 2134.026183 | HW32: 105642.3681 | HX32: 74875.72159 | HY32: 1021.156559 | HZ32: 1478.759049 | IA32: 6978.427854 | IB32: 4013059.251
A33: =+MATCH(B33,RUT[EMPRESA],0) -> 336 | B33: ALTO_MANGA_ENERGY | C33: 20106065.32 | D33: 20106065.32 | F33: =IFERROR(INDEX($B$9:$B$511,MATCH(0,INDEX(COUNTIF($F$8:F32,$B$9:$B$511),0,0),0)),"") -> ALTO_MANGA_ENERGY | H33: 20106065.32 | J33: ATRIA_ENERGIA | K33: 244217.0639 | L33: 3897.643582 | M33: 4310.703084 | N33: 127364.082 | O33: 24823.73061 | P33: 10602.73021 | Q33: 849.1721998 | R33: 301.4157995 | S33: 5807.533554 | T33: 1873.401429 | U33: 246.6658653 | V33: 44129.91582 | W33: 786.3633343 | X33: 309.5756332 | Y33: 312.6780085 | Z33: 1374.652653 | AA33: 15535.30311 | AB33: 1119.512657 | AC33: 659.9150031 | AD33: 242.2733067 | AE33: 5272.476823 | AF33: 23.23865294 | AG33: 276.6976615 | AH33: 441.6443234 | AI33: 118.8193812 | AJ33: 2445.519543 | AK33: 756.3378224 | AL33: 1653.619985 | AM33: 3085.204953 | AN33: 3201.450282 | AO33: 37.50783372 | AP33: 286.3887265 | AQ33: 14351.56032 | AR33: 15938.54849 | AS33: 542.0077637 | AT33: 0.0001710656975 | AU33: 12108.21858 | AV33: 537.4594301 | AW33: 1248.417849 | AX33: 1419.793819 | AY33: 903.0692989 | AZ33: 56.32962074 | BA33: 44.26827584 | BB33: 0.7721283527 | BC33: 143.5620812 | BD33: 740.0252391 | BE33: 5.924238375 | BF33: 991.9894517 | BG33: 102.3855011 | BH33: 781.8529683 | BI33: 14.69040673 | BJ33: 18.26973873 | BK33: 3046.537356 | BL33: 1283.815226 | BM33: 111.43556 | BN33: 0.3238118139 | BO33: 665.5191011 | BP33: 287.7055903 | BQ33: 5136.657286 | BR33: 9634.863175 | BS33: 4397.694885 | BT33: 1225.545615 | BU33: 10.68656743 | BV33: 482.3285361 | BW33: 127.3096891 | BX33: 8115.435736 | BY33: 4.220501785 | BZ33: 4626.984957 | CA33: 242.7858094 | CB33: 247.314447 | CC33: 82.7045107 | CD33: 100623.9845 | CE33: 5660.351139 | CF33: 422.4620417 | CG33: 27.52716452 | CH33: 3258.815511 | CI33: 183.9342906 | CJ33: 0.7667731942 | CK33: 330.9187072 | CL33: 17.70018327 | CM33: 321.584383 | CN33: 7868.894414 | CO33: 101.2481201 | CP33: 169.6508597 | CQ33: 483.1538742 | CR33: 631.2564602 | CS33: 79.56487325 | CT33: 93.97197058 | CU33: 62.57390376 | CV33: 3442.234309 | CW33: 436.8411948 | CX33: 2224.807748 | CY33: 8380.468829 | CZ33: 4637.455092 | DA33: 580.4305549 | DB33: 277.1885267 | DC33: 315.1450502 | DD33: 343.424325 | DE33: 149.7406165 | DF33: 632.3623973 | DG33: 36.39587559 | DH33: 114.5380742 | DI33: 1036.002292 | DJ33: 18.39680944 | DK33: 3013.756814 | DL33: 19.88316819 | DM33: 130.6049765 | DN33: 519.2658502 | DO33: 942.4927495 | DP33: 206.1553776 | DQ33: 596.0168326 | DR33: 343.3733469 | DS33: 291.7947649 | DT33: 7561.967659 | DU33: 112.2650636 | DV33: 345.8980167 | DW33: 1457.69569 | DX33: 1929.058121 | DY33: 49.12869833 | DZ33: 417.7904456 | EA33: 413.7378163 | EB33: 8027.041432 | EC33: 2.331672111 | ED33: 250.2976379 | EE33: 1504.533253 | EF33: 590.7912132 | EG33: 1236.625887 | EH33: 845.6685165 | EI33: 470.4746436 | EJ33: 312.7371794 | EK33: 954.6076779 | EL33: 1559.098705 | EM33: 487.2981131 | EN33: 453.9886452 | EO33: 321.9993867 | EP33: 495.7368469 | EQ33: 542.3787397 | ER33: 442.6250814 | ES33: 763.7432408 | ET33: 478.0502118 | EU33: 1230.963767 | EV33: 411.3034677 | EW33: 399.7401204 | EX33: 422.9961032 | EY33: 223.9416225 | EZ33: 8.700105896 | FA33: 419.2144104 | FB33: 405.8935006 | FC33: 455.9814317 | FD33: 6945.782925 | FE33: 471.3543842 | FF33: 420.7407922 | FG33: 8.947700166 | FH33: 478.1418387 | FI33: 2340.176578 | FJ33: 417.2194121 | FK33: 393.1994351 | FL33: 445.9802351 | FM33: 409.3947535 | FN33: 337.4208991 | FO33: 953.9784728 | FP33: 252.0256435 | FQ33: 442.5760027 | FR33: 594.0613094 | FS33: 255.1598681 | FT33: 127.3247585 | FU33: 958.4323943 | FV33: 1408.954405 | FW33: 504.1306662 | FX33: 496.8351281 | FY33: 496.1250633 | FZ33: 5.870848791e-05 | GA33: 4.194204322 | GB33: 390.6973691 | GC33: 336.2584241 | GD33: 481.1175776 | GE33: 34.74151266 | GF33: 578.8509219 | GG33: 443.6041828 | GH33: 64.90234117 | GI33: 94.31279566 | GJ33: 1133.997376 | GK33: 1113.665971 | GL33: 481.9228791 | GM33: 16825.65361 | GN33: 10.17536952 | GO33: 286.6532497 | GP33: 320.5583439 | GQ33: 1162.973955 | GR33: 452.9739011 | GS33: 253.6732391 | GT33: 1816.16959 | GU33: 369.3591149 | GV33: 416.6052662 | GW33: 528.165544 | GX33: 512.4590421 | GY33: 397.6244035 | GZ33: 322.5978801 | HA33: 382.9007839 | HB33: 41995.83206 | HC33: 6185.49126 | HD33: 3972.624808 | HE33: 21896.87685 | HF33: 11592.57148 | HG33: 2771.742392 | HH33: 1477.679228 | HI33: 1568.051493 | HJ33: 875.3542621 | HK33: 744.8161745 | HL33: 1787.83723 | HM33: 109.2981819 | HN33: 30.30379066 | HO33: 5485.443477 | HP33: 1551.116216 | HQ33: 112.7914224 | HR33: 16.82709505 | HS33: 367.1254774 | HT33: 269.3200956 | HU33: 589.5515978 | HV33: 521.0064924 | HW33: 25791.7921 | HX33: 18280.34603 | HY33: 249.3077176 | HZ33: 361.0279346 | IA33: 1703.730839 | IB33: 979758.3276
A34: =+MATCH(B34,RUT[EMPRESA],0) -> 136 | B34: GENPAC | C34: 88393987.69 | D34: 88393987.69 | F34: =IFERROR(INDEX($B$9:$B$511,MATCH(0,INDEX(COUNTIF($F$8:F33,$B$9:$B$511),0,0),0)),"") -> GENPAC | H34: 88393987.69 | J34: EOLICA_TALTAL | K34: 95787320.86 | L34: 1528741.81 | M34: 1690752.861 | N34: 49955003.11 | O34: 9736414.855 | P34: 4158624.728 | Q34: 333064.0729 | R34: 118221.927 | S34: 2277842.798 | T34: 734789.3752 | U34: 96747.79481 | V34: 17308726.67 | W34: 308429.05 | X34: 121422.3938 | Y34: 122639.2139 | Z34: 539169.1009 | AA34: 6093288.649 | AB34: 439097.5649 | AC34: 258833.2246 | AD34: 95024.93642 | AE34: 2067981.742 | AF34: 9114.712422 | AG34: 108526.9279 | AH34: 173222.6481 | AI34: 46603.58293 | AJ34: 959186.7227 | AK34: 296652.3818 | AL34: 648586.2438 | AM34: 1210085.454 | AN34: 1255679.437 | AO34: 14711.39996 | AP34: 112327.9774 | AQ34: 5628998.61 | AR34: 6251450.385 | AS34: 212587.4038 | AT34: 0.06709574094 | AU34: 4749110.482 | AV34: 210803.447 | AW34: 489657.0253 | AX34: 556874.4622 | AY34: 354203.7044 | AZ34: 22093.72011 | BA34: 17362.99452 | BB34: 302.8457762 | BC34: 56308.2158 | BD34: 290254.2267 | BE34: 2323.617003 | BF34: 389080.1502 | BG34: 40157.85255 | BH34: 306659.985 | BI34: 5761.90165 | BJ34: 7165.794635 | BK34: 1194919.17 | BL34: 503540.6576 | BM34: 43707.48536 | BN34: 127.006138 | BO34: 261031.2755 | BP34: 112844.4805 | BQ34: 2014710.323 | BR34: 3779005.921 | BS34: 1724872.965 | BT34: 480686.0308 | BU34: 4191.507534 | BV34: 189179.894 | BW34: 49933.66904 | BX34: 3183052.955 | BY34: 1655.373921 | BZ34: 1814805.59 | CA34: 95225.95129 | CB34: 97002.18287 | CC34: 32438.53389 | CD34: 39466946.89 | CE34: 2220114.607 | CF34: 165698.934 | CG34: 10796.76129 | CH34: 1278179.346 | CI34: 72143.08708 | CJ34: 300.7453649 | CK34: 129793.6183 | CL34: 6942.402415 | CM34: 126132.4904 | CN34: 3086354.009 | CO34: 39711.74666 | CP34: 66540.81037 | CQ34: 189503.6098 | CR34: 247592.7117 | CS34: 31207.09881 | CT34: 36857.88026 | CU34: 24542.86568 | CV34: 1350120.245 | CW34: 171338.7551 | CX34: 872618.687 | CY34: 3287004.782 | CZ34: 1818912.208 | DA34: 227657.6702 | DB34: 108719.4561 | DC34: 123606.8421 | DD34: 134698.5976 | DE34: 58731.57368 | DF34: 248026.4847 | DG34: 14275.26544 | DH34: 44924.35987 | DI34: 406342.9572 | DJ34: 7215.634571 | DK34: 1182061.918 | DL34: 7798.617265 | DM34: 51226.15346 | DN34: 203667.5235 | DO34: 369666.4515 | DP34: 80858.68771 | DQ34: 233770.9523 | DR34: 134678.6028 | DS34: 114448.345 | DT34: 2965970.563 | DU34: 44032.83497 | DV34: 135668.834 | DW34: 571740.4124 | DX34: 756619.1579 | DY34: 19269.35946 | DZ34: 163866.6309 | EA34: 162277.1003 | EB34: 3148382.758 | EC34: 914.5332479 | ED34: 98172.25614 | EE34: 590111.1377 | EF34: 231721.349 | EG34: 485031.9579 | EH34: 331689.851 | EI34: 184530.5358 | EJ34: 122662.422 | EK34: 374418.1937 | EL34: 611512.912 | EM34: 191129.0717 | EN34: 178064.3635 | EO34: 126295.2641 | EP34: 194438.9293 | EQ34: 212732.9087 | ER34: 173607.323 | ES34: 299556.9503 | ET34: 187501.8408 | EU34: 482811.1494 | EV34: 161322.295 | EW34: 156786.8951 | EX34: 165908.4047 | EY34: 87834.84538 | EZ34: 3412.373492 | FA34: 164425.1413 | FB34: 159200.3866 | FC34: 178845.9783 | FD34: 2724289.315 | FE34: 184875.5894 | FF34: 165023.8219 | FG34: 3509.485427 | FH34: 187537.7788 | FI34: 917868.8875 | FJ34: 163642.659 | FK34: 154221.494 | FL34: 174923.2883 | FM34: 160573.6552 | FN34: 132343.9215 | FO34: 374171.4056 | FP34: 98850.01809 | FQ34: 173588.0733 | FR34: 233003.9529 | FS34: 100079.3301 | FT34: 49939.57957 | FU34: 375918.3319 | FV34: 552623.0049 | FW34: 197731.1704 | FX34: 194869.6994 | FY34: 194591.1963 | FZ34: 0.0230267643 | GA34: 1645.059476 | GB34: 153240.1285 | GC34: 131887.9731 | GD34: 188704.9293 | GE34: 13626.3878 | GF34: 227038.1034 | GG34: 173991.3482 | GH34: 25456.13021 | GI34: 36991.55937 | GJ34: 444778.7915 | GK34: 436804.3659 | GL34: 189020.7863 | GM34: 6599392.585 | GN34: 3991.004434 | GO34: 112431.7292 | GP34: 125730.0553 | GQ34: 456144.0451 | GR34: 177666.3584 | GS34: 99496.24143 | GT34: 712341.785 | GU34: 144870.7944 | GV34: 163401.7774 | GW34: 207158.1798 | GX34: 200997.7432 | GY34: 155957.0642 | GZ34: 126530.0064 | HA34: 150182.1358 | HB34: 16471691.93 | HC34: 2426086.149 | HD34: 1558151.102 | HE34: 8588438.233 | HF34: 4546862.312 | HG34: 1087138.522 | HH34: 579578.3968 | HI34: 615024.393 | HJ34: 343333.2554 | HK34: 292133.3373 | HL34: 701229.2083 | HM34: 42869.15848 | HN34: 11885.81532 | HO34: 2151511.963 | HP34: 608382.0038 | HQ34: 44239.28449 | HR34: 6599.957952 | HS34: 143994.7125 | HT34: 105633.2838 | HU34: 231235.1445 | HV34: 204350.2418 | HW34: 10116109.93 | HX34: 7169955.052 | HY34: 97783.98757 | HZ34: 141603.1217 | IA34: 668240.826 | IB34: 384282833.5
A35: =+MATCH(B35,RUT[EMPRESA],0) -> 229 | B35: NORVIND | C35: -27706494.13 | D35: -27706494.13 | F35: =IFERROR(INDEX($B$9:$B$511,MATCH(0,INDEX(COUNTIF($F$8:F34,$B$9:$B$511),0,0),0)),"") -> NORVIND | G35: -27706494.13 | J35: ACCIONA_ENERGIA | K35: 455857383.4 | L35: 7275370.428 | M35: 8046390.359 | N35: 237738740.4 | O35: 46336159.73 | P35: 19791134.88 | Q35: 1585071.129 | R35: 562624.9676 | S35: 10840385.22 | T35: 3496905.007 | U35: 460428.3343 | V35: 82373228.29 | W35: 1467831.634 | X35: 577856.1739 | Y35: 583647.0906 | Z35: 2565936.842 | AA35: 28998312.04 | AB35: 2089690.631 | AC35: 1231802.241 | AD35: 452229.1519 | AE35: 9841644.358 | AF35: 43377.44201 | AG35: 516485.9079 | AH35: 824376.5709 | AI35: 221789.1385 | AJ35: 4564824.923 | AK35: 1411785.791 | AL35: 3086659.334 | AM35: 5758866.455 | AN35: 5975850.849 | AO35: 70012.40072 | AP35: 534575.3218 | AQ35: 26788728.97 | AR35: 29751012.86 | AS35: 1011715.713 | AT35: 0.3193125001 | AU35: 22601290.63 | AV35: 1003225.76 | AW35: 2330306.019 | AX35: 2650197.677 | AY35: 1685675.854 | AZ35: 105145.288 | BA35: 82631.49213 | BB35: 1441.260512 | BC35: 267974.046 | BD35: 1381336.602 | BE35: 11058.22731 | BF35: 1851654.871 | BG35: 191113.536 | BH35: 1459412.552 | BI35: 27421.2222 | BJ35: 34102.42987 | BK35: 5686689.234 | BL35: 2396379.025 | BM35: 208006.4431 | BN35: 604.4295343 | BO35: 1242262.892 | BP35: 537033.3895 | BQ35: 9588122.602 | BR35: 17984507.09 | BS35: 8208769.901 | BT35: 2287612.539 | BU35: 19947.62605 | BV35: 900318.0242 | BW35: 237637.2103 | BX35: 15148332.56 | BY35: 7878.019946 | BZ35: 8636764.451 | CA35: 453185.7933 | CB35: 461638.9818 | CC35: 154376.8533 | CD35: 187825476.1 | CE35: 10565653.43 | CF35: 788570.7816 | CG35: 51382.40954 | CH35: 6082929.213 | CI35: 343333.1115 | CJ35: 1431.264533 | CK35: 617695.3141 | CL35: 33039.29342 | CM35: 600271.7953 | CN35: 14688136.7 | CO35: 188990.4923 | CP35: 316671.5535 | CQ35: 901858.6064 | CR35: 1178307.992 | CS35: 148516.3827 | CT35: 175408.7775 | CU35: 116800.913 | CV35: 6425300.101 | CW35: 815411.0154 | CX35: 4152842.65 | CY35: 15643045.3 | CZ35: 8656308.083 | DA35: 1083435.98 | DB35: 517402.1606 | DC35: 588252.089 | DD35: 641038.3932 | DE35: 279506.9458 | DF35: 1180372.343 | DG35: 67936.81141 | DH35: 213797.6191 | DI35: 1933809.565 | DJ35: 34339.621 | DK35: 5625500.831 | DL35: 37114.06926 | DM35: 243788.2182 | DN35: 969265.4887 | DO35: 1759263.959 | DP35: 384811.1574 | DQ35: 1112529.442 | DR35: 640943.2369 | DS35: 544666.2732 | DT35: 14115224.94 | DU35: 209554.8007 | DV35: 645655.8043 | DW35: 2720945.591 | DX35: 3600794.202 | DY35: 91703.99281 | DZ35: 779850.7457 | EA35: 772286.0777 | EB35: 14983335.09 | EC35: 4352.316462 | ED35: 467207.428 | EE35: 2808372.932 | EF35: 1102775.262 | EG35: 2308295.056 | EH35: 1578531.127 | EI35: 878191.4605 | EJ35: 583757.5394 | EK35: 1781877.774 | EL35: 2910225.21 | EM35: 909594.2734 | EN35: 847418.5736 | EO35: 601046.4443 | EP35: 925346.0766 | EQ35: 1012408.18 | ER35: 826207.2611 | ES35: 1425608.8 | ET35: 892332.0724 | EU35: 2297726.101 | EV35: 767742.1045 | EW35: 746157.8746 | EX35: 789567.6646 | EY35: 418011.094 | EZ35: 16239.68222 | FA35: 782508.7289 | FB35: 757643.8197 | FC35: 851138.3236 | FD35: 12965049.94 | FE35: 879833.5908 | FF35: 785357.8844 | FG35: 16701.84352 | FH35: 892503.1036 | FI35: 4368190.963 | FJ35: 778784.8502 | FK35: 733948.9829 | FL35: 832470.0159 | FM35: 764179.2844 | FN35: 629832.3538 | FO35: 1780703.295 | FP35: 470432.9362 | FQ35: 826115.6504 | FR35: 1108879.248 | FS35: 476283.303 | FT35: 237665.3389 | FU35: 1789017.018 | FV35: 2629964.747 | FW35: 941014.042 | FX35: 927396.1364 | FY35: 926070.7241 | FZ35: 0.1095856991 | GA35: 7828.932906 | GB35: 729278.6079 | GC35: 627662.4693 | GD35: 898057.64 | GE35: 64848.76529 | GF35: 1080487.426 | GG35: 828034.859 | GH35: 121147.1916 | GI35: 176044.9641 | GJ35: 2116727.916 | GK35: 2078777.165 | GL35: 899560.8217 | GM35: 31406889.86 | GN35: 18993.42024 | GO35: 535069.0826 | GP35: 598356.5831 | GQ35: 2170815.814 | GR35: 845524.4447 | GS35: 473508.3503 | GT35: 3390075.631 | GU35: 689448.4644 | GV35: 777638.4809 | GW35: 985877.7232 | GX35: 956559.8502 | GY35: 742208.6617 | GZ35: 602163.5965 | HA35: 714725.4442 | HB35: 78389731.71 | HC35: 11545883.88 | HD35: 7415330.942 | HE35: 40872872.79 | HF35: 21638779.93 | HG35: 5173754.915 | HH35: 2758247.011 | HI35: 2926936.551 | HJ35: 1633942.76 | HK35: 1390279.397 | HL35: 3337190.238 | HM35: 204016.7972 | HN35: 56565.28049 | HO35: 10239169.49 | HP35: 2895325.038 | HQ35: 210537.3059 | HR35: 31409.58047 | HS35: 685279.14 | HT35: 502714.8887 | HU35: 1100461.387 | HV35: 972514.5844 | HW35: 48143150.5 | HX35: 34122229.54 | HY35: 465359.6354 | HZ35: 673897.4214 | IA35: 3180196.624 | IB35: 1828824164
A36: =+MATCH(B36,RUT[EMPRESA],0) -> 226 | B36: MONTE REDONDO | C36: -562258727.9 | D36: -562258727.9 | F36: =IFERROR(INDEX($B$9:$B$511,MATCH(0,INDEX(COUNTIF($F$8:F35,$B$9:$B$511),0,0),0)),"") -> MONTE REDONDO | G36: -562258727.9 | J36: BESALCO | K36: 20016705.28 | L36: 319461.6364 | M36: 353317.1344 | N36: 10439112.04 | O36: 2034621.544 | P36: 869029.0617 | Q36: 69600.4996 | R36: 24704.87168 | S36: 476001.4953 | T36: 153549.157 | U36: 20217.41581 | V36: 3617009.823 | W36: 64452.51146 | X36: 25373.6742 | Y36: 25627.95345 | Z36: 112670.3294 | AA36: 1273316.364 | AB36: 91758.35035 | AC36: 54088.45688 | AD36: 19857.38958 | AE36: 432146.7673 | AF36: 1904.704199 | AG36: 22678.9048 | AH36: 36198.38893 | AI36: 9738.764757 | AJ36: 200441.5383 | AK36: 61991.53755 | AL36: 135535.2627 | AM36: 252871.9218 | AN36: 262399.7101 | AO36: 3074.245679 | AP36: 23473.21127 | AQ36: 1176293.535 | AR36: 1306367.469 | AS36: 44424.45378 | AT36: 0.01402101719 | AU36: 992423.0473 | AV36: 44051.6598 | AW36: 102323.776 | AX36: 116370.2241 | AY36: 74018.05475 | AZ36: 4616.931344 | BA36: 3628.350193 | BB36: 63.28577303 | BC36: 11766.74481 | BD36: 60654.51315 | BE36: 485.5669448 | BF36: 81306.19615 | BG36: 8391.79854 | BH36: 64082.8294 | BI36: 1204.066323 | BJ36: 1497.438262 | BK36: 249702.6188 | BL36: 105225.0428 | BM36: 9133.566376 | BN36: 26.5405109 | BO36: 54547.78424 | BP36: 23581.14506 | BQ36: 421014.6228 | BR36: 789700.0052 | BS36: 360447.2228 | BT36: 100449.1046 | BU36: 875.9005915 | BV36: 39532.97941 | BW36: 10434.65386 | BX36: 665163.5344 | BY36: 345.9239868 | BZ36: 379240.4706 | CA36: 19899.39571 | CB36: 20270.57536 | CC36: 6778.690194 | CD36: 8247419.776 | CE36: 463938.0179 | CF36: 34626.15613 | CG36: 2256.202457 | CH36: 267101.5228 | CI36: 15075.76263 | CJ36: 62.84684945 | CK36: 27123.01151 | CL36: 1450.755923 | CM36: 26357.94451 | CN36: 644956.3265 | CO36: 8298.575656 | CP36: 13905.05318 | CQ36: 39600.62639 | CR36: 51739.52352 | CS36: 6521.356835 | CT36: 7702.202336 | CU36: 5128.730032 | CV36: 282135.0342 | CW36: 35804.71124 | CX36: 182351.3898 | CY36: 686886.3789 | CZ36: 380098.6318 | DA36: 47573.6919 | DB36: 22719.13747 | DC36: 25830.15901 | DD36: 28148.0065 | DE36: 12273.15464 | DF36: 51830.16918 | DG36: 2983.106518 | DH36: 9387.857009 | DI36: 84913.61013 | DJ36: 1507.853329 | DK36: 247015.835 | DL36: 1629.679398 | DM36: 10704.74471 | DN36: 42560.46372 | DO36: 77249.30968 | DP36: 16897.06432 | DQ36: 48851.18628 | DR36: 28143.82819 | DS36: 23916.30511 | DT36: 619799.7617 | DU36: 9201.554783 | DV36: 28350.7571 | DW36: 119476.7661 | DX36: 158110.9333 | DY36: 4026.723848 | DZ36: 34243.2592 | EA36: 33911.09451 | EB36: 657918.493 | EC36: 191.1102882 | ED36: 20515.08593 | EE36: 123315.7021 | EF36: 48422.88008 | EG36: 101357.2743 | EH36: 69313.32804 | EI36: 38561.40162 | EJ36: 25632.80326 | EK36: 78242.28268 | EL36: 127788.0374 | EM36: 39940.29966 | EN36: 37210.16365 | EO36: 26391.95936 | EP36: 40631.9616 | EQ36: 44454.86 | ER36: 36278.77457 | ES36: 62598.5061 | ET36: 39182.31613 | EU36: 100893.1913 | EV36: 33711.56857 | EW36: 32763.80468 | EX36: 34669.92928 | EY36: 18354.87409 | EZ36: 713.084716 | FA36: 34359.97129 | FB36: 33268.15271 | FC36: 37373.49794 | FD36: 569295.5584 | FE36: 38633.50759 | FF36: 34485.07776 | FG36: 733.3782265 | FH36: 39189.82611 | FI36: 191807.3378 | FJ36: 34196.45572 | FK36: 32227.71204 | FL36: 36553.77223 | FM36: 33555.12508 | FN36: 27655.94912 | FO36: 78190.7113 | FP36: 20656.71805 | FQ36: 36274.75194 | FR36: 48690.9062 | FS36: 20913.60775 | FT36: 10435.88898 | FU36: 78555.76701 | FV36: 115481.7957 | FW36: 41319.94223 | FX36: 40721.97976 | FY36: 40663.78089 | FZ36: 0.00481190987 | GA36: 343.768574 | GB36: 32022.63579 | GC36: 27560.66946 | GD36: 39433.7259 | GE36: 2847.510362 | GF36: 47444.22082 | GG36: 36359.02442 | GH36: 5319.575196 | GI36: 7730.137301 | GJ36: 92945.55798 | GK36: 91279.13987 | GL36: 39499.73063 | GM36: 1379077.056 | GN36: 834.0013983 | GO36: 23494.89231 | GP36: 26273.84751 | GQ36: 95320.55845 | GR36: 37126.99242 | GS36: 20791.75953 | GT36: 148858.2773 | GU36: 30273.69353 | GV36: 34146.11862 | GW36: 43289.90721 | GX36: 42002.55892 | GY36: 32590.39467 | GZ36: 26441.01353 | HA36: 31383.60613 | HB36: 3442094.422 | HC36: 506979.953 | HD36: 325607.3049 | HE36: 1794728.524 | HF36: 950159.1863 | HG36: 227179.6643 | HH36: 121114.6721 | HI36: 128521.8326 | HJ36: 71746.45377 | HK36: 61047.19145 | HL36: 146536.0788 | HM36: 8958.380956 | HN36: 2483.782406 | HO36: 449602.1027 | HP36: 127133.7705 | HQ36: 9244.696601 | HR36: 1379.195201 | HS36: 30090.61843 | HT36: 22074.21912 | HU36: 48321.27777 | HV36: 42703.13156 | HW36: 2113966.539 | HX36: 1498307.666 | HY36: 20433.94933 | HZ36: 29590.84697 | IA36: 139642.4866 | IB36: 80303699.42
A37: =+MATCH(B37,RUT[EMPRESA],0) -> 240 | B37: PANGUIPULLI | C37: 998963184.3 | D37: 998963184.3 | F37: =IFERROR(INDEX($B$9:$B$511,MATCH(0,INDEX(COUNTIF($F$8:F36,$B$9:$B$511),0,0),0)),"") -> PANGUIPULLI | H37: 998963184.3 | J37: LLEUQUEREO | K37: 24346.19318 | L37: 388.5591861 | M37: 429.7374161 | N37: 12697.02655 | O37: 2474.697432 | P37: 1056.994601 | Q37: 84.65465144 | R37: 30.04838058 | S37: 578.9576353 | T37: 186.7608772 | U37: 24.59031614 | V37: 4399.346378 | W37: 78.39318572 | X37: 30.8618409 | Y37: 31.17111915 | Z37: 137.0402154 | AA37: 1548.726713 | AB37: 111.6051064 | AC37: 65.7874511 | AD37: 24.15241848 | AE37: 525.6174046 | AF37: 2.31667978 | AG37: 27.58420977 | AH37: 44.02787358 | AI37: 11.84519854 | AJ37: 243.7957867 | AK37: 75.39991858 | AL37: 164.8506905 | AM37: 307.5665336 | AN37: 319.1551228 | AO37: 3.739185752 | AP37: 28.55031974 | AQ37: 1430.718454 | AR37: 1588.926565 | AS37: 54.0331847 | AT37: 1.705367533e-05 | AU37: 1207.077932 | AV37: 53.57975771 | AW37: 124.4557674 | AX37: 141.5403742 | AY37: 90.02769608 | AZ37: 5.615544657 | BA37: 4.413139599 | BB37: 0.07697408909 | BC37: 14.31181797 | BD37: 73.77370419 | BE37: 0.5905920316 | BF37: 98.89221678 | BG37: 10.20689197 | BH37: 77.94354375 | BI37: 1.464498322 | BJ37: 1.821324773 | BK37: 303.7117302 | BL37: 127.9845601 | BM37: 11.10909954 | BN37: 0.03228105706 | BO37: 66.34612808 | BP37: 28.68159894 | BQ37: 512.077447 | BR37: 960.5071668 | BS37: 438.4096979 | BT37: 122.1756163 | BU37: 1.0653524 | BV37: 48.08371507 | BW37: 12.69160408 | BX37: 809.0342379 | BY37: 0.420745177 | BZ37: 461.2678075 | CA37: 24.20351029 | CB37: 24.65497377 | CC37: 8.244878397 | CD37: 10031.28498 | CE37: 564.2849034 | CF37: 42.11557667 | CG37: 2.744204907 | CH37: 324.8739081 | CI37: 18.3365556 | CJ37: 0.07644022909 | CK37: 32.9895489 | CL37: 1.764545336 | CM37: 32.0590027 | CN37: 784.4563376 | CO37: 10.09350556 | CP37: 16.91262903 | CQ37: 48.16599368 | CR37: 62.93045818 | CS37: 7.931885445 | CT37: 9.368140427 | CU37: 6.238042193 | CV37: 343.1590738 | CW37: 43.54904587 | CX37: 221.7928525 | CY37: 835.4555976 | CZ37: 462.3115835 | DA37: 57.86358329 | DB37: 27.63314451 | DC37: 31.41706051 | DD37: 34.23624388 | DE37: 14.92776106 | DF37: 63.04070993 | DG37: 3.628333761 | DH37: 11.41839164 | DI37: 103.2798918 | DJ37: 1.833992553 | DK37: 300.4438119 | DL37: 1.982168838 | DM37: 13.0201139 | DN37: 51.76602527 | DO37: 93.9578512 | DP37: 20.55179343 | DQ37: 59.4173917 | DR37: 34.23116183 | DS37: 29.08925201 | DT37: 753.8585655 | DU37: 11.19179341 | DV37: 34.48284817 | DW37: 145.3188418 | DX37: 192.3093371 | DY37: 4.897678979 | DZ37: 41.64986155 | EA37: 41.24585171 | EB37: 800.2221395 | EC37: 0.2324462457 | ED37: 24.95237043 | EE37: 149.9881156 | EF37: 58.89644555 | EG37: 123.2802175 | EH37: 84.30536647 | EI37: 46.90199111 | EJ37: 31.17701794 | EK37: 95.16559804 | EL37: 155.4277889 | EM37: 48.57913615 | EN37: 45.25848883 | EO37: 32.10037476 | EP37: 49.42040024 | EQ37: 54.07016759 | ER37: 44.12564612 | ES37: 76.13817062 | ET37: 47.65720553 | EU37: 122.7157562 | EV37: 41.00316956 | EW37: 39.85041028 | EX37: 42.16881768 | EY37: 22.32491831 | EZ37: 0.8673204708 | FA37: 41.79181773 | FB37: 40.46384564 | FC37: 45.4571513 | FD37: 692.4306196 | FE37: 46.98969315 | FF37: 41.94398394 | FG37: 0.8920033403 | FH37: 47.66633988 | FI37: 233.2940628 | FJ37: 41.59293476 | FK37: 39.19836416 | FL37: 44.46012406 | FM37: 40.81288832 | FN37: 33.63775758 | FO37: 95.10287209 | FP37: 25.12463669 | FQ37: 44.12075343 | FR37: 59.22244404 | FS37: 25.43709003 | FT37: 12.69310636 | FU37: 95.54688706 | FV37: 140.4597844 | FW37: 50.25718675 | FX37: 49.52988876 | FY37: 49.45910183 | FZ37: 5.852695816e-06 | GA37: 0.418123562 | GB37: 38.94893121 | GC37: 33.52186952 | GD37: 47.96299366 | GE37: 3.463409006 | GF37: 57.70610842 | GG37: 44.22325352 | GH37: 6.47016597 | GI37: 9.40211755 | GJ37: 113.0490996 | GK37: 111.0222457 | GL37: 48.0432748 | GM37: 1677.362779 | GN37: 1.014390674 | GO37: 28.57669026 | GP37: 31.95671605 | GQ37: 115.9377978 | GR37: 45.15732819 | GS37: 25.2888868 | GT37: 181.0553897 | GU37: 36.8217037 | GV37: 41.53171007 | GW37: 52.65324282 | GX37: 51.08744916 | GY37: 39.63949278 | GZ37: 32.16003904 | HA37: 38.17168344 | HB37: 4186.597872 | HC37: 616.6365393 | HD37: 396.0341242 | HE37: 2182.917055 | HF37: 1155.672663 | HG37: 276.3172018 | HH37: 147.3110166 | HI37: 156.3202995 | HJ37: 87.26476204 | HK37: 74.25131634 | HL37: 178.2309142 | HM37: 10.89602261 | HN37: 3.021008974 | HO37: 546.8482195 | HP37: 154.6320083 | HQ37: 11.24426653 | HR37: 1.677506478 | HS37: 36.5990306 | HT37: 26.84873436 | HU37: 58.7728673 | HV37: 51.93955128 | HW37: 2571.204251 | HX37: 1822.382224 | HY37: 24.85368449 | HZ37: 35.99116171 | IA37: 169.8462813 | IB37: 97672.88629
A38: =+MATCH(B38,RUT[EMPRESA],0) -> 171 | B38: HIDROPALOMA | C38: 71987776.54 | D38: 71987776.54 | F38: =IFERROR(INDEX($B$9:$B$511,MATCH(0,INDEX(COUNTIF($F$8:F37,$B$9:$B$511),0,0),0)),"") -> HIDROPALOMA | H38: 71987776.54 | J38: JAVIERA | K38: 118357695 | L38: 1888959.367 | M38: 2089145.094 | N38: 61725904.54 | O38: 12030607.07 | P38: 5138521.81 | Q38: 411543.9874 | R38: 146078.5692 | S38: 2814571.08 | T38: 907927.8551 | U38: 119544.4855 | V38: 21387183.33 | W38: 381104.2121 | X38: 150033.1623 | Y38: 151536.7018 | Z38: 666213.5598 | AA38: 7529050.747 | AB38: 542562.1597 | AC38: 319822.1183 | AD38: 117415.6699 | AE38: 2555260.447 | AF38: 11262.41285 | AG38: 134099.1367 | AH38: 214039.1147 | AI38: 57584.78895 | AJ38: 1185199.968 | AK38: 366552.6065 | AL38: 801412.6729 | AM38: 1495217.988 | AN38: 1551555.285 | AO38: 18177.84832 | AP38: 138795.8279 | AQ38: 6955360.009 | AR38: 7724480.145 | AS38: 262679.3909 | AT38: 0.08290551581 | AU38: 5868143.769 | AV38: 260475.0803 | AW38: 605034.9498 | AX38: 688090.8369 | AY38: 437664.7519 | AZ38: 27299.66517 | BA38: 21454.23832 | BB38: 374.2053509 | BC38: 69576.12525 | BD38: 358646.8536 | BE38: 2871.131066 | BF38: 480759.1375 | BG38: 49620.2506 | BH38: 378918.3021 | BI38: 7119.579002 | BJ38: 8854.271404 | BK38: 1476478.071 | BL38: 622189.9835 | BM38: 54006.28367 | BN38: 156.9326046 | BO38: 322538.0961 | BP38: 139434.0345 | BQ38: 2489436.679 | BR38: 4669453.392 | BS38: 2131304.921 | BT38: 593950.1191 | BU38: 5179.152794 | BV38: 233756.3677 | BW38: 61699.54352 | BX38: 3933075.98 | BY38: 2045.429812 | BZ38: 2242428.378 | CA38: 117664.0499 | CB38: 119858.8151 | CC38: 40082.02826 | CD38: 48766546.78 | CE38: 2743240.391 | CF38: 204742.5872 | CG38: 13340.80302 | CH38: 1579356.849 | CI38: 89142.16854 | CJ38: 371.6100195 | CK38: 160376.8991 | CL38: 8578.241258 | CM38: 155853.0994 | CN38: 3813591.854 | CO38: 49069.02874 | CP38: 82219.8269 | CQ38: 234156.3607 | CR38: 305933.0024 | CS38: 38560.43003 | CT38: 45542.70557 | CU38: 30325.90311 | CV38: 1668249.188 | CW38: 211711.3198 | CX38: 1078233.899 | CY38: 4061521.984 | CZ38: 2247502.639 | DA38: 281300.6655 | DB38: 134337.0303 | DC38: 152732.3323 | DD38: 166437.639 | DE38: 72570.49914 | DF38: 306468.9853 | DG38: 17638.9474 | DH38: 55509.89042 | DI38: 502089.5811 | DJ38: 8915.855129 | DK38: 1460591.264 | DL38: 9636.206082 | DM38: 63296.57615 | DN38: 251657.7186 | DO38: 456770.9874 | DP38: 99911.42684 | DQ38: 288854.4207 | DR38: 166412.9329 | DS38: 141415.8178 | DT38: 3664842.447 | DU38: 54408.29544 | DV38: 167636.4924 | DW38: 706459.652 | DX38: 934901.3914 | DY38: 23809.80019 | DZ38: 202478.5384 | EA38: 200514.4666 | EB38: 3890236.443 | EC38: 1130.024791 | ED38: 121304.5928 | EE38: 729159.0729 | EF38: 286321.8693 | EG38: 599320.0774 | EH38: 409845.9575 | EI38: 228011.4809 | EJ38: 151565.3784 | EK38: 462642.383 | EL38: 755603.749 | EM38: 236164.8303 | EN38: 220021.6838 | EO38: 156054.2274 | EP38: 240254.59 | EQ38: 262859.1813 | ER38: 214514.4306 | ES38: 370141.5787 | ET38: 231682.9147 | EU38: 596575.9797 | EV38: 199334.6805 | EW38: 193730.6039 | EX38: 205001.4155 | EY38: 108531.3771 | EZ38: 4216.431334 | FA38: 203168.6507 | FB38: 196712.7865 | FC38: 220987.4706 | FD38: 3366213.827 | FE38: 228437.8396 | FF38: 203908.3984 | FG38: 4336.425763 | FH38: 231727.3209 | FI38: 1134146.408 | FJ38: 202201.7919 | FK38: 190560.7171 | FL38: 216140.4769 | FM38: 198409.6386 | FN38: 163528.1304 | FO38: 462337.4442 | FP38: 122142.0559 | FQ38: 214490.645 | FR38: 287906.6932 | FS38: 123661.0308 | FT38: 61706.84675 | FU38: 464495.9989 | FV38: 682837.6083 | FW38: 244322.5821 | FX38: 240786.8625 | FY38: 240442.7357 | FZ38: 0.02845256264 | GA38: 2032.684974 | GB38: 189348.1124 | GC38: 162964.7469 | GD38: 233169.4871 | GE38: 16837.17466 | GF38: 280535.11 | GG38: 214988.9437 | GH38: 31454.36024 | GI38: 45707.88351 | GJ38: 549582.0541 | GK38: 539728.614 | GL38: 233559.7695 | GM38: 8154407.994 | GN38: 4931.405132 | GO38: 138924.0267 | GP38: 155355.8384 | GQ38: 563625.3034 | GR38: 219529.8969 | GS38: 122940.5489 | GT38: 880190.9375 | GU38: 179006.7114 | GV38: 201904.1514 | GW38: 255970.8785 | GX38: 248358.8577 | GY38: 192705.2399 | GZ38: 156344.282 | HA38: 185569.5646 | HB38: 20352918.03 | HC38: 2997745.025 | HD38: 1925298.372 | HE38: 10612132.63 | HF38: 5618239.846 | HG38: 1343301.06 | HH38: 716144.5014 | HI38: 759942.6405 | HJ38: 424232.8982 | HK38: 360968.7392 | HL38: 866459.9035 | HM38: 52970.42176 | HN38: 14686.47095 | HO38: 2658472.901 | HP38: 751735.1047 | HQ38: 54663.39068 | HR38: 8155.106579 | HS38: 177924.1983 | HT38: 130523.663 | HU38: 285721.1003 | HV38: 252501.3058 | HW38: 12499769.73 | HX38: 8859412.142 | HY38: 120824.8365 | HZ38: 174969.0767 | IA38: 825698.466 | IB38: 474831428.6
A39: =+MATCH(B39,RUT[EMPRESA],0) -> 106 | B39: EMELDA | C39: 42434369.54 | D39: 42434369.54 | F39: =IFERROR(INDEX($B$9:$B$511,MATCH(0,INDEX(COUNTIF($F$8:F38,$B$9:$B$511),0,0),0)),"") -> EMELDA | H39: 42434369.54 | J39: LOS_GUINDOS | K39: =$IB39*K$64/$IB$64 -> 1166881.774 | L39: 18623.1428 | M39: 20596.76249 | N39: 608552.1769 | O39: 118609.0699 | P39: 50660.39383 | Q39: 4057.38873 | R39: 1440.180293 | S39: 27748.69596 | T39: 8951.209008 | U39: =$IB39*U$64/$IB$64 -> 1178.582274 | V39: 210855.0223 | W39: 3757.284719 | X39: 1479.168401 | Y39: 1493.991711 | Z39: 6568.161538 | AA39: 74228.48246 | AB39: 5349.089428 | AC39: 3153.108047 | AD39: 1157.594401 | AE39: =$IB39*AE$64/$IB$64 -> 25192.1672 | AF39: 111.0354868 | AG39: 1322.075751 | AH39: 2110.19944 | AI39: 567.7251542 | AJ39: 11684.81897 | AK39: 3613.821269 | AL39: 7901.081894 | AM39: 14741.26898 | AN39: 15296.69518 | AO39: =$IB39*AO$64/$IB$64 -> 179.2143712 | AP39: 1368.380161 | AQ39: 68572.49815 | AR39: 76155.20976 | AS39: 2589.741153 | AT39: 0.0008173607581 | AU39: 57853.69517 | AV39: 2568.00898 | AW39: 5965.005107 | AX39: 6783.848367 | AY39: =$IB39*AY$64/$IB$64 -> 4314.91186 | AZ39: 269.1458439 | BA39: 211.5161136 | BB39: 3.68926924 | BC39: 685.9470558 | BD39: 3535.878902 | BE39: 28.30631764 | BF39: 4739.776953 | BG39: 489.2032243 | BH39: 3735.733957 | BI39: =$IB39*BI$64/$IB$64 -> 70.19152385 | BJ39: 87.29375744 | BK39: 14556.5132 | BL39: 6134.135607 | BM39: 532.4448745 | BN39: 1.54718961 | BO39: 3179.884717 | BP39: 1374.672204 | BQ39: 24543.21442 | BR39: 46035.87502 | BS39: =$IB39*BS$64/$IB$64 -> 21012.41382 | BT39: 5855.720393 | BU39: 51.06097239 | BV39: 2304.590714 | BW39: 608.2922852 | BX39: 38775.97206 | BY39: 20.16577601 | BZ39: 22107.97365 | CA39: 1160.043166 | CB39: 1181.681231 | CC39: =$IB39*CC$64/$IB$64 -> 395.1664335 | CD39: 480786.607 | CE39: 27045.45076 | CF39: 2018.545505 | CG39: 131.5262171 | CH39: 15570.78921 | CI39: 878.847562 | CJ39: 3.663682016 | CK39: 1581.146714 | CL39: 84.57239194 | CM39: =$IB39*CM$64/$IB$64 -> 1536.546829 | CN39: 37597.98486 | CO39: 483.7687593 | CP39: 810.6005902 | CQ39: 2308.534222 | CR39: 3016.176045 | CS39: 380.1650832 | CT39: 449.0029401 | CU39: 298.9813514 | CV39: 16447.17372 | CW39: =$IB39*CW$64/$IB$64 -> 2087.249843 | CX39: 10630.24659 | CY39: 40042.3139 | CZ39: 22158.0005 | DA39: 2773.327238 | DB39: 1324.42113 | DC39: 1505.779364 | DD39: 1640.899203 | DE39: 715.4684174 | DF39: 3021.46027 | DG39: =$IB39*DG$64/$IB$64 -> 173.9013777 | DH39: 547.2688478 | DI39: 4950.072581 | DJ39: 87.90090787 | DK39: 14399.88607 | DL39: 95.00280688 | DM39: 624.0373388 | DN39: 2481.079113 | DO39: 4503.279147 | DP39: 985.0210662 | DQ39: =$IB39*DQ$64/$IB$64 -> 2847.79928 | DR39: 1640.655627 | DS39: 1394.210492 | DT39: 36131.47294 | DU39: 536.4082857 | DV39: 1652.71863 | DW39: 6964.945469 | DX39: 9217.139566 | DY39: 234.7394639 | DZ39: 1996.224377 | EA39: =$IB39*EA$64/$IB$64 -> 1976.860705 | EB39: 38353.6195 | EC39: 11.14085005 | ED39: 1195.935071 | EE39: 7188.737766 | EF39: 2822.831 | EG39: 5908.662506 | EH39: 4040.64795 | EI39: 2247.952202 | EJ39: 1494.274432 | EK39: =$IB39*EK$64/$IB$64 -> 4561.164902 | EL39: 7449.454322 | EM39: 2328.33561 | EN39: 2169.181249 | EO39: 1538.529739 | EP39: 2368.656318 | EQ39: 2591.513695 | ER39: 2114.885553 | ES39: 3649.204741 | ET39: 2284.14866 | EU39: =$IB39*EU$64/$IB$64 -> 5881.608603 | EV39: 1965.229261 | EW39: 1909.978989 | EX39: 2021.097278 | EY39: 1070.004665 | EZ39: 41.56955635 | FA39: 2003.028155 | FB39: 1939.380158 | FC39: 2178.702886 | FD39: 33187.31038 | FE39: =$IB39*FE$64/$IB$64 -> 2252.155648 | FF39: 2010.321286 | FG39: 42.75257459 | FH39: 2284.586457 | FI39: 11181.48483 | FJ39: 1993.495949 | FK39: 1878.727256 | FL39: 2130.916651 | FM39: 1956.109325 | FN39: 1612.214523 | FO39: =$IB39*FO$64/$IB$64 -> 4558.158528 | FP39: 1204.191571 | FQ39: 2114.651052 | FR39: 2838.455689 | FS39: 1219.167059 | FT39: 608.3642872 | FU39: 4579.439595 | FV39: 6732.057086 | FW39: 2408.762421 | FX39: 2373.903962 | FY39: =$IB39*FY$64/$IB$64 -> 2370.511235 | FZ39: 0.0002805121944 | GA39: 20.04012537 | GB39: 1866.772255 | GC39: 1606.660157 | GD39: 2298.804692 | GE39: 165.9967459 | GF39: 2765.77967 | GG39: 2119.56375 | GH39: 310.1067459 | GI39: =$IB39*GI$64/$IB$64 -> 450.63142 | GJ39: 5418.298167 | GK39: 5321.153662 | GL39: 2302.652464 | GM39: 80393.84394 | GN39: 48.6184423 | GO39: 1369.644066 | GP39: 1531.644362 | GQ39: 5556.749762 | GR39: 2164.332749 | GS39: =$IB39*GS$64/$IB$64 -> 1212.063868 | GT39: 8677.752317 | GU39: 1764.816972 | GV39: 1990.561528 | GW39: 2523.602311 | GX39: 2448.555832 | GY39: 1899.869984 | GZ39: 1541.389371 | HA39: 1829.519767 | HB39: 200658.2596 | HC39: =$IB39*HC$64/$IB$64 -> 29554.59745 | HD39: 18981.40698 | HE39: 104624.4111 | HF39: 55389.90663 | HG39: 13243.52864 | HH39: 7060.427848 | HI39: 7492.231206 | HJ39: 4182.487979 | HK39: 3558.770239 | HL39: 8542.378835 | HM39: =$IB39*HM$64/$IB$64 -> 522.232371 | HN39: 144.7930805 | HO39: 26209.7329 | HP39: 7411.313578 | HQ39: 538.9232551 | HR39: 80.40073125 | HS39: 1754.144536 | HT39: 1286.825359 | HU39: 2816.908053 | HV39: 2489.395992 | HW39: 123234.5178 | HX39: 87344.43967 | HY39: 1191.205181 | HZ39: 1725.010161 | IA39: 8140.514144 | IB39: 4681336.008
A40: =+MATCH(B40,RUT[EMPRESA],0) -> 300 | B40: SWO | C40: 15578847.24 | D40: 15578847.24 | F40: =IFERROR(INDEX($B$9:$B$511,MATCH(0,INDEX(COUNTIF($F$8:F39,$B$9:$B$511),0,0),0)),"") -> SWO | H40: 15578847.24 | J40: ERNC1 | K40: 32093790.99 | L40: 512208.9196 | M40: 566491.1435 | N40: 16737553.72 | O40: 3262211.12 | P40: 1393358.031 | Q40: 111593.9839 | R40: 39610.56412 | S40: 763197.1537 | T40: 246193.0913 | U40: 32415.60028 | V40: 5799333.888 | W40: 103339.9554 | X40: 40682.88886 | Y40: 41090.58758 | Z40: 180650.0096 | AA40: 2041572.21 | AB40: 147120.7812 | AC40: 86722.7451 | AD40: 31838.3521 | AE40: 692882.6613 | AF40: 3053.908103 | AG40: 36362.22946 | AH40: 58038.69878 | AI40: 15614.65167 | AJ40: 321378.0062 | AK40: 99394.15208 | AL40: 217310.5079 | AM40: 405442.2788 | AN40: 420718.6613 | AO40: 4929.092819 | AP40: 37635.78099 | AQ40: 1886010.625 | AR40: 2094564.711 | AS40: 71227.96255 | AT40: 0.02248060251 | AU40: 1591201.819 | AV40: 70630.2432 | AW40: 164060.8599 | AX40: 186582.2369 | AY40: 118676.8724 | AZ40: 7402.558387 | BA40: 5817.516473 | BB40: 101.469265 | BC40: 18866.21416 | BD40: 97250.43358 | BE40: 778.5339203 | BF40: 130362.3163 | BG40: 13454.99294 | BH40: 102747.2256 | BI40: 1930.540134 | BJ40: 2400.91813 | BK40: 400360.7758 | BL40: 168712.607 | BM40: 14644.30665 | BN40: 42.55373686 | BO40: 87459.20776 | BP40: 37808.83667 | BQ40: 675033.9337 | BR40: 1266165.763 | BS40: 577923.173 | BT40: 161055.1048 | BU40: 1404.375501 | BV40: 63385.21551 | BW40: 16730.40569 | BX40: 1066490.171 | BY40: 554.6373378 | BZ40: 608055.333 | CA40: 31905.70265 | CB40: 32500.83366 | CC40: 10868.61515 | CD40: 13223503.21 | CE40: 743855.1733 | CF40: 55517.85879 | CG40: 3617.48295 | CH40: 428257.3143 | CI40: 24171.72896 | CJ40: 100.7655167 | CK40: 43487.68941 | CL40: 2326.069986 | CM40: 42261.01898 | CN40: 1034090.938 | CO40: 13305.524 | CP40: 22294.67158 | CQ40: 63493.67733 | CR40: 82956.58203 | CS40: 10456.01962 | CT40: 12349.32864 | CU40: 8223.150981 | CV40: 452361.2997 | CW40: 57407.49552 | CX40: 292373.1607 | CY40: 1101319.501 | CZ40: 609431.2661 | DA40: 76277.29453 | DB40: 36426.73653 | DC40: 41414.79392 | DD40: 45131.11546 | DE40: 19678.16651 | DF40: 83101.91878 | DG40: 4782.964816 | DH40: 15052.02362 | DI40: 136146.2647 | DJ40: 2417.61713 | DK40: 396052.9201 | DL40: 2612.946998 | DM40: 17163.45595 | DN40: 68239.33348 | DO40: 123857.706 | DP40: 27091.91362 | DQ40: 78325.56557 | DR40: 45124.41616 | DS40: 38346.21565 | DT40: 993756.1514 | DU40: 14753.31588 | DV40: 45456.1957 | DW40: 191563.1122 | DX40: 253507.2168 | DY40: 6456.249005 | DZ40: 54903.94089 | EA40: 54371.36451 | EB40: 1054873.832 | EC40: 306.4167433 | ED40: 32892.86976 | EE40: 197718.2715 | EF40: 77638.84068 | EG40: 162511.219 | EH40: 111133.5473 | EI40: 61827.43596 | EJ40: 41098.36352 | EK40: 125449.7896 | EL40: 204888.9916 | EM40: 64038.29258 | EN40: 59660.92811 | EO40: 42315.5567 | EP40: 65147.26898 | EQ40: 71276.71437 | ER40: 58167.58511 | ES40: 100367.3353 | ET40: 62822.97943 | EU40: 161767.1314 | EV40: 54051.45453 | EW40: 52531.85698 | EX40: 55588.04249 | EY40: 29429.29339 | EZ40: 1143.324614 | FA40: 55091.07125 | FB40: 53340.50358 | FC40: 59922.81019 | FD40: 912780.2205 | FE40: 61943.04709 | FF40: 55291.66074 | FG40: 1175.86222 | FH40: 62835.02057 | FI40: 307534.358 | FJ40: 54828.8985 | FK40: 51672.31267 | FL40: 58608.50271 | FM40: 53800.62081 | FN40: 44342.17511 | FO40: 125367.1026 | FP40: 33119.95566 | FQ40: 58161.13543 | FR40: 78068.58045 | FS40: 33531.83986 | FT40: 16732.38602 | FU40: 125952.4148 | FV40: 185157.7751 | FW40: 66250.34293 | FX40: 65291.59962 | FY40: 65198.28644 | FZ40: 0.00771517727 | GA40: 551.1814561 | GB40: 51343.50362 | GC40: 44189.40843 | GD40: 63226.07737 | GE40: 4565.556673 | GF40: 76069.70703 | GG40: 58296.25374 | GH40: 8529.142636 | GI40: 12394.11818 | GJ40: 149024.2909 | GK40: 146352.4389 | GL40: 63331.90608 | GM40: 2211143.65 | GN40: 1337.196416 | GO40: 37670.5433 | GP40: 42126.18203 | GQ40: 152832.2487 | GR40: 59527.57549 | GS40: 33336.47447 | GT40: 238671.9678 | GU40: 48539.33646 | GV40: 54748.19051 | GW40: 69408.88694 | GX40: 67344.81664 | GY40: 52253.82 | GZ40: 42394.20772 | HA40: 50318.9152 | HB40: 5518883.222 | HC40: 812866.4742 | HD40: 522062.5792 | HE40: 2877578.568 | HF40: 1523438.043 | HG40: 364248.5893 | HH40: 194189.2493 | HI40: 206065.5225 | HJ40: 115034.7002 | HK40: 97880.03445 | HL40: 234948.6701 | HM40: 14363.42305 | HN40: 3982.373337 | HO40: 720869.6789 | HP40: 203839.9727 | HQ40: 14822.48733 | HR40: 2211.333078 | HS40: 48245.80294 | HT40: 35392.70647 | HU40: 77475.93659 | HV40: 68468.08002 | HW40: 3389428.944 | HX40: 2402312.088 | HY40: 32762.77936 | HZ40: 47444.49421 | IA40: 223895.8268 | IB40: 128754962.8
A41: =+MATCH(B41,RUT[EMPRESA],0) -> 131 | B41: GEN. INDUSTRIAL | C41: 0 | D41: 0 | F41: =IFERROR(INDEX($B$9:$B$511,MATCH(0,INDEX(COUNTIF($F$8:F40,$B$9:$B$511),0,0),0)),"") -> GEN. INDUSTRIAL | J41: AGSA | K41: 4858307.883 | L41: 77537.38512 | M41: 85754.54326 | N41: 2533704.703 | O41: 493828.4171 | P41: 210924.3595 | Q41: 16892.92274 | R41: 5996.185243 | S41: 115531.5914 | T41: 37268.32509 | U41: 4907.02287 | V41: 877894.0933 | W41: 15643.44082 | X41: 6158.512084 | Y41: 6220.228879 | Z41: 27346.5159 | AA41: 309050.008 | AB41: 22270.91375 | AC41: 13127.95351 | AD41: 4819.639943 | AE41: 104887.4935 | AF41: 462.2958322 | AG41: 5504.457422 | AH41: 8785.807444 | AI41: 2363.721547 | AJ41: 48649.69991 | AK41: 15046.13128 | AL41: 32896.12479 | AM41: 61375.21802 | AN41: 63687.73292 | AO41: 746.1583615 | AP41: 5697.245661 | AQ41: 285501.3385 | AR41: 317071.9298 | AS41: 10782.37757 | AT41: 0.003403078447 | AU41: 240873.6426 | AV41: 10691.89574 | AW41: 24835.27636 | AX41: 28244.5272 | AY41: 17965.11932 | AZ41: 1120.58771 | BA41: 880.6465447 | BB41: 15.36025863 | BC41: 2855.937991 | BD41: 14721.61853 | BE41: 117.8532472 | BF41: 19734.04354 | BG41: 2036.795787 | BH41: 15553.7143 | BI41: 292.242146 | BJ41: 363.4472313 | BK41: 60605.98804 | BL41: 25539.45056 | BM41: 2216.832235 | BN41: 6.441718129 | BO41: 13239.43808 | BP41: 5723.442559 | BQ41: 102185.5811 | BR41: 191670.1928 | BS41: 87485.10601 | BT41: 24380.26987 | BU41: 212.5921668 | BV41: 9595.154785 | BW41: 2532.622645 | BX41: 161443.6141 | BY41: 83.9601327 | BZ41: 92046.46527 | CA41: 4829.835365 | CB41: 4919.925366 | CC41: 1645.273962 | CD41: 2001753.233 | CE41: 112603.6327 | CF41: 8404.20663 | CG41: 547.6089109 | CH41: 64828.92241 | CI41: 3659.078524 | CJ41: 15.25372631 | CK41: 6583.098404 | CL41: 352.1168363 | CM41: 6397.406954 | CN41: 156539.0688 | CO41: 2014.169413 | CP41: 3374.932513 | CQ41: 9611.573566 | CR41: 12557.83764 | CS41: 1582.815896 | CT41: 1869.422055 | CU41: 1244.807734 | CV41: 68477.74603 | CW41: 8690.256882 | CX41: 44258.99177 | CY41: 166716.0235 | CZ41: 92254.75186 | DA41: 11546.73754 | DB41: 5514.222401 | DC41: 6269.306728 | DD41: 6831.87767 | DE41: 2978.850069 | DF41: 12579.83849 | DG41: 724.0377329 | DH41: 2278.551793 | DI41: 20609.6086 | DJ41: 365.9750998 | DK41: 59953.87159 | DL41: 395.5438297 | DM41: 2598.177117 | DN41: 10329.96357 | DO41: 18749.38582 | DP41: 4101.13151 | DQ41: 11856.80161 | DR41: 6830.863541 | DS41: 5804.790149 | DT41: 150433.2519 | DU41: 2233.333883 | DV41: 6881.087808 | DW41: 28998.5243 | DX41: 38375.52597 | DY41: 977.3368762 | DZ41: 8311.272698 | EA41: 8230.652119 | EB41: 159685.1508 | EC41: 46.38488734 | ED41: 4979.271177 | EE41: 29930.28269 | EF41: 11752.84627 | EG41: 24600.69415 | EH41: 16823.22257 | EI41: 9359.340552 | EJ41: 6221.405988 | EK41: 18990.39294 | EL41: 31015.77509 | EM41: 9694.016569 | EN41: 9031.377982 | EO41: 6405.662789 | EP41: 9861.891683 | EQ41: 10789.75754 | ER41: 8805.318056 | ES41: 15193.45024 | ET41: 9510.044366 | EU41: 24488.05533 | EV41: 8182.224647 | EW41: 7952.190346 | EX41: 8414.830928 | EY41: 4454.960404 | EZ41: 173.0746918 | FA41: 8339.6002 | FB41: 8074.602003 | FC41: 9071.021282 | FD41: 138175.2421 | FE41: 9376.841584 | FF41: 8369.965123 | FG41: 178.0001838 | FH41: 9511.867135 | FI41: 46554.07011 | FJ41: 8299.912899 | FK41: 7822.073873 | FL41: 8872.063473 | FM41: 8144.253831 | FN41: 6712.449113 | FO41: 18977.87591 | FP41: 5013.647086 | FQ41: 8804.341713 | FR41: 11817.8996 | FS41: 5075.997471 | FT41: 2532.922425 | FU41: 19066.47956 | FV41: 28028.8944 | FW41: 10028.87329 | FX41: 9883.74023 | FY41: 9869.614626 | FZ41: 0.001167911468 | GA41: 83.43698673 | GB41: 7772.299272 | GC41: 6689.323532 | GD41: 9571.064702 | GE41: 691.1268283 | GF41: 11515.31327 | GG41: 8824.795712 | GH41: 1291.128272 | GI41: 1876.202225 | GJ41: 22559.06407 | GK41: 22154.60329 | GL41: 9587.084887 | GM41: 334719.4673 | GN41: 202.4227019 | GO41: 5702.507926 | GP41: 6376.995547 | GQ41: 23135.50677 | GR41: 9011.191272 | GS41: 5046.423365 | GT41: 36129.78918 | GU41: 7347.808835 | GV41: 8287.695448 | GW41: 10507.00874 | GX41: 10194.55301 | GY41: 7910.101542 | GZ41: 6417.568858 | HA41: 7617.19868 | HB41: 835439.9102 | HC41: 123050.4555 | HD41: 79029.0167 | HE41: 435603.3428 | HF41: 230615.6682 | HG41: 55139.38174 | HH41: 29396.06483 | HI41: 31193.87649 | HJ41: 17413.77299 | HK41: 14816.92652 | HL41: 35566.1622 | HM41: 2174.312515 | HN41: 602.845447 | HO41: 109124.1245 | HP41: 30856.97625 | HQ41: 2243.804949 | HR41: 334.7481426 | HS41: 7303.374189 | HT41: 5357.692549 | HU41: 11728.1861 | HV41: 10364.59086 | HW41: 513086.4522 | HX41: 363658.2466 | HY41: 4959.578296 | HZ41: 7182.073326 | IA41: 33893.00007 | IB41: 19490724.89
A42: =+MATCH(B42,RUT[EMPRESA],0) -> 230 | B42: NUEVA DEGAN | C42: 339034919.4 | D42: 339034919.4 | F42: =IFERROR(INDEX($B$9:$B$511,MATCH(0,INDEX(COUNTIF($F$8:F41,$B$9:$B$511),0,0),0)),"") -> NUEVA DEGAN | H42: 339034919.4 | J42: KDM_ENERGIA | K42: 106385671.6 | L42: 1697888.852 | M42: 1877825.552 | N42: 55482254.94 | O42: 10813696.68 | P42: 4618754.139 | Q42: 369915.8173 | R42: 131302.546 | S42: 2529873.825 | T42: 816089.8589 | U42: 107452.4168 | V42: 19223843.98 | W42: 342555.062 | X42: 134857.1272 | Y42: 136208.5818 | Z42: 598825.2557 | AA42: 6767478.195 | AB42: 487681.3437 | AC42: 287471.7258 | AD42: 105538.9334 | AE42: 2296792.775 | AF42: 10123.20622 | AG42: 120534.8475 | AH42: 192388.8004 | AI42: 51760.01818 | AJ42: 1065315.563 | AK42: 329475.3689 | AL42: 720348.8157 | AM42: 1343974.887 | AN42: 1394613.599 | AO42: 16339.13707 | AP42: 124756.4627 | AQ42: 6251816.966 | AR42: 6943139.674 | AS42: 236109.0541 | AT42: 0.07451952303 | AU42: 5274573.958 | AV42: 234127.7122 | AW42: 543834.9359 | AX42: 618489.6199 | AY42: 393394.4351 | AZ42: 24538.27116 | BA42: 19284.11628 | BB42: 336.3540289 | BC42: 62538.41638 | BD42: 322369.2924 | BE42: 2580.7127 | BF42: 432129.7717 | BG42: 44601.10248 | BH42: 340590.2594 | BI42: 6399.42501 | BJ42: 7958.651187 | BK42: 1327130.535 | BL42: 559254.7172 | BM42: 48543.48303 | BN42: 141.0586826 | BO42: 289912.9791 | BP42: 125330.114 | BQ42: 2237627.161 | BR42: 4197132.557 | BS42: 1915720.861 | BT42: 533871.3491 | BU42: 4655.27525 | BV42: 210111.6295 | BW42: 55458.56038 | BX42: 3535240.607 | BY42: 1838.532123 | BZ42: 2015604.047 | CA42: 105762.1895 | CB42: 107734.9516 | CC42: 36027.68282 | CD42: 43833751.84 | CE42: 2465758.321 | CF42: 184032.6279 | CG42: 11991.36473 | CH42: 1419603.001 | CI42: 80125.33081 | CJ42: 334.0212184 | CK42: 144154.5826 | CL42: 7710.541822 | CM42: 140088.3707 | CN42: 3427842.444 | CO42: 44105.63738 | CP42: 73903.19237 | CQ42: 210471.1628 | CR42: 274987.5107 | CS42: 34659.99608 | CT42: 40936.00604 | CU42: 27258.40148 | CV42: 1499503.773 | CW42: 190296.4648 | CX42: 969169.2413 | CY42: 3650694.143 | CZ42: 2020165.04 | DA42: 252846.7644 | DB42: 120748.6779 | DC42: 137283.2729 | DD42: 149602.2714 | DE42: 65229.90574 | DF42: 275469.2783 | DG42: 15854.74662 | DH42: 49894.99814 | DI42: 451302.6152 | DJ42: 8014.005643 | DK42: 1312850.698 | DL42: 8661.49223 | DM42: 56894.05123 | DN42: 226202.2372 | DO42: 410568.0519 | DP42: 89805.26567 | DQ42: 259636.4481 | DR42: 149580.0643 | DS42: 127111.4375 | DT42: 3294139.219 | DU42: 48904.83082 | DV42: 150679.8593 | DW42: 635000.4073 | DX42: 840334.9895 | DY42: 21401.41022 | DZ42: 181997.5904 | EA42: 180232.1867 | EB42: 3496734.341 | EC42: 1015.721422 | ED42: 109034.4871 | EE42: 655403.7543 | EF42: 257360.0673 | EG42: 538698.1297 | EH42: 368389.5452 | EI42: 204947.8449 | EJ42: 136234.3578 | EK42: 415845.5487 | EL42: 679173.5196 | EM42: 212276.4733 | EN42: 197766.2255 | EO42: 140269.1543 | EP42: 215952.5488 | EQ42: 236270.6584 | ER42: 192816.0376 | ES42: 332701.3122 | ET42: 208247.9088 | EU42: 536231.6007 | EV42: 179171.7374 | EW42: 174134.5199 | EX42: 184265.2754 | EY42: 97553.29758 | EZ42: 3789.934226 | FA42: 182617.8969 | FB42: 176815.0512 | FC42: 198634.3218 | FD42: 3025717.243 | FE42: 205331.0769 | FF42: 183282.8183 | FG42: 3897.791073 | FH42: 208287.8232 | FI42: 1019426.133 | FJ42: 181748.8371 | FK42: 171285.271 | FL42: 194277.6073 | FM42: 178340.2647 | FN42: 146987.0631 | FO42: 415571.4548 | FP42: 109787.2398 | FQ42: 192794.6579 | FR42: 258784.5844 | FS42: 111152.5686 | FT42: 55465.12487 | FU42: 417511.6691 | FV42: 613767.7618 | FW42: 219609.0587 | FX42: 216430.9813 | FY42: 216121.6633 | FZ42: 0.02557455166 | GA42: 1827.07644 | GB42: 170195.3227 | GC42: 146480.6665 | GD42: 209584.1126 | GE42: 15134.07416 | GF42: 252158.6457 | GG42: 193242.553 | GH42: 28272.71381 | GI42: 41084.47603 | GJ42: 493991.1674 | GK42: 485134.4146 | GL42: 209934.9175 | GM42: 7329579.804 | GN42: 4432.587563 | GO42: 124871.6941 | GP42: 139641.4082 | GQ42: 506613.925 | GR42: 197324.1834 | GS42: 110504.9643 | GT42: 791158.564 | GU42: 160899.967 | GV42: 181481.3033 | GW42: 230079.1158 | GX42: 223237.0601 | GY42: 173212.8728 | GZ42: 140529.8696 | HA42: 166798.9796 | HB42: 18294195.86 | HC42: 2694519.504 | HD42: 1730552.123 | HE42: 9538702.631 | HF42: 5049948.118 | HG42: 1207424.54 | HH42: 643705.6225 | HI42: 683073.5271 | HJ42: 381321.2295 | HK42: 324456.3164 | HL42: 778816.4406 | HM42: 47612.3998 | HN42: 13200.91672 | HO42: 2389565.164 | HP42: 675696.1933 | HQ42: 49134.12287 | HR42: 7330.207725 | HS42: 159926.9513 | HT42: 117321.0373 | HU42: 256820.0669 | HV42: 226960.4946 | HW42: 11235402.97 | HX42: 7963271.932 | HY42: 108603.2587 | HZ42: 157270.7438 | IA42: 742178.0716 | IB42: 426801657.7
A43: =+MATCH(B43,RUT[EMPRESA],0) -> 23 | B43: BARRICK | C43: 1494309.997 | D43: 1494309.997 | F43: =IFERROR(INDEX($B$9:$B$511,MATCH(0,INDEX(COUNTIF($F$8:F42,$B$9:$B$511),0,0),0)),"") -> BARRICK | H43: 1494309.997 | J43: CONEJO_SOLAR | K43: 16392136.2 | L43: 261614.4155 | M43: 289339.4545 | N43: 8548826.789 | O43: 1666197.957 | P43: 711667.7063 | Q43: 56997.43553 | R43: 20231.38252 | S43: 389808.474 | T43: 125744.9045 | U43: 16556.50262 | V43: 2962051.786 | W43: 52781.63069 | X43: 20779.08014 | Y43: 20987.31522 | Z43: 92268.3008 | AA43: 1042747.793 | AB43: 75143.00455 | AC43: 44294.27017 | AD43: 16261.66893 | AE43: 353894.8376 | AF43: 1559.805683 | AG43: 18572.27206 | AH43: 29643.68576 | AI43: 7975.296434 | AJ43: 164146.1443 | AK43: 50766.28307 | AL43: 110992.9158 | AM43: 207082.5804 | AN43: 214885.1035 | AO43: 2517.569858 | AP43: 19222.74773 | AQ43: 963293.5866 | AR43: 1069814.096 | AS43: 36380.19776 | AT43: 0.01148213056 | AU43: 812717.8537 | AV43: 36074.90827 | AW43: 83795.27244 | AX43: 95298.2289 | AY43: 60615.07213 | AZ43: 3780.910311 | BA43: 2971.338674 | BB43: 51.82616201 | BC43: 9636.055525 | BD43: 49671.36332 | BE43: 397.6418386 | BF43: 66583.49723 | BG43: 6872.235098 | BH43: 52478.88963 | BI43: 986.0373559 | BJ43: 1226.286324 | BK43: 204487.166 | BL43: 86171.18596 | BM43: 7479.685686 | BN43: 21.73462931 | BO43: 44670.42381 | BP43: 19311.13717 | BQ43: 344778.4708 | BR43: 646703.3338 | BS43: 295178.4464 | BT43: 82260.06128 | BU43: 717.2949588 | BV43: 32374.45791 | BW43: 8545.175879 | BX43: 544717.5793 | BY43: 283.2850374 | BZ43: 310568.6654 | CA43: 16296.06872 | CB43: 16600.03619 | CC43: 5551.223906 | CD43: 6754000.037 | CE43: 379929.4173 | CF43: 28356.14848 | CG43: 1847.655617 | CH43: 218735.5251 | CI43: 12345.88564 | CJ43: 51.46671748 | CK43: 22211.65234 | CL43: 1188.057092 | CM43: 21585.12153 | CN43: 528169.4362 | CO43: 6795.892754 | CP43: 11387.16498 | CQ43: 32429.85557 | CR43: 42370.67511 | CS43: 5340.487753 | CT43: 6307.509049 | CU43: 4200.033922 | CV43: 231046.8102 | CW43: 29321.29413 | CX43: 149331.7094 | CY43: 562506.9119 | CZ43: 311271.4331 | DA43: 38959.18064 | DB43: 18605.21951 | DC43: 21152.90596 | DD43: 23051.0441 | DE43: 10050.76607 | DF43: 42444.90691 | DG43: 2442.933922 | DH43: 7687.930081 | DI43: 69537.69076 | DJ43: 1234.815459 | DK43: 202286.8975 | DL43: 1334.581604 | DM43: 8766.359438 | DN43: 34853.73382 | DO43: 63261.22044 | DP43: 13837.3911 | DQ43: 40005.34991 | DR43: 23047.62238 | DS43: 19585.60738 | DT43: 507568.1519 | DU43: 7535.362942 | DV43: 23217.08118 | DW43: 97842.24701 | DX43: 129480.6471 | DY43: 3297.57594 | DZ43: 28042.58547 | EA43: 27770.56823 | EB43: 538784.4498 | EC43: 156.504571 | ED43: 16800.27146 | EE43: 100986.0392 | EF43: 39654.6002 | EG43: 83003.78215 | EH43: 56762.26419 | EI43: 31578.81072 | EJ43: 20991.28683 | EK43: 64074.38866 | EL43: 104648.5365 | EM43: 32708.02175 | EN43: 30472.25114 | EO43: 21612.97707 | EP43: 33274.43948 | EQ43: 36405.09811 | ER43: 29709.51539 | ES43: 51263.34345 | ET43: 32087.29176 | EU43: 82623.73399 | EV43: 27607.17189 | EW43: 26831.02643 | EX43: 28391.99531 | EY43: 15031.22475 | EZ43: 583.9613273 | FA43: 28138.16366 | FB43: 27244.04854 | FC43: 30606.00931 | FD43: 466209.1087 | FE43: 31637.85994 | FF43: 28240.61619 | FG43: 600.5801455 | FH43: 32093.44186 | FI43: 157075.4008 | FJ43: 28004.25702 | FK43: 26392.00795 | FL43: 29934.71725 | FM43: 27479.05675 | FN43: 22648.0871 | FO43: 64032.15568 | FP43: 16916.25723 | FQ43: 29706.22117 | FR43: 39874.0929 | FS43: 17126.63007 | FT43: 8546.18735 | FU43: 64331.10812 | FV43: 94570.6747 | FW43: 33837.84249 | FX43: 33348.1574 | FY43: 33300.49702 | FZ43: 0.00394058267 | GA43: 281.5199208 | GB43: 26224.06634 | GC43: 22570.06041 | GD43: 32293.17695 | GE43: 2331.891138 | GF43: 38853.15382 | GG43: 29775.23383 | GH43: 4356.321376 | GI43: 6330.385628 | GJ43: 76115.23593 | GK43: 74750.56816 | GL43: 32347.22973 | GM43: 1129357.634 | GN43: 682.9827544 | GO43: 19240.50283 | GP43: 21516.25258 | GQ43: 78060.17795 | GR43: 30404.14033 | GS43: 17026.84579 | GT43: 121903.4362 | GU43: 24791.81766 | GV43: 27963.03483 | GW43: 35451.09172 | GX43: 34396.85286 | GY43: 26689.01703 | GZ43: 21653.14865 | HA43: 25700.75039 | HB43: 2818809.578 | HC43: 415177.4391 | HD43: 266647.2435 | HE43: 1469744.095 | HF43: 778107.0146 | HG43: 186042.6052 | HH43: 99183.56554 | HI43: 105249.4581 | HJ43: 58754.8063 | HK43: 49992.93652 | HL43: 120001.7349 | HM43: 7336.222353 | HN43: 2034.026025 | HO43: 368189.4096 | HP43: 104112.7424 | HQ43: 7570.692761 | HR43: 1129.454386 | HS43: 24641.89329 | HT43: 18077.08117 | HU43: 39571.39575 | HV43: 34970.56777 | HW43: 1731175.382 | HX43: 1226998.299 | HY43: 16733.82685 | HZ43: 24232.61905 | IA43: 114356.4152 | IB43: 65762529.81
A44: =+MATCH(B44,RUT[EMPRESA],0) -> 36 | B44: CARRAN | C44: 17792428.97 | D44: 17792428.97 | F44: =IFERROR(INDEX($B$9:$B$511,MATCH(0,INDEX(COUNTIF($F$8:F43,$B$9:$B$511),0,0),0)),"") -> CARRAN | H44: 17792428.97 | J44: SAN_JUAN_LAP | K44: 73138937.66 | L44: 1167279.249 | M44: 1290983.681 | N44: 38143418.42 | O44: 7434293.314 | P44: 3175340.87 | Q44: 254312.9116 | R44: 90269.00503 | S44: 1739259.443 | T44: 561052.484 | U44: 73872.31285 | V44: 13216173.8 | W44: 235502.7039 | X44: 92712.73915 | Y44: 93641.84881 | Z44: 411685.5436 | AA44: 4652564.188 | AB44: 335275.3698 | AC44: 197633.5376 | AD44: 72556.81481 | AE44: 1579018.876 | AF44: 6959.58899 | AG44: 82866.33495 | AH44: 132265.1093 | AI44: 35584.42303 | AJ44: 732392.3175 | AK44: 226510.5639 | AL44: 495231.6071 | AM44: 923967.4293 | AN44: 958780.9666 | AO44: 11232.97066 | AP44: 85768.6473 | AQ44: 4298052.965 | AR44: 4773329.454 | AS44: 162322.2858 | AT44: 0.05123132341 | AU44: 3626209.527 | AV44: 160960.1358 | AW44: 373880.3249 | AX44: 425204.57 | AY44: 270454.1939 | AZ44: 16869.78197 | BA44: 13257.61032 | BB44: 231.2395643 | BC44: 42994.44904 | BD44: 221625.2172 | BE44: 1774.210591 | BF44: 297084.2967 | BG44: 30662.75002 | BH44: 234151.9245 | BI44: 4399.531815 | BJ44: 5471.482054 | BK44: 912387.1291 | BL44: 384481.249 | BM44: 33373.09174 | BN44: 96.97623783 | BO44: 199311.8715 | BP44: 86163.02604 | BQ44: 1538343.19 | BR44: 2885480.834 | BS44: 1317036.275 | BT44: 367030.4725 | BU44: 3200.448718 | BV44: 144449.3525 | BW44: 38127.12867 | BX44: 2430437.656 | BY44: 1263.969897 | BZ44: 1385704.827 | CA44: 72710.30083 | CB44: 74066.55226 | CC44: 24768.62164 | CD44: 30135205.19 | CE44: 1695180.765 | CF44: 126520.3358 | CG44: 8243.926685 | CH44: 975960.8962 | CI44: 55085.25243 | CJ44: 229.6357837 | CK44: 99104.63385 | CL44: 5300.909691 | CM44: 96309.15943 | CN44: 2356602.642 | CO44: 30322.1234 | CP44: 50807.60311 | CQ44: 144696.5274 | CR44: 189050.7819 | CS44: 23828.35258 | CT44: 28143.03796 | CU44: 18739.84059 | CV44: 1030891.767 | CW44: 130826.6524 | CX44: 666292.816 | CY44: 2509810.648 | CZ44: 1388840.458 | DA44: 173829.271 | DB44: 83013.3409 | DC44: 94380.68666 | DD44: 102849.8578 | DE44: 44844.81732 | DF44: 189381.9917 | DG44: 10899.95774 | DH44: 34302.24299 | DI44: 310265.4083 | DJ44: 5509.537612 | DK44: 902569.9035 | DL44: 5954.677267 | DM44: 39114.01228 | DN44: 155511.462 | DO44: 282260.8599 | DP44: 61740.0974 | DQ44: 178497.1012 | DR44: 102834.5907 | DS44: 87387.66564 | DT44: 2264683.198 | DU44: 33621.51424 | DV44: 103590.6872 | DW44: 436555.5483 | DX44: 577720.7351 | DY44: 14713.2258 | DZ44: 125121.2707 | EA44: 123907.5758 | EB44: 2403965.037 | EC44: 698.2969103 | ED44: 74959.96816 | EE44: 450582.617 | EF44: 176932.1153 | EG44: 370348.8292 | EH44: 253263.6169 | EI44: 140899.3093 | EJ44: 93659.56949 | EK44: 285889.0789 | EL44: 466924.06 | EM44: 145937.6579 | EN44: 135962.0278 | EO44: 96433.44612 | EP44: 148464.9179 | EQ44: 162433.3869 | ER44: 132558.8299 | ES44: 228728.3632 | ET44: 143168.0657 | EU44: 368653.1186 | EV44: 123178.529 | EW44: 119715.4993 | EX44: 126680.2783 | EY44: 67066.7811 | EZ44: 2605.536618 | FA44: 125547.7244 | FB44: 121558.3341 | FC44: 136558.8341 | FD44: 2080146.146 | FE44: 141162.777 | FF44: 126004.8503 | FG44: 2679.686973 | FH44: 143195.5064 | FI44: 700843.8564 | FJ44: 124950.2557 | FK44: 117756.6732 | FL44: 133563.6425 | FM44: 122606.9009 | FN44: 101051.9319 | FO44: 285700.6425 | FP44: 75477.47704 | FQ44: 132544.1317 | FR44: 177911.4546 | FS44: 76416.12504 | FT44: 38131.64168 | FU44: 287034.5177 | FV44: 421958.3463 | FW44: 150978.7268 | FX44: 148793.8348 | FY44: 148581.1822 | FZ44: 0.01758221301 | GA44: 1256.094245 | GB44: 117007.3461 | GC44: 100703.79 | GD44: 144086.6906 | GE44: 10404.50363 | GF44: 173356.1972 | GG44: 132852.0545 | GH44: 19437.16876 | GI44: 28245.10938 | GJ44: 339613.3018 | GK44: 333524.3851 | GL44: 144327.8649 | GM44: 5039002.642 | GN44: 3047.353469 | GO44: 85847.86756 | GP44: 96001.87783 | GQ44: 348291.3039 | GR44: 135658.1288 | GS44: 75970.90444 | GT44: 543912.5026 | GU44: 110616.8949 | GV44: 124766.3292 | GW44: 158176.7719 | GX44: 153472.9365 | GY44: 119081.8774 | GZ44: 96612.6849 | HA44: 114672.3989 | HB44: 12577051.31 | HC44: 1852451.473 | HD44: 1189734.876 | HE44: 6557749.427 | HF44: 3471781.82 | HG44: 830090.6203 | HH44: 442540.2846 | HI44: 469605.2707 | HJ44: 262154.0026 | HK44: 223060.0225 | HL44: 535427.4333 | HM44: 32732.98263 | HN44: 9075.479906 | HO44: 1642798.837 | HP44: 464533.4378 | HQ44: 33779.14991 | HR44: 5039.434331 | HS44: 109947.9577 | HT44: 80656.87701 | HU44: 176560.8712 | HV44: 156032.7553 | HW44: 7724211.587 | HX44: 5474658.764 | HY44: 74663.50355 | HZ44: 108121.8453 | IA44: 510238.9719 | IB44: 293421279
A45: =+MATCH(B45,RUT[EMPRESA],0) -> 77 | B45: DONGO | C45: 28398957.95 | D45: 28398957.95 | F45: =IFERROR(INDEX($B$9:$B$511,MATCH(0,INDEX(COUNTIF($F$8:F44,$B$9:$B$511),0,0),0)),"") -> DONGO | H45: 28398957.95 | J45: SAFIRA_ENERGIA_CHILE | K45: 5610984.84 | L45: 89549.92211 | M45: 99040.12959 | N45: 2926240.787 | O45: 570335.1514 | P45: 243601.9726 | Q45: 19510.07135 | R45: 6925.148696 | S45: 133430.4091 | T45: 43042.14804 | U45: 5667.247034 | V45: 1013902.488 | W45: 18067.01251 | X45: 7112.624144 | Y45: 7183.902459 | Z45: 31583.19519 | AA45: 356929.81 | AB45: 25721.2516 | AC45: 15161.81146 | AD45: 5566.326241 | AE45: 121137.2664 | AF45: 533.9173574 | AG45: 6357.239578 | AH45: 10146.95519 | AI45: 2729.922864 | AJ45: 56186.79082 | AK45: 17377.16435 | AL45: 37992.58137 | AM45: 70883.81927 | AN45: 73554.60226 | AO45: 861.7575 | AP45: 6579.895678 | AQ45: 329732.8455 | AR45: 366194.5341 | AS45: 12452.84542 | AT45: 0.003930302903 | AU45: 278191.1706 | AV45: 12348.34564 | AW45: 28682.9 | AX45: 32620.33156 | AY45: 20748.37878 | AZ45: 1294.195594 | BA45: 1017.081365 | BB45: 17.7399581 | BC45: 3298.396306 | BD45: 17002.37622 | BE45: 136.111749 | BF45: 22791.3549 | BG45: 2352.347888 | BH45: 17963.38504 | BI45: 337.5179775 | BJ45: 419.7545636 | BK45: 69995.41576 | BL45: 29496.16892 | BM45: 2560.276616 | BN45: 7.439706096 | BO45: 15290.56786 | BP45: 6610.15115 | BQ45: 118016.7581 | BR45: 221364.8398 | BS45: 101038.8011 | BT45: 28157.40129 | BU45: 245.5281662 | BV45: 11081.69127 | BW45: 2924.99109 | BX45: 186455.3859 | BY45: 96.96771863 | BZ45: 106306.8323 | CA45: 5578.101197 | CB45: 5682.148459 | CC45: 1900.169253 | CD45: 2311876.339 | CE45: 130048.8341 | CF45: 9706.234586 | CG45: 632.4476283 | CH45: 74872.59138 | CI45: 4225.963983 | CJ45: 17.61692119 | CK45: 7602.989815 | CL45: 406.6687987 | CM45: 7388.529979 | CN45: 180791.0003 | CO45: 2326.216105 | CP45: 3897.79644 | CQ45: 11100.65374 | CR45: 14503.36996 | CS45: 1828.034825 | CT45: 2159.043656 | CU45: 1437.660497 | CV45: 79086.7117 | CW45: 10036.60139 | CX45: 51115.84895 | CY45: 192544.6273 | CZ45: 106547.3878 | DA45: 13335.62443 | DB45: 6368.517403 | DC45: 7240.583731 | DD45: 7890.311393 | DE45: 3440.350629 | DF45: 14528.77931 | DG45: 836.2098165 | DH45: 2631.558122 | DI45: 23802.56753 | DJ45: 422.674064 | DK45: 69242.26968 | DL45: 456.8237514 | DM45: 3000.701637 | DN45: 11930.34085 | DO45: 21654.14835 | DP45: 4736.502356 | DQ45: 13693.72541 | DR45: 7889.140149 | DS45: 6704.101575 | DT45: 173739.2352 | DU45: 2579.334794 | DV45: 7947.145449 | DW45: 33491.14223 | DX45: 44320.88284 | DY45: 1128.751518 | DZ45: 9598.902795 | EA45: 9505.792014 | EB45: 184424.4914 | EC45: 53.57110047 | ED45: 5750.688463 | EE45: 34567.25398 | EF45: 13573.66471 | EG45: 28411.97497 | EH45: 19429.57282 | EI45: 10809.34334 | EJ45: 7185.261933 | EK45: 21932.49368 | EL45: 35820.91709 | EM45: 11195.86929 | EN45: 10430.57093 | EO45: 7398.064856 | EP45: 11389.75258 | EQ45: 12461.36874 | ER45: 10169.4885 | ES45: 17547.3068 | ET45: 10983.39505 | EU45: 28281.88549 | EV45: 9449.861879 | EW45: 9184.189344 | EX45: 9718.504861 | EY45: 5145.148454 | EZ45: 199.888417 | FA45: 9631.618956 | FB45: 9325.565717 | FC45: 10476.35599 | FD45: 159582.1442 | FE45: 10829.55573 | FF45: 9666.688188 | FG45: 205.5769945 | FH45: 10985.50022 | FI45: 53766.49401 | FJ45: 9585.783071 | FK45: 9033.914479 | FL45: 10246.5745 | FM45: 9406.008406 | FN45: 7752.380279 | FO45: 21918.03744 | FP45: 5790.390085 | FQ45: 10168.36089 | FR45: 13648.79648 | FS45: 5862.40015 | FT45: 2925.337314 | FU45: 22020.36807 | FV45: 32371.29168 | FW45: 11582.60394 | FX45: 11414.98603 | FY45: 11398.672 | FZ45: 0.00134885102 | GA45: 96.36352388 | GB45: 8976.428511 | GC45: 7725.67195 | GD45: 11053.86901 | GE45: 798.2001656 | GF45: 13299.33173 | GG45: 10191.98374 | GH45: 1491.157279 | GI45: 2166.874248 | GJ45: 26054.04383 | GK45: 25586.92166 | GL45: 11072.37113 | GM45: 386576.1295 | GN45: 233.7831894 | GO45: 6585.973202 | GP45: 7364.95632 | GQ45: 26719.79234 | GR45: 10407.25677 | GS45: 5828.244253 | GT45: 41727.22362 | GU45: 8486.173577 | GV45: 9571.672823 | GW45: 12134.81488 | GX45: 11773.95171 | GY45: 9135.5799 | GZ45: 7411.815481 | HA45: 8797.298844 | HB45: 964871.059 | HC45: 142114.1387 | HD45: 91272.64582 | HE45: 503089.5143 | HF45: 266343.972 | HG45: 63681.89142 | HH45: 33950.27201 | HI45: 36026.61098 | HJ45: 20111.61471 | HK45: 17112.44987 | HL45: 41076.2763 | HM45: 2511.169497 | HN45: 696.2417257 | HO45: 126030.2606 | HP45: 35637.51622 | HQ45: 2591.428097 | HR45: 386.6092473 | HS45: 8434.854861 | HT45: 6187.737047 | HU45: 13545.18405 | HV45: 11970.3328 | HW45: 592576.7519 | HX45: 419998.2706 | HY45: 5727.944648 | HZ45: 8294.761372 | IA45: 39143.89828 | IB45: 22510339.92
A46: =+MATCH(B46,RUT[EMPRESA],0) -> 178 | B46: INACAL | C46: 7640416.576 | D46: 7640416.576 | F46: =IFERROR(INDEX($B$9:$B$511,MATCH(0,INDEX(COUNTIF($F$8:F45,$B$9:$B$511),0,0),0)),"") -> INACAL | H46: 7640416.576 | J46: ENERKEY | K46: 78583.7595 | L46: 1254.177251 | M46: 1387.090849 | N46: 40983.00187 | O46: 7987.738632 | P46: 3411.728844 | Q46: 273.2452142 | R46: 96.98907324 | S46: 1868.738461 | T46: 602.8199873 | U46: 79.37173074 | V46: 14200.05071 | W46: 253.0346822 | X46: 99.61473094 | Y46: 100.6130081 | Z46: 442.333438 | AA46: 4998.923923 | AB46: 360.2349155 | AC46: 212.3463491 | AD46: 77.95830056 | AE46: 1696.568799 | AF46: 7.477694986 | AG46: 89.03531203 | AH46: 142.1115738 | AI46: 38.2335023 | AJ46: 786.9151998 | AK46: 243.3731231 | AL46: 532.0990809 | AM46: 992.752104 | AN46: 1030.157332 | AO46: 12.06920818 | AP46: 92.15368678 | AQ46: 4618.021144 | AR46: 5128.679549 | AS46: 174.4063542 | AT46: 5.504523482e-05 | AU46: 3896.162379 | AV46: 172.942799 | AW46: 401.7138131 | AX46: 456.8588872 | AY46: 290.5881328 | AZ46: 18.12565141 | BA46: 14.24457197 | BB46: 0.2484541735 | BC46: 46.19516705 | BD46: 238.1240872 | BE46: 1.906291544 | BF46: 319.2007113 | BG46: 32.94543577 | BH46: 251.5833441 | BI46: 4.727054577 | BJ46: 5.878806058 | BK46: 980.3097094 | BL46: 413.1039221 | BM46: 35.85754865 | BN46: 0.1041956254 | BO46: 214.1496264 | BP46: 92.577425 | BQ46: 1652.865014 | BR46: 3100.290203 | BS46: 1415.082925 | BT46: 394.3540241 | BU46: 3.438705844 | BV46: 155.2028719 | BW46: 40.96549944 | BX46: 2611.371376 | BY46: 1.358066025 | BZ46: 1488.863502 | CA46: 78.12321284 | CB46: 79.58043029 | CC46: 26.61251951 | CD46: 32378.61791 | CE46: 1821.378349 | CF46: 135.9391312 | CG46: 8.857645089 | CH46: 1048.61622 | CI46: 59.18606924 | CJ46: 0.2467309996 | CK46: 106.4824697 | CL46: 5.695535451 | CM46: 103.4788864 | CN46: 2532.039721 | CO46: 32.57945123 | CP46: 54.5899707 | CQ46: 155.4684478 | CR46: 203.1246509 | CS46: 25.60225221 | CT46: 30.23814396 | CU46: 20.13492639 | CV46: 1107.636415 | CW46: 140.5660311 | CX46: 715.8949266 | CY46: 2696.653283 | CZ46: 1492.232565 | DA46: 186.7699759 | DB46: 89.19326183 | DC46: 101.4068487 | DD46: 110.5065065 | DE46: 48.18328584 | DF46: 203.4805175 | DG46: 11.71140414 | DH46: 36.85587048 | DI46: 333.3630896 | DJ46: 5.91969466 | DK46: 969.7616413 | DL46: 6.397972697 | DM46: 42.02585152 | DN46: 167.0884992 | DO46: 303.273745 | DP46: 66.33633357 | DQ46: 191.7853023 | DR46: 110.4901029 | DS46: 93.8932328 | DT46: 2433.277341 | DU46: 36.12446493 | DV46: 111.3024869 | DW46: 469.054888 | DX46: 620.7291049 | DY46: 15.80855061 | DZ46: 134.4359128 | EA46: 133.1318645 | EB46: 2582.928004 | EC46: 0.750281563 | ED46: 80.54035646 | EE46: 484.1262007 | EF46: 190.1038112 | EG46: 397.9194155 | EH46: 272.1178048 | EI46: 151.3885461 | EJ46: 100.632048 | EK46: 307.1720665 | EL46: 501.6841809 | EM46: 156.8019741 | EN46: 146.0837091 | EO46: 103.6124256 | EP46: 159.5173758 | EQ46: 174.5257262 | ER46: 142.4271605 | ES46: 245.7560262 | ET46: 153.8261999 | EU46: 396.0974679 | EV46: 132.3485439 | EW46: 128.6277092 | EX46: 136.1109806 | EY46: 72.05956178 | EZ46: 2.799505565 | FA46: 134.8941138 | FB46: 130.6077336 | FC46: 146.7249446 | FD46: 2235.002445 | FE46: 151.6716276 | FF46: 135.3852704 | FG46: 2.879176036 | FH46: 153.8556834 | FI46: 753.0181162 | FJ46: 134.2521666 | FK46: 126.5230584 | FL46: 143.5067762 | FM46: 131.734361 | FN46: 108.5747342 | FO46: 306.9696019 | FP46: 81.09639124 | FQ46: 142.411368 | FR46: 191.1560574 | FS46: 82.1049168 | FT46: 40.97034843 | FU46: 308.4027773 | FV46: 453.3709986 | FW46: 162.218325 | FX46: 159.8707789 | FY46: 159.6422954 | FZ46: 1.889111932e-05 | GA46: 1.349604071 | GB46: 125.7179478 | GC46: 108.2006749 | GD46: 154.8132117 | GE46: 11.179066 | GF46: 186.2616842 | GG46: 142.7422141 | GH46: 20.8841671 | GI46: 30.34781409 | GJ46: 364.8957844 | GK46: 358.3535788 | GL46: 155.0723403 | GM46: 5414.130755 | GN46: 3.274213432 | GO46: 92.23880458 | GP46: 103.1487293 | GQ46: 374.2198197 | GR46: 145.7571864 | GS46: 81.6265518 | GT46: 584.4040215 | GU46: 118.85176 | GV46: 134.0545477 | GW46: 169.9522279 | GX46: 164.8982159 | GY46: 127.9469174 | GZ46: 103.8050078 | HA46: 123.2091756 | HB46: 13513.3488 | HC46: 1990.357061 | HD46: 1278.304585 | HE46: 7045.940512 | HF46: 3730.238315 | HG46: 891.8866442 | HH46: 475.4851575 | HI46: 504.5649941 | HJ46: 281.6700345 | HK46: 239.6657064 | HL46: 575.287282 | HM46: 35.16978667 | HN46: 9.751103217 | HO46: 1765.096853 | HP46: 499.115589 | HQ46: 36.29383578 | HR46: 5.414594581 | HS46: 118.1330238 | HT46: 86.66137119 | HU46: 189.7049298 | HV46: 167.6486002 | HW46: 8299.239845 | HX46: 5882.219258 | HY46: 80.22182157 | HZ46: 116.1709667 | IA46: 548.2236677 | IB46: 315265.0006
A47: =+MATCH(B47,RUT[EMPRESA],0) -> 166 | B47: HIDROLIRCAY | C47: 157253706.2 | D47: 157253706.2 | F47: =IFERROR(INDEX($B$9:$B$511,MATCH(0,INDEX(COUNTIF($F$8:F46,$B$9:$B$511),0,0),0)),"") -> HIDROLIRCAY | H47: 157253706.2 | J47: EL_PELICANO | K47: 42493195.82 | L47: 678180.8336 | M47: 750052.2173 | N47: 22161051.28 | O47: 4319270.852 | P47: 1844850.167 | Q47: 147753.9694 | R47: 52445.64154 | S47: 1010497.205 | T47: 325967.4509 | U47: 42919.28152 | V47: 7678501.758 | W47: 136825.3742 | X47: 53865.43346 | Y47: 54405.23948 | Z47: 239186.3347 | AA47: 2703106.272 | AB47: 194792.5742 | AC47: 114823.6614 | AD47: 42154.98664 | AE47: 917398.5902 | AF47: 4043.47106 | AG47: 48144.74356 | AH47: 76845.07553 | AI47: 20674.2934 | AJ47: 425514.6597 | AK47: 131601.0056 | AL47: 287725.9956 | AM47: 536818.4193 | AN47: 557044.8337 | AO47: 6526.275019 | AP47: 49830.96613 | AQ47: 2497137.806 | AR47: 2773270.021 | AS47: 94308.07853 | AT47: 0.02976502979 | AU47: 2106801.609 | AV47: 93516.67917 | AW47: 217221.775 | AX47: 247040.7916 | AY47: 157131.9381 | AZ47: 9801.221777 | BA47: 7702.576078 | BB47: 134.3485208 | BC47: 24979.46512 | BD47: 128762.6544 | BE47: 1030.80357 | BF47: 172603.8359 | BG47: 17814.83684 | BH47: 136040.5811 | BI47: 2556.096286 | BJ47: 3178.891652 | BK47: 530090.3484 | BL47: 223380.8355 | BM47: 19389.52585 | BN47: 56.34249548 | BO47: 115798.7613 | BP47: 50060.09733 | BQ47: 893766.3096 | BR47: 1676443.575 | BS47: 765188.5865 | BT47: 213242.0601 | BU47: 1859.437646 | BV47: 83924.03303 | BW47: 22151.58706 | BX47: 1412066.767 | BY47: 734.3574031 | BZ47: 805084.5208 | CA47: 42244.16091 | CB47: 43032.13322 | CC47: 14390.39071 | CD47: 17508337.09 | CE47: 984887.8107 | CF47: 73507.40354 | CG47: 4789.662008 | CH47: 567026.249 | CI47: 32004.13478 | CJ47: 133.4167358 | CK47: 57579.07823 | CL47: 3079.790338 | CM47: 55954.92773 | CN47: 1369169.156 | CO47: 17616.93523 | CP47: 29518.85134 | CQ47: 84067.63992 | CR47: 109837.1422 | CS47: 13844.10117 | CT47: 16350.90228 | CU47: 10887.71236 | CV47: 598940.6892 | CW47: 76009.34243 | CX47: 387111.3255 | CY47: 1458181.903 | CZ47: 806906.2997 | DA47: 100993.554 | DB47: 48230.15296 | DC47: 54834.49895 | DD47: 59755.02638 | DE47: 26054.51576 | DF47: 110029.5727 | DG47: 6332.796914 | DH47: 19929.35604 | DI47: 180261.9668 | DJ47: 3201.001657 | DK47: 524386.611 | DL47: 3459.624589 | DM47: 22724.95932 | DN47: 90351.03897 | DO47: 163991.5259 | DP47: 35870.55176 | DQ47: 103705.5297 | DR47: 59746.15629 | DS47: 50771.60412 | DT47: 1315764.621 | DU47: 19533.85753 | DV47: 60185.44291 | DW47: 253635.6282 | DX47: 335651.5847 | DY47: 8548.278181 | DZ47: 72694.55679 | EA47: 71989.40881 | EB47: 1396686.366 | EC47: 405.7054737 | ED47: 43551.20142 | EE47: 261785.2541 | EF47: 102796.2842 | EG47: 215170.0014 | EH47: 147144.3367 | EI47: 81861.48356 | EJ47: 54415.53507 | EK47: 166099.495 | EL47: 271279.5147 | EM47: 84788.72775 | EN47: 78992.95854 | EO47: 56027.1374 | EP47: 86257.04764 | EQ47: 94372.62748 | ER47: 77015.72512 | ES47: 132889.531 | ET47: 83179.61465 | EU47: 214184.8058 | EV47: 71565.83786 | EW47: 69553.84257 | EX47: 73600.32898 | EY47: 38965.31661 | EZ47: 1513.798003 | FA47: 72942.32332 | FB47: 70624.51627 | FC47: 79339.69872 | FD47: 1208549.924 | FE47: 82014.55636 | FF47: 73207.91016 | FG47: 1556.878824 | FH47: 83195.5575 | FI47: 407185.2311 | FJ47: 72595.1983 | FK47: 68415.77868 | FL47: 77599.51399 | FM47: 71233.72607 | FN47: 58710.44436 | FO47: 165990.0148 | FP47: 43851.87035 | FQ47: 77007.18554 | FR47: 103365.2733 | FS47: 44397.21807 | FT47: 22154.20908 | FU47: 166764.9867 | FV47: 245154.759 | FW47: 87717.55249 | FX47: 86448.14598 | FY47: 86324.59637 | FZ47: 0.01021513908 | GA47: 729.7817062 | GB47: 67980.42507 | GC47: 58508.17643 | GD47: 83713.32909 | GE47: 6044.941647 | GF47: 100718.7016 | GG47: 77186.08646 | GH47: 11292.85501 | GI47: 16410.20505 | GJ47: 197312.8814 | GK47: 193775.2647 | GL47: 83853.44966 | GM47: 2927624.23 | GN47: 1770.49041 | GO47: 49876.99253 | GP47: 55776.39934 | GQ47: 202354.7382 | GR47: 78816.39545 | GS47: 44138.54812 | GT47: 316009.2452 | GU47: 64267.61894 | GV47: 72488.33835 | GW47: 91899.56481 | GX47: 89166.67035 | GY47: 69185.71279 | GZ47: 56131.27384 | HA47: 66623.83755 | HB47: 7307176.194 | HC47: 1076260.959 | HD47: 691227.391 | HE47: 3810005.169 | HF47: 2017080.224 | HG47: 482276.6697 | HH47: 257112.7169 | HI47: 272837.2788 | HJ47: 152309.5867 | HK47: 129596.2659 | HL47: 311079.4811 | HM47: 19017.62707 | HN47: 5272.788438 | HO47: 954454.2881 | HP47: 269890.5804 | HQ47: 19625.44272 | HR47: 2927.875038 | HS47: 63878.97125 | HT47: 46861.06442 | HU47: 102580.5941 | HV47: 90653.90664 | HW47: 4487711.28 | HX47: 3180737.297 | HY47: 43378.95762 | HZ47: 62818.01311 | IA47: 296445.1665 | IB47: 170475649
A48: =+MATCH(B48,RUT[EMPRESA],0) -> 200 | B48: LOS MORROS | C48: 48634624.91 | D48: 48634624.91 | F48: =IFERROR(INDEX($B$9:$B$511,MATCH(0,INDEX(COUNTIF($F$8:F47,$B$9:$B$511),0,0),0)),"") -> LOS MORROS | H48: 48634624.91 | J48: ERSA | K48: 221625707.3 | L48: 3537091.152 | M48: 3911940.488 | N48: 115582237.8 | O48: 22527405.61 | P48: 9621922.178 | Q48: 770619.3271 | R48: 273533.2605 | S48: 5270306.307 | T48: 1700101.992 | U48: 223847.9818 | V48: 40047667.65 | W48: 713620.6104 | X48: 280938.267 | Y48: 283753.6563 | Z48: 1247490.088 | AA48: 14098206.26 | AB48: 1015951.877 | AC48: 598869.4116 | AD48: 219861.7579 | AE48: 4784745.123 | AF48: 21088.95593 | AG48: 251101.6797 | AH48: 400789.9121 | AI48: 107827.9666 | AJ48: 2219296.186 | AK48: 686372.6155 | AL48: 1500651.482 | AM48: 2799807.348 | AN48: 2905299.376 | AO48: 34038.1628 | AP48: 259896.2705 | AQ48: 13023965.88 | AR48: 14464149.34 | AS48: 491869.2089 | AT48: 0.1552412252 | AU48: 10988144.99 | AV48: 487741.62 | AW48: 1132932.664 | AX48: 1288455.46 | AY48: 819530.6625 | AZ48: 51118.83602 | BA48: 40173.22864 | BB48: 700.7024391 | BC48: 130281.8374 | BD48: 671569.0315 | BE48: 5376.21532 | BF48: 900225.2358 | BG48: 92914.30638 | BH48: 709527.4768 | BI48: 13331.46723 | BJ48: 16579.69228 | BK48: 2764716.707 | BL48: 1165055.598 | BM48: 101127.1875 | BN48: 293.8575264 | BO48: 603955.1012 | BP48: 261091.3175 | BQ48: 4661489.604 | BR48: 8743587.907 | BS48: 3990885.092 | BT48: 1112176.232 | BU48: 9698.004013 | BV48: 437710.6222 | BW48: 115532.8766 | BX48: 7364715.458 | BY48: 3830.083282 | BZ48: 4198964.633 | CA48: 220326.8514 | CB48: 224436.5663 | CC48: 75053.91062 | CD48: 91315739.32 | CE48: 5136739.035 | CF48: 383382.0919 | CG48: 24980.75774 | CH48: 2957358.021 | CI48: 166919.4061 | CJ48: 695.8426608 | CK48: 300306.9949 | CL48: 16062.82368 | CM48: 291836.1445 | CN48: 7140980.499 | CO48: 91882.13914 | CP48: 153957.2673 | CQ48: 438459.6122 | CR48: 572861.9339 | CS48: 72204.70606 | CT48: 85279.07149 | CU48: 56785.49017 | CV48: 3123809.62 | CW48: 396431.0981 | CX48: 2019001.388 | CY48: 7605231.603 | CZ48: 4208466.226 | DA48: 526737.6908 | DB48: 251547.1373 | DC48: 285992.4838 | DD48: 311655.7776 | DE48: 135888.8258 | DF48: 573865.566 | DG48: 33029.06662 | DH48: 103942.7029 | DI48: 940166.6579 | DJ48: 16695.00829 | DK48: 2734968.536 | DL48: 18043.87107 | DM48: 118523.3327 | DN48: 471231.0414 | DO48: 855307.2376 | DP48: 187084.9262 | DQ48: 540882.1563 | DR48: 311609.5152 | DS48: 264802.2221 | DT48: 6862446.075 | DU48: 101879.9577 | DV48: 313900.6398 | DW48: 1322851.21 | DX48: 1750610.149 | DY48: 44584.03661 | DZ48: 379142.6429 | EA48: 375464.903 | EB48: 7284498.09 | EC48: 2115.980238 | ED48: 227143.7964 | EE48: 1365356.053 | EF48: 536139.934 | EG48: 1122231.521 | EH48: 767439.7529 | EI48: 426953.2768 | EJ48: 283807.3535 | EK48: 866301.4717 | EL48: 1414873.915 | EM48: 442220.4873 | EN48: 411992.3196 | EO48: 292212.7582 | EP48: 449878.5941 | EQ48: 492205.8677 | ER48: 401679.9449 | ES48: 693092.9939 | ET48: 433828.0653 | EU48: 1117093.176 | EV48: 373255.7444 | EW48: 362762.0672 | EX48: 383866.7499 | EY48: 203225.8504 | EZ48: 7895.300568 | FA48: 380434.8835 | FB48: 368346.2275 | FC48: 413800.7629 | FD48: 6303261.653 | FE48: 427751.6368 | FF48: 381820.0669 | FG48: 8119.991072 | FH48: 433911.2162 | FI48: 2123697.997 | FJ48: 378624.433 | FK48: 356826.4295 | FL48: 404724.7293 | FM48: 371523.5962 | FN48: 306207.7 | FO48: 865730.4714 | FP48: 228711.9525 | FQ48: 401635.4062 | FR48: 539107.5293 | FS48: 231556.2449 | FT48: 115546.552 | FU48: 869772.3818 | FV48: 1278618.749 | FW48: 457495.9412 | FX48: 450875.2785 | FY48: 450230.8984 | FZ48: 0.05327764553 | GA48: 3806.218472 | GB48: 354555.8177 | GC48: 305152.76 | GD48: 436611.6837 | GE48: 31527.74091 | GF48: 525304.1822 | GG48: 402568.4743 | GH48: 58898.53494 | GI48: 85588.36847 | GJ48: 1029096.684 | GK48: 1010646.041 | GL48: 437342.4906 | GM48: 15269192.59 | GN48: 9234.094583 | GO48: 260136.3238 | GP48: 290905.0194 | GQ48: 1055392.778 | GR48: 411071.4446 | GS48: 230207.1369 | GT48: 1648164.398 | GU48: 335191.4637 | GV48: 378067.0988 | GW48: 479307.467 | GX48: 465053.8987 | GY48: 360842.0652 | GZ48: 292755.8878 | HA48: 347480.4574 | HB48: 38110997.81 | HC48: 5613300.946 | HD48: 3605136.222 | HE48: 19871301.14 | HF48: 10520197.94 | HG48: 2515341.715 | HH48: 1340986.166 | HI48: 1422998.523 | HJ48: 794379.4116 | HK48: 675916.7803 | HL48: 1622452.929 | HM48: 99187.52802 | HN48: 27500.53143 | HO48: 4978011.247 | HP48: 1407629.848 | HQ48: 102357.6255 | HR48: 15270.50069 | HS48: 333164.4494 | HT48: 244406.5773 | HU48: 535014.9895 | HV48: 472810.6652 | HW48: 23405916.35 | HX48: 16589318.35 | HY48: 226245.449 | HZ48: 327630.9612 | IA48: 1546126.819 | IB48: 889125554.6
A49: =+MATCH(B49,RUT[EMPRESA],0) -> 75 | B49: DIUTO | C49: 106332362.8 | D49: 106332362.8 | F49: =IFERROR(INDEX($B$9:$B$511,MATCH(0,INDEX(COUNTIF($F$8:F48,$B$9:$B$511),0,0),0)),"") -> DIUTO | H49: 106332362.8 | J49: NEOMAS | K49: =$IB49*K$64/$IB$64 -> 33316277.69 | L49: 531719.5032 | M49: 588069.3948 | N49: 17375104.98 | O49: 3386472.218 | P49: 1446432.524 | Q49: 115844.7177 | R49: 41119.37272 | S49: 792268.1467 | T49: 255570.8485 | U49: =$IB49*U$64/$IB$64 -> 33650.34504 | V49: 6020236.696 | W49: 107276.2844 | X49: 42232.54345 | Y49: 42655.77185 | Z49: 187531.161 | AA49: 2119337.871 | AB49: 152724.7685 | AC49: 90026.10688 | AD49: 33051.10886 | AE49: =$IB49*AE$64/$IB$64 -> 719275.3002 | AF49: 3170.234718 | AG49: 37747.30553 | AH49: 60249.45466 | AI49: 16209.43039 | AJ49: 333619.6369 | AK49: 103180.1813 | AL49: 225588.0967 | AM49: 420886.0073 | AN49: 436744.2835 | AO49: =$IB49*AO$64/$IB$64 -> 5116.847218 | AP49: 39069.368 | AQ49: 1957850.779 | AR49: 2174348.913 | AS49: 73941.11156 | AT49: 0.02333691262 | AU49: 1651812.392 | AV49: 73320.62443 | AW49: 170310.1129 | AX49: 193689.3532 | AY49: =$IB49*AY$64/$IB$64 -> 123197.4009 | AZ49: 7684.529725 | BA49: 6039.111875 | BB49: 105.3343374 | BC49: 19584.84836 | BD49: 100954.8062 | BE49: 808.189107 | BF49: 135327.9558 | BG49: 13967.50796 | BH49: 106660.9769 | BI49: =$IB49*BI$64/$IB$64 -> 2004.076465 | BJ49: 2492.37166 | BK49: 415610.9444 | BL49: 175139.05 | BM49: 15202.12389 | BN49: 44.17465405 | BO49: 90790.62219 | BP49: 39249.01555 | BQ49: 700746.6956 | BR49: 1314395.366 | BS49: =$IB49*BS$64/$IB$64 -> 599936.8825 | BT49: 167189.8654 | BU49: 1457.869661 | BV49: 65799.62592 | BW49: 17367.68467 | BX49: 1107113.918 | BY49: 575.764065 | BZ49: 631216.8087 | CA49: 33121.02487 | CB49: 33738.82505 | CC49: =$IB49*CC$64/$IB$64 -> 11282.61228 | CD49: 13727200.54 | CE49: 772189.4095 | CF49: 57632.5932 | CG49: 3755.27673 | CH49: 444570.0918 | CI49: 25092.45588 | CJ49: 104.6037826 | CK49: 45144.18184 | CL49: 2414.67247 | CM49: =$IB49*CM$64/$IB$64 -> 43870.78623 | CN49: 1073480.564 | CO49: 13812.34559 | CP49: 23143.89938 | CQ49: 65912.21917 | CR49: 86116.48664 | CS49: 10854.30055 | CT49: 12819.72773 | CU49: 8536.379565 | CV49: 469592.2237 | CW49: =$IB49*CW$64/$IB$64 -> 59594.20821 | CX49: 303509.966 | CY49: 1143269.935 | CZ49: 632645.1525 | DA49: 79182.77797 | DB49: 37814.26974 | DC49: 42992.32756 | DD49: 46850.20774 | DE49: 20427.72885 | DF49: 86267.35943 | DG49: =$IB49*DG$64/$IB$64 -> 4965.153043 | DH49: 15625.37124 | DI49: 141332.221 | DJ49: 2509.706743 | DK49: 411138.9979 | DL49: 2712.476934 | DM49: 17817.23028 | DN49: 70838.64241 | DO49: 128575.5781 | DP49: 28123.87348 | DQ49: =$IB49*DQ$64/$IB$64 -> 81309.06983 | DR49: 46843.25326 | DS49: 39806.86387 | DT49: 1031609.382 | DU49: 15315.28541 | DV49: 47187.67064 | DW49: 198859.9553 | DX49: 263163.5768 | DY49: 6702.17441 | DZ49: 56995.29051 | EA49: =$IB49*EA$64/$IB$64 -> 56442.42773 | EB49: 1095055.1 | EC49: 318.0884836 | ED49: 34145.79422 | EE49: 205249.5712 | EF49: 80596.18686 | EG49: 168701.4445 | EH49: 115366.7425 | EI49: 64182.50888 | EJ49: 42663.84398 | EK49: =$IB49*EK$64/$IB$64 -> 130228.3058 | EL49: 212693.4317 | EM49: 66477.57939 | EN49: 61933.47644 | EO49: 43927.40136 | EP49: 67628.79788 | EQ49: 73991.72038 | ER49: 60383.25042 | ES49: 104190.4341 | ET49: 65215.97367 | EU49: =$IB49*EU$64/$IB$64 -> 167929.0138 | EV49: 56110.33204 | EW49: 54532.8514 | EX49: 57705.45027 | EY49: 30550.28654 | EZ49: 1186.875067 | FA49: 57189.54887 | FB49: 55372.3002 | FC49: 62205.33389 | FD49: 947548.9918 | FE49: =$IB49*FE$64/$IB$64 -> 64302.52376 | FF49: 57397.77902 | FG49: 1220.652065 | FH49: 65228.47346 | FI49: 319248.6695 | FJ49: 56917.38968 | FK49: 53640.56613 | FL49: 60840.96304 | FM49: 55849.9438 | FN49: 46031.21581 | FO49: =$IB49*FO$64/$IB$64 -> 130142.4692 | FP49: 34381.53007 | FQ49: 60376.55506 | FR49: 81042.29587 | FS49: 34809.10337 | FT49: 17369.74044 | FU49: 130750.0765 | FV49: 192210.6321 | FW49: 68773.8891 | FX49: 67778.62623 | FY49: =$IB49*FY$64/$IB$64 -> 67681.75865 | FZ49: 0.008009056594 | GA49: 572.1765451 | GB49: 53299.23238 | GC49: 45872.63009 | GD49: 65634.42604 | GE49: 4739.463592 | GF49: 78967.28324 | GG49: 60516.82017 | GH49: 8854.026769 | GI49: =$IB49*GI$64/$IB$64 -> 12866.22335 | GJ49: 154700.785 | GK49: 151927.1592 | GL49: 65744.28588 | GM49: 2295368.468 | GN49: 1388.131652 | GO49: 39105.45444 | GP49: 43730.8132 | GQ49: 158653.7919 | GR49: 61795.04428 | GS49: =$IB49*GS$64/$IB$64 -> 34606.29631 | GT49: 247763.2374 | GU49: 50388.25152 | GV49: 56833.60743 | GW49: 72052.74541 | GX49: 69910.05247 | GY49: 54244.22369 | GZ49: 44009.04828 | HA49: 52235.6163 | HB49: 5729103.366 | HC49: =$IB49*HC$64/$IB$64 -> 843829.4244 | HD49: 541948.4992 | HE49: 2987188.602 | HF49: 1581467.422 | HG49: 378123.2063 | HH49: 201586.1247 | HI49: 213914.7778 | HJ49: 119416.4945 | HK49: 101608.3893 | HL49: 243898.1153 | HM49: =$IB49*HM$64/$IB$64 -> 14910.54114 | HN49: 4134.066181 | HO49: 748328.3732 | HP49: 211604.4545 | HQ49: 15387.09167 | HR49: 2295.565111 | HS49: 50083.53699 | HT49: 36740.85238 | HU49: 80427.07758 | HV49: 71076.10215 | HW49: 3518535.904 | HX49: 2493818.716 | HY49: 34010.74854 | HZ49: 49251.70555 | IA49: 232424.2574 | IB49: 133659376.6
A50: =+MATCH(B50,RUT[EMPRESA],0) -> 195 | B50: LICAN | C50: 198387256.6 | D50: 198387256.6 | F50: =IFERROR(INDEX($B$9:$B$511,MATCH(0,INDEX(COUNTIF($F$8:F49,$B$9:$B$511),0,0),0)),"") -> LICAN | H50: 198387256.6 | J50: ENGIE | K50: 3717487908 | L50: 59330182.15 | M50: 65617800.55 | N50: 1938744276 | O50: 377868429.4 | P50: 161395443.6 | Q50: 12926154.03 | R50: 4588170.753 | S50: 88402650.58 | T50: 28517037.46 | U50: 3754763.721 | V50: 671748426.7 | W50: 11970073.43 | X50: 4712380.269 | Y50: 4759604.826 | Z50: 20925051.41 | AA50: 236479386.5 | AB50: 17041293.91 | AC50: 10045268.77 | AD50: 3687899.911 | AE50: 80257982.49 | AF50: 353740.2749 | AG50: 4211909.661 | AH50: 6722738.395 | AI50: 1808676.289 | AJ50: 37225856.32 | AK50: 11513023.15 | AL50: 25171510.14 | AM50: 46963188.91 | AN50: 48732682.81 | AO50: 570946.6657 | AP50: 4359427.679 | AQ50: 218460377.4 | AR50: 242617613.7 | AS50: 8250477.16 | AT50: 2.603973087 | AU50: 184312084.6 | AV50: 8181242.133 | AW50: 19003497.06 | AX50: 21612193.15 | AY50: 13746579.15 | AZ50: 857453.1224 | BA50: 673854.5519 | BB50: 11753.38762 | BC50: 2185311.266 | BD50: 11264711.95 | BE50: 90179.13889 | BF50: 15100127.46 | BG50: 1558518.705 | BH50: 11901416.34 | BI50: 223618.3194 | BJ50: 278103.1421 | BK50: 46374588.26 | BL50: 19542318.22 | BM50: 1696279.287 | BN50: 4929.08433 | BO50: 10130574.71 | BP50: 4379473.064 | BQ50: 78190528.73 | BR50: 146662509.1 | BS50: 66941995.36 | BT50: 18655334.45 | BU50: 162671.6191 | BV50: 7342036.106 | BW50: 1937916.305 | BX50: 123533686.5 | BY50: 64244.75056 | BZ50: 70432263.64 | CA50: 3695701.261 | CB50: 3764636.474 | CC50: 1258933.4 | CD50: 1531704786 | CE50: 86162230.36 | CF50: 6430744.465 | CG50: 419020.275 | CH50: 49605900.04 | CI50: 2799859.642 | CJ50: 11671.87105 | CK50: 5037265.918 | CL50: 269433.3321 | CM50: 4895178.233 | CN50: 119780818.6 | CO50: 1541205.419 | CP50: 2582436.336 | CQ50: 7354599.456 | CR50: 9609026.578 | CS50: 1211141.636 | CT50: 1430447.401 | CU50: 952504.0015 | CV50: 52397912.81 | CW50: 6649624.861 | CX50: 33866167.13 | CY50: 127568037.4 | CZ50: 70591640.71 | DA50: 8835351.367 | DB50: 4219381.644 | DC50: 4797158.294 | DD50: 5227627.24 | DE50: 2279361.329 | DF50: 9625861.224 | DG50: 554020.3672 | DH50: 1743505.958 | DI50: 15770093.75 | DJ50: 280037.4207 | DK50: 45875600.74 | DL50: 302662.8694 | DM50: 1988077.382 | DN50: 7904298.285 | DO50: 14346685.46 | DP50: 3138110.463 | DQ50: 9072606.693 | DR50: 5226851.247 | DS50: 4441718.744 | DT50: 115108759.8 | DU50: 1708906.044 | DV50: 5265281.934 | DW50: 22189137.88 | DX50: 29364247.22 | DY50: 747840.2167 | DZ50: 6359633.128 | EA50: 6297943.743 | EB50: 122188142.7 | EC50: 35492.86336 | ED50: 3810046.798 | EE50: 22902102.27 | EF50: 8993061.977 | EG50: 18823999.07 | EH50: 12872820.74 | EI50: 7161595.389 | EJ50: 4760505.528 | EK50: 14531099.68 | EL50: 23732701.11 | EM50: 7417683.327 | EN50: 6910644.458 | EO50: 4901495.446 | EP50: 7546138.279 | EQ50: 8256124.18 | ER50: 6737667.557 | ES50: 11625748.9 | ET50: 7276911.178 | EU50: 18737809.91 | EV50: 6260887.931 | EW50: 6084869.912 | EX50: 6438873.983 | EY50: 3408853.83 | EZ50: 132433.5735 | FA50: 6381308.812 | FB50: 6178537.062 | FC50: 6940978.783 | FD50: 105729156 | FE50: 7174986.857 | FF50: 6404543.493 | FG50: 136202.4694 | FH50: 7278305.927 | FI50: 35622318.9 | FJ50: 6350940.819 | FK50: 5985307.178 | FL50: 6788739.923 | FM50: 6231833.36 | FN50: 5136242.703 | FO50: 14521521.88 | FP50: 3836350.612 | FQ50: 6736920.477 | FR50: 9042839.593 | FS50: 3884059.981 | FT50: 1938145.691 | FU50: 14589319.76 | FV50: 21447194.89 | FW50: 7673909.538 | FX50: 7562856.386 | FY50: 7552047.733 | FZ50: 0.8936643921 | GA50: 63844.44888 | GB50: 5947220.568 | GC50: 5118547.434 | GD50: 7323602.818 | GE50: 528837.5479 | GF50: 8811306.093 | GG50: 6752571.501 | GH50: 987947.6261 | GI50: 1435635.462 | GJ50: 17261781.25 | GK50: 16952295.29 | GL50: 7335861.169 | GM50: 256121185.1 | GN50: 154890.1315 | GO50: 4363454.267 | GP50: 4879559.8 | GQ50: 17702864.6 | GR50: 6895197.958 | GS50: 3861430.418 | GT50: 27645850.71 | GU50: 5622408.286 | GV50: 6341592.25 | GW50: 8039769.999 | GX50: 7800684.613 | GY50: 6052664.332 | GZ50: 4910605.751 | HA50: 5828540.445 | HB50: 639263266 | HC50: 94155947.17 | HD50: 60471551.22 | HE50: 333315672.6 | HF50: 176462871.2 | HG50: 42191641.58 | HH50: 22493328.58 | HI50: 23868981.03 | HJ50: 13324699.07 | HK50: 11337639.88 | HL50: 27214573.7 | HM50: 1663743.978 | HN50: 461286.2572 | HO50: 83499774.64 | HP50: 23611191.15 | HQ50: 1716918.311 | HR50: 256143.1269 | HS50: 5588407.711 | HT50: 4099607.877 | HU50: 8974192.471 | HV50: 7930794.454 | HW50: 392604324 | HX50: 278264607.1 | HY50: 3794978.168 | HZ50: 5495590.521 | IA50: 25934300.78 | IB50: 1.49139445e+10
A51: =+MATCH(B51,RUT[EMPRESA],0) -> 111 | B51: ENERGIA PACIFICO | C51: 205862154.5 | D51: 205862154.5 | F51: =IFERROR(INDEX($B$9:$B$511,MATCH(0,INDEX(COUNTIF($F$8:F50,$B$9:$B$511),0,0),0)),"") -> ENERGIA PACIFICO | H51: 205862154.5 | J51: GEOTERMICA_DEL_NORTE | K51: 52985944.68 | L51: 845642.4948 | M51: 935260.917 | N51: 27633229.61 | O51: 5385818.647 | P51: 2300394.852 | Q51: 184238.5232 | R51: 65395.92533 | S51: 1260016.998 | T51: 406457.8572 | U51: 53517.24275 | V51: 9574536.852 | W51: 170611.3548 | X51: 67166.30327 | Y51: 67839.40236 | Z51: 298248.076 | AA51: 3370578.197 | AB51: 242892.2646 | AC51: 143176.8087 | AD51: 52564.22226 | AE51: 1143929.752 | AF51: 5041.916235 | AG51: 60033.01633 | AH51: 95820.25644 | AI51: 25779.34997 | AJ51: 530586.0334 | AK51: 164096.9447 | AL51: 358773.5258 | AM51: 669373.779 | AN51: 694594.6561 | AO51: 8137.793367 | AP51: 62135.61403 | AQ51: 3113750.403 | AR51: 3458067.323 | AS51: 117595.3593 | AT51: 0.03711484135 | AU51: 2627029.371 | AV51: 116608.5415 | AW51: 270859.8572 | AX51: 308042.0162 | AY51: 195932.1726 | AZ51: 12221.41533 | BA51: 9604.555789 | BB51: 167.5228976 | BC51: 31147.58802 | BD51: 160557.7258 | BE51: 1285.337567 | BF51: 215224.5112 | BG51: 22213.81426 | BH51: 169632.7745 | BI51: 3187.267368 | BJ51: 3963.848186 | BK51: 660984.3606 | BL51: 278539.7606 | BM51: 24177.33767 | BN51: 70.25502061 | BO51: 144392.6879 | BP51: 62421.32408 | BQ51: 1114462.006 | BR51: 2090404 | BS51: 954134.8756 | BT51: 265897.4403 | BU51: 2318.584384 | BV51: 104647.2049 | BW51: 27621.42841 | BX51: 1760745.224 | BY51: 915.6906178 | BZ51: 1003882.223 | CA51: 52675.41614 | CB51: 53657.96067 | CC51: 17943.77739 | CD51: 21831631.22 | CE51: 1228083.933 | CF51: 91658.42065 | CG51: 5972.362427 | CH51: 707040.7598 | CI51: 39906.84348 | CJ51: 166.361029 | CK51: 71796.94994 | CL51: 3840.276009 | CM51: 69771.75163 | CN51: 1707255.003 | CO51: 21967.04525 | CP51: 36807.87462 | CQ51: 104826.2723 | CR51: 136958.9796 | CS51: 17262.5938 | CT51: 20388.39365 | CU51: 13576.19058 | CV51: 746835.7606 | CW51: 94778.15765 | CX51: 482699.8507 | CY51: 1818247.467 | CZ51: 1006153.85 | DA51: 125931.6642 | DB51: 60139.51568 | DC51: 68374.6579 | DD51: 74510.20006 | DE51: 32488.09848 | DF51: 137198.9265 | DG51: 7896.54015 | DH51: 24850.4669 | DI51: 224773.6471 | DJ51: 3991.417765 | DK51: 653872.2123 | DL51: 4313.901874 | DM51: 28336.38219 | DN51: 112661.2169 | DO51: 204485.583 | DP51: 44727.98607 | DQ51: 129313.3019 | DR51: 74499.1397 | DS51: 63308.52163 | DT51: 1640663.407 | DU51: 24357.30885 | DV51: 75046.89838 | DW51: 316265.3009 | DX51: 418533.2723 | DY51: 10659.0852 | DZ51: 90644.85949 | EA51: 89765.5909 | EB51: 1741566.975 | EC51: 505.8854099 | ED51: 54305.20121 | EE51: 326427.2955 | EF51: 128179.5385 | EG51: 268301.4438 | EH51: 183478.3554 | EI51: 102075.3548 | EJ51: 67852.24022 | EK51: 207114.0681 | EL51: 338265.9525 | EM51: 105725.4168 | EN51: 98498.51136 | EO51: 69861.79188 | EP51: 107556.3056 | EQ51: 117675.8472 | ER51: 96033.04415 | ES51: 165703.6427 | ET51: 103718.969 | EU51: 267072.9761 | EV51: 89237.42854 | EW51: 86728.6158 | EX51: 91774.29196 | EY51: 48586.93422 | EZ51: 1887.596724 | FA51: 90953.80645 | FB51: 88063.66854 | FC51: 98930.87129 | FD51: 1506974.426 | FE51: 102266.2255 | FF51: 91284.97404 | FG51: 1941.315396 | FH51: 103738.8486 | FI51: 507730.5603 | FJ51: 90520.96662 | FK51: 85309.53236 | FL51: 96760.98668 | FM51: 88823.30913 | FN51: 73207.68176 | FO51: 206977.5542 | FP51: 54680.11364 | FQ51: 96022.39591 | FR51: 128889.0267 | FS51: 55360.12284 | FT51: 27624.69789 | FU51: 207943.8882 | FV51: 305690.2699 | FW51: 109377.4496 | FX51: 107794.5914 | FY51: 107640.5339 | FZ51: 0.0127375403 | GA51: 909.9850544 | GB51: 84766.67787 | GC51: 72955.46827 | GD51: 104384.4723 | GE51: 7537.605433 | GF51: 125588.943 | GG51: 96245.47243 | GH51: 14081.37418 | GI51: 20462.33991 | GJ51: 246034.9055 | GK51: 241623.7531 | GL51: 104559.1926 | GM51: 3650535.867 | GN51: 2207.673607 | GO51: 62193.00562 | GP51: 69549.13963 | GQ51: 252321.7365 | GR51: 98278.34994 | GS51: 55037.5801 | GT51: 394040.6943 | GU51: 80137.0769 | GV51: 90387.71999 | GW51: 114592.1167 | GX51: 111184.3948 | GY51: 86269.58456 | GZ51: 69991.6425 | HA51: 83075.11125 | HB51: 9111520.705 | HC51: 1342019.646 | HD51: 861910.6092 | HE51: 4750801.139 | HF51: 2515153.287 | HG51: 601364.1583 | HH51: 320600.9793 | HI51: 340208.3717 | HJ51: 189919.0489 | HK51: 161597.1791 | HL51: 387893.6346 | HM51: 23713.60676 | HN51: 6574.786176 | HO51: 1190135.529 | HP51: 336534.0518 | HQ51: 24471.50896 | HR51: 3650.848607 | HS51: 79652.46132 | HT51: 58432.3612 | HU51: 127910.5884 | HV51: 113038.871 | HW51: 5595851.689 | HX51: 3966149.573 | HY51: 54090.42564 | HZ51: 78329.52319 | IA51: 369645.7018 | IB51: 212570816
A52: =+MATCH(B52,RUT[EMPRESA],0) -> 78 | B52: DONGUIL | C52: 2411857.996 | D52: 2411857.996 | F52: =IFERROR(INDEX($B$9:$B$511,MATCH(0,INDEX(COUNTIF($F$8:F51,$B$9:$B$511),0,0),0)),"") -> DONGUIL | H52: 2411857.996 | J52: ATACAMA_GX_CHILE | K52: 113299623 | L52: 1808233.796 | M52: 1999864.492 | N52: 59088018.84 | O52: 11516473.4 | P52: 4918924.652 | Q52: 393956.4606 | R52: 139835.8325 | S52: 2694289.055 | T52: 869127.1292 | U52: 114435.6955 | V52: 20473191.95 | W52: 364817.5435 | X52: 143621.4242 | Y52: 145060.7092 | Z52: 637742.6085 | AA52: 7207293.206 | AB52: 519375.5094 | AC52: 306154.3689 | AD52: 112397.8557 | AE52: 2446060.185 | AF52: 10781.10831 | AG52: 128368.3467 | AH52: 204892.052 | AI52: 55123.87578 | AJ52: 1134549.887 | AK52: 350887.8077 | AL52: 767163.9237 | AM52: 1431319.141 | AN52: 1485248.837 | AO52: 17401.00939 | AP52: 132864.3226 | AQ52: 6658119.412 | AR52: 7394370.836 | AS52: 251453.6631 | AT52: 0.07936250942 | AU52: 5617365.872 | AV52: 249343.5547 | AW52: 579178.4954 | AX52: 658684.9498 | AY52: 418960.9419 | AZ52: 26133.00108 | BA52: 20537.38131 | BB52: 358.2135084 | BC52: 66602.75667 | BD52: 343319.9109 | BE52: 2748.431923 | BF52: 460213.6686 | BG52: 47499.70575 | BH52: 362725.0494 | BI52: 6815.320429 | BJ52: 8475.879932 | BK52: 1413380.083 | BL52: 595600.4005 | BM52: 51698.29962 | BN52: 150.2260156 | BO52: 308754.2781 | BP52: 133475.2552 | BQ52: 2383049.427 | BR52: 4469902.095 | BS52: 2040222.598 | BT52: 568567.3801 | BU52: 4957.819252 | BV52: 223766.6789 | BW52: 59062.78438 | BX52: 3764994.12 | BY52: 1958.017403 | BZ52: 2146597.142 | CA52: 112635.6211 | CB52: 114736.592 | CC52: 38369.10384 | CD52: 46682485.37 | CE52: 2626006.717 | CF52: 195992.816 | CG52: 12770.6775 | CH52: 1511862.288 | CI52: 85332.63584 | CJ52: 355.7290898 | CK52: 153523.1166 | CL52: 8211.646065 | CM52: 149192.6435 | CN52: 3650616.204 | CO52: 46972.04061 | CP52: 78706.12375 | CQ52: 224149.578 | CR52: 292858.811 | CS52: 36912.53183 | CT52: 43596.41653 | CU52: 29029.91131 | CV52: 1596955.771 | CW52: 202663.7365 | CX52: 1032155.064 | CY52: 3887950.923 | CZ52: 2151454.552 | DA52: 269279.1487 | DB52: 128596.0739 | DC52: 146205.2439 | DD52: 159324.8479 | DE52: 69469.16457 | DF52: 293371.8884 | DG52: 16885.13865 | DH52: 53137.64903 | DI52: 480632.5457 | DJ52: 8534.831847 | DK52: 1398172.206 | DL52: 9224.398262 | DM52: 60591.56706 | DN52: 240903.0071 | DO52: 437250.6635 | DP52: 95641.6648 | DQ52: 276510.0905 | DR52: 159301.1976 | DS52: 135372.346 | DT52: 3508223.674 | DU52: 52083.13123 | DV52: 160472.4677 | DW52: 676268.765 | DX52: 894947.9387 | DY52: 22792.27713 | DZ52: 193825.5224 | EA52: 191945.3861 | EB52: 3723985.35 | EC52: 1081.732648 | ED52: 116120.5837 | EE52: 697998.1153 | EF52: 274085.7689 | EG52: 573707.8507 | EH52: 392330.9968 | EI52: 218267.3025 | EJ52: 145088.1603 | EK52: 442871.1422 | EL52: 723312.6657 | EM52: 226072.2147 | EN52: 210618.9532 | EO52: 149385.1762 | EP52: 229987.1965 | EQ52: 251625.7699 | ER52: 205347.055 | ES52: 354323.4035 | ET52: 221781.8359 | EU52: 571081.0233 | EV52: 190816.0187 | EW52: 185451.435 | EX52: 196240.5831 | EY52: 103893.2374 | EZ52: 4036.240148 | FA52: 194486.1424 | FB52: 188306.1726 | FC52: 211543.4667 | FD52: 3222357.088 | FE52: 218675.4405 | FF52: 195194.2767 | FG52: 4151.106559 | FH52: 221824.3443 | FI52: 1085678.125 | FJ52: 193560.6028 | FK52: 182417.0148 | FL52: 206903.6115 | FM52: 189930.5089 | FN52: 156539.6785 | FO52: 442579.2351 | FP52: 116922.2574 | FQ52: 205324.286 | FR52: 275602.8647 | FS52: 118376.3182 | FT52: 59069.77549 | FU52: 444645.5429 | FV52: 653656.2205 | FW52: 233881.3412 | FX52: 230496.7221 | FY52: 230167.3017 | FZ52: 0.02723662893 | GA52: 1945.817221 | GB52: 181256.2313 | GC52: 156000.3715 | GD52: 223204.8789 | GE52: 16117.63005 | GF52: 268546.3095 | GG52: 205801.2896 | GH52: 30110.14329 | GI52: 43754.53551 | GJ52: 526095.4054 | GK52: 516663.0567 | GL52: 223578.4824 | GM52: 7805925.516 | GN52: 4720.659203 | GO52: 132987.0428 | GP52: 148716.6332 | GQ52: 539538.5097 | GR52: 210148.183 | GS52: 117686.6264 | GT52: 842575.5619 | GU52: 171356.775 | GV52: 193275.6821 | GW52: 245031.8421 | GX52: 237745.1246 | GY52: 184469.8904 | GZ52: 149662.8352 | HA52: 177639.1616 | HB52: 19483126.46 | HC52: 2869634.974 | HD52: 1843019.836 | HE52: 10158618.13 | HF52: 5378141.712 | HG52: 1285894.454 | HH52: 685539.7278 | HI52: 727466.1327 | HJ52: 406103.1048 | HK52: 345542.5695 | HL52: 829431.3301 | HM52: 50706.70576 | HN52: 14058.83767 | HO52: 2544861.805 | HP52: 719609.3498 | HQ52: 52327.32485 | HR52: 7806.594246 | HS52: 170320.5236 | HT52: 124945.6726 | HU52: 273510.6741 | HV52: 241710.5432 | HW52: 11965586.17 | HX52: 8480800.978 | HY52: 115661.33 | HZ52: 167491.6905 | IA52: 790411.8519 | IB52: 454539283.2
A53: =+MATCH(B53,RUT[EMPRESA],0) -> 245 | B53: PEHUI | C53: 18415591.4 | D53: 18415591.4 | F53: =IFERROR(INDEX($B$9:$B$511,MATCH(0,INDEX(COUNTIF($F$8:F52,$B$9:$B$511),0,0),0)),"") -> PEHUI | H53: 18415591.4 | J53: ANDINA | K53: 303558540.8 | L53: 4844718.79 | M53: 5358146.221 | N53: 158311848.7 | O53: 30855564.8 | P53: 13179051.7 | Q53: 1055509.676 | R53: 374655.8033 | S53: 7218686.456 | T53: 2328612.895 | U53: 306602.3682 | V53: 54852894.54 | W53: 977439.0966 | X53: 384798.3675 | Y53: 388654.5784 | Z53: 1708674.844 | AA53: 19310173.77 | AB53: 1391539.244 | AC53: 820265.5139 | AD53: 301142.4767 | AE53: 6553618.102 | AF53: 28885.33449 | AG53: 343931.4888 | AH53: 548957.9812 | AI53: 147690.9 | AJ53: 3039748.051 | AK53: 940117.7873 | AL53: 2055427.503 | AM53: 3834868.451 | AN53: 3979359.839 | AO53: 46621.73516 | AP53: 355977.3529 | AQ53: 17838797.34 | AR53: 19811402.38 | AS53: 673708.3938 | AT53: 0.2126323717 | AU53: 15050353.58 | AV53: 668054.8761 | AW53: 1551766.672 | AX53: 1764784.709 | AY53: 1122503.048 | AZ53: 70016.96443 | BA53: 55024.8742 | BB53: 959.745205 | BC53: 178445.7449 | BD53: 919841.4647 | BE53: 7363.748985 | BF53: 1233029.608 | BG53: 127263.8071 | BH53: 971832.772 | BI53: 18259.97889 | BJ53: 22709.04065 | BK53: 3786805.147 | BL53: 1595765.137 | BM53: 138512.9092 | BN53: 402.4937494 | BO53: 827231.3326 | BP53: 357614.1969 | BQ53: 6384796.236 | BR53: 11976005.93 | BS53: 5466275.865 | BT53: 1523336.792 | BU53: 13283.26024 | BV53: 599527.9129 | BW53: 158244.2392 | BX53: 10087377.97 | BY53: 5246.027214 | BZ53: 5751280.355 | CA53: 301779.5107 | CB53: 307408.5466 | CC53: 102800.5995 | CD53: 125074265.6 | CE53: 7035740.684 | CF53: 525114.6619 | CG53: 34215.89696 | CH53: 4050664.051 | CI53: 228627.8606 | CJ53: 953.0888147 | CK53: 411327.5226 | CL53: 22001.09083 | CM53: 399725.0826 | CN53: 9780930.407 | CO53: 125850.0578 | CP53: 210873.7473 | CQ53: 600553.7971 | CR53: 784643.3287 | CS53: 98898.07222 | CT53: 116805.9013 | CU53: 77778.52462 | CV53: 4278651.161 | CW53: 542987.7567 | CX53: 2765406.245 | CY53: 10416810.56 | CZ53: 5764294.592 | DA53: 721467.4088 | DB53: 344541.6277 | DC53: 391721.0782 | DD53: 426871.8382 | DE53: 186125.5816 | DF53: 786017.9937 | DG53: 45239.58608 | DH53: 142369.2928 | DI53: 1287736.979 | DJ53: 22866.98784 | DK53: 3746059.372 | DL53: 24714.51186 | DM53: 162340.2372 | DN53: 645440.4998 | DO53: 1171505.869 | DP53: 256248.3743 | DQ53: 740840.9433 | DR53: 426808.473 | DS53: 362696.9862 | DT53: 9399424.56 | DU53: 139543.9711 | DV53: 429946.6038 | DW53: 1811896.227 | DX53: 2397793.418 | DY53: 61066.31428 | DZ53: 519307.9305 | EA53: 514270.5665 | EB53: 9977505.033 | EC53: 2898.237217 | ED53: 311116.6129 | EE53: 1870114.69 | EF53: 734345.5684 | EG53: 1537109.422 | EH53: 1051154.644 | EI53: 584793.6832 | EJ53: 388728.127 | EK53: 1186564.563 | EL53: 1937938.817 | EM53: 605705.0305 | EN53: 564301.8079 | EO53: 400240.9267 | EP53: 616194.2637 | EQ53: 674169.5119 | ER53: 550177.0503 | ES53: 949322.6232 | ET53: 594210.0131 | EU53: 1530071.482 | EV53: 511244.7038 | EW53: 496871.6179 | EX53: 525778.4931 | EY53: 278356.4386 | EZ53: 10814.11515 | FA53: 521077.8997 | FB53: 504520.187 | FC53: 566778.8149 | FD53: 8633515.184 | FE53: 585887.189 | FF53: 522975.1717 | FG53: 11121.87151 | FH53: 594323.904 | FI53: 2908808.156 | FJ53: 518598.1435 | FK53: 488741.6336 | FL53: 554347.4614 | FM53: 508872.1976 | FN53: 419409.6601 | FO53: 1185782.47 | FP53: 313264.5008 | FQ53: 550116.0461 | FR53: 738410.2542 | FS53: 317160.3 | FT53: 158262.9701 | FU53: 1191318.634 | FV53: 1751311.462 | FW53: 626627.6688 | FX53: 617559.4125 | FY53: 616676.8114 | FZ53: 0.07297386448 | GA53: 5213.33982 | GB53: 485631.599 | GC53: 417964.7193 | GD53: 598022.7077 | GE53: 43183.23511 | GF53: 719503.9462 | GG53: 551394.0602 | GH53: 80672.74115 | GI53: 117229.5423 | GJ53: 1409543.557 | GK53: 1384271.892 | GL53: 599023.6866 | GM53: 20914062.17 | GN53: 12647.84808 | GO53: 356306.1516 | GP53: 398449.7298 | GQ53: 1445561.056 | GR53: 563040.4946 | GS53: 315312.44 | GT53: 2257474.485 | GU53: 459108.4348 | GV53: 517834.7683 | GW53: 656502.7 | GX53: 636979.7285 | GY53: 494241.8101 | GZ53: 400984.846 | HA53: 475940.548 | HB53: 52200257 | HC53: 7688482.824 | HD53: 4937919.45 | HE53: 27217524.76 | HF53: 14409411.14 | HG53: 3445238.685 | HH53: 1836735.497 | HI53: 1949067.012 | HJ53: 1088053.628 | HK53: 925796.5332 | HL53: 2222257.741 | HM53: 135856.1767 | HN53: 37667.20608 | HO53: 6818332.802 | HP53: 1928016.69 | HQ53: 140198.228 | HR53: 20915.85387 | HS53: 456332.0533 | HT53: 334761.2732 | HU53: 732804.743 | HV53: 647604.0948 | HW53: 32058852.28 | HX53: 22722225.38 | HY53: 309886.1552 | HZ53: 448752.8892 | IA53: 2117714.623 | IB53: 1217826484
A54: =+MATCH(B54,RUT[EMPRESA],0) -> 61 | B54: COMASA | C54: 922845231.8 | D54: 922845231.8 | F54: =IFERROR(INDEX($B$9:$B$511,MATCH(0,INDEX(COUNTIF($F$8:F53,$B$9:$B$511),0,0),0)),"") -> COMASA | H54: 922845231.8 | J54: TAMAKAYA_ENERGIA | K54: 321058631.2 | L54: 5124015.879 | M54: 5667042.301 | N54: 167438495.8 | O54: 32634382.07 | P54: 13938821.45 | Q54: 1116359.602 | R54: 396254.6371 | S54: 7634842.317 | T54: 2462856.972 | U54: 324277.9347 | V54: 58015153.18 | W54: 1033788.269 | X54: 406981.918 | Y54: 411060.4388 | Z54: 1807179.614 | AA54: 20423401.51 | AB54: 1471761.209 | AC54: 867553.6602 | AD54: 318503.2815 | AE54: 6931432.903 | AF54: 30550.56837 | AG54: 363759.0718 | AH54: 580605.3014 | AI54: 156205.2515 | AJ54: 3214988.931 | AK54: 994315.3937 | AL54: 2173922.496 | AM54: 4055947.866 | AN54: 4208769.154 | AO54: 49309.46906 | AP54: 376499.3776 | AQ54: 18867200.51 | AR54: 20953525.85 | AS54: 712547.5508 | AT54: 0.2248905863 | AU54: 15918003.52 | AV54: 706568.1089 | AW54: 1641225.717 | AX54: 1866524.202 | AY54: 1187215.129 | AZ54: 74053.42873 | BA54: 58197.04743 | BB54: 1015.074328 | BC54: 188733.1072 | BD54: 972870.1451 | BE54: 7788.267673 | BF54: 1304113.523 | BG54: 134600.5406 | BH54: 1027858.741 | BI54: 19312.6631 | BJ54: 24018.21239 | BK54: 4005113.722 | BL54: 1687760.685 | BM54: 146498.1513 | BN54: 425.6974353 | BO54: 874921.057 | BP54: 378230.5853 | BQ54: 6752878.49 | BR54: 12666420.33 | BS54: 5781405.598 | BT54: 1611156.86 | BU54: 14049.03759 | BV54: 634090.5797 | BW54: 167366.9886 | BX54: 10668913.33 | BY54: 5548.459656 | BZ54: 6082840.541 | CA54: 319177.0404 | CB54: 325130.5891 | CC54: 108727.034 | CD54: 132284772.5 | CE54: 7441349.757 | CF54: 555387.4194 | CG54: 36188.43673 | CH54: 4284184.041 | CI54: 241808.212 | CJ54: 1008.034198 | CK54: 435040.4738 | CL54: 23269.44941 | CM54: 422769.1554 | CN54: 10344799.13 | CO54: 133105.289 | CP54: 223030.5776 | CQ54: 635175.6059 | CR54: 829877.863 | CS54: 104599.5267 | CT54: 123539.7387 | CU54: 82262.44134 | CV54: 4525314.563 | CW54: 574290.8946 | CX54: 2924831.374 | CY54: 11017337.65 | CZ54: 6096605.047 | DA54: 763059.8637 | DB54: 364404.3851 | DC54: 414303.7217 | DD54: 451480.9161 | DE54: 196855.6849 | DF54: 831331.7772 | DG54: 47847.63936 | DH54: 150576.8546 | DI54: 1361974.763 | DJ54: 24185.26521 | DK54: 3962018.961 | DL54: 26139.29863 | DM54: 171699.1201 | DN54: 682650.0182 | DO54: 1239042.953 | DP54: 271021.0429 | DQ54: 783550.2787 | DR54: 451413.8979 | DS54: 383606.3965 | DT54: 9941299.546 | DU54: 147588.6537 | DV54: 454732.9413 | DW54: 1916351.69 | DX54: 2536025.74 | DY54: 64586.77534 | DZ54: 549245.931 | EA54: 543918.164 | EB54: 10552706.24 | EC54: 3065.320025 | ED54: 329052.4247 | EE54: 1977926.436 | EF54: 776680.4467 | EG54: 1625723.479 | EH54: 1111753.504 | EI54: 618506.9246 | EJ54: 411138.2274 | EK54: 1254969.778 | EL54: 2049660.61 | EM54: 640623.807 | EN54: 596833.6967 | EO54: 423314.7378 | EP54: 651717.7424 | EQ54: 713035.2523 | ER54: 581894.6495 | ES54: 1004050.887 | ET54: 628466.1041 | EU54: 1618279.804 | EV54: 540717.8609 | EW54: 525516.1694 | EX54: 556089.5203 | EY54: 294403.6328 | EZ54: 11437.54677 | FA54: 551117.9386 | FB54: 533605.6771 | FC54: 599453.5026 | FD54: 9131235.644 | FE54: 619663.4708 | FF54: 553124.588 | FG54: 11763.04523 | FH54: 628586.5607 | FI54: 3076500.376 | FJ54: 548495.2249 | FK54: 516917.4931 | FL54: 586305.4841 | FM54: 538208.5801 | FN54: 443588.545 | FO54: 1254142.597 | FP54: 331324.1379 | FQ54: 581830.1285 | FR54: 780979.4609 | FS54: 335444.5292 | FT54: 167386.7994 | FU54: 1259997.921 | FV54: 1852274.225 | FW54: 662752.6312 | FX54: 653161.5918 | FY54: 652228.1089 | FZ54: 0.07718079348 | GA54: 5513.88784 | GB54: 513628.1657 | GC54: 442060.3035 | GD54: 632498.5997 | GE54: 45672.74016 | GF54: 760983.2079 | GG54: 583181.8198 | GH54: 85323.50889 | GI54: 123987.8025 | GJ54: 1490803.467 | GK54: 1464074.896 | GL54: 633557.2849 | GM54: 22119753.76 | GN54: 13376.99405 | GO54: 376847.1315 | GP54: 421420.2787 | GQ54: 1528897.368 | GR54: 595499.6689 | GS54: 333490.1405 | GT54: 2387617.447 | GU54: 485575.9462 | GV54: 547687.8414 | GW54: 694349.9522 | GX54: 673701.4851 | GY54: 522734.7537 | GZ54: 424101.5438 | HA54: 503378.4275 | HB54: 55209591.6 | HC54: 8131722.354 | HD54: 5222589.54 | HE54: 28786609.74 | HF54: 15240110.87 | HG54: 3643856.021 | HH54: 1942622.939 | HI54: 2061430.344 | HJ54: 1150779.707 | HK54: 979168.5221 | HL54: 2350370.464 | HM54: 143688.2587 | HN54: 39838.71314 | HO54: 7211408.353 | HP54: 2039166.475 | HQ54: 148280.6284 | HR54: 22121.64875 | HS54: 482639.5068 | HT54: 354060.195 | HU54: 775050.793 | HV54: 684938.3441 | HW54: 33907038.83 | HX54: 24032157.23 | HY54: 327751.0314 | HZ54: 474623.4054 | IA54: 2239800.456 | IB54: 1288033942
A55: =+MATCH(B55,RUT[EMPRESA],0) -> 44 | B55: CHACAYES | C55: 1024892983 | D55: 1024892983 | F55: =IFERROR(INDEX($B$9:$B$511,MATCH(0,INDEX(COUNTIF($F$8:F54,$B$9:$B$511),0,0),0)),"") -> CHACAYES | H55: 1024892983 | J55: VALLE_DE_LOS_VIENTOS | K55: 2017805.778 | L55: 32203.67822 | M55: 35616.51857 | N55: 1052326.06 | O55: 205102.2408 | P55: 87603.42111 | Q55: 7016.154171 | R55: 2490.401498 | S55: 47983.84919 | T55: 15478.69001 | U55: 2038.038622 | V55: 364616.6149 | W55: 6497.205619 | X55: 2557.820865 | Y55: 2583.453761 | Z55: 11357.85527 | AA55: 128358.0429 | AB55: 9249.800451 | AC55: 5452.445809 | AD55: 2001.745785 | AE55: 43563.02557 | AF55: 192.0057814 | AG55: 2286.1717 | AH55: 3649.018023 | AI55: 981.7267888 | AJ55: 20205.72758 | AK55: 6249.124464 | AL55: 13662.77978 | AM55: 25491.0295 | AN55: 26451.48858 | AO55: 309.9026842 | AP55: 2366.242629 | AQ55: 118577.551 | AR55: 131689.7956 | AS55: 4478.25545 | AT55: 0.001413403909 | AU55: 100042.2862 | AV55: 4440.675547 | AW55: 10314.85969 | AX55: 11730.82719 | AY55: 7461.47063 | AZ55: 465.4147929 | BA55: 365.7597932 | BB55: 6.379591281 | BC55: 1186.159527 | BD55: 6114.344263 | BE55: 48.94810475 | BF55: 8196.159661 | BG55: 845.9443922 | BH55: 6459.939416 | BI55: 121.3772171 | BJ55: 150.9508951 | BK55: 25171.54446 | BL55: 10607.32505 | BM55: 920.7191068 | BN55: 2.675445109 | BO55: 5498.748803 | BP55: 2377.123012 | BQ55: 42440.83762 | BR55: 79606.56916 | BS55: 36335.27489 | BT55: 10125.8814 | BU55: 88.29611316 | BV55: 3985.165048 | BW55: 1051.876647 | BX55: 67052.53458 | BY55: 34.87124427 | BZ55: 38229.74871 | CA55: 2005.980259 | CB55: 2043.397428 | CC55: 683.3332484 | CD55: 831390.1336 | CE55: 46767.77721 | CF55: 3490.527383 | CG55: 227.4389461 | CH55: 26925.45994 | CI55: 1519.728673 | CJ55: 6.335345112 | CK55: 2734.164717 | CL55: 146.245031 | CM55: 2657.041305 | CN55: 65015.52498 | CO55: 836.5469579 | CP55: 1401.714031 | CQ55: 3991.984277 | CR55: 5215.659023 | CS55: 657.3924788 | CT55: 776.4288957 | CU55: 517.0072171 | CV55: 28440.92943 | CW55: 3609.332915 | CX55: 18382.13046 | CY55: 69242.32958 | CZ55: 38316.25658 | DA55: 4795.717829 | DB55: 2290.227399 | DC55: 2603.837313 | DD55: 2837.490454 | DE55: 1237.208721 | DF55: 5224.796658 | DG55: 300.7153018 | DH55: 946.353151 | DI55: 8559.808957 | DJ55: 152.0007972 | DK55: 24900.70029 | DL55: 164.2816068 | DM55: 1079.10345 | DN55: 4290.353902 | DO55: 7787.200803 | DP55: 1703.326973 | DQ55: 4924.497042 | DR55: 2837.069255 | DS55: 2410.909186 | DT55: 62479.59006 | DU55: 927.5727522 | DV55: 2857.928949 | DW55: 12043.98554 | DX55: 15938.54484 | DY55: 405.9182834 | DZ55: 3451.929042 | EA55: 3418.444818 | EB55: 66322.19029 | EC55: 19.26508076 | ED55: 2068.045582 | EE55: 12430.97367 | EF55: 4881.321169 | EG55: 10217.43043 | EH55: 6987.205529 | EI55: 3887.224092 | EJ55: 2583.942651 | EK55: 7887.298527 | EL55: 12881.81229 | EM55: 4026.22541 | EN55: 3751.011076 | EO55: 2660.470209 | EP55: 4095.949146 | EQ55: 4481.320582 | ER55: 3657.121385 | ES55: 6310.310589 | ET55: 3949.816055 | EU55: 10170.64804 | EV55: 3398.331388 | EW55: 3302.791017 | EX55: 3494.939983 | EY55: 1850.283074 | EZ55: 71.88328149 | FA55: 3463.694331 | FB55: 3353.63237 | FC55: 3767.476167 | FD55: 57388.45884 | FE55: 3894.492813 | FF55: 3476.305824 | FG55: 73.92899091 | FH55: 3950.573107 | FI55: 19335.3476 | FJ55: 3447.210965 | FK55: 3248.749614 | FL55: 3684.842824 | FM55: 3382.560932 | FN55: 2787.888074 | FO55: 7882.099818 | FP55: 2082.322962 | FQ55: 3656.71588 | FR55: 4908.339834 | FS55: 2108.219009 | FT55: 1052.001155 | FU55: 7918.899656 | FV55: 11641.2682 | FW55: 4165.301782 | FX55: 4105.023524 | FY55: 4099.156723 | FZ55: 0.0004850698156 | GA55: 34.65396554 | GB55: 3228.07668 | GC55: 2778.283304 | GD55: 3975.15969 | GE55: 287.0463835 | GF55: 4782.666356 | GG55: 3665.211059 | GH55: 536.2455717 | GI55: 779.2449103 | GJ55: 9369.478209 | GK55: 9201.493115 | GL55: 3981.81337 | GM55: 139019.3647 | GN55: 84.07241935 | GO55: 2368.42821 | GP55: 2648.563816 | GQ55: 9608.892718 | GR55: 3742.62691 | GS55: 2095.935966 | GT55: 15005.82078 | GU55: 3051.77265 | GV55: 3442.13668 | GW55: 4363.886248 | GX55: 4234.113701 | GY55: 3285.310232 | GZ55: 2665.415168 | HA55: 3163.658599 | HB55: 346984.0774 | HC55: 51106.66637 | HD55: 32823.19902 | HE55: 180919.5636 | HF55: 95781.83169 | HG55: 22901.0935 | HH55: 12209.09644 | HI55: 12955.78332 | HJ55: 7232.479418 | HK55: 6153.928627 | HL55: 14771.72903 | HM55: 903.0593497 | HN55: 250.3803908 | HO55: 45322.62966 | HP55: 12815.85821 | HQ55: 931.9217102 | HR55: 139.0312744 | HS55: 3033.317565 | HT55: 2225.215701 | HU55: 4871.079038 | HV55: 4304.73569 | HW55: 213100.6994 | HX55: 151038.5362 | HY55: 2059.866519 | HZ55: 2982.937559 | IA55: 14076.81296 | IB55: 8095101.887
A56: =+MATCH(B56,RUT[EMPRESA],0) -> 109 | B56: ENERBOSCH | C56: 34852606.21 | D56: 34852606.21 | F56: =IFERROR(INDEX($B$9:$B$511,MATCH(0,INDEX(COUNTIF($F$8:F55,$B$9:$B$511),0,0),0)),"") -> ENERBOSCH | H56: 34852606.21 | J56: POZO_ALMONTE_SOLAR_2 | K56: 792916.7763 | L56: 12654.75448 | M56: 13995.86392 | N56: 413521.9533 | O56: 80596.95802 | P56: 34424.63244 | Q56: 2757.067309 | R56: 978.6279477 | S56: 18855.72904 | T56: 6082.504629 | U56: 800.8674726 | V56: 143279.712 | W56: 2553.141333 | X56: 1005.121056 | Y56: 1015.193757 | Z56: 4463.181781 | AA56: 50439.56496 | AB56: 3634.800749 | AC56: 2142.592612 | AD56: 786.6058427 | AE56: 17118.52259 | AF56: 75.45057452 | AG56: 898.3738248 | AH56: 1433.917793 | AI56: 385.7792702 | AJ56: 7940.040886 | AK56: 2455.655385 | AL56: 5368.924706 | AM56: 10016.95265 | AN56: 10394.37456 | AO56: 121.7793308 | AP56: 929.8384896 | AQ56: 46596.22371 | AR56: 51748.81019 | AS56: 1759.774857 | AT56: 0.0005554110725 | AU56: 39312.60776 | AV56: 1745.007462 | AW56: 4053.326333 | AX56: 4609.744791 | AY56: 2932.058824 | AZ56: 182.889355 | BA56: 143.7289353 | BB56: 2.506923613 | BC56: 466.1131406 | BD56: 2402.692169 | BE56: 19.23464282 | BF56: 3220.76216 | BG56: 332.4222319 | BH56: 2538.497209 | BI56: 47.69638027 | BJ56: 59.31765008 | BK56: 9891.407836 | BL56: 4168.253494 | BM56: 361.805697 | BN56: 1.051342668 | BO56: 2160.787833 | BP56: 934.114044 | BQ56: 16677.54772 | BR56: 31282.19022 | BS56: 14278.30634 | BT56: 3979.065439 | BU56: 34.69683265 | BV56: 1566.010097 | BW56: 413.3453523 | BX56: 26348.95793 | BY56: 13.703001 | BZ56: 15022.7586 | CA56: 788.2698215 | CB56: 802.9732687 | CC56: 268.5225715 | CD56: 326702.9918 | CE56: 18377.86151 | CF56: 1371.637325 | CG56: 89.37438771 | CH56: 10580.6263 | CI56: 597.1924418 | CJ56: 2.489536643 | CK56: 1074.41712 | CL56: 57.46843416 | CM56: 1044.110711 | CN56: 25548.49482 | CO56: 328.729417 | CP56: 550.817419 | CQ56: 1568.689781 | CR56: 2049.544898 | CS56: 258.328889 | CT56: 305.1054287 | CU56: 203.1631093 | CV56: 11176.14506 | CW56: 1418.323136 | CX56: 7223.440326 | CY56: 27209.45958 | CZ56: 15056.75272 | DA56: 1884.524845 | DB56: 899.9675516 | DC56: 1023.203675 | DD56: 1115.019992 | DE56: 486.1734272 | DF56: 2053.135623 | DG56: 118.1690578 | DH56: 371.8788487 | DI56: 3363.661754 | DJ56: 59.73021952 | DK56: 9784.976937 | DL56: 64.55608535 | DM56: 424.0443943 | DN56: 1685.937082 | DO56: 3060.057724 | DP56: 669.3392133 | DQ56: 1935.129913 | DR56: 1114.854478 | DS56: 947.3906559 | DT56: 24551.97407 | DU56: 364.4989049 | DV56: 1123.051501 | DW56: 4732.803471 | DX56: 6263.209141 | DY56: 159.509612 | DZ56: 1356.469724 | EA56: 1343.311767 | EB56: 26061.9619 | EC56: 7.570404393 | ED56: 812.659005 | EE56: 4884.87429 | EF56: 1918.163525 | EG56: 4015.04054 | EH56: 2745.691653 | EI56: 1527.523228 | EJ56: 1015.385871 | EK56: 3099.392117 | EL56: 5062.035794 | EM56: 1582.145173 | EN56: 1473.996973 | EO56: 1045.458133 | EP56: 1609.543806 | EQ56: 1760.979331 | ER56: 1437.102089 | ES56: 2479.699079 | ET56: 1552.11936 | EU56: 3996.656935 | EV56: 1335.407995 | EW56: 1297.864459 | EX56: 1373.3713 | EY56: 727.0870697 | EZ56: 28.2472478 | FA56: 1361.093011 | FB56: 1317.843073 | FC56: 1480.467094 | FD56: 22551.3636 | FE56: 1530.379544 | FF56: 1366.048823 | FG56: 29.05112959 | FH56: 1552.416851 | FI56: 7598.016447 | FJ56: 1354.615709 | FK56: 1276.628355 | FL56: 1447.995503 | FM56: 1329.210838 | FN56: 1095.528246 | FO56: 3097.349232 | FP56: 818.2694429 | FQ56: 1436.942742 | FR56: 1928.780778 | FS56: 828.4455511 | FT56: 413.3942789 | FU56: 3111.810093 | FV56: 4574.551701 | FW56: 1636.796612 | FX56: 1613.109673 | FY56: 1610.804256 | FZ56: 0.0001906129909 | GA56: 13.61761917 | GB56: 1268.504721 | GC56: 1091.753956 | GD56: 1562.078393 | GE56: 112.7977209 | GF56: 1879.396139 | GG56: 1440.281007 | GH56: 210.7230114 | GI56: 306.2120095 | GJ56: 3681.82931 | GK56: 3615.817903 | GL56: 1564.693022 | GM56: 54629.03698 | GN56: 33.03709031 | GO56: 930.6973354 | GP56: 1040.779398 | GQ56: 3775.909614 | GR56: 1470.702332 | GS56: 823.6188078 | GT56: 5896.685978 | GU56: 1199.224305 | GV56: 1352.621719 | GW56: 1714.832346 | GX56: 1663.836937 | GY56: 1290.995212 | GZ56: 1047.401304 | HA56: 1243.190997 | HB56: 136350.8317 | HC56: 20082.871 | HD56: 12898.20132 | HE56: 71094.13538 | HF56: 37638.41993 | HG56: 8999.211633 | HH56: 4797.685434 | HI56: 5091.103443 | HJ56: 2842.074459 | HK56: 2418.247237 | HL56: 5804.697305 | HM56: 354.8661205 | HN56: 98.38945575 | HO56: 17809.97646 | HP56: 5036.118485 | HQ56: 366.207871 | HR56: 54.63371703 | HS56: 1191.972196 | HT56: 874.420561 | HU56: 1914.138778 | HV56: 1691.588548 | HW56: 83740.0316 | HX56: 59352.08955 | HY56: 809.444961 | HZ56: 1172.174874 | IA56: 5531.62315 | IB56: 3181050.506
A57: =+MATCH(B57,RUT[EMPRESA],0) -> 168 | B57: HIDROMUCHI | C57: 10.99999998 | D57: 10.99999998 | F57: =IFERROR(INDEX($B$9:$B$511,MATCH(0,INDEX(COUNTIF($F$8:F56,$B$9:$B$511),0,0),0)),"") -> HIDROMUCHI | H57: 10.99999998 | J57: HORNITOS | K57: 371227314 | L57: 5924695.575 | M57: 6552575.409 | N57: 193602467 | O57: 37733836.82 | P57: 16116904.35 | Q57: 1290802.165 | R57: 458173.462 | S57: 8827864.23 | T57: 2847703.471 | U57: 374949.6664 | V57: 67080612.04 | W57: 1195328.221 | X57: 470576.9899 | Y57: 475292.8211 | Z57: 2089569.844 | AA57: 23614766.11 | AB57: 1701738.896 | AC57: 1003117.76 | AD57: 368272.6648 | AE57: 8014539.927 | AF57: 35324.40599 | AG57: 420600.1335 | AH57: 671330.7962 | AI57: 180613.9138 | AJ57: 3717363.713 | AK57: 1149687.306 | AL57: 2513620.039 | AM57: 4689731.051 | AN57: 4866432.223 | AO57: 57014.57608 | AP57: 435331.2419 | AQ57: 21815392.85 | AR57: 24227727.78 | AS57: 823890.3666 | AT57: 0.2600320321 | AU57: 18405353.78 | AV57: 816976.576 | AW57: 1897683.959 | AX57: 2158187.629 | AY57: 1372729.591 | AZ57: 85625.03158 | BA57: 67290.92912 | BB57: 1173.690036 | BC57: 218224.5784 | BD57: 1124891.019 | BE57: 9005.26386 | BF57: 1507894.55 | BG57: 155633.2467 | BH57: 1188472.143 | BI57: 22330.46351 | BJ57: 27771.30283 | BK57: 4630953.554 | BL57: 1951490.491 | BM57: 169389.9803 | BN57: 492.2169975 | BO57: 1011636.388 | BP57: 437332.9685 | BQ57: 7808084.567 | BR57: 14645677.58 | BS57: 6684809.137 | BT57: 1862916.537 | BU57: 16244.34288 | BV57: 733173.6943 | BW57: 193519.786 | BX57: 12336039.76 | BY57: 6415.463017 | BZ57: 7033346.361 | CA57: 369051.7054 | CB57: 375935.5568 | CC57: 125716.741 | CD57: 152955616.2 | CE57: 8604136.486 | CF57: 642172.3631 | CG57: 41843.24873 | CH57: 4953631.454 | CI57: 279593.2092 | CJ57: 1165.549814 | CK57: 503019.981 | CL57: 26905.538 | CM57: 488831.144 | CN57: 11961279.41 | CO57: 153904.3468 | CP57: 257881.3781 | CQ57: 734428.2669 | CR57: 959554.7356 | CS57: 120944.2687 | CT57: 142844.0817 | CU57: 95116.78607 | CV57: 5232441.077 | CW57: 664029.699 | CX57: 3381866.08 | CY57: 12738908.92 | CZ57: 7049261.711 | DA57: 882295.7431 | DB57: 421346.2836 | DC57: 479042.9001 | DD57: 522029.4099 | DE57: 227616.3917 | DF57: 961235.8388 | DG57: 55324.32059 | DH57: 174106.0226 | DI57: 1574797.199 | DJ57: 27964.45935 | DK57: 4581124.798 | DL57: 30223.8304 | DM57: 198528.8573 | DN57: 789321.0399 | DO57: 1432656.041 | DP57: 313370.8426 | DQ57: 905987.9943 | DR57: 521951.9195 | DS57: 443548.805 | DT57: 11494728.9 | DU57: 170650.8848 | DV57: 525789.5972 | DW57: 2215801.17 | DX57: 2932305.604 | DY57: 74679.11714 | DZ57: 635071.2047 | EA57: 628910.9198 | EB57: 12201674.13 | EC57: 3544.307515 | ED57: 380470.2191 | EE57: 2286997.597 | EF57: 898044.681 | EG57: 1879759.339 | EH57: 1285476.317 | EI57: 715154.9342 | EJ57: 475382.765 | EK57: 1451071.594 | EL57: 2369940.967 | EM57: 740727.8049 | EN57: 690095.0437 | EO57: 489461.9792 | EP57: 753555.2808 | EQ57: 824454.2765 | ER57: 672821.6181 | ES57: 1160944.069 | ET57: 726670.337 | EU57: 1871152.513 | EV57: 625210.5366 | EW57: 607633.4259 | EX57: 642984.1745 | EY57: 340407.2004 | EZ57: 13224.78001 | FA57: 637235.7325 | FB57: 616987.0016 | FC57: 693124.2209 | FD57: 10558084.26 | FE57: 716492.2025 | FF57: 639555.9413 | FG57: 13601.14091 | FH57: 726809.6163 | FI57: 3557234.91 | FJ57: 634203.1931 | FK57: 597691.1189 | FL57: 677921.6905 | FM57: 622309.1552 | FN57: 512903.7754 | FO57: 1450115.158 | FP57: 383096.9107 | FQ57: 672747.015 | FR57: 903015.4599 | FS57: 387861.1551 | FT57: 193542.6925 | FU57: 1456885.435 | FV57: 2141710.948 | FW57: 766314.4834 | FX57: 755224.7463 | FY57: 754145.3972 | FZ57: 0.08924107895 | GA57: 6375.489002 | GB57: 593887.8005 | GC57: 511136.7306 | GD57: 731332.9512 | GE57: 52809.57122 | GF57: 879894.5887 | GG57: 674309.9219 | GH57: 98656.17661 | GI57: 143362.1601 | GJ57: 1723756.7 | GK57: 1692851.518 | GL57: 732557.0667 | GM57: 25576190.69 | GN57: 15467.28568 | GO57: 435733.3359 | GP57: 487271.4916 | GQ57: 1767803.162 | GR57: 688552.5604 | GS57: 385601.3732 | GT57: 2760707.003 | GU57: 561452.1359 | GV57: 633269.6476 | GW57: 802849.2078 | GX57: 778974.2073 | GY57: 604417.3857 | GZ57: 490371.7317 | HA57: 582036.4363 | HB57: 63836652.88 | HC57: 9402386.835 | HD57: 6038672.375 | HE57: 33284810.85 | HF57: 17621533.5 | HG57: 4213245.656 | HH57: 2246177.569 | HI57: 2383549.842 | HJ57: 1330600.763 | HK57: 1132173.582 | HL57: 2717639.8 | HM57: 166141.0134 | HN57: 46063.91803 | HO57: 8338264.394 | HP57: 2357807.016 | HQ57: 171450.9876 | HR57: 25578.38179 | HS57: 558056.848 | HT57: 409385.7084 | HU57: 896160.3773 | HV57: 791966.94 | HW57: 39205359.17 | HX57: 27787426.68 | HY57: 378965.4699 | HZ57: 548788.149 | IA57: 2589792.101 | IB57: 1489302371
A58: =+MATCH(B58,RUT[EMPRESA],0) -> 184 | B58: LA ARENA SPA | C58: -193990742.3 | D58: -193990742.3 | F58: =IFERROR(INDEX($B$9:$B$511,MATCH(0,INDEX(COUNTIF($F$8:F57,$B$9:$B$511),0,0),0)),"") -> LA ARENA SPA | G58: -193990742.3 | J58: ON GROUP | K58: 12124119.12 | L58: 193497.9248 | M58: 214004.2012 | N58: 6322970.544 | O58: 1232370.343 | P58: 526370.9343 | Q58: 42157.02515 | R58: 14963.74168 | S58: 288314.123 | T58: 93004.72998 | U58: 12245.68949 | V58: 2190822.982 | W58: 39038.88854 | X58: 15368.83539 | Y58: 15522.85234 | Z58: 68244.4226 | AA58: 771247.7679 | AB58: 55578.03615 | AC58: 32761.3803 | AD58: 12027.62159 | AE58: 261751.3127 | AF58: 1153.679403 | AG58: 13736.61346 | AH58: 21925.36549 | AI58: 5898.770168 | AJ58: 121407.447 | AK58: 37548.27655 | AL58: 82093.71353 | AM58: 153164.5322 | AN58: 158935.514 | AO58: 1862.07072 | AP58: 14217.72492 | AQ58: 712481.0367 | AR58: 791266.8237 | AS58: 26907.89327 | AT58: 0.008492530621 | AU58: 601110.6759 | AV58: 26682.09194 | AW58: 61977.51486 | AX58: 70485.44895 | AY58: 44832.73846 | AZ58: 2796.475484 | BA58: 2197.691844 | BB58: 38.33219503 | BC58: 7127.117761 | BD58: 36738.44083 | BE58: 294.1079161 | BF58: 49247.16597 | BG58: 5082.912681 | BH58: 38814.9721 | BI58: 729.3030156 | BJ58: 906.9984101 | BK58: 151244.8853 | BL58: 63734.81228 | BM58: 5532.201487 | BN58: 16.07558842 | BO58: 33039.5949 | BP58: 14283.10042 | BQ58: 255008.5724 | BR58: 478321.3219 | BS58: 218322.896 | BT58: 60842.02631 | BU58: 530.5330202 | BV58: 23945.12707 | BW58: 6320.270221 | BX58: 402889.577 | BY58: 209.5261714 | BZ58: 229705.9669 | CA58: 12053.06471 | CB58: 12277.88824 | CC58: 4105.852898 | CD58: 4995462.459 | CE58: 281007.2743 | CF58: 20973.06403 | CG58: 1366.58191 | CH58: 161783.4021 | CI58: 9131.389975 | CJ58: 38.066339 | CK58: 16428.40906 | CL58: 878.7229155 | CM58: 15965.00795 | CN58: 390650.0705 | CO58: 5026.447578 | CP58: 8422.291217 | CQ58: 23986.10085 | CR58: 31338.63128 | CS58: 3949.986072 | CT58: 4665.224236 | CU58: 3106.471967 | CV58: 170889.2005 | CW58: 21686.9149 | CX58: 110450.2434 | CY58: 416047.1048 | CZ58: 230225.7551 | DA58: 28815.38692 | DB58: 13760.9824 | DC58: 15645.32825 | DD58: 17049.24856 | DE58: 7433.85021 | DF58: 31393.53536 | DG58: 1806.867727 | DH58: 5686.225332 | DI58: 51432.17675 | DJ58: 913.3068163 | DK58: 149617.5002 | DL58: 987.0968708 | DM58: 6483.864263 | DN58: 25778.87442 | DO58: 46789.90969 | DP58: 10234.55247 | DQ58: 29589.16531 | DR58: 17046.71776 | DS58: 14486.10688 | DT58: 375412.7382 | DU58: 5573.382067 | DV58: 17172.05461 | DW58: 72367.0816 | DX58: 95767.79804 | DY58: 2438.986782 | DZ58: 20741.14335 | EA58: 20539.95118 | EB58: 398501.2552 | EC58: 115.7555085 | ED58: 12425.98829 | EE58: 74692.32528 | EF58: 29329.74023 | EG58: 61392.10473 | EH58: 41983.08532 | EI58: 23356.64237 | EJ58: 15525.78987 | EK58: 47391.35347 | EL58: 77401.21888 | EM58: 24191.84096 | EN58: 22538.19748 | EO58: 15985.61075 | EP58: 24610.78062 | EQ58: 26926.31032 | ER58: 21974.05508 | ES58: 37915.91742 | ET58: 23732.73031 | EU58: 61111.00963 | EV58: 20419.09831 | EW58: 19845.03769 | EX58: 20999.57743 | EY58: 11117.5479 | EZ58: 431.9154385 | FA58: 20811.83586 | FB58: 20150.52131 | FC58: 22637.12906 | FD58: 344822.3405 | FE58: 23400.31696 | FF58: 20887.61285 | FG58: 444.2072185 | FH58: 23737.27911 | FI58: 116177.7115 | FJ58: 20712.79447 | FK58: 19520.32635 | FL58: 22140.62117 | FM58: 20324.34048 | FN58: 16751.20939 | FO58: 47360.11668 | FP58: 12511.77487 | FQ58: 21971.61857 | FR58: 29492.08366 | FS58: 12667.37298 | FT58: 6321.018335 | FU58: 47581.23094 | FV58: 69947.32789 | FW58: 25027.49051 | FX58: 24665.30463 | FY58: 24630.05357 | FZ58: 0.002914573984 | GA58: 208.2206378 | GB58: 19396.11167 | GC58: 16693.4985 | GD58: 23885.00921 | GE58: 1724.73713 | GF58: 28736.96628 | GG58: 22022.66242 | GH58: 3222.06689 | GI58: 4682.144445 | GJ58: 56297.12786 | GK58: 55287.77834 | GL58: 23924.98828 | GM58: 835307.0229 | GN58: 505.1546773 | GO58: 14230.85713 | GP58: 15914.07039 | GQ58: 57735.66573 | GR58: 22487.82066 | GS58: 12593.56951 | GT58: 90163.46399 | GU58: 18336.77728 | GV58: 20682.30529 | GW58: 26220.69838 | GX58: 25440.95147 | GY58: 19740.00324 | GZ58: 16015.32286 | HA58: 19009.05138 | HB58: 2084876.717 | HC58: 307077.776 | HD58: 197220.3564 | HE58: 1087067.132 | HF58: 575511.4538 | HG58: 137602.7309 | HH58: 73359.16131 | HI58: 77845.67869 | HJ58: 43456.82966 | HK58: 36976.28609 | HL58: 88756.90828 | HM58: 5426.091671 | HN58: 1504.427094 | HO58: 272324.01 | HP58: 77004.92944 | HQ58: 5599.513068 | HR58: 835.3785833 | HS58: 18225.88868 | HT58: 13370.35532 | HU58: 29268.19971 | HV58: 25865.28835 | HW58: 1280429.609 | HX58: 907525.008 | HY58: 12376.84385 | HZ58: 17923.17709 | IA58: 84581.45924 | IB58: 48639953.66
A59: =+MATCH(B59,RUT[EMPRESA],0) -> 34 | B59: CARDONES SA | C59: -1360549.002 | D59: -1360549.002 | F59: =IFERROR(INDEX($B$9:$B$511,MATCH(0,INDEX(COUNTIF($F$8:F58,$B$9:$B$511),0,0),0)),"") -> CARDONES SA | G59: -1360549.002 | J59: HIDROANGOL | K59: 112448999.3 | L59: 1794658.054 | M59: 1984850.037 | N59: 58644401.59 | O59: 11430010.75 | P59: 4881994.664 | Q59: 390998.7395 | R59: 138785.982 | S59: 2674061.044 | T59: 862601.9521 | U59: 113576.5425 | V59: 20319484.62 | W59: 362078.5896 | X59: 142543.1525 | Y59: 143971.6317 | Z59: 632954.6053 | AA59: 7153182.75 | AB59: 515476.1751 | AC59: 303855.8427 | AD59: 111554.0023 | AE59: 2427695.81 | AF59: 10700.1666 | AG59: 127404.5911 | AH59: 203353.7765 | AI59: 54710.02027 | AJ59: 1126031.986 | AK59: 348253.4346 | AL59: 761404.2594 | AM59: 1420573.174 | AN59: 1474097.98 | AO59: 17270.3672 | AP59: 131866.8123 | AQ59: 6608132.008 | AR59: 7338855.851 | AS59: 249565.8153 | AT59: 0.07876667664 | AU59: 5575192.171 | AV59: 247471.5491 | AW59: 574830.176 | AX59: 653739.717 | AY59: 415815.4937 | AZ59: 25936.8014 | BA59: 20383.19207 | BB59: 355.5241359 | BC59: 66102.72074 | BD59: 340742.3556 | BE59: 2727.797421 | BF59: 456758.5058 | BG59: 47143.09049 | BH59: 360001.8054 | BI59: 6764.152802 | BJ59: 8412.245262 | BK59: 1402768.798 | BL59: 591128.7899 | BM59: 51310.16243 | BN59: 149.0981583 | BO59: 306436.2325 | BP59: 132473.1582 | BQ59: 2365158.12 | BR59: 4436343.25 | BS59: 2024905.145 | BT59: 564298.7263 | BU59: 4920.597253 | BV59: 222086.6977 | BW59: 58619.35658 | BX59: 3736727.537 | BY59: 1943.317125 | BZ59: 2130481.057 | CA59: 111789.9826 | CB59: 113875.1799 | CC59: 38081.03873 | CD59: 46332005.58 | CE59: 2606291.351 | CF59: 194521.3537 | CG59: 12674.79862 | CH59: 1500511.625 | CI59: 84691.98093 | CJ59: 353.0583696 | CK59: 152370.5055 | CL59: 8149.995193 | CM59: 148072.5445 | CN59: 3623208.341 | CO59: 46619.38692 | CP59: 78115.21894 | CQ59: 222466.7221 | CR59: 290660.1044 | CS59: 36635.40228 | CT59: 43269.10614 | CU59: 28811.9624 | CV59: 1584966.248 | CW59: 201142.1907 | CX59: 1024405.916 | CY59: 3858761.214 | CZ59: 2135301.998 | DA59: 267257.4719 | DB59: 127630.6085 | DC59: 145107.5735 | DD59: 158128.679 | DE59: 68947.60841 | DF59: 291169.3297 | DG59: 16758.36948 | DH59: 52738.70558 | DI59: 477024.0833 | DJ59: 8470.754582 | DK59: 1387675.098 | DL59: 9155.143914 | DM59: 60136.66156 | DN59: 239094.3709 | DO59: 433967.9009 | DP59: 94923.61242 | DQ59: 274434.1257 | DR59: 158105.2062 | DS59: 134356.0061 | DT59: 3481884.856 | DU59: 51692.10482 | DV59: 159267.6827 | DW59: 671191.5175 | DX59: 888228.9057 | DY59: 22621.15873 | DZ59: 192370.3315 | EA59: 190504.3108 | EB59: 3696026.651 | EC59: 1073.611284 | ED59: 115248.781 | EE59: 692757.7297 | EF59: 272028.0053 | EG59: 569400.6036 | EH59: 389385.4792 | EI59: 216628.6092 | EJ59: 143998.8767 | EK59: 439546.1825 | EL59: 717882.2251 | EM59: 224374.9242 | EN59: 209037.6817 | EO59: 148263.6317 | EP59: 228260.5134 | EQ59: 249736.6301 | ER59: 203805.3635 | ES59: 351663.2368 | ET59: 220116.7564 | EU59: 566793.4977 | EV59: 189383.4224 | EW59: 184059.1145 | EX59: 194767.2606 | EY59: 103113.2344 | EZ59: 4005.937122 | FA59: 193025.9918 | FB59: 186892.4196 | FC59: 209955.2541 | FD59: 3198164.481 | FE59: 217033.683 | FF59: 193728.8096 | FG59: 4119.941146 | FH59: 220158.9457 | FI59: 1077527.14 | FJ59: 192107.4009 | FK59: 181047.476 | FL59: 205350.2338 | FM59: 188504.5608 | FN59: 155364.4199 | FO59: 439256.467 | FP59: 116044.4359 | FQ59: 203782.7654 | FR59: 273533.7111 | FS59: 117487.5801 | FT59: 58626.29521 | FU59: 441307.2615 | FV59: 648748.7421 | FW59: 232125.4218 | FX59: 228766.2136 | FY59: 228439.2664 | FZ59: 0.02703214351 | GA59: 1931.208539 | GB59: 179895.4074 | GC59: 154829.1618 | GD59: 221529.1156 | GE59: 15996.62313 | GF59: 266530.1347 | GG59: 204256.1878 | GH59: 29884.08428 | GI59: 43426.038 | GJ59: 522145.6199 | GK59: 512784.0868 | GL59: 221899.9142 | GM59: 7747320.687 | GN59: 4685.21774 | GO59: 131988.6111 | GP59: 147600.108 | GQ59: 535487.797 | GR59: 208570.4459 | GS59: 116803.0663 | GT59: 836249.7269 | GU59: 170070.2736 | GV59: 191824.6193 | GW59: 243192.2076 | GX59: 235960.1969 | GY59: 183084.9392 | GZ59: 148539.2062 | HA59: 176305.4936 | HB59: 19336852.29 | HC59: 2848090.512 | HD59: 1829182.93 | HE59: 10082349.9 | HF59: 5337764.043 | HG59: 1276240.298 | HH59: 680392.8764 | HI59: 722004.5089 | HJ59: 403054.1899 | HK59: 342948.3271 | HL59: 823204.1785 | HM59: 50326.01319 | HN59: 13953.28763 | HO59: 2525755.654 | HP59: 714206.7127 | HQ59: 51934.4651 | HR59: 7747.984396 | HS59: 169041.802 | HT59: 124007.6134 | HU59: 271457.2281 | HV59: 239895.8443 | HW59: 11875751.7 | HX59: 8417129.362 | HY59: 114792.9753 | HZ59: 166234.2071 | IA59: 784477.6483 | IB59: 451126722.2
A60: =+MATCH(B60,RUT[EMPRESA],0) -> 32 | B60: CAPULLO | C60: -15118460.83 | D60: -15118460.83 | F60: =IFERROR(INDEX($B$9:$B$511,MATCH(0,INDEX(COUNTIF($F$8:F59,$B$9:$B$511),0,0),0)),"") -> CAPULLO | G60: -15118460.83 | J60: TRANSELEC | K60: 6094678.847 | L60: 97269.55812 | M60: 107577.8673 | N60: 3178496.883 | O60: 619500.7975 | P60: 264601.6397 | Q60: 21191.93377 | R60: 7522.129977 | S60: 144932.7551 | T60: 46752.58919 | U60: 6155.791113 | V60: 1101305.782 | W60: 19624.47629 | X60: 7725.766715 | Y60: 7803.189565 | Z60: 34305.81923 | AA60: 387698.8844 | AB60: 27938.54778 | AC60: 16468.83288 | AD60: 6046.170461 | AE60: 131579.8841 | AF60: 579.9436136 | AG60: 6905.264349 | AH60: 11021.67176 | AI60: 2965.255407 | AJ60: 61030.36369 | AK60: 18875.15989 | AL60: 41267.72547 | AM60: 76994.34702 | AN60: 79895.3644 | AO60: 936.0451607 | AP60: 7147.114481 | AQ60: 358157.4101 | AR60: 397762.2725 | AS60: 13526.34087 | AT60: 0.004269114006 | AU60: 302172.5938 | AV60: 13412.8327 | AW60: 31155.50459 | AX60: 35432.36177 | AY60: 22536.98929 | AZ60: 1405.761508 | BA60: 1104.758693 | BB60: 19.26922822 | BC60: 3582.734006 | BD60: 18468.0632 | BE60: 147.8452395 | BF60: 24756.07982 | BG60: 2555.131643 | BH60: 19511.91564 | BI60: 366.6136581 | BJ60: 455.9394353 | BK60: 76029.35883 | BL60: 32038.88121 | BM60: 2780.984833 | BN60: 8.081044711 | BO60: 16608.68869 | BP60: 7179.978121 | BQ60: 128190.373 | BR60: 240447.5586 | BS60: 109748.8339 | BT60: 30584.70534 | BU60: 266.6938805 | BV60: 12036.9866 | BW60: 3177.139456 | BX60: 202528.7412 | BY60: 105.3268045 | BZ60: 115470.9949 | CA60: 6058.960474 | CB60: 6171.977113 | CC60: 2063.973024 | CD60: 2511171.251 | CE60: 141259.6721 | CF60: 10542.95891 | CG60: 686.9676699 | CH60: 81326.97056 | CI60: 4590.262499 | CJ60: 19.13558493 | CK60: 8258.404277 | CL60: 441.7256143 | CM60: 8025.456966 | CN60: 196376.0581 | CO60: 2526.747174 | CP60: 4233.805328 | CQ60: 12057.58373 | CR60: 15753.63054 | CS60: 1985.62026 | CT60: 2345.163652 | CU60: 1561.593779 | CV60: 85904.36842 | CW60: 10901.80492 | CX60: 55522.28213 | CY60: 209142.9046 | CZ60: 115732.2875 | DA60: 14485.2197 | DB60: 6917.514377 | DC60: 7864.757036 | DD60: 8570.494363 | DE60: 3736.925477 | DF60: 15781.23029 | DG60: 908.2951434 | DH60: 2858.411148 | DI60: 25854.46387 | DJ60: 459.1106108 | DK60: 75211.28792 | DL60: 496.2041662 | DM60: 3259.376618 | DN60: 12958.79388 | DO60: 23520.84057 | DP60: 5144.811747 | DQ60: 14874.19071 | DR60: 8569.222152 | DS60: 7282.027526 | DT60: 188716.3968 | DU60: 2801.685917 | DV60: 8632.227789 | DW60: 36378.24052 | DX60: 48141.55711 | DY60: 1226.055353 | DZ60: 10426.3746 | EA60: 10325.23722 | EB60: 200322.7737 | EC60: 58.1891882 | ED60: 6246.425597 | EE60: 37547.1183 | EF60: 14743.7802 | EG60: 30861.22451 | EH60: 21104.49588 | EI60: 11741.16097 | EJ60: 7804.666232 | EK60: 23823.18061 | EL60: 38908.85324 | EM60: 12161.00732 | EN60: 11329.73654 | EO60: 8035.813795 | EP60: 12371.60429 | EQ60: 13535.59894 | ER60: 11046.14755 | ES60: 19059.96944 | ET60: 11930.21678 | EU60: 30719.92069 | EV60: 10264.48564 | EW60: 9975.910845 | EX60: 10556.28694 | EY60: 5588.685114 | EZ60: 217.1197644 | FA60: 10461.91105 | FB60: 10129.47454 | FC60: 11379.4685 | FD60: 173338.8961 | FE60: 11763.11577 | FF60: 10500.00342 | FG60: 223.2987248 | FH60: 11932.50342 | FI60: 58401.4256 | FJ60: 10412.12389 | FK60: 9812.681561 | FL60: 11129.87873 | FM60: 10216.85178 | FN60: 8420.67292 | FO60: 23807.47818 | FP60: 6289.549691 | FQ60: 11044.92274 | FR60: 14825.38869 | FS60: 6367.767372 | FT60: 3177.515526 | FU60: 23918.6302 | FV60: 35161.85345 | FW60: 12581.08037 | FX60: 12399.01298 | FY60: 12381.29261 | FZ60: 0.001465128496 | GA60: 104.6705253 | GB60: 9750.240025 | GC60: 8391.662204 | GD60: 12006.76593 | GE60: 867.008877 | GF60: 14445.7984 | GG60: 11070.58199 | GH60: 1619.702242 | GI60: 2353.669279 | GJ60: 28300.02831 | GK60: 27792.63795 | GL60: 12026.86303 | GM60: 419900.8599 | GN60: 253.93643 | GO60: 7153.715917 | GP60: 7999.851144 | GQ60: 29023.16755 | GR60: 11304.4126 | GS60: 6330.667071 | GT60: 45324.31193 | GU60: 9217.722746 | GV60: 10396.79727 | GW60: 13180.89456 | GX60: 12788.92324 | GY60: 9923.111032 | GZ60: 8050.74979 | HA60: 9555.668515 | HB60: 1048047.607 | HC60: 154365.0642 | HD60: 99140.78894 | HE60: 546458.2615 | HF60: 289304.1094 | HG60: 69171.57818 | HH60: 36876.94951 | HI60: 39132.27894 | HJ60: 21845.33308 | HK60: 18587.62574 | HL60: 44617.24981 | HM60: 2727.644442 | HN60: 756.2611269 | HO60: 136894.678 | HP60: 38709.64232 | HQ60: 2814.821722 | HR60: 419.9368326 | HS60: 9161.980108 | HT60: 6721.149881 | HU60: 14712.84436 | HV60: 13002.23333 | HW60: 643659.7314 | HX60: 456204.151 | HY60: 6221.721156 | HZ60: 9009.809884 | IA60: 42518.29147 | IB60: 24450840
A61: =+MATCH(B61,RUT[EMPRESA],0) -> 24 | B61: BE FORESTALES | C61: 778592120.3 | D61: 778592120.3 | F61: =IFERROR(INDEX($B$9:$B$511,MATCH(0,INDEX(COUNTIF($F$8:F60,$B$9:$B$511),0,0),0)),"") -> BE FORESTALES | H61: 778592120.3 | J61: STS | K61: 6312187.596 | L61: 100740.9436 | M61: 111417.1389 | N61: 3291932.044 | O61: 641609.73 | P61: 274044.8234 | Q61: 21948.23794 | R61: 7790.582035 | S61: 150105.1592 | T61: 48421.10978 | U61: 6375.480855 | V61: 1140609.517 | W61: 20324.84056 | X61: 8001.486223 | Y61: 8081.672162 | Z61: 35530.13572 | AA61: 401535.1999 | AB61: 28935.62715 | AC61: 17056.57758 | AD61: 6261.948028 | AE61: 136275.747 | AF61: 600.6408173 | AG61: 7151.701519 | AH61: 11415.01653 | AI61: 3071.080342 | AJ61: 63208.43384 | AK61: 19548.78232 | AL61: 42740.50058 | AM61: 79742.14465 | AN61: 82746.69442 | AO61: 969.4510245 | AP61: 7402.182872 | AQ61: 370939.4405 | AR61: 411957.7332 | AS61: 14009.07303 | AT61: 0.004421471442 | AU61: 312956.621 | AV61: 13891.51394 | AW61: 32267.39169 | AX61: 36696.88265 | AY61: 23341.29621 | AZ61: 1455.930751 | BA61: 1144.185657 | BB61: 19.95691428 | BC61: 3710.595705 | BD61: 19127.15705 | BE61: 153.1215853 | BF61: 25639.58232 | BG61: 2646.319956 | BH61: 20208.2628 | BI61: 379.6974777 | BJ61: 472.2111403 | BK61: 78742.71767 | BL61: 33182.29453 | BM61: 2880.233463 | BN61: 8.369443488 | BO61: 17201.42462 | BP61: 7436.219359 | BQ61: 132765.2699 | BR61: 249028.7241 | BS61: 113665.5836 | BT61: 31676.22159 | BU61: 276.2117327 | BV61: 12466.56624 | BW61: 3290.526173 | BX61: 209756.6483 | BY61: 109.0857395 | BZ61: 119591.9588 | CA61: 6275.194495 | CB61: 6392.244506 | CC61: 2137.63272 | CD61: 2600790.693 | CE61: 146300.9901 | CF61: 10919.21923 | CG61: 711.4843807 | CH61: 84229.39217 | CI61: 4754.08118 | CJ61: 19.81850149 | CK61: 8553.132715 | CL61: 457.4900521 | CM61: 8311.87191 | CN61: 203384.3865 | CO61: 2616.922495 | CP61: 4384.902658 | CQ61: 12487.89844 | CR61: 16315.85088 | CS61: 2056.483679 | CT61: 2428.858564 | CU61: 1617.324411 | CV61: 88970.14959 | CW61: 11290.87185 | CX61: 57503.77819 | CY61: 216606.8601 | CZ61: 119862.5765 | DA61: 15002.17262 | DB61: 7164.38873 | DC61: 8145.436873 | DD61: 8876.360767 | DE61: 3870.290008 | DF61: 16344.43563 | DG61: 940.7106562 | DH61: 2960.422993 | DI61: 26777.16582 | DJ61: 475.4954896 | DK61: 77895.4512 | DL61: 513.9128511 | DM61: 3375.69824 | DN61: 13421.27125 | DO61: 24360.25947 | DP61: 5328.42135 | DQ61: 15405.02534 | DR61: 8875.043154 | DS61: 7541.910735 | DT61: 195451.3649 | DU61: 2901.673334 | DV61: 8940.297355 | DW61: 37676.51821 | DX61: 49859.64761 | DY61: 1269.811189 | DZ61: 10798.47422 | EA61: 10693.72742 | EB61: 207471.9537 | EC61: 60.26586161 | ED61: 6469.34993 | EE61: 38887.11126 | EF61: 15269.9607 | EG61: 31962.60926 | EH61: 21857.67954 | EI61: 12160.18309 | EJ61: 8083.20153 | EK61: 24673.38951 | EL61: 40297.4442 | EM61: 12595.01304 | EN61: 11734.07562 | EO61: 8322.598357 | EP61: 12813.12586 | EQ61: 14018.66151 | ER61: 11440.36581 | ES61: 19740.18741 | ET61: 12355.98598 | EU61: 31816.26254 | EV61: 10630.80772 | EW61: 10331.93418 | EX61: 10933.02291 | EY61: 5788.135804 | EZ61: 224.8684005 | FA61: 10835.27891 | FB61: 10490.97831 | FC61: 11785.58243 | FD61: 179525.0673 | FE61: 12182.92141 | FF61: 10874.73073 | FG61: 231.2678774 | FH61: 12358.35422 | FI61: 60485.67341 | FJ61: 10783.71493 | FK61: 10162.87952 | FL61: 11527.08522 | FM61: 10581.47389 | FN61: 8721.192451 | FO61: 24657.12669 | FP61: 6514.013049 | FQ61: 11439.09729 | FR61: 15354.48166 | FS61: 6595.022186 | FT61: 3290.915665 | FU61: 24772.24554 | FV61: 36416.72035 | FW61: 13030.07778 | FX61: 12841.51272 | FY61: 12823.15994 | FZ61: 0.001517416446 | GA61: 108.4060388 | GB61: 10098.20955 | GC61: 8691.146392 | GD61: 12435.26704 | GE61: 897.950953 | GF61: 14961.34443 | GG61: 11465.67228 | GH61: 1677.506667 | GI61: 2437.667743 | GJ61: 29310.00831 | GK61: 28784.51005 | GL61: 12456.08137 | GM61: 434886.4092 | GN61: 262.9989904 | GO61: 7409.019902 | GP61: 8285.35226 | GQ61: 30058.95517 | GR61: 11707.84791 | GS61: 6556.59784 | GT61: 46941.85973 | GU61: 9546.687634 | GV61: 10767.84133 | GW61: 13651.29833 | GX61: 13245.33822 | GY61: 10277.25003 | GZ61: 8338.067393 | HA61: 9896.694114 | HB61: 1085450.648 | HC61: 159874.0915 | HD61: 102678.9555 | HE61: 565960.4298 | HF61: 299628.8822 | HG61: 71640.19446 | HH61: 38193.02528 | HI61: 40528.84359 | HJ61: 22624.95596 | HK61: 19250.98657 | HL61: 46209.56376 | HM61: 2824.989445 | HN61: 783.2508035 | HO61: 141780.2168 | HP61: 40091.12379 | HQ61: 2915.277934 | HR61: 434.9236657 | HS61: 9488.955636 | HT61: 6961.016318 | HU61: 15237.92082 | HV61: 13466.26098 | HW61: 666630.8553 | HX61: 472485.3032 | HY61: 6443.763829 | HZ61: 9331.354714 | IA61: 44035.69716 | IB61: 25323449
A62: =+MATCH(B62,RUT[EMPRESA],0) -> 10 | B62: ALLIPEN | C62: 34560135.72 | D62: 34560135.72 | F62: =IFERROR(INDEX($B$9:$B$511,MATCH(0,INDEX(COUNTIF($F$8:F61,$B$9:$B$511),0,0),0)),"") -> ALLIPEN | H62: 34560135.72 | J62: ELETRANS | K62: 134254.3076 | L62: 2142.665349 | M62: 2369.738006 | N62: 70016.30586 | O62: 13646.43695 | P62: 5828.676265 | Q62: 466.8184276 | R62: 165.6983702 | S62: 3192.595898 | T62: 1029.871573 | U62: 135.6004959 | V62: 24259.69422 | W62: 432.2902884 | X62: 170.1841044 | Y62: 171.8895841 | Z62: 755.6926499 | AA62: 8540.276954 | AB62: 615.4336402 | AC62: 362.7774015 | AD62: 133.1857592 | AE62: 2898.457275 | AF62: 12.77506662 | AG62: 152.1099811 | AH62: 242.7866911 | AI62: 65.31899736 | AJ62: 1344.384081 | AK62: 415.7842579 | AL62: 909.0503452 | AM62: 1696.040597 | AN62: 1759.944552 | AO62: 20.61931368 | AP62: 157.4374844 | AQ62: 7889.533858 | AR62: 8761.954458 | AS62: 297.959839 | AT62: 9.404054904e-05 | AU62: 6656.293691 | AV62: 295.4594676 | AW62: 686.2971458 | AX62: 780.5082624 | AY62: 496.4474699 | AZ62: 30.96628103 | BA62: 24.33575537 | BB62: 0.4244648418 | BC62: 78.9208891 | BD62: 406.816684 | BE62: 3.25675245 | BF62: 545.329859 | BG62: 56.28474251 | BH62: 429.810789 | BI62: 8.075809091 | BJ62: 10.04348789 | BK62: 1674.783723 | BL62: 705.7562706 | BM62: 61.25986333 | BN62: 0.1780102102 | BO62: 365.8581621 | BP62: 158.1614086 | BQ62: 2823.792722 | BR62: 5296.607305 | BS62: 2417.560315 | BT62: 673.7235123 | BU62: 5.874764393 | BV62: 265.1521668 | BW62: 69.9864043 | BX62: 4461.327102 | BY62: 2.320151328 | BZ62: 2543.608755 | CA62: 133.4674991 | CB62: 135.957043 | CC62: 45.46544228 | CD62: 55316.3778 | CE62: 3111.68479 | CF62: 232.2415478 | CG62: 15.13260521 | CH62: 1791.480142 | CI62: 101.1148461 | CJ62: 0.4215209317 | CK62: 181.9171077 | CL62: 9.730384158 | CM62: 176.7857168 | CN62: 4325.795072 | CO62: 55.65948608 | CP62: 93.26276531 | CQ62: 265.6058828 | CR62: 347.0228396 | CS62: 43.73947831 | CT62: 51.65954273 | CU62: 34.39897275 | CV62: 1892.311604 | CW62: 240.1462503 | CX62: 1223.051408 | CY62: 4607.024679 | CZ62: 2549.364539 | DA62: 319.0821355 | DB62: 152.3798262 | DC62: 173.2457997 | DD62: 188.7918651 | DE62: 82.3174371 | DF62: 347.6308104 | DG62: 20.00803302 | DH62: 62.96541939 | DI62: 569.5251928 | DJ62: 10.11334292 | DK62: 1656.76316 | DL62: 10.93044415 | DM62: 71.79793425 | DN62: 285.4578467 | DO62: 518.1198624 | DP62: 113.3305226 | DQ62: 327.6504349 | DR62: 188.7638407 | DS62: 160.409365 | DT62: 4157.067145 | DU62: 61.71586927 | DV62: 190.1517363 | DW62: 801.3441916 | DX62: 1060.467923 | DY62: 27.00769256 | DZ62: 229.6734148 | EA62: 227.4455486 | EB62: 4412.733789 | EC62: 1.281798331 | ED62: 137.597003 | EE62: 827.0923699 | EF62: 324.7777367 | EG62: 679.8147093 | EH62: 464.8923354 | EI62: 258.6356847 | EJ62: 171.9221123 | EK62: 524.7798447 | EL62: 857.0888283 | EM62: 267.8841099 | EN62: 249.5727787 | EO62: 177.0138582 | EP62: 272.5231648 | EQ62: 298.163777 | ER62: 243.3258467 | ES62: 419.8552647 | ET62: 262.8002285 | EU62: 676.702052 | EV62: 226.1073055 | EW62: 219.7505459 | EX62: 232.5351393 | EY62: 123.1082177 | EZ62: 4.782739891 | FA62: 230.456216 | FB62: 223.1332652 | FC62: 250.6682802 | FD62: 3818.329738 | FE62: 259.1193076 | FF62: 231.2953192 | FG62: 4.918850762 | FH62: 262.8505989 | FI62: 1286.473522 | FJ62: 229.3594985 | FK62: 216.1549118 | FL62: 245.1702872 | FM62: 225.0580214 | FN62: 185.4915806 | FO62: 524.4339496 | FP62: 138.5469457 | FQ62: 243.2988665 | FR62: 326.5754183 | FS62: 140.269934 | FT62: 69.99468842 | FU62: 526.8824195 | FV62: 774.5494731 | FW62: 277.1375287 | FX62: 273.1269268 | FY62: 272.7365803 | FZ62: 3.227402406e-05 | GA62: 2.305694731 | GB62: 214.7794423 | GC62: 184.8525291 | GD62: 264.4864623 | GE62: 19.09857425 | GF62: 318.2137583 | GG62: 243.8640916 | GH62: 35.67899286 | GI62: 51.8469057 | GJ62: 623.3963761 | GK62: 612.2195212 | GL62: 264.9291636 | GM62: 9249.625883 | GN62: 5.593741763 | GO62: 157.5829017 | GP62: 176.2216687 | GQ62: 639.325773 | GR62: 249.0149398 | GS62: 139.4526842 | GT62: 998.4093123 | GU62: 203.0490886 | GV62: 229.0218819 | GW62: 290.3503068 | GX62: 281.7159161 | GY62: 218.5874653 | GZ62: 177.3428701 | HA62: 210.493398 | HB62: 23086.51683 | HC62: 3400.37192 | HD62: 2183.885043 | HE62: 12037.44732 | HF62: 6372.825193 | HG62: 1523.719718 | HH62: 812.3298124 | HI62: 862.0104761 | HJ62: 481.211585 | HK62: 409.4504218 | HL62: 982.8340641 | HM62: 60.08487489 | HN62: 16.65900969 | HO62: 3015.532184 | HP62: 852.7005867 | HQ62: 62.00522633 | HR62: 9.250418294 | HS62: 201.8211832 | HT62: 148.0542858 | HU62: 324.0962786 | HV62: 286.4147361 | HW62: 14178.61281 | HX62: 10049.31908 | HY62: 137.0528107 | HZ62: 198.4691594 | IA62: 936.5979612 | IB62: 538606
A63: =+MATCH(B63,RUT[EMPRESA],0) -> 90 | B63: EL CANELO | C63: 80276738.78 | D63: 80276738.78 | F63: =IFERROR(INDEX($B$9:$B$511,MATCH(0,INDEX(COUNTIF($F$8:F62,$B$9:$B$511),0,0),0)),"") -> EL CANELO | H63: 80276738.78 | J63: TEN | K63: 1375073.086 | L63: 21945.82435 | M63: 24271.57095 | N63: 717128.1092 | O63: 139770.9206 | P63: 59699.0592 | Q63: 4781.295045 | R63: 1697.132653 | S63: 32699.52951 | T63: 10548.25508 | U63: 1388.861152 | V63: 248475.1006 | W63: 4427.647436 | X63: 1743.076895 | Y63: 1760.544932 | Z63: 7740.031904 | AA63: 87472.09079 | AB63: 6303.456848 | AC63: 3715.675496 | AD63: 1364.12869 | AE63: 29686.87307 | AF63: 130.846083 | AG63: 1557.956276 | AH63: 2486.694472 | AI63: 669.0168596 | AJ63: 13769.58699 | AK63: 4258.587697 | AL63: 9310.767644 | AM63: 17371.35902 | AN63: 18025.88258 | AO63: 211.1892259 | AP63: 1612.522171 | AQ63: 80806.98385 | AR63: 89742.57861 | AS63: 3051.794483 | AT63: 0.0009631916492 | AU63: 68175.76634 | AV63: 3026.184925 | AW63: 7029.262232 | AX63: 7994.200886 | AY63: 5084.764627 | AZ63: 317.1659842 | BA63: 249.2541418 | BB63: 4.347496853 | BC63: 808.3315347 | BD63: 4166.739101 | BE63: 33.35664026 | BF63: 5585.432791 | BG63: 576.4852983 | BH63: 4402.251656 | BI63: 82.71487094 | BJ63: 102.8684303 | BK63: 17153.63971 | BL63: 7228.568454 | BM63: 627.4419853 | BN63: 1.823234229 | BO63: 3747.229574 | BP63: 1619.93682 | BQ63: 28922.13621 | BR63: 54249.44854 | BS63: 24761.38145 | BT63: 6900.479289 | BU63: 60.1711077 | BV63: 2715.768416 | BW63: 716.8218483 | BX63: 45694.25692 | BY63: 23.76368924 | BZ63: 26052.40757 | CA63: 1367.014356 | CB63: 1392.513015 | CC63: 465.6707641 | CD63: 566567.015 | CE63: 31870.81355 | CF63: 2378.687935 | CG63: 154.9927039 | CH63: 18348.8796 | CI63: 1035.648732 | CJ63: 4.317344438 | CK63: 1863.249851 | CL63: 99.66152751 | CM63: 1810.692598 | CN63: 44306.09702 | CO63: 570.0812335 | CP63: 955.2253538 | CQ63: 2720.415512 | CR63: 3554.312524 | CS63: 447.992921 | CT63: 529.112608 | CU63: 352.3246475 | CV63: 19381.62583 | CW63: 2459.650281 | CX63: 12526.86118 | CY63: 47186.53542 | CZ63: 26111.36005 | DA63: 3268.13541 | DB63: 1560.72011 | DC63: 1774.4357 | DD63: 1933.663188 | DE63: 843.1200031 | DF63: 3560.539543 | DG63: 204.928305 | DH63: 644.9108046 | DI63: 5833.248693 | DJ63: 103.5839066 | DK63: 16969.06767 | DL63: 111.9529037 | DM63: 735.3760841 | DN63: 2923.74531 | DO63: 5306.739804 | DP63: 1160.765373 | DQ63: 3355.894516 | DR63: 1933.376154 | DS63: 1642.961067 | DT63: 42577.93473 | DU63: 632.1125356 | DV63: 1947.591399 | DW63: 8207.608754 | DX63: 10861.63211 | DY63: 276.6209279 | DZ63: 2352.384343 | EA63: 2329.565866 | EB63: 45196.54957 | EC63: 13.12856487 | ED63: 1409.30998 | EE63: 8471.329357 | EF63: 3326.471475 | EG63: 6962.867164 | EH63: 4761.567428 | EI63: 2649.024641 | EJ63: 1760.878095 | EK63: 5374.95335 | EL63: 8778.562126 | EM63: 2743.7498 | EN63: 2556.199626 | EO63: 1813.029292 | EP63: 2791.264399 | EQ63: 3053.883277 | ER63: 2492.216666 | ES63: 4300.284175 | ET63: 2691.679155 | EU63: 6930.98639 | EV63: 2315.859177 | EW63: 2250.751328 | EX63: 2381.694988 | EY63: 1260.911474 | EZ63: 48.98626358 | FA63: 2360.402029 | FB63: 2285.39816 | FC63: 2567.420083 | FD63: 39108.4841 | FE63: 2653.978053 | FF63: 2368.996377 | FG63: 50.38035215 | FH63: 2692.195063 | FI63: 13176.44958 | FJ63: 2349.169118 | FK63: 2213.923761 | FL63: 2511.107981 | FM63: 2305.112092 | FN63: 1899.86068 | FO63: 5371.410588 | FP63: 1419.039579 | FQ63: 2491.940326 | FR63: 3344.883871 | FS63: 1436.686944 | FT63: 716.9066968 | FU63: 5396.488555 | FV63: 7933.169171 | FW63: 2838.526104 | FX63: 2797.448311 | FY63: 2793.450265 | FZ63: 0.0003305602826 | GA63: 23.61562042 | GB63: 2199.835787 | GC63: 1893.315322 | GD63: 2708.950069 | GE63: 195.6133542 | GF63: 3259.24123 | GG63: 2497.729532 | GH63: 365.4349993 | GI63: 531.031636 | GJ63: 6385.013589 | GK63: 6270.536873 | GL63: 2713.484349 | GM63: 94737.45634 | GN63: 57.29278921 | GO63: 1614.011578 | GP63: 1804.915448 | GQ63: 6548.167274 | GR63: 2550.486073 | GS63: 1428.316426 | GT63: 10226.00912 | GU63: 2079.689969 | GV63: 2345.711147 | GW63: 2973.85536 | GX63: 2885.419329 | GY63: 2238.838707 | GZ63: 1816.399131 | HA63: 2155.93683 | HB63: 236459.0642 | HC63: 34827.63416 | HD63: 22368.00888 | HE63: 123291.1638 | HF63: 65272.39654 | HG63: 15606.39664 | HH63: 8320.126793 | HI63: 8828.971125 | HJ63: 4928.714101 | HK63: 4193.714638 | HL63: 10066.48273 | HM63: 615.4073996 | HN63: 170.6265986 | HO63: 30885.98958 | HP63: 8733.616432 | HQ63: 635.0762179 | HR63: 94.74557246 | HS63: 2067.113391 | HT63: 1516.416622 | HU63: 3319.491775 | HV63: 2933.546059 | HW63: 145221.6262 | HX63: 102928.1551 | HY63: 1403.736198 | HZ63: 2032.780954 | IA63: 9592.918631 | IB63: 5516565
A64: =+MATCH(B64,RUT[EMPRESA],0) -> 33 | B64: CARBOMET | C64: 91296690.19 | D64: 91296690.19 | F64: =IFERROR(INDEX($B$9:$B$511,MATCH(0,INDEX(COUNTIF($F$8:F63,$B$9:$B$511),0,0),0)),"") -> CARBOMET | H64: 91296690.19 | J64: Total | K64: 1.570383623e+10 | L64: 250629319.3 | M64: 277190193.8 | N64: 8189864596 | O64: 1596234898 | P64: 681785032.7 | Q64: 54604133.5 | R64: 19381873.97 | S64: 373440554.9 | T64: 120464920.7 | U64: 15861300.97 | V64: 2837676286 | W64: 50565348.81 | X64: 19906573.96 | Y64: 20106065.32 | Z64: 88393987.69 | AA64: 998963184.3 | AB64: 71987776.54 | AC64: 42434369.54 | AD64: 15578847.24 | AE64: 339034919.4 | AF64: 1494309.997 | AG64: 17792428.97 | AH64: 28398957.95 | AI64: 7640416.576 | AJ64: 157253706.2 | AK64: 48634624.91 | AL64: 106332362.8 | AM64: 198387256.6 | AN64: 205862154.5 | AO64: 2411857.996 | AP64: 18415591.4 | AQ64: 922845231.8 | AR64: 1024892983 | AS64: 34852606.21 | AT64: 10.99999998 | AU64: 778592120.3 | AV64: 34560135.72 | AW64: 80276738.78 | AX64: 91296690.19 | AY64: 58069866.83 | AZ64: 3622151.233 | BA64: 2846573.221 | BB64: 49649.99991 | BC64: 9231440.984 | BD64: 47585680.45 | BE64: 380944.9993 | BF64: 63787679.89 | BG64: 6583672.393 | BH64: 50275319.73 | BI64: 944633.9983 | BJ64: 1174794.998 | BK64: 195900822.7 | BL64: 82552888.54 | BM64: 7165616.346 | BN64: 20821.99996 | BO64: 42794728.62 | BP64: 18500269.4 | BQ64: 330301345.5 | BR64: 619548491 | BS64: 282784008.5 | BT64: 78805990.59 | BU64: 687175.9988 | BV64: 31015065.94 | BW64: 8186366.985 | BX64: 521845082.1 | BY64: 271389.9995 | BZ64: 297527997.7 | CA64: 15611802.59 | CB64: 15903006.58 | CC64: 5318129.991 | CD64: 6470401980 | CE64: 363976316.4 | CF64: 27165483.9 | CG64: 1770073.216 | CH64: 209550898.2 | CI64: 11827486.3 | CJ64: 49305.64833 | CK64: 21278992.96 | CL64: 1138170.998 | CM64: 20678769.96 | CN64: 505991789.6 | CO64: 6510535.636 | CP64: 10909021.98 | CQ64: 31068137.48 | CR64: 40591545.54 | CS64: 5116242.573 | CT64: 6042658.989 | CU64: 4023675.993 | CV64: 221345236.9 | CW64: 28090103.43 | CX64: 143061324.1 | CY64: 538887446.9 | CZ64: 298201256.5 | DA64: 37323298.51 | DB64: 17823992.97 | DC64: 20264702.96 | DD64: 22083138.96 | DE64: 9628737.983 | DF64: 40662660.38 | DG64: 2340355.996 | DH64: 7365116.634 | DI64: 66617827.88 | DJ64: 1182965.998 | DK64: 193792942.7 | DL64: 1278542.998 | DM64: 8398263.126 | DN64: 33390237.94 | DO64: 60604904.31 | DP64: 13256363.98 | DQ64: 38325539.51 | DR64: 22079860.92 | DS64: 18763214.7 | DT64: 486255545.9 | DU64: 7218955.734 | DV64: 22242204.21 | DW64: 93733885.88 | DX64: 124043800.8 | DY64: 3159111.9 | DZ64: 26865087.29 | EA64: 26604491.95 | EB64: 516161082.6 | EC64: 149932.9997 | ED64: 16094834.05 | EE64: 96745671.37 | EF64: 37989517.65 | EG64: 79518482.88 | EH64: 54378836.92 | EI64: 30252827.7 | EJ64: 20109870.17 | EK64: 61383927.89 | EL64: 100254381.7 | EM64: 31334623.56 | EN64: 29192732.16 | EO64: 20705455.86 | EP64: 31877257.61 | EQ64: 34876461 | ER64: 28462023.42 | ES64: 49110813.9 | ET64: 30739957.8 | EU64: 79154392.81 | EV64: 26447956.57 | EW64: 25704401.18 | EX64: 27199825.54 | EY64: 14400068.97 | EZ64: 559440.999 | FA64: 26956652.18 | FB64: 26100080.64 | FC64: 29320873.88 | FD64: 446633154.2 | FE64: 30309397.46 | FF64: 27054802.77 | FG64: 575361.999 | FH64: 30745849.66 | FI64: 150479860.6 | FJ64: 26828368.24 | FK64: 25283816.93 | FL64: 28677769.13 | FM64: 26325220.94 | FN64: 21697101.98 | FO64: 61343468.26 | FP64: 16205949.61 | FQ64: 28458867.52 | FR64: 38199793.93 | FS64: 16407488.97 | FT64: 8187335.985 | FU64: 61629867.79 | FV64: 90599685.74 | FW64: 32417003.53 | FX64: 31947880.14 | FY64: 31902221 | FZ64: 3.775119007 | GA64: 269698.9995 | GB64: 25122927.13 | GC64: 21622351.61 | GD64: 30937197.94 | GE64: 2233975.859 | GF64: 37221723.72 | GG64: 28524982.36 | GH64: 4173400.993 | GI64: 6064574.989 | GJ64: 72919184.27 | GK64: 71611818.41 | GL64: 30988981.07 | GM64: 1081936309 | GN64: 654304.5517 | GO64: 18432600.97 | GP64: 20612792.8 | GQ64: 74782458.87 | GR64: 29127481.3 | GS64: 16311894.59 | GT64: 116784754.3 | GU64: 23750818.06 | GV64: 26788876.95 | GW64: 33962513 | GX64: 32952541.26 | GY64: 25568354.7 | GZ64: 20743940.64 | HA64: 24621585.03 | HB64: 2700448767 | HC64: 397744286.2 | HD64: 255450820.7 | HE64: 1408030064 | HF64: 745434578.1 | HG64: 178230742.4 | HH64: 95018882.93 | HI64: 100830070.8 | HJ64: 56287712.9 | HK64: 47893750.91 | HL64: 114962904.8 | HM64: 7028176.987 | HN64: 1948617.997 | HO64: 352729267.4 | HP64: 99741085.45 | HQ64: 7252802.067 | HR64: 1082028.998 | HS64: 23607188.96 | HT64: 17318030.97 | HU64: 37909806.93 | HV64: 33502166.08 | HW64: 1658483944 | HX64: 1175477077 | HY64: 16031179.42 | HZ64: 23215100 | IA64: 109554630 | IB64: =SUM($IB$9:$IB$63) -> 6.300118459e+10
A65: =+MATCH(B65,RUT[EMPRESA],0) -> 235 | B65: ORAZUL_CHILE | C65: -7419880.013 | D65: -7419880.013 | F65: =IFERROR(INDEX($B$9:$B$511,MATCH(0,INDEX(COUNTIF($F$8:F64,$B$9:$B$511),0,0),0)),"") -> ORAZUL_CHILE | G65: -7419880.013
A66: =+MATCH(B66,RUT[EMPRESA],0) -> 170 | B66: HIDRONALCAS | C66: 58069866.83 | D66: 58069866.83 | F66: =IFERROR(INDEX($B$9:$B$511,MATCH(0,INDEX(COUNTIF($F$8:F65,$B$9:$B$511),0,0),0)),"") -> HIDRONALCAS | H66: 58069866.83
A67: =+MATCH(B67,RUT[EMPRESA],0) -> 163 | B67: HIDROCALLAO | C67: 3622151.233 | D67: 3622151.233 | F67: =IFERROR(INDEX($B$9:$B$511,MATCH(0,INDEX(COUNTIF($F$8:F66,$B$9:$B$511),0,0),0)),"") -> HIDROCALLAO | H67: 3622151.233
A68: =+MATCH(B68,RUT[EMPRESA],0) -> 280 | B68: RUCATAYO | C68: -168933875.9 | D68: -168933875.9 | F68: =IFERROR(INDEX($B$9:$B$511,MATCH(0,INDEX(COUNTIF($F$8:F67,$B$9:$B$511),0,0),0)),"") -> RUCATAYO | G68: -168933875.9
A69: =+MATCH(B69,RUT[EMPRESA],0) -> 181 | B69: KALTEMP | C69: 2846573.221 | D69: 2846573.221 | F69: =IFERROR(INDEX($B$9:$B$511,MATCH(0,INDEX(COUNTIF($F$8:F68,$B$9:$B$511),0,0),0)),"") -> KALTEMP | H69: 2846573.221
A70: =+MATCH(B70,RUT[EMPRESA],0) -> 127 | B70: ESTANCILLA SPA | C70: 49649.99991 | D70: 49649.99991 | F70: =IFERROR(INDEX($B$9:$B$511,MATCH(0,INDEX(COUNTIF($F$8:F69,$B$9:$B$511),0,0),0)),"") -> ESTANCILLA SPA | H70: 49649.99991
A71: =+MATCH(B71,RUT[EMPRESA],0) -> 217 | B71: MAPOCHO TREBAL | C71: 9231440.984 | D71: 9231440.984 | F71: =IFERROR(INDEX($B$9:$B$511,MATCH(0,INDEX(COUNTIF($F$8:F70,$B$9:$B$511),0,0),0)),"") -> MAPOCHO TREBAL | H71: 9231440.984
A72: =+MATCH(B72,RUT[EMPRESA],0) -> 318 | B72: UCUQUER | C72: 47585680.45 | D72: 47585680.45 | F72: =IFERROR(INDEX($B$9:$B$511,MATCH(0,INDEX(COUNTIF($F$8:F71,$B$9:$B$511),0,0),0)),"") -> UCUQUER | H72: 47585680.45
A73: =+MATCH(B73,RUT[EMPRESA],0) -> 303 | B73: TAMM | C73: 380944.9993 | D73: 380944.9993 | F73: =IFERROR(INDEX($B$9:$B$511,MATCH(0,INDEX(COUNTIF($F$8:F72,$B$9:$B$511),0,0),0)),"") -> TAMM | H73: 380944.9993
A74: =+MATCH(B74,RUT[EMPRESA],0) -> 301 | B74: TALINAY | C74: -81135701.72 | D74: =+C74 -> -81135701.72 | F74: =IFERROR(INDEX($B$9:$B$511,MATCH(0,INDEX(COUNTIF($F$8:F73,$B$9:$B$511),0,0),0)),"") -> TALINAY | G74: =IF(SUMIF($B$9:$B$400,F74,$D$9:$D$400)<-0.00001,SUMIF($B$9:$B$400,F74,$D$9:$D$400),"") -> -81135701.72 | H74: =IF(SUMIF($B$9:$B$400,F74,$D$9:$D$400)>0.00001,SUMIF($B$9:$B$400,F74,$D$9:$D$400),"") -> 
A75: =+MATCH(B75,RUT[EMPRESA],0) -> 279 | B75: ROBLERIA | C75: 63787679.89 | D75: 63787679.89 | F75: =IFERROR(INDEX($B$9:$B$511,MATCH(0,INDEX(COUNTIF($F$8:F74,$B$9:$B$511),0,0),0)),"") -> ROBLERIA | H75: 63787679.89
A76: =+MATCH(B76,RUT[EMPRESA],0) -> 135 | B76: GENERHOM | C76: 6583672.393 | D76: 6583672.393 | F76: =IFERROR(INDEX($B$9:$B$511,MATCH(0,INDEX(COUNTIF($F$8:F75,$B$9:$B$511),0,0),0)),"") -> GENERHOM | H76: 6583672.393
A77: =+MATCH(B77,RUT[EMPRESA],0) -> 323 | B77: WENKE | C77: -419380.0007 | D77: -419380.0007 | F77: =IFERROR(INDEX($B$9:$B$511,MATCH(0,INDEX(COUNTIF($F$8:F76,$B$9:$B$511),0,0),0)),"") -> WENKE | G77: -419380.0007
A78: =+MATCH(B78,RUT[EMPRESA],0) -> 160 | B78: HESA | C78: 0 | D78: 0 | F78: =IFERROR(INDEX($B$9:$B$511,MATCH(0,INDEX(COUNTIF($F$8:F77,$B$9:$B$511),0,0),0)),"") -> HESA
A79: =+MATCH(B79,RUT[EMPRESA],0) -> 162 | B79: HIDROBONITO | C79: 50275319.73 | D79: 50275319.73 | F79: =IFERROR(INDEX($B$9:$B$511,MATCH(0,INDEX(COUNTIF($F$8:F78,$B$9:$B$511),0,0),0)),"") -> HIDROBONITO | H79: 50275319.73
A80: =+MATCH(B80,RUT[EMPRESA],0) -> 20 | B80: ARRAYAN | C80: -61665.00011 | D80: -61665.00011 | F80: =IFERROR(INDEX($B$9:$B$511,MATCH(0,INDEX(COUNTIF($F$8:F79,$B$9:$B$511),0,0),0)),"") -> ARRAYAN | G80: -61665.00011
A81: =+MATCH(B81,RUT[EMPRESA],0) -> 299 | B81: SUBSOLE | C81: 944633.9983 | D81: 944633.9983 | F81: =IFERROR(INDEX($B$9:$B$511,MATCH(0,INDEX(COUNTIF($F$8:F80,$B$9:$B$511),0,0),0)),"") -> SUBSOLE | H81: 944633.9983
A82: =+MATCH(B82,RUT[EMPRESA],0) -> 293 | B82: SOLAIREDIRECT | C82: 1174794.998 | D82: 1174794.998 | F82: =IFERROR(INDEX($B$9:$B$511,MATCH(0,INDEX(COUNTIF($F$8:F81,$B$9:$B$511),0,0),0)),"") -> SOLAIREDIRECT | H82: 1174794.998
A83: =+MATCH(B83,RUT[EMPRESA],0) -> 286 | B83: SANTAMARTA | C83: 195900822.7 | D83: 195900822.7 | F83: =IFERROR(INDEX($B$9:$B$511,MATCH(0,INDEX(COUNTIF($F$8:F82,$B$9:$B$511),0,0),0)),"") -> SANTAMARTA | H83: 195900822.7
A84: =+MATCH(B84,RUT[EMPRESA],0) -> 275 | B84: RIO HUASCO | C84: 82552888.54 | D84: 82552888.54 | F84: =IFERROR(INDEX($B$9:$B$511,MATCH(0,INDEX(COUNTIF($F$8:F83,$B$9:$B$511),0,0),0)),"") -> RIO HUASCO | H84: 82552888.54
A85: =+MATCH(B85,RUT[EMPRESA],0) -> 285 | B85: SANTA IRENE | C85: 7165616.346 | D85: 7165616.346 | F85: =IFERROR(INDEX($B$9:$B$511,MATCH(0,INDEX(COUNTIF($F$8:F84,$B$9:$B$511),0,0),0)),"") -> SANTA IRENE | H85: 7165616.346
A86: =+MATCH(B86,RUT[EMPRESA],0) -> 64 | B86: CONTRA | C86: 20821.99996 | D86: 20821.99996 | F86: =IFERROR(INDEX($B$9:$B$511,MATCH(0,INDEX(COUNTIF($F$8:F85,$B$9:$B$511),0,0),0)),"") -> CONTRA | H86: 20821.99996
A87: =+MATCH(B87,RUT[EMPRESA],0) -> 60 | B87: COLMITO | C87: 42794728.62 | D87: 42794728.62 | F87: =IFERROR(INDEX($B$9:$B$511,MATCH(0,INDEX(COUNTIF($F$8:F86,$B$9:$B$511),0,0),0)),"") -> COLMITO | H87: 42794728.62
A88: =+MATCH(B88,RUT[EMPRESA],0) -> 62 | B88: COMMONPLACE | C88: 18500269.4 | D88: 18500269.4 | F88: =IFERROR(INDEX($B$9:$B$511,MATCH(0,INDEX(COUNTIF($F$8:F87,$B$9:$B$511),0,0),0)),"") -> COMMONPLACE | H88: 18500269.4
A89: =+MATCH(B89,RUT[EMPRESA],0) -> 3 | B89: AELA_GENERACION | C89: 330301345.5 | D89: 330301345.5 | F89: =IFERROR(INDEX($B$9:$B$511,MATCH(0,INDEX(COUNTIF($F$8:F88,$B$9:$B$511),0,0),0)),"") -> AELA_GENERACION | H89: 330301345.5
A90: =+MATCH(B90,RUT[EMPRESA],0) -> 7 | B90: AGUAS DEL MELADO | C90: -48043884.83 | D90: -48043884.83 | F90: =IFERROR(INDEX($B$9:$B$511,MATCH(0,INDEX(COUNTIF($F$8:F89,$B$9:$B$511),0,0),0)),"") -> AGUAS DEL MELADO | G90: -48043884.83
A91: =+MATCH(B91,RUT[EMPRESA],0) -> 14 | B91: AMANECER SOLAR | C91: 619548491 | D91: 619548491 | F91: =IFERROR(INDEX($B$9:$B$511,MATCH(0,INDEX(COUNTIF($F$8:F90,$B$9:$B$511),0,0),0)),"") -> AMANECER SOLAR | H91: 619548491
A92: =+MATCH(B92,RUT[EMPRESA],0) -> 282 | B92: SAN_ANDRES_SPA | C92: 282784008.5 | D92: 282784008.5 | F92: =IFERROR(INDEX($B$9:$B$511,MATCH(0,INDEX(COUNTIF($F$8:F91,$B$9:$B$511),0,0),0)),"") -> SAN_ANDRES_SPA | H92: 282784008.5
A93: =+MATCH(B93,RUT[EMPRESA],0) -> 193 | B93: LAS_PAMPAS | C93: 0 | D93: 0 | F93: =IFERROR(INDEX($B$9:$B$511,MATCH(0,INDEX(COUNTIF($F$8:F92,$B$9:$B$511),0,0),0)),"") -> LAS_PAMPAS
A94: =+MATCH(B94,RUT[EMPRESA],0) -> 113 | B94: ENERGIA_LEON | C94: 78805990.59 | D94: 78805990.59 | F94: =IFERROR(INDEX($B$9:$B$511,MATCH(0,INDEX(COUNTIF($F$8:F93,$B$9:$B$511),0,0),0)),"") -> ENERGIA_LEON | H94: 78805990.59
A95: =+MATCH(B95,RUT[EMPRESA],0) -> 115 | B95: ENERGIAS_DEL_FUTURO | C95: 687175.9988 | D95: 687175.9988 | F95: =IFERROR(INDEX($B$9:$B$511,MATCH(0,INDEX(COUNTIF($F$8:F94,$B$9:$B$511),0,0),0)),"") -> ENERGIAS_DEL_FUTURO | H95: 687175.9988
A96: =+MATCH(B96,RUT[EMPRESA],0) -> 112 | B96: ENERGIA_BIOBIO | C96: 0 | D96: 0 | F96: =IFERROR(INDEX($B$9:$B$511,MATCH(0,INDEX(COUNTIF($F$8:F95,$B$9:$B$511),0,0),0)),"") -> ENERGIA_BIOBIO
A97: =+MATCH(B97,RUT[EMPRESA],0) -> 120 | B97: ENORCHILE | C97: -827302281.9 | D97: -827302281.9 | F97: =IFERROR(INDEX($B$9:$B$511,MATCH(0,INDEX(COUNTIF($F$8:F96,$B$9:$B$511),0,0),0)),"") -> ENORCHILE | G97: -827302281.9
A98: =+MATCH(B98,RUT[EMPRESA],0) -> 21 | B98: ARRAYAN_EOLICO | C98: -573359570.8 | D98: -573359570.8 | F98: =IFERROR(INDEX($B$9:$B$511,MATCH(0,INDEX(COUNTIF($F$8:F97,$B$9:$B$511),0,0),0)),"") -> ARRAYAN_EOLICO | G98: -573359570.8
A99: =+MATCH(B99,RUT[EMPRESA],0) -> 310 | B99: TOMAVAL | C99: 0 | D99: 0 | F99: =IFERROR(INDEX($B$9:$B$511,MATCH(0,INDEX(COUNTIF($F$8:F98,$B$9:$B$511),0,0),0)),"") -> TOMAVAL
A100: =+MATCH(B100,RUT[EMPRESA],0) -> 29 | B100: BIOCRUZ | C100: 31015065.94 | D100: 31015065.94 | F100: =IFERROR(INDEX($B$9:$B$511,MATCH(0,INDEX(COUNTIF($F$8:F99,$B$9:$B$511),0,0),0)),"") -> BIOCRUZ | H100: 31015065.94
A101: =+MATCH(B101,RUT[EMPRESA],0) -> 157 | B101: HBS | C101: 8186366.985 | D101: 8186366.985 | F101: =IFERROR(INDEX($B$9:$B$511,MATCH(0,INDEX(COUNTIF($F$8:F100,$B$9:$B$511),0,0),0)),"") -> HBS | H101: 8186366.985
A102: =+MATCH(B102,RUT[EMPRESA],0) -> 9 | B102: ALBA | C102: 521845082.1 | D102: 521845082.1 | F102: =IFERROR(INDEX($B$9:$B$511,MATCH(0,INDEX(COUNTIF($F$8:F101,$B$9:$B$511),0,0),0)),"") -> ALBA | H102: 521845082.1
A103: =+MATCH(B103,RUT[EMPRESA],0) -> 204 | B103: LOS_PADRES | C103: 271389.9995 | D103: 271389.9995 | F103: =IFERROR(INDEX($B$9:$B$511,MATCH(0,INDEX(COUNTIF($F$8:F102,$B$9:$B$511),0,0),0)),"") -> LOS_PADRES | H103: 271389.9995
A104: =+MATCH(B104,RUT[EMPRESA],0) -> 11 | B104: ALMEYDA | C104: -206860268.3 | D104: -206860268.3 | F104: =IFERROR(INDEX($B$9:$B$511,MATCH(0,INDEX(COUNTIF($F$8:F103,$B$9:$B$511),0,0),0)),"") -> ALMEYDA | G104: -206860268.3
A105: =+MATCH(B105,RUT[EMPRESA],0) -> 201 | B105: LOS_CURUROS | C105: 297527997.7 | D105: 297527997.7 | F105: =IFERROR(INDEX($B$9:$B$511,MATCH(0,INDEX(COUNTIF($F$8:F104,$B$9:$B$511),0,0),0)),"") -> LOS_CURUROS | H105: 297527997.7
A106: =+MATCH(B106,RUT[EMPRESA],0) -> 199 | B106: LOMAS_COLORADAS | C106: 15611802.59 | D106: 15611802.59 | F106: =IFERROR(INDEX($B$9:$B$511,MATCH(0,INDEX(COUNTIF($F$8:F105,$B$9:$B$511),0,0),0)),"") -> LOMAS_COLORADAS | H106: 15611802.59
A107: =+MATCH(B107,RUT[EMPRESA],0) -> 239 | B107: PAMA | C107: 15903006.58 | D107: 15903006.58 | F107: =IFERROR(INDEX($B$9:$B$511,MATCH(0,INDEX(COUNTIF($F$8:F106,$B$9:$B$511),0,0),0)),"") -> PAMA | H107: 15903006.58
A108: =+MATCH(B108,RUT[EMPRESA],0) -> 278 | B108: RIO_PUMA | C108: 5318129.991 | D108: 5318129.991 | F108: =IFERROR(INDEX($B$9:$B$511,MATCH(0,INDEX(COUNTIF($F$8:F107,$B$9:$B$511),0,0),0)),"") -> RIO_PUMA | H108: 5318129.991
A109: =+MATCH(B109,RUT[EMPRESA],0) -> 351 | B109: CCAMPESINO | C109: 6470401980 | D109: 6470401980 | F109: =IFERROR(INDEX($B$9:$B$511,MATCH(0,INDEX(COUNTIF($F$8:F108,$B$9:$B$511),0,0),0)),"") -> CCAMPESINO | H109: 6470401980
A110: =+MATCH(B110,RUT[EMPRESA],0) -> 339 | B110: PH_PUNTA_SIERRA | C110: 363976316.4 | D110: 363976316.4 | F110: =IFERROR(INDEX($B$9:$B$511,MATCH(0,INDEX(COUNTIF($F$8:F109,$B$9:$B$511),0,0),0)),"") -> PH_PUNTA_SIERRA | H110: 363976316.4
A111: =+MATCH(B111,RUT[EMPRESA],0) -> 319 | B111: UCUQUER_DOS | C111: 27165483.9 | D111: 27165483.9 | F111: =IFERROR(INDEX($B$9:$B$511,MATCH(0,INDEX(COUNTIF($F$8:F110,$B$9:$B$511),0,0),0)),"") -> UCUQUER_DOS | H111: 27165483.9
A112: =+MATCH(B112,RUT[EMPRESA],0) -> 260 | B112: PUNTA_PALMERAS | C112: -4013059.251 | D112: -4013059.251 | F112: =IFERROR(INDEX($B$9:$B$511,MATCH(0,INDEX(COUNTIF($F$8:F111,$B$9:$B$511),0,0),0)),"") -> PUNTA_PALMERAS | G112: -4013059.251
A113: =+MATCH(B113,RUT[EMPRESA],0) -> 81 | B113: EBCO_ATACAMA | C113: 1770073.216 | D113: 1770073.216 | F113: =IFERROR(INDEX($B$9:$B$511,MATCH(0,INDEX(COUNTIF($F$8:F112,$B$9:$B$511),0,0),0)),"") -> EBCO_ATACAMA | H113: 1770073.216
A114: =+MATCH(B114,RUT[EMPRESA],0) -> 340 | B114: ATRIA_ENERGIA | C114: -979758.3276 | D114: -979758.3276 | F114: =IFERROR(INDEX($B$9:$B$511,MATCH(0,INDEX(COUNTIF($F$8:F113,$B$9:$B$511),0,0),0)),"") -> ATRIA_ENERGIA | G114: -979758.3276
A115: =+MATCH(B115,RUT[EMPRESA],0) -> 122 | B115: EOLICA_TALTAL | C115: -384282833.5 | D115: -384282833.5 | F115: =IFERROR(INDEX($B$9:$B$511,MATCH(0,INDEX(COUNTIF($F$8:F114,$B$9:$B$511),0,0),0)),"") -> EOLICA_TALTAL | G115: -384282833.5
A116: =+MATCH(B116,RUT[EMPRESA],0) -> 265 | B116: PV_SALVADOR | C116: 209550898.2 | D116: 209550898.2 | F116: =IFERROR(INDEX($B$9:$B$511,MATCH(0,INDEX(COUNTIF($F$8:F115,$B$9:$B$511),0,0),0)),"") -> PV_SALVADOR | H116: 209550898.2
A117: =+MATCH(B117,RUT[EMPRESA],0) -> 59 | B117: COLLIL | C117: 11827486.3 | D117: 11827486.3 | F117: =IFERROR(INDEX($B$9:$B$511,MATCH(0,INDEX(COUNTIF($F$8:F116,$B$9:$B$511),0,0),0)),"") -> COLLIL | H117: 11827486.3
A118: =+MATCH(B118,RUT[EMPRESA],0) -> 218 | B118: MARIA_ELENA | C118: 49305.64833 | D118: 49305.64833 | F118: =IFERROR(INDEX($B$9:$B$511,MATCH(0,INDEX(COUNTIF($F$8:F117,$B$9:$B$511),0,0),0)),"") -> MARIA_ELENA | H118: 49305.64833
A119: =+MATCH(B119,RUT[EMPRESA],0) -> 192 | B119: LAS_FLORES | C119: 21278992.96 | D119: 21278992.96 | F119: =IFERROR(INDEX($B$9:$B$511,MATCH(0,INDEX(COUNTIF($F$8:F118,$B$9:$B$511),0,0),0)),"") -> LAS_FLORES | H119: 21278992.96
A120: =+MATCH(B120,RUT[EMPRESA],0) -> 2 | B120: ACCIONA_ENERGIA | C120: -1828824164 | D120: -1828824164 | F120: =IFERROR(INDEX($B$9:$B$511,MATCH(0,INDEX(COUNTIF($F$8:F119,$B$9:$B$511),0,0),0)),"") -> ACCIONA_ENERGIA | G120: -1828824164
A121: =+MATCH(B121,RUT[EMPRESA],0) -> 26 | B121: BESALCO | C121: -80303699.42 | D121: -80303699.42 | F121: =IFERROR(INDEX($B$9:$B$511,MATCH(0,INDEX(COUNTIF($F$8:F120,$B$9:$B$511),0,0),0)),"") -> BESALCO | G121: -80303699.42
A122: =+MATCH(B122,RUT[EMPRESA],0) -> 198 | B122: LLEUQUEREO | C122: -97672.88629 | D122: -97672.88629 | F122: =IFERROR(INDEX($B$9:$B$511,MATCH(0,INDEX(COUNTIF($F$8:F121,$B$9:$B$511),0,0),0)),"") -> LLEUQUEREO | G122: -97672.88629
A123: =+MATCH(B123,RUT[EMPRESA],0) -> 73 | B123: CURILEUFU | C123: 1138170.998 | D123: 1138170.998 | F123: =IFERROR(INDEX($B$9:$B$511,MATCH(0,INDEX(COUNTIF($F$8:F122,$B$9:$B$511),0,0),0)),"") -> CURILEUFU | H123: 1138170.998
A124: =+MATCH(B124,RUT[EMPRESA],0) -> 180 | B124: JAVIERA | C124: -474831428.6 | D124: -474831428.6 | F124: =IFERROR(INDEX($B$9:$B$511,MATCH(0,INDEX(COUNTIF($F$8:F123,$B$9:$B$511),0,0),0)),"") -> JAVIERA | G124: -474831428.6
A125: =+MATCH(B125,RUT[EMPRESA],0) -> 80 | B125: DOSAL | C125: 0 | D125: 0 | F125: =IFERROR(INDEX($B$9:$B$511,MATCH(0,INDEX(COUNTIF($F$8:F124,$B$9:$B$511),0,0),0)),"") -> DOSAL
A126: =+MATCH(B126,RUT[EMPRESA],0) -> 202 | B126: LOS_GUINDOS | C126: -4681336.008 | D126: -4681336.008 | F126: =IFERROR(INDEX($B$9:$B$511,MATCH(0,INDEX(COUNTIF($F$8:F125,$B$9:$B$511),0,0),0)),"") -> LOS_GUINDOS | G126: -4681336.008
A127: =+MATCH(B127,RUT[EMPRESA],0) -> 28 | B127: BIOBIO_NEGRETE | C127: 20678769.96 | D127: 20678769.96 | F127: =IFERROR(INDEX($B$9:$B$511,MATCH(0,INDEX(COUNTIF($F$8:F126,$B$9:$B$511),0,0),0)),"") -> BIOBIO_NEGRETE | H127: 20678769.96
A128: =+MATCH(B128,RUT[EMPRESA],0) -> 210 | B128: LUZ_DEL_NORTE | C128: 505991789.6 | D128: 505991789.6 | F128: =IFERROR(INDEX($B$9:$B$511,MATCH(0,INDEX(COUNTIF($F$8:F127,$B$9:$B$511),0,0),0)),"") -> LUZ_DEL_NORTE | H128: 505991789.6
A129: =+MATCH(B129,RUT[EMPRESA],0) -> 270 | B129: RAKI | C129: 6510535.636 | D129: 6510535.636 | F129: =IFERROR(INDEX($B$9:$B$511,MATCH(0,INDEX(COUNTIF($F$8:F128,$B$9:$B$511),0,0),0)),"") -> RAKI | H129: 6510535.636
A130: =+MATCH(B130,RUT[EMPRESA],0) -> 311 | B130: TRAILELFU | C130: 10909021.98 | D130: 10909021.98 | F130: =IFERROR(INDEX($B$9:$B$511,MATCH(0,INDEX(COUNTIF($F$8:F129,$B$9:$B$511),0,0),0)),"") -> TRAILELFU | H130: 10909021.98
A131: =+MATCH(B131,RUT[EMPRESA],0) -> 123 | B131: ERNC1 | C131: -128754962.8 | D131: -128754962.8 | F131: =IFERROR(INDEX($B$9:$B$511,MATCH(0,INDEX(COUNTIF($F$8:F130,$B$9:$B$511),0,0),0)),"") -> ERNC1 | G131: -128754962.8
A132: =+MATCH(B132,RUT[EMPRESA],0) -> 153 | B132: GR_PAN_DE_AZUCAR | C132: 31068137.48 | D132: 31068137.48 | F132: =IFERROR(INDEX($B$9:$B$511,MATCH(0,INDEX(COUNTIF($F$8:F131,$B$9:$B$511),0,0),0)),"") -> GR_PAN_DE_AZUCAR | H132: 31068137.48
A133: =+MATCH(B133,RUT[EMPRESA],0) -> 258 | B133: PUCLARO | C133: 40591545.54 | D133: 40591545.54 | F133: =IFERROR(INDEX($B$9:$B$511,MATCH(0,INDEX(COUNTIF($F$8:F132,$B$9:$B$511),0,0),0)),"") -> PUCLARO | H133: 40591545.54
A134: =+MATCH(B134,RUT[EMPRESA],0) -> 176 | B134: HUAJACHE | C134: 5116242.573 | D134: 5116242.573 | F134: =IFERROR(INDEX($B$9:$B$511,MATCH(0,INDEX(COUNTIF($F$8:F133,$B$9:$B$511),0,0),0)),"") -> HUAJACHE | H134: 5116242.573
A135: =+MATCH(B135,RUT[EMPRESA],0) -> 97 | B135: EL_MIRADOR | C135: 6042658.989 | D135: 6042658.989 | F135: =IFERROR(INDEX($B$9:$B$511,MATCH(0,INDEX(COUNTIF($F$8:F134,$B$9:$B$511),0,0),0)),"") -> EL_MIRADOR | H135: 6042658.989
A136: =+MATCH(B136,RUT[EMPRESA],0) -> 277 | B136: RIO_MULCHEN | C136: 4023675.993 | D136: 4023675.993 | F136: =IFERROR(INDEX($B$9:$B$511,MATCH(0,INDEX(COUNTIF($F$8:F135,$B$9:$B$511),0,0),0)),"") -> RIO_MULCHEN | H136: 4023675.993
A137: =+MATCH(B137,RUT[EMPRESA],0) -> 89 | B137: EGP_SUR | C137: 221345236.9 | D137: 221345236.9 | F137: =IFERROR(INDEX($B$9:$B$511,MATCH(0,INDEX(COUNTIF($F$8:F136,$B$9:$B$511),0,0),0)),"") -> EGP_SUR | H137: 221345236.9
A138: =+MATCH(B138,RUT[EMPRESA],0) -> 16 | B138: ANDES_GENERACION | C138: 28090103.43 | D138: =+C138 -> 28090103.43 | F138: =IFERROR(INDEX($B$9:$B$511,MATCH(0,INDEX(COUNTIF($F$8:F137,$B$9:$B$511),0,0),0)),"") -> ANDES_GENERACION | G138: =IF(SUMIF($B$9:$B$400,F138,$D$9:$D$400)<-0.00001,SUMIF($B$9:$B$400,F138,$D$9:$D$400),"") ->  | H138: =IF(SUMIF($B$9:$B$400,F138,$D$9:$D$400)>0.00001,SUMIF($B$9:$B$400,F138,$D$9:$D$400),"") -> 28090103.43
A139: =+MATCH(B139,RUT[EMPRESA],0) -> 98 | B139: EL_MORADO | C139: 143061324.1 | D139: 143061324.1 | F139: =IFERROR(INDEX($B$9:$B$511,MATCH(0,INDEX(COUNTIF($F$8:F138,$B$9:$B$511),0,0),0)),"") -> EL_MORADO | H139: 143061324.1
A140: =+MATCH(B140,RUT[EMPRESA],0) -> 35 | B140: CAREN | C140: 538887446.9 | D140: 538887446.9 | F140: =IFERROR(INDEX($B$9:$B$511,MATCH(0,INDEX(COUNTIF($F$8:F139,$B$9:$B$511),0,0),0)),"") -> CAREN | H140: 538887446.9
A141: =+MATCH(B141,RUT[EMPRESA],0) -> 51 | B141: CHUNGUNGO | C141: 298201256.5 | D141: 298201256.5 | F141: =IFERROR(INDEX($B$9:$B$511,MATCH(0,INDEX(COUNTIF($F$8:F140,$B$9:$B$511),0,0),0)),"") -> CHUNGUNGO | H141: 298201256.5
A142: =+MATCH(B142,RUT[EMPRESA],0) -> 295 | B142: SPVP4 | C142: 37323298.51 | D142: 37323298.51 | F142: =IFERROR(INDEX($B$9:$B$511,MATCH(0,INDEX(COUNTIF($F$8:F141,$B$9:$B$511),0,0),0)),"") -> SPVP4 | H142: 37323298.51
A143: =+MATCH(B143,RUT[EMPRESA],0) -> 272 | B143: RENOVALIA_6 | C143: 17823992.97 | D143: 17823992.97 | F143: =IFERROR(INDEX($B$9:$B$511,MATCH(0,INDEX(COUNTIF($F$8:F142,$B$9:$B$511),0,0),0)),"") -> RENOVALIA_6 | H143: 17823992.97
A144: =+MATCH(B144,RUT[EMPRESA],0) -> 273 | B144: RENOVALIA_7 | C144: 20264702.96 | D144: 20264702.96 | F144: =IFERROR(INDEX($B$9:$B$511,MATCH(0,INDEX(COUNTIF($F$8:F143,$B$9:$B$511),0,0),0)),"") -> RENOVALIA_7 | H144: 20264702.96
A145: =+MATCH(B145,RUT[EMPRESA],0) -> 6 | B145: AGSA | C145: -19490724.89 | D145: -19490724.89 | F145: =IFERROR(INDEX($B$9:$B$511,MATCH(0,INDEX(COUNTIF($F$8:F144,$B$9:$B$511),0,0),0)),"") -> AGSA | G145: -19490724.89
A146: =+MATCH(B146,RUT[EMPRESA],0) -> 296 | B146: STERICYCLE | C146: 0 | D146: 0 | F146: =IFERROR(INDEX($B$9:$B$511,MATCH(0,INDEX(COUNTIF($F$8:F145,$B$9:$B$511),0,0),0)),"") -> STERICYCLE
A147: =+MATCH(B147,RUT[EMPRESA],0) -> 309 | B147: TILTIL_SOLAR | C147: 22083138.96 | D147: 22083138.96 | F147: =IFERROR(INDEX($B$9:$B$511,MATCH(0,INDEX(COUNTIF($F$8:F146,$B$9:$B$511),0,0),0)),"") -> TILTIL_SOLAR | H147: 22083138.96
A148: =+MATCH(B148,RUT[EMPRESA],0) -> 25 | B148: BELLAVISTA | C148: 9628737.983 | D148: 9628737.983 | F148: =IFERROR(INDEX($B$9:$B$511,MATCH(0,INDEX(COUNTIF($F$8:F147,$B$9:$B$511),0,0),0)),"") -> BELLAVISTA | H148: 9628737.983
A149: =+MATCH(B149,RUT[EMPRESA],0) -> 216 | B149: MALLARAUCO | C149: 40662660.38 | D149: 40662660.38 | F149: =IFERROR(INDEX($B$9:$B$511,MATCH(0,INDEX(COUNTIF($F$8:F148,$B$9:$B$511),0,0),0)),"") -> MALLARAUCO | H149: 40662660.38
A150: =+MATCH(B150,RUT[EMPRESA],0) -> 213 | B150: M_VILLARRICA | C150: 2340355.996 | D150: 2340355.996 | F150: =IFERROR(INDEX($B$9:$B$511,MATCH(0,INDEX(COUNTIF($F$8:F149,$B$9:$B$511),0,0),0)),"") -> M_VILLARRICA | H150: 2340355.996
A151: =+MATCH(B151,RUT[EMPRESA],0) -> 121 | B151: EOLICA_ESPERANZA | C151: 7365116.634 | D151: 7365116.634 | F151: =IFERROR(INDEX($B$9:$B$511,MATCH(0,INDEX(COUNTIF($F$8:F150,$B$9:$B$511),0,0),0)),"") -> EOLICA_ESPERANZA | H151: 7365116.634
A152: =+MATCH(B152,RUT[EMPRESA],0) -> 182 | B152: KDM_ENERGIA | C152: -426801657.7 | D152: -426801657.7 | F152: =IFERROR(INDEX($B$9:$B$511,MATCH(0,INDEX(COUNTIF($F$8:F151,$B$9:$B$511),0,0),0)),"") -> KDM_ENERGIA | G152: -426801657.7
A153: =+MATCH(B153,RUT[EMPRESA],0) -> 45 | B153: CHANLEUFU | C153: 66617827.88 | D153: 66617827.88 | F153: =IFERROR(INDEX($B$9:$B$511,MATCH(0,INDEX(COUNTIF($F$8:F152,$B$9:$B$511),0,0),0)),"") -> CHANLEUFU | H153: 66617827.88
A154: =+MATCH(B154,RUT[EMPRESA],0) -> 271 | B154: RASO_POWER | C154: 1182965.998 | D154: 1182965.998 | F154: =IFERROR(INDEX($B$9:$B$511,MATCH(0,INDEX(COUNTIF($F$8:F153,$B$9:$B$511),0,0),0)),"") -> RASO_POWER | H154: 1182965.998
A155: =+MATCH(B155,RUT[EMPRESA],0) -> 1 | B155: ABENGOA | C155: 0 | D155: 0 | F155: =IFERROR(INDEX($B$9:$B$511,MATCH(0,INDEX(COUNTIF($F$8:F154,$B$9:$B$511),0,0),0)),"") -> ABENGOA
A156: =+MATCH(B156,RUT[EMPRESA],0) -> 63 | B156: CONEJO_SOLAR | C156: -65762529.81 | D156: -65762529.81 | F156: =IFERROR(INDEX($B$9:$B$511,MATCH(0,INDEX(COUNTIF($F$8:F155,$B$9:$B$511),0,0),0)),"") -> CONEJO_SOLAR | G156: -65762529.81
A157: =+MATCH(B157,RUT[EMPRESA],0) -> 203 | B157: LOS_LOROS | C157: 193792942.7 | D157: 193792942.7 | F157: =IFERROR(INDEX($B$9:$B$511,MATCH(0,INDEX(COUNTIF($F$8:F156,$B$9:$B$511),0,0),0)),"") -> LOS_LOROS | H157: 193792942.7
A158: =+MATCH(B158,RUT[EMPRESA],0) -> 13 | B158: ALTOS_DEL_PAICO | C158: 1278542.998 | D158: 1278542.998 | F158: =IFERROR(INDEX($B$9:$B$511,MATCH(0,INDEX(COUNTIF($F$8:F157,$B$9:$B$511),0,0),0)),"") -> ALTOS_DEL_PAICO | H158: 1278542.998
A159: =+MATCH(B159,RUT[EMPRESA],0) -> 92 | B159: EL_AGRIO | C159: 8398263.126 | D159: 8398263.126 | F159: =IFERROR(INDEX($B$9:$B$511,MATCH(0,INDEX(COUNTIF($F$8:F158,$B$9:$B$511),0,0),0)),"") -> EL_AGRIO | H159: 8398263.126
A160: =+MATCH(B160,RUT[EMPRESA],0) -> 190 | B160: LA_MONTAÑA_1 | C160: 0 | D160: 0 | F160: =IFERROR(INDEX($B$9:$B$511,MATCH(0,INDEX(COUNTIF($F$8:F159,$B$9:$B$511),0,0),0)),"") -> LA_MONTAÑA_1
A161: =+MATCH(B161,RUT[EMPRESA],0) -> 284 | B161: SAN_JUAN_LAP | C161: -293421279 | D161: -293421279 | F161: =IFERROR(INDEX($B$9:$B$511,MATCH(0,INDEX(COUNTIF($F$8:F160,$B$9:$B$511),0,0),0)),"") -> SAN_JUAN_LAP | G161: -293421279
A162: =+MATCH(B162,RUT[EMPRESA],0) -> 76 | B162: DIVISADERO | C162: 33390237.94 | D162: 33390237.94 | F162: =IFERROR(INDEX($B$9:$B$511,MATCH(0,INDEX(COUNTIF($F$8:F161,$B$9:$B$511),0,0),0)),"") -> DIVISADERO | H162: 33390237.94
A163: =+MATCH(B163,RUT[EMPRESA],0) -> 72 | B163: CUMPEO | C163: 60604904.31 | D163: 60604904.31 | F163: =IFERROR(INDEX($B$9:$B$511,MATCH(0,INDEX(COUNTIF($F$8:F162,$B$9:$B$511),0,0),0)),"") -> CUMPEO | H163: 60604904.31
A164: =+MATCH(B164,RUT[EMPRESA],0) -> 354 | B164: SAFIRA_ENERGIA_CHILE | C164: -22510339.92 | D164: -22510339.92 | F164: =IFERROR(INDEX($B$9:$B$511,MATCH(0,INDEX(COUNTIF($F$8:F163,$B$9:$B$511),0,0),0)),"") -> SAFIRA_ENERGIA_CHILE | G164: -22510339.92
A165: =+MATCH(B165,RUT[EMPRESA],0) -> 304 | B165: TEATINOS | C165: 13256363.98 | D165: 13256363.98 | F165: =IFERROR(INDEX($B$9:$B$511,MATCH(0,INDEX(COUNTIF($F$8:F164,$B$9:$B$511),0,0),0)),"") -> TEATINOS | H165: 13256363.98
A166: =+MATCH(B166,RUT[EMPRESA],0) -> 158 | B166: HBS_GNL | C166: 0 | D166: 0 | F166: =IFERROR(INDEX($B$9:$B$511,MATCH(0,INDEX(COUNTIF($F$8:F165,$B$9:$B$511),0,0),0)),"") -> HBS_GNL
A167: =+MATCH(B167,RUT[EMPRESA],0) -> 149 | B167: GR_HUINGAN | C167: 38325539.51 | D167: 38325539.51 | F167: =IFERROR(INDEX($B$9:$B$511,MATCH(0,INDEX(COUNTIF($F$8:F166,$B$9:$B$511),0,0),0)),"") -> GR_HUINGAN | H167: 38325539.51
A168: =+MATCH(B168,RUT[EMPRESA],0) -> 146 | B168: GR_COIGUE | C168: 22079860.92 | D168: 22079860.92 | F168: =IFERROR(INDEX($B$9:$B$511,MATCH(0,INDEX(COUNTIF($F$8:F167,$B$9:$B$511),0,0),0)),"") -> GR_COIGUE | H168: 22079860.92
A169: =+MATCH(B169,RUT[EMPRESA],0) -> 174 | B169: HORMIGA_SOLAR | C169: 18763214.7 | D169: 18763214.7 | F169: =IFERROR(INDEX($B$9:$B$511,MATCH(0,INDEX(COUNTIF($F$8:F168,$B$9:$B$511),0,0),0)),"") -> HORMIGA_SOLAR | H169: 18763214.7
A170: =+MATCH(B170,RUT[EMPRESA],0) -> 269 | B170: RAGSA | C170: 486255545.9 | D170: 486255545.9 | F170: =IFERROR(INDEX($B$9:$B$511,MATCH(0,INDEX(COUNTIF($F$8:F169,$B$9:$B$511),0,0),0)),"") -> RAGSA | H170: 486255545.9
A171: =+MATCH(B171,RUT[EMPRESA],0) -> 27 | B171: BIO_ENERGIA_MOLINA | C171: 0 | D171: 0 | F171: =IFERROR(INDEX($B$9:$B$511,MATCH(0,INDEX(COUNTIF($F$8:F170,$B$9:$B$511),0,0),0)),"") -> BIO_ENERGIA_MOLINA
A172: =+MATCH(B172,RUT[EMPRESA],0) -> 139 | B172: GESTEL | C172: 7218955.734 | D172: 7218955.734 | F172: =IFERROR(INDEX($B$9:$B$511,MATCH(0,INDEX(COUNTIF($F$8:F171,$B$9:$B$511),0,0),0)),"") -> GESTEL | H172: 7218955.734
A173: =+MATCH(B173,RUT[EMPRESA],0) -> 74 | B173: CUZCUZ | C173: 22242204.21 | D173: 22242204.21 | F173: =IFERROR(INDEX($B$9:$B$511,MATCH(0,INDEX(COUNTIF($F$8:F172,$B$9:$B$511),0,0),0)),"") -> CUZCUZ | H173: 22242204.21
A174: =+MATCH(B174,RUT[EMPRESA],0) -> 141 | B174: GR_ARAUCARIA | C174: 93733885.88 | D174: 93733885.88 | F174: =IFERROR(INDEX($B$9:$B$511,MATCH(0,INDEX(COUNTIF($F$8:F173,$B$9:$B$511),0,0),0)),"") -> GR_ARAUCARIA | H174: 93733885.88
A175: =+MATCH(B175,RUT[EMPRESA],0) -> 214 | B175: MAINCO | C175: 124043800.8 | D175: 124043800.8 | F175: =IFERROR(INDEX($B$9:$B$511,MATCH(0,INDEX(COUNTIF($F$8:F174,$B$9:$B$511),0,0),0)),"") -> MAINCO | H175: 124043800.8
A176: =+MATCH(B176,RUT[EMPRESA],0) -> 93 | B176: EL_ARROYO | C176: 3159111.9 | D176: 3159111.9 | F176: =IFERROR(INDEX($B$9:$B$511,MATCH(0,INDEX(COUNTIF($F$8:F175,$B$9:$B$511),0,0),0)),"") -> EL_ARROYO | H176: 3159111.9
A177: =+MATCH(B177,RUT[EMPRESA],0) -> 205 | B177: LOS_PINOS_BIO | C177: 26865087.29 | D177: 26865087.29 | F177: =IFERROR(INDEX($B$9:$B$511,MATCH(0,INDEX(COUNTIF($F$8:F176,$B$9:$B$511),0,0),0)),"") -> LOS_PINOS_BIO | H177: 26865087.29
A178: =+MATCH(B178,RUT[EMPRESA],0) -> 94 | B178: EL_BOCO | C178: 26604491.95 | D178: 26604491.95 | F178: =IFERROR(INDEX($B$9:$B$511,MATCH(0,INDEX(COUNTIF($F$8:F177,$B$9:$B$511),0,0),0)),"") -> EL_BOCO | H178: 26604491.95
A179: =+MATCH(B179,RUT[EMPRESA],0) -> 287 | B179: SANTIAGO_SOLAR | C179: 516161082.6 | D179: 516161082.6 | F179: =IFERROR(INDEX($B$9:$B$511,MATCH(0,INDEX(COUNTIF($F$8:F178,$B$9:$B$511),0,0),0)),"") -> SANTIAGO_SOLAR | H179: 516161082.6
A180: =+MATCH(B180,RUT[EMPRESA],0) -> 134 | B180: GENERADORA_PIUTEL | C180: 149932.9997 | D180: 149932.9997 | F180: =IFERROR(INDEX($B$9:$B$511,MATCH(0,INDEX(COUNTIF($F$8:F179,$B$9:$B$511),0,0),0)),"") -> GENERADORA_PIUTEL | H180: 149932.9997
A181: =+MATCH(B181,RUT[EMPRESA],0) -> 173 | B181: HIDRORIÑINAHUE | C181: 16094834.05 | D181: 16094834.05 | F181: =IFERROR(INDEX($B$9:$B$511,MATCH(0,INDEX(COUNTIF($F$8:F180,$B$9:$B$511),0,0),0)),"") -> HIDRORIÑINAHUE | H181: 16094834.05
A182: =+MATCH(B182,RUT[EMPRESA],0) -> 145 | B182: GR_CANELO | C182: 96745671.37 | D182: 96745671.37 | F182: =IFERROR(INDEX($B$9:$B$511,MATCH(0,INDEX(COUNTIF($F$8:F181,$B$9:$B$511),0,0),0)),"") -> GR_CANELO | H182: 96745671.37
A183: =+MATCH(B183,RUT[EMPRESA],0) -> 188 | B183: LA_LEONERA | C183: 37989517.65 | D183: 37989517.65 | F183: =IFERROR(INDEX($B$9:$B$511,MATCH(0,INDEX(COUNTIF($F$8:F182,$B$9:$B$511),0,0),0)),"") -> LA_LEONERA | H183: 37989517.65
A184: =+MATCH(B184,RUT[EMPRESA],0) -> 30 | B184: CABO_LEONES | C184: 79518482.88 | D184: 79518482.88 | F184: =IFERROR(INDEX($B$9:$B$511,MATCH(0,INDEX(COUNTIF($F$8:F183,$B$9:$B$511),0,0),0)),"") -> CABO_LEONES | H184: 79518482.88
A185: =+MATCH(B185,RUT[EMPRESA],0) -> 49 | B185: CHILE_GENERACION | C185: 0 | D185: 0 | F185: =IFERROR(INDEX($B$9:$B$511,MATCH(0,INDEX(COUNTIF($F$8:F184,$B$9:$B$511),0,0),0)),"") -> CHILE_GENERACION
A186: =+MATCH(B186,RUT[EMPRESA],0) -> 276 | B186: RIO_COLORADO | C186: 54378836.92 | D186: 54378836.92 | F186: =IFERROR(INDEX($B$9:$B$511,MATCH(0,INDEX(COUNTIF($F$8:F185,$B$9:$B$511),0,0),0)),"") -> RIO_COLORADO | H186: 54378836.92
A187: =+MATCH(B187,RUT[EMPRESA],0) -> 194 | B187: LAS_TURCAS | C187: 30252827.7 | D187: 30252827.7 | F187: =IFERROR(INDEX($B$9:$B$511,MATCH(0,INDEX(COUNTIF($F$8:F186,$B$9:$B$511),0,0),0)),"") -> LAS_TURCAS | H187: 30252827.7
A188: =+MATCH(B188,RUT[EMPRESA],0) -> 148 | B188: GR_GUAYACAN | C188: 20109870.17 | D188: 20109870.17 | F188: =IFERROR(INDEX($B$9:$B$511,MATCH(0,INDEX(COUNTIF($F$8:F187,$B$9:$B$511),0,0),0)),"") -> GR_GUAYACAN | H188: 20109870.17
